Workbook

Sheet Control
A1: State Inventory Tool - CH4 and N2O Emissions from Stationary Combustion Module Version 2025.1
A2: This module provides default activity data, emission factors, and other relevant metrics for 1990-2022. Emissions factors for 2023-2025 are proxied to 2022.
A3: 1. Choose a State | N3: 2
A4: This is very important - it selects the correct default variables for your state. | N4: 3
N5: 4
A6: 2. Complete the Bulk Data Energy Consumption Worksheet
A8: 3.-6. Fill In the emission factors that are used throughout the module and then proceed to the corresponding sector worksheet to input activity data. | N8: 5
A9: Enter the emission factors in the boxes below or check the boxes to use default values | N9: 6
A10: The default GWPs used in this module are from the IPCC Fifth Assessment Report (AR5) but can be adjusted in the Constants tab to reflect other sources.
N11: 7
N12: 14
A14: 3. Residential Emission Factors
B15: N2O Emission Factors (metric tons N2O gas/Billion BTU) | H15: CH4 Emission Factors (metric tons CH4 gas/BBTU)
A16: Fuel Type | B16: Default N2O Emission Factors | D16: N2O Emission Factor Used | F16: Use the Default? (Check for Yes) | H16: Default CH4 Emission Factors | J16: CH4 Emission Factor Used | L16: Use the Default? (Check for Yes)
A17: Coal | B17: ='Emission Factors'!F5 -> 0.00150 | H17: ='Emission Factors'!G5 -> 0.30069
A18: Distillate Fuel | B18: ='Emission Factors'!F$10 -> 0.00060 | H18: ='Emission Factors'!G$10 -> 0.01002
A19: Kerosene | B19: ='Emission Factors'!F$10 -> 0.00060 | H19: ='Emission Factors'!G$10 -> 0.01002
A20: Hydrocarbon Gas Liquids | B20: ='Emission Factors'!F$10 -> 0.00060 | H20: ='Emission Factors'!G$10 -> 0.01002
A21: Natural Gas | B21: ='Emission Factors'!F15 -> 0.00009 | H21: ='Emission Factors'!G15 -> 0.00475
A22: Wood | B22: ='Emission Factors'!F20 -> 0.00380 | H22: ='Emission Factors'!G20 -> 0.28487
A23: Other | B23: NA | H23: NA
A25: 4. Commercial Emission Factors
B26: N2O Emission Factors (metric tons N2O gas/BBTU) | H26: CH4 Emission Factors (metric tons CH4 gas/BBTU)
A27: Fuel Type | B27: Default N2O Emission Factors | D27: N2O Emission Factor Used | F27: Use the Default? (Check for Yes) | H27: Default CH4 Emission Factors | J27: CH4 Emission Factor Used | L27: Use the Default? (Check for Yes)
A28: Coal | B28: ='Emission Factors'!F6 -> 0.00150 | H28: ='Emission Factors'!G6 -> 0.01002
A29: Distillate Fuel | B29: ='Emission Factors'!F$11 -> 0.00060 | H29: ='Emission Factors'!G$11 -> 0.01002
A30: Kerosene | B30: ='Emission Factors'!F$11 -> 0.00060 | H30: ='Emission Factors'!G$11 -> 0.01002
A31: Hydrocarbon Gas Liquids | B31: ='Emission Factors'!F$11 -> 0.00060 | H31: ='Emission Factors'!G$11 -> 0.01002
A32: Motor Gasoline | B32: ='Emission Factors'!F$11 -> 0.00060 | H32: ='Emission Factors'!G$11 -> 0.01002
A33: Residual Fuel | B33: ='Emission Factors'!F$11 -> 0.00060 | H33: ='Emission Factors'!G$11 -> 0.01002
A34: Natural Gas | B34: ='Emission Factors'!F16 -> 0.00009 | H34: ='Emission Factors'!G16 -> 0.00475
A35: Wood | B35: ='Emission Factors'!F21 -> 0.00380 | H35: ='Emission Factors'!G21 -> 0.28487
A36: Other | B36: NA | H36: NA
A38: 5. Electric Power Emission Factors | N38: 27
B39: N2O Emission Factors (metric tons N2O gas/BBTU) | H39: CH4 Emission Factors (metric tons CH4 gas/BBTU) | N39: 28
A40: Fuel Type | B40: Default N2O Emission Factors | D40: N2O Emission Factor Used | F40: Use the Default? (Check for Yes) | H40: Default CH4 Emission Factors | J40: CH4 Emission Factor Used | L40: Use the Default? (Check for Yes) | N40: 29
A41: Coal | B41: ='Emission Factors'!F8 -> 0.00150 | H41: ='Emission Factors'!G8 -> 0.00100 | N41: 30
A42: Distillate Fuel | B42: ='Emission Factors'!F$13 -> 0.00060 | H42: ='Emission Factors'!G$13 -> 0.00301 | N42: 31
A43: Petroleum Coke | B43: ='Emission Factors'!F$13 -> 0.00060 | H43: ='Emission Factors'!G$13 -> 0.00301 | N43: 32
A44: Residual Fuel | B44: ='Emission Factors'!F$13 -> 0.00060 | H44: ='Emission Factors'!G$13 -> 0.00301 | N44: 33
A45: Natural Gas | B45: ='Emission Factors'!F18 -> 0.00009 | H45: ='Emission Factors'!G18 -> 0.00095 | N45: 34
A46: Wood | B46: ='Emission Factors'!F23 -> 0.00380 | H46: ='Emission Factors'!G23 -> 0.02849
A47: Other | B47: NA | H47: NA | N47: 36
N48: 37
A49: 6. Industrial Emission Factors
B50: N2O Emission Factors (metric tons N2O gas/BBTU) | H50: CH4 Emission Factors (metric tons CH4 gas/BBTU)
A51: Fuel Type | B51: Default N2O Emission Factors | D51: N2O Emission Factor Used | F51: Use the Default? (Check for Yes) | H51: Default CH4 Emission Factors | J51: CH4 Emission Factor Used | L51: Use the Default? (Check for Yes)
A52: Coking Coal | B52: ='Emission Factors'!F$7 -> 0.00150 | H52: ='Emission Factors'!G$7 -> 0.01002
A53: Independent Power Coal | B53: ='Emission Factors'!F$7 -> 0.00150 | H53: ='Emission Factors'!G$7 -> 0.01002
A54: Other Coal | B54: ='Emission Factors'!F$7 -> 0.00150 | H54: ='Emission Factors'!G$7 -> 0.01002
A55: Asphalt and Road Oil | B55: ='Emission Factors'!F$12 -> 0.00060 | H55: ='Emission Factors'!G$12 -> 0.00301
A56: Aviation Gasoline Blending Components | B56: ='Emission Factors'!F$12 -> 0.00060 | H56: ='Emission Factors'!G$12 -> 0.00301
A57: Crude Oil | B57: ='Emission Factors'!F$12 -> 0.00060 | H57: ='Emission Factors'!G$12 -> 0.00301
A58: Distillate Fuel | B58: ='Emission Factors'!F$12 -> 0.00060 | H58: ='Emission Factors'!G$12 -> 0.00301
A59: Feedstocks, Naphtha less than 401 F | B59: ='Emission Factors'!F$12 -> 0.00060 | H59: ='Emission Factors'!G$12 -> 0.00301
A60: Feedstocks, Other Oils greater than 401 F | B60: ='Emission Factors'!F$12 -> 0.00060 | H60: ='Emission Factors'!G$12 -> 0.00301
A61: Kerosene | B61: ='Emission Factors'!F$12 -> 0.00060 | H61: ='Emission Factors'!G$12 -> 0.00301
A62: Hydrocarbon Gas Liquids | B62: ='Emission Factors'!F$12 -> 0.00060 | H62: ='Emission Factors'!G$12 -> 0.00301
A63: Lubricants | B63: ='Emission Factors'!F$12 -> 0.00060 | H63: ='Emission Factors'!G$12 -> 0.00301
A64: Motor Gasoline | B64: ='Emission Factors'!F$12 -> 0.00060 | H64: ='Emission Factors'!G$12 -> 0.00301
A65: Motor Gasoline Blending Components | B65: ='Emission Factors'!F$12 -> 0.00060 | H65: ='Emission Factors'!G$12 -> 0.00301
A66: Misc. Petro Products | B66: ='Emission Factors'!F$12 -> 0.00060 | H66: ='Emission Factors'!G$12 -> 0.00301
A67: Pentanes Plus | B67: ='Emission Factors'!F$12 -> 0.00060 | H67: ='Emission Factors'!G$12 -> 0.00301
A68: Petroleum Coke | B68: ='Emission Factors'!F$12 -> 0.00060 | H68: ='Emission Factors'!G$12 -> 0.00301
A69: Residual Fuel | B69: ='Emission Factors'!F$12 -> 0.00060 | H69: ='Emission Factors'!G$12 -> 0.00301
A70: Still Gas | B70: ='Emission Factors'!F$12 -> 0.00060 | H70: ='Emission Factors'!G$12 -> 0.00301
A71: Special Naphthas | B71: ='Emission Factors'!F$12 -> 0.00060 | H71: ='Emission Factors'!G$12 -> 0.00301
A72: Unfinished Oils | B72: ='Emission Factors'!F$12 -> 0.00060 | H72: ='Emission Factors'!G$12 -> 0.00301
A73: Waxes | B73: ='Emission Factors'!F$12 -> 0.00060 | H73: ='Emission Factors'!G$12 -> 0.00301
A74: Natural Gas | B74: ='Emission Factors'!F17 -> 0.00009 | H74: ='Emission Factors'!G17 -> 0.00095
A75: Wood | B75: ='Emission Factors'!F22 -> 0.00380 | H75: ='Emission Factors'!G22 -> 0.02849
A76: Other | B76: NA | H76: NA
N78: 38
A81: ="7. Go to the Summary Worksheets for " &Constants!G2 -> 7. Go to the Summary Worksheets for Select a State . . . | N81: 39
N82: 40
N83: 41
N86: 44
A88: 8. Export the results for use in the Synthesis Tool. | N88: 45

Sheet Dataframe_Sum (hidden)
A1: MMTCO2E | B1: Category | C1: 1990 | D1: 1991 | E1: 1992 | F1: 1993 | G1: 1994 | H1: 1995 | I1: 1996 | J1: 1997 | K1: 1998 | L1: 1999 | M1: 2000 | N1: 2001 | O1: 2002 | P1: 2003 | Q1: 2004 | R1: 2005 | S1: 2006 | T1: 2007 | U1: 2008 | V1: 2009 | W1: 2010 | X1: 2011 | Y1: 2012 | Z1: 2013 | AA1: 2014 | AB1: 2015 | AC1: 2016 | AD1: 2017 | AE1: 2018 | AF1: 2019 | AG1: 2020 | AH1: 2021 | AI1: 2022 | AJ1: 2023 | AK1: 2024 | AL1: 2025
A2: Total | B2: Energy - Stationary Combustion | C2: ='Total Summary'!C18 ->  | D2: ='Total Summary'!D18 ->  | E2: ='Total Summary'!E18 ->  | F2: ='Total Summary'!F18 ->  | G2: ='Total Summary'!G18 ->  | H2: ='Total Summary'!H18 ->  | I2: ='Total Summary'!I18 ->  | J2: ='Total Summary'!J18 ->  | K2: ='Total Summary'!K18 ->  | L2: ='Total Summary'!L18 ->  | M2: ='Total Summary'!M18 ->  | N2: ='Total Summary'!N18 ->  | O2: ='Total Summary'!O18 ->  | P2: ='Total Summary'!P18 ->  | Q2: ='Total Summary'!Q18 ->  | R2: ='Total Summary'!R18 ->  | S2: ='Total Summary'!S18 ->  | T2: ='Total Summary'!T18 ->  | U2: ='Total Summary'!U18 ->  | V2: ='Total Summary'!V18 ->  | W2: ='Total Summary'!W18 ->  | X2: ='Total Summary'!X18 ->  | Y2: ='Total Summary'!Y18 ->  | Z2: ='Total Summary'!Z18 ->  | AA2: ='Total Summary'!AA18 ->  | AB2: ='Total Summary'!AB18 ->  | AC2: ='Total Summary'!AC18 ->  | AD2: ='Total Summary'!AD18 ->  | AE2: ='Total Summary'!AE18 ->  | AF2: ='Total Summary'!AF18 ->  | AG2: ='Total Summary'!AG18 ->  | AH2: ='Total Summary'!AH18 ->  | AI2: ='Total Summary'!AI18 ->  | AJ2: ='Total Summary'!AJ18 ->  | AK2: ='Total Summary'!AK18 ->  | AL2: ='Total Summary'!AL18 -> 

Sheet Dataframe (hidden)
A1: MMTCO2E | B1: Category | C1: 1990 | D1: 1991 | E1: 1992 | F1: 1993 | G1: 1994 | H1: 1995 | I1: 1996 | J1: 1997 | K1: 1998 | L1: 1999 | M1: 2000 | N1: 2001 | O1: 2002 | P1: 2003 | Q1: 2004 | R1: 2005 | S1: 2006 | T1: 2007 | U1: 2008 | V1: 2009 | W1: 2010 | X1: 2011 | Y1: 2012 | Z1: 2013 | AA1: 2014 | AB1: 2015 | AC1: 2016 | AD1: 2017 | AE1: 2018 | AF1: 2019 | AG1: 2020 | AH1: 2021 | AI1: 2022 | AJ1: 2023 | AK1: 2024 | AL1: 2025
A2: Residential | B2: ="Energy - Stationary Combustion - "&$A$2 -> Energy - Stationary Combustion - Residential | C2: ='Total Summary'!C6 ->  | D2: ='Total Summary'!D6 ->  | E2: ='Total Summary'!E6 ->  | F2: ='Total Summary'!F6 ->  | G2: ='Total Summary'!G6 ->  | H2: ='Total Summary'!H6 ->  | I2: ='Total Summary'!I6 ->  | J2: ='Total Summary'!J6 ->  | K2: ='Total Summary'!K6 ->  | L2: ='Total Summary'!L6 ->  | M2: ='Total Summary'!M6 ->  | N2: ='Total Summary'!N6 ->  | O2: ='Total Summary'!O6 ->  | P2: ='Total Summary'!P6 ->  | Q2: ='Total Summary'!Q6 ->  | R2: ='Total Summary'!R6 ->  | S2: ='Total Summary'!S6 ->  | T2: ='Total Summary'!T6 ->  | U2: ='Total Summary'!U6 ->  | V2: ='Total Summary'!V6 ->  | W2: ='Total Summary'!W6 ->  | X2: ='Total Summary'!X6 ->  | Y2: ='Total Summary'!Y6 ->  | Z2: ='Total Summary'!Z6 ->  | AA2: ='Total Summary'!AA6 ->  | AB2: ='Total Summary'!AB6 ->  | AC2: ='Total Summary'!AC6 ->  | AD2: ='Total Summary'!AD6 ->  | AE2: ='Total Summary'!AE6 ->  | AF2: ='Total Summary'!AF6 ->  | AG2: ='Total Summary'!AG6 ->  | AH2: ='Total Summary'!AH6 ->  | AI2: ='Total Summary'!AI6 ->  | AJ2: ='Total Summary'!AJ6 ->  | AK2: ='Total Summary'!AK6 ->  | AL2: ='Total Summary'!AL6 -> 
A3: N2O | B3: ="Energy - Stationary Combustion - "&$A$2&" - "&A3 -> Energy - Stationary Combustion - Residential - N2O | C3: ='Total Summary'!C7 ->  | D3: ='Total Summary'!D7 ->  | E3: ='Total Summary'!E7 ->  | F3: ='Total Summary'!F7 ->  | G3: ='Total Summary'!G7 ->  | H3: ='Total Summary'!H7 ->  | I3: ='Total Summary'!I7 ->  | J3: ='Total Summary'!J7 ->  | K3: ='Total Summary'!K7 ->  | L3: ='Total Summary'!L7 ->  | M3: ='Total Summary'!M7 ->  | N3: ='Total Summary'!N7 ->  | O3: ='Total Summary'!O7 ->  | P3: ='Total Summary'!P7 ->  | Q3: ='Total Summary'!Q7 ->  | R3: ='Total Summary'!R7 ->  | S3: ='Total Summary'!S7 ->  | T3: ='Total Summary'!T7 ->  | U3: ='Total Summary'!U7 ->  | V3: ='Total Summary'!V7 ->  | W3: ='Total Summary'!W7 ->  | X3: ='Total Summary'!X7 ->  | Y3: ='Total Summary'!Y7 ->  | Z3: ='Total Summary'!Z7 ->  | AA3: ='Total Summary'!AA7 ->  | AB3: ='Total Summary'!AB7 ->  | AC3: ='Total Summary'!AC7 ->  | AD3: ='Total Summary'!AD7 ->  | AE3: ='Total Summary'!AE7 ->  | AF3: ='Total Summary'!AF7 ->  | AG3: ='Total Summary'!AG7 ->  | AH3: ='Total Summary'!AH7 ->  | AI3: ='Total Summary'!AI7 ->  | AJ3: ='Total Summary'!AJ7 ->  | AK3: ='Total Summary'!AK7 ->  | AL3: ='Total Summary'!AL7 -> 
A4: CH4 | B4: ="Energy - Stationary Combustion - "&$A$2&" - "&A4 -> Energy - Stationary Combustion - Residential - CH4 | C4: ='Total Summary'!C8 ->  | D4: ='Total Summary'!D8 ->  | E4: ='Total Summary'!E8 ->  | F4: ='Total Summary'!F8 ->  | G4: ='Total Summary'!G8 ->  | H4: ='Total Summary'!H8 ->  | I4: ='Total Summary'!I8 ->  | J4: ='Total Summary'!J8 ->  | K4: ='Total Summary'!K8 ->  | L4: ='Total Summary'!L8 ->  | M4: ='Total Summary'!M8 ->  | N4: ='Total Summary'!N8 ->  | O4: ='Total Summary'!O8 ->  | P4: ='Total Summary'!P8 ->  | Q4: ='Total Summary'!Q8 ->  | R4: ='Total Summary'!R8 ->  | S4: ='Total Summary'!S8 ->  | T4: ='Total Summary'!T8 ->  | U4: ='Total Summary'!U8 ->  | V4: ='Total Summary'!V8 ->  | W4: ='Total Summary'!W8 ->  | X4: ='Total Summary'!X8 ->  | Y4: ='Total Summary'!Y8 ->  | Z4: ='Total Summary'!Z8 ->  | AA4: ='Total Summary'!AA8 ->  | AB4: ='Total Summary'!AB8 ->  | AC4: ='Total Summary'!AC8 ->  | AD4: ='Total Summary'!AD8 ->  | AE4: ='Total Summary'!AE8 ->  | AF4: ='Total Summary'!AF8 ->  | AG4: ='Total Summary'!AG8 ->  | AH4: ='Total Summary'!AH8 ->  | AI4: ='Total Summary'!AI8 ->  | AJ4: ='Total Summary'!AJ8 ->  | AK4: ='Total Summary'!AK8 ->  | AL4: ='Total Summary'!AL8 -> 
A5: Commercial | B5: ="Energy - Stationary Combustion - "&$A$5 -> Energy - Stationary Combustion - Commercial | C5: ='Total Summary'!C9 ->  | D5: ='Total Summary'!D9 ->  | E5: ='Total Summary'!E9 ->  | F5: ='Total Summary'!F9 ->  | G5: ='Total Summary'!G9 ->  | H5: ='Total Summary'!H9 ->  | I5: ='Total Summary'!I9 ->  | J5: ='Total Summary'!J9 ->  | K5: ='Total Summary'!K9 ->  | L5: ='Total Summary'!L9 ->  | M5: ='Total Summary'!M9 ->  | N5: ='Total Summary'!N9 ->  | O5: ='Total Summary'!O9 ->  | P5: ='Total Summary'!P9 ->  | Q5: ='Total Summary'!Q9 ->  | R5: ='Total Summary'!R9 ->  | S5: ='Total Summary'!S9 ->  | T5: ='Total Summary'!T9 ->  | U5: ='Total Summary'!U9 ->  | V5: ='Total Summary'!V9 ->  | W5: ='Total Summary'!W9 ->  | X5: ='Total Summary'!X9 ->  | Y5: ='Total Summary'!Y9 ->  | Z5: ='Total Summary'!Z9 ->  | AA5: ='Total Summary'!AA9 ->  | AB5: ='Total Summary'!AB9 ->  | AC5: ='Total Summary'!AC9 ->  | AD5: ='Total Summary'!AD9 ->  | AE5: ='Total Summary'!AE9 ->  | AF5: ='Total Summary'!AF9 ->  | AG5: ='Total Summary'!AG9 ->  | AH5: ='Total Summary'!AH9 ->  | AI5: ='Total Summary'!AI9 ->  | AJ5: ='Total Summary'!AJ9 ->  | AK5: ='Total Summary'!AK9 ->  | AL5: ='Total Summary'!AL9 -> 
A6: N2O | B6: ="Energy - Stationary Combustion - "&$A$5&" - "&A6 -> Energy - Stationary Combustion - Commercial - N2O | C6: ='Total Summary'!C10 ->  | D6: ='Total Summary'!D10 ->  | E6: ='Total Summary'!E10 ->  | F6: ='Total Summary'!F10 ->  | G6: ='Total Summary'!G10 ->  | H6: ='Total Summary'!H10 ->  | I6: ='Total Summary'!I10 ->  | J6: ='Total Summary'!J10 ->  | K6: ='Total Summary'!K10 ->  | L6: ='Total Summary'!L10 ->  | M6: ='Total Summary'!M10 ->  | N6: ='Total Summary'!N10 ->  | O6: ='Total Summary'!O10 ->  | P6: ='Total Summary'!P10 ->  | Q6: ='Total Summary'!Q10 ->  | R6: ='Total Summary'!R10 ->  | S6: ='Total Summary'!S10 ->  | T6: ='Total Summary'!T10 ->  | U6: ='Total Summary'!U10 ->  | V6: ='Total Summary'!V10 ->  | W6: ='Total Summary'!W10 ->  | X6: ='Total Summary'!X10 ->  | Y6: ='Total Summary'!Y10 ->  | Z6: ='Total Summary'!Z10 ->  | AA6: ='Total Summary'!AA10 ->  | AB6: ='Total Summary'!AB10 ->  | AC6: ='Total Summary'!AC10 ->  | AD6: ='Total Summary'!AD10 ->  | AE6: ='Total Summary'!AE10 ->  | AF6: ='Total Summary'!AF10 ->  | AG6: ='Total Summary'!AG10 ->  | AH6: ='Total Summary'!AH10 ->  | AI6: ='Total Summary'!AI10 ->  | AJ6: ='Total Summary'!AJ10 ->  | AK6: ='Total Summary'!AK10 ->  | AL6: ='Total Summary'!AL10 -> 
A7: CH4 | B7: ="Energy - Stationary Combustion - "&$A$5&" - "&A7 -> Energy - Stationary Combustion - Commercial - CH4 | C7: ='Total Summary'!C11 ->  | D7: ='Total Summary'!D11 ->  | E7: ='Total Summary'!E11 ->  | F7: ='Total Summary'!F11 ->  | G7: ='Total Summary'!G11 ->  | H7: ='Total Summary'!H11 ->  | I7: ='Total Summary'!I11 ->  | J7: ='Total Summary'!J11 ->  | K7: ='Total Summary'!K11 ->  | L7: ='Total Summary'!L11 ->  | M7: ='Total Summary'!M11 ->  | N7: ='Total Summary'!N11 ->  | O7: ='Total Summary'!O11 ->  | P7: ='Total Summary'!P11 ->  | Q7: ='Total Summary'!Q11 ->  | R7: ='Total Summary'!R11 ->  | S7: ='Total Summary'!S11 ->  | T7: ='Total Summary'!T11 ->  | U7: ='Total Summary'!U11 ->  | V7: ='Total Summary'!V11 ->  | W7: ='Total Summary'!W11 ->  | X7: ='Total Summary'!X11 ->  | Y7: ='Total Summary'!Y11 ->  | Z7: ='Total Summary'!Z11 ->  | AA7: ='Total Summary'!AA11 ->  | AB7: ='Total Summary'!AB11 ->  | AC7: ='Total Summary'!AC11 ->  | AD7: ='Total Summary'!AD11 ->  | AE7: ='Total Summary'!AE11 ->  | AF7: ='Total Summary'!AF11 ->  | AG7: ='Total Summary'!AG11 ->  | AH7: ='Total Summary'!AH11 ->  | AI7: ='Total Summary'!AI11 ->  | AJ7: ='Total Summary'!AJ11 ->  | AK7: ='Total Summary'!AK11 ->  | AL7: ='Total Summary'!AL11 -> 
A8: Industrial | B8: ="Energy - Stationary Combustion - "&$A$8 -> Energy - Stationary Combustion - Industrial | C8: ='Total Summary'!C12 ->  | D8: ='Total Summary'!D12 ->  | E8: ='Total Summary'!E12 ->  | F8: ='Total Summary'!F12 ->  | G8: ='Total Summary'!G12 ->  | H8: ='Total Summary'!H12 ->  | I8: ='Total Summary'!I12 ->  | J8: ='Total Summary'!J12 ->  | K8: ='Total Summary'!K12 ->  | L8: ='Total Summary'!L12 ->  | M8: ='Total Summary'!M12 ->  | N8: ='Total Summary'!N12 ->  | O8: ='Total Summary'!O12 ->  | P8: ='Total Summary'!P12 ->  | Q8: ='Total Summary'!Q12 ->  | R8: ='Total Summary'!R12 ->  | S8: ='Total Summary'!S12 ->  | T8: ='Total Summary'!T12 ->  | U8: ='Total Summary'!U12 ->  | V8: ='Total Summary'!V12 ->  | W8: ='Total Summary'!W12 ->  | X8: ='Total Summary'!X12 ->  | Y8: ='Total Summary'!Y12 ->  | Z8: ='Total Summary'!Z12 ->  | AA8: ='Total Summary'!AA12 ->  | AB8: ='Total Summary'!AB12 ->  | AC8: ='Total Summary'!AC12 ->  | AD8: ='Total Summary'!AD12 ->  | AE8: ='Total Summary'!AE12 ->  | AF8: ='Total Summary'!AF12 ->  | AG8: ='Total Summary'!AG12 ->  | AH8: ='Total Summary'!AH12 ->  | AI8: ='Total Summary'!AI12 ->  | AJ8: ='Total Summary'!AJ12 ->  | AK8: ='Total Summary'!AK12 ->  | AL8: ='Total Summary'!AL12 -> 
A9: N2O | B9: ="Energy - Stationary Combustion - "&$A$8&" - "&A9 -> Energy - Stationary Combustion - Industrial - N2O | C9: ='Total Summary'!C13 ->  | D9: ='Total Summary'!D13 ->  | E9: ='Total Summary'!E13 ->  | F9: ='Total Summary'!F13 ->  | G9: ='Total Summary'!G13 ->  | H9: ='Total Summary'!H13 ->  | I9: ='Total Summary'!I13 ->  | J9: ='Total Summary'!J13 ->  | K9: ='Total Summary'!K13 ->  | L9: ='Total Summary'!L13 ->  | M9: ='Total Summary'!M13 ->  | N9: ='Total Summary'!N13 ->  | O9: ='Total Summary'!O13 ->  | P9: ='Total Summary'!P13 ->  | Q9: ='Total Summary'!Q13 ->  | R9: ='Total Summary'!R13 ->  | S9: ='Total Summary'!S13 ->  | T9: ='Total Summary'!T13 ->  | U9: ='Total Summary'!U13 ->  | V9: ='Total Summary'!V13 ->  | W9: ='Total Summary'!W13 ->  | X9: ='Total Summary'!X13 ->  | Y9: ='Total Summary'!Y13 ->  | Z9: ='Total Summary'!Z13 ->  | AA9: ='Total Summary'!AA13 ->  | AB9: ='Total Summary'!AB13 ->  | AC9: ='Total Summary'!AC13 ->  | AD9: ='Total Summary'!AD13 ->  | AE9: ='Total Summary'!AE13 ->  | AF9: ='Total Summary'!AF13 ->  | AG9: ='Total Summary'!AG13 ->  | AH9: ='Total Summary'!AH13 ->  | AI9: ='Total Summary'!AI13 ->  | AJ9: ='Total Summary'!AJ13 ->  | AK9: ='Total Summary'!AK13 ->  | AL9: ='Total Summary'!AL13 -> 
A10: CH4 | B10: ="Energy - Stationary Combustion - "&$A$8&" - "&A10 -> Energy - Stationary Combustion - Industrial - CH4 | C10: ='Total Summary'!C14 ->  | D10: ='Total Summary'!D14 ->  | E10: ='Total Summary'!E14 ->  | F10: ='Total Summary'!F14 ->  | G10: ='Total Summary'!G14 ->  | H10: ='Total Summary'!H14 ->  | I10: ='Total Summary'!I14 ->  | J10: ='Total Summary'!J14 ->  | K10: ='Total Summary'!K14 ->  | L10: ='Total Summary'!L14 ->  | M10: ='Total Summary'!M14 ->  | N10: ='Total Summary'!N14 ->  | O10: ='Total Summary'!O14 ->  | P10: ='Total Summary'!P14 ->  | Q10: ='Total Summary'!Q14 ->  | R10: ='Total Summary'!R14 ->  | S10: ='Total Summary'!S14 ->  | T10: ='Total Summary'!T14 ->  | U10: ='Total Summary'!U14 ->  | V10: ='Total Summary'!V14 ->  | W10: ='Total Summary'!W14 ->  | X10: ='Total Summary'!X14 ->  | Y10: ='Total Summary'!Y14 ->  | Z10: ='Total Summary'!Z14 ->  | AA10: ='Total Summary'!AA14 ->  | AB10: ='Total Summary'!AB14 ->  | AC10: ='Total Summary'!AC14 ->  | AD10: ='Total Summary'!AD14 ->  | AE10: ='Total Summary'!AE14 ->  | AF10: ='Total Summary'!AF14 ->  | AG10: ='Total Summary'!AG14 ->  | AH10: ='Total Summary'!AH14 ->  | AI10: ='Total Summary'!AI14 ->  | AJ10: ='Total Summary'!AJ14 ->  | AK10: ='Total Summary'!AK14 ->  | AL10: ='Total Summary'!AL14 -> 
A11: Electric Power | B11: ="Energy - Stationary Combustion - "&$A$11 -> Energy - Stationary Combustion - Electric Power | C11: ='Total Summary'!C15 ->  | D11: ='Total Summary'!D15 ->  | E11: ='Total Summary'!E15 ->  | F11: ='Total Summary'!F15 ->  | G11: ='Total Summary'!G15 ->  | H11: ='Total Summary'!H15 ->  | I11: ='Total Summary'!I15 ->  | J11: ='Total Summary'!J15 ->  | K11: ='Total Summary'!K15 ->  | L11: ='Total Summary'!L15 ->  | M11: ='Total Summary'!M15 ->  | N11: ='Total Summary'!N15 ->  | O11: ='Total Summary'!O15 ->  | P11: ='Total Summary'!P15 ->  | Q11: ='Total Summary'!Q15 ->  | R11: ='Total Summary'!R15 ->  | S11: ='Total Summary'!S15 ->  | T11: ='Total Summary'!T15 ->  | U11: ='Total Summary'!U15 ->  | V11: ='Total Summary'!V15 ->  | W11: ='Total Summary'!W15 ->  | X11: ='Total Summary'!X15 ->  | Y11: ='Total Summary'!Y15 ->  | Z11: ='Total Summary'!Z15 ->  | AA11: ='Total Summary'!AA15 ->  | AB11: ='Total Summary'!AB15 ->  | AC11: ='Total Summary'!AC15 ->  | AD11: ='Total Summary'!AD15 ->  | AE11: ='Total Summary'!AE15 ->  | AF11: ='Total Summary'!AF15 ->  | AG11: ='Total Summary'!AG15 ->  | AH11: ='Total Summary'!AH15 ->  | AI11: ='Total Summary'!AI15 ->  | AJ11: ='Total Summary'!AJ15 ->  | AK11: ='Total Summary'!AK15 ->  | AL11: ='Total Summary'!AL15 -> 
A12: N2O | B12: ="Energy - Stationary Combustion - "&$A$11&" - "&A12 -> Energy - Stationary Combustion - Electric Power - N2O | C12: ='Total Summary'!C16 ->  | D12: ='Total Summary'!D16 ->  | E12: ='Total Summary'!E16 ->  | F12: ='Total Summary'!F16 ->  | G12: ='Total Summary'!G16 ->  | H12: ='Total Summary'!H16 ->  | I12: ='Total Summary'!I16 ->  | J12: ='Total Summary'!J16 ->  | K12: ='Total Summary'!K16 ->  | L12: ='Total Summary'!L16 ->  | M12: ='Total Summary'!M16 ->  | N12: ='Total Summary'!N16 ->  | O12: ='Total Summary'!O16 ->  | P12: ='Total Summary'!P16 ->  | Q12: ='Total Summary'!Q16 ->  | R12: ='Total Summary'!R16 ->  | S12: ='Total Summary'!S16 ->  | T12: ='Total Summary'!T16 ->  | U12: ='Total Summary'!U16 ->  | V12: ='Total Summary'!V16 ->  | W12: ='Total Summary'!W16 ->  | X12: ='Total Summary'!X16 ->  | Y12: ='Total Summary'!Y16 ->  | Z12: ='Total Summary'!Z16 ->  | AA12: ='Total Summary'!AA16 ->  | AB12: ='Total Summary'!AB16 ->  | AC12: ='Total Summary'!AC16 ->  | AD12: ='Total Summary'!AD16 ->  | AE12: ='Total Summary'!AE16 ->  | AF12: ='Total Summary'!AF16 ->  | AG12: ='Total Summary'!AG16 ->  | AH12: ='Total Summary'!AH16 ->  | AI12: ='Total Summary'!AI16 ->  | AJ12: ='Total Summary'!AJ16 ->  | AK12: ='Total Summary'!AK16 ->  | AL12: ='Total Summary'!AL16 -> 
A13: CH4 | B13: ="Energy - Stationary Combustion - "&$A$11&" - "&A13 -> Energy - Stationary Combustion - Electric Power - CH4 | C13: ='Total Summary'!C17 ->  | D13: ='Total Summary'!D17 ->  | E13: ='Total Summary'!E17 ->  | F13: ='Total Summary'!F17 ->  | G13: ='Total Summary'!G17 ->  | H13: ='Total Summary'!H17 ->  | I13: ='Total Summary'!I17 ->  | J13: ='Total Summary'!J17 ->  | K13: ='Total Summary'!K17 ->  | L13: ='Total Summary'!L17 ->  | M13: ='Total Summary'!M17 ->  | N13: ='Total Summary'!N17 ->  | O13: ='Total Summary'!O17 ->  | P13: ='Total Summary'!P17 ->  | Q13: ='Total Summary'!Q17 ->  | R13: ='Total Summary'!R17 ->  | S13: ='Total Summary'!S17 ->  | T13: ='Total Summary'!T17 ->  | U13: ='Total Summary'!U17 ->  | V13: ='Total Summary'!V17 ->  | W13: ='Total Summary'!W17 ->  | X13: ='Total Summary'!X17 ->  | Y13: ='Total Summary'!Y17 ->  | Z13: ='Total Summary'!Z17 ->  | AA13: ='Total Summary'!AA17 ->  | AB13: ='Total Summary'!AB17 ->  | AC13: ='Total Summary'!AC17 ->  | AD13: ='Total Summary'!AD17 ->  | AE13: ='Total Summary'!AE17 ->  | AF13: ='Total Summary'!AF17 ->  | AG13: ='Total Summary'!AG17 ->  | AH13: ='Total Summary'!AH17 ->  | AI13: ='Total Summary'!AI17 ->  | AJ13: ='Total Summary'!AJ17 ->  | AK13: ='Total Summary'!AK17 ->  | AL13: ='Total Summary'!AL17 -> 

Sheet Default State Energy Data Table
B1: ="Default Energy Consumption in "&StateName&", billion btu (Bbtu)" -> Default Energy Consumption in Select a State . . ., billion btu (Bbtu) | N1: Residential N2O
B5: Sector and Fuel | C5: 1990 | D5: 1991 | E5: 1992 | F5: 1993 | G5: 1994 | H5: 1995 | I5: 1996 | J5: 1997 | K5: 1998 | L5: 1999 | M5: 2000 | N5: 2001 | O5: 2002 | P5: 2003 | Q5: 2004 | R5: 2005 | S5: 2006 | T5: 2007 | U5: 2008 | V5: 2009 | W5: 2010 | X5: 2011 | Y5: 2012 | Z5: 2013 | AA5: 2014 | AB5: 2015 | AC5: 2016 | AD5: 2017 | AE5: 2018 | AF5: 2019 | AG5: 2020 | AH5: 2021 | AI5: 2022 | AJ5: 2023 | AK5: 2024 | AL5: 2025
A6: =StateID&" "&B6 -> xx Commercial Coal | B6: Commercial Coal | C6: =VLOOKUP(StateID&" "&$B6,ConsumeBlock,C$5-1988,FALSE) ->  | D6: =VLOOKUP(StateID&" "&$B6,ConsumeBlock,D$5-1988,FALSE) ->  | E6: =VLOOKUP(StateID&" "&$B6,ConsumeBlock,E$5-1988,FALSE) ->  | V6: =VLOOKUP(StateID&" "&$B6,ConsumeBlock,V$5-1988,FALSE) -> 
A7: xx Commercial Distillate Fuel | B7: Commercial Distillate Fuel | C7: =VLOOKUP(StateID&" "&$B7,ConsumeBlock,C$5-1988,FALSE) ->  | AI7: =VLOOKUP(StateID&" "&$B7,ConsumeBlock,AI$5-1988,FALSE) -> 
A8: xx Commercial Kerosene | B8: Commercial Kerosene
A9: xx Commercial Hydrocarbon Gas Liquids | B9: Commercial Hydrocarbon Gas Liquids
A10: xx Commercial Motor Gasoline | B10: Commercial Motor Gasoline | C10: =VLOOKUP(StateID&" "&$B10,ConsumeBlock,C$5-1988,FALSE)-VLOOKUP(StateID,CommercialEthanol,C$5-1988,FALSE) -> 
A11: xx Commercial Natural Gas | B11: Commercial Natural Gas | T11: =VLOOKUP(StateID&" "&$B11,ConsumeBlock,T$5-1988,FALSE) -> 
A12: xx Commercial Residual Fuel | B12: Commercial Residual Fuel
A13: xx Commercial Wood | B13: Commercial Wood
A14: xx Commercial Other | B14: Commercial Other
A15: xx Electric Power Coal | B15: Electric Power Coal | T15: =VLOOKUP(StateID&" "&$B15,ConsumeBlock,T$5-1988,FALSE) -> 
A16: xx Electric Power Distillate Fuel | B16: Electric Power Distillate Fuel
A17: xx Electric Power Natural Gas | B17: Electric Power Natural Gas
A18: xx Electric Power Petroleum Coke | B18: Electric Power Petroleum Coke
A19: xx Electric Power Residual Fuel | B19: Electric Power Residual Fuel
A20: xx Electric Power Wood | B20: Electric Power Wood | P20: =VLOOKUP(StateID&" "&$B20,ConsumeBlock,P$5-1988,FALSE) ->  | Q20: =VLOOKUP(StateID&" "&$B20,ConsumeBlock,Q$5-1988,FALSE) ->  | R20: =VLOOKUP(StateID&" "&$B20,ConsumeBlock,R$5-1988,FALSE) -> 
A21: xx Electric Power Other | B21: Electric Power Other
A22: xx Industrial Asphalt and Road Oil | B22: Industrial Asphalt and Road Oil | T22: =VLOOKUP(StateID&" "&$B22,ConsumeBlock,T$5-1988,FALSE) ->  | AL22: =VLOOKUP(StateID&" "&$B22,ConsumeBlock,AL$5-1988,FALSE) -> 
A23: xx Industrial Aviation Gasoline Blending Components | B23: Industrial Aviation Gasoline Blending Components
A24: xx Industrial Coal | B24: Industrial Coal
A25: =StateID&" "&B25 -> xx Industrial Coking Coal | B25: Industrial Coking Coal | C25: =VLOOKUP(StateID&" "&$B25,ConsumeBlock,C$5-1988,FALSE) ->  | O25: =VLOOKUP(StateID&" "&$B25,ConsumeBlock,O$5-1988,FALSE) ->  | P25: =VLOOKUP(StateID&" "&$B25,ConsumeBlock,P$5-1988,FALSE) ->  | Q25: =VLOOKUP(StateID&" "&$B25,ConsumeBlock,Q$5-1988,FALSE) ->  | R25: =VLOOKUP(StateID&" "&$B25,ConsumeBlock,R$5-1988,FALSE) ->  | S25: =VLOOKUP(StateID&" "&$B25,ConsumeBlock,S$5-1988,FALSE) -> 
A26: xx Industrial Crude Oil | B26: Industrial Crude Oil
A27: xx Industrial Distillate Fuel | B27: Industrial Distillate Fuel
A28: xx Industrial Feedstocks, Naphtha less than 401 F | B28: Industrial Feedstocks, Naphtha less than 401 F
A29: xx Industrial Feedstocks, Other Oils greater than 401 F | B29: Industrial Feedstocks, Other Oils greater than 401 F
A30: xx Industrial Kerosene | B30: Industrial Kerosene
A31: xx Industrial Hydrocarbon Gas Liquids | B31: Industrial Hydrocarbon Gas Liquids
A32: xx Industrial Lubricants | B32: Industrial Lubricants
A33: xx Industrial Misc. Petro Products | B33: Industrial Misc. Petro Products
A34: xx Industrial Motor Gasoline | B34: Industrial Motor Gasoline | C34: =VLOOKUP(StateID&" "&$B34,ConsumeBlock,C$5-1988,FALSE)-VLOOKUP(StateID,IndustrialEthanol,C$5-1988,FALSE) -> 
A35: xx Industrial Motor Gasoline Blending Components | B35: Industrial Motor Gasoline Blending Components | T35: =VLOOKUP(StateID&" "&$B35,ConsumeBlock,T$5-1988,FALSE) -> 
A36: xx Industrial Natural Gas | B36: Industrial Natural Gas
A37: xx Industrial Pentanes Plus | B37: Industrial Pentanes Plus
A38: xx Industrial Petroleum Coke | B38: Industrial Petroleum Coke | AK38: =VLOOKUP(StateID&" "&$B38,ConsumeBlock,AK$5-1988,FALSE) -> 
A39: xx Industrial Residual Fuel | B39: Industrial Residual Fuel
A40: xx Industrial Special Naphthas | B40: Industrial Special Naphthas
A41: =StateID&" "&B41 -> xx Industrial Still Gas | B41: Industrial Still Gas | H41: =VLOOKUP(StateID&" "&$B41,ConsumeBlock,H$5-1988,FALSE) -> 
A42: xx Industrial Unfinished Oils | B42: Industrial Unfinished Oils | C42: =VLOOKUP(StateID&" "&$B42,ConsumeBlock,C$5-1988,FALSE) -> 
A43: xx Industrial Waxes | B43: Industrial Waxes
A44: xx Industrial Wood | B44: Industrial Wood
A45: xx Industrial Other Coal | B45: Industrial Other Coal
A46: xx Industrial Other | B46: Industrial Other
A47: xx Residential Coal | B47: Residential Coal | T47: =VLOOKUP(StateID&" "&$B47,ConsumeBlock,T$5-1988,FALSE) -> 
A48: xx Residential Distillate Fuel | B48: Residential Distillate Fuel
A49: =StateID&" "&B49 -> xx Residential Kerosene | B49: Residential Kerosene
A50: xx Residential Hydrocarbon Gas Liquids | B50: Residential Hydrocarbon Gas Liquids
A51: xx Residential Natural Gas | B51: Residential Natural Gas
A52: xx Residential Wood | B52: Residential Wood
A53: xx Residential Other | B53: Residential Other
B56: Commercial Coal | C56: =VLOOKUP(StateID&" "&$B56,ConsumeBlock,C$5-1988,FALSE) ->  | D56: =VLOOKUP(StateID&" "&$B56,ConsumeBlock,D$5-1988,FALSE) ->  | E56: =VLOOKUP(StateID&" "&$B56,ConsumeBlock,E$5-1988,FALSE) ->  | S56: =VLOOKUP(StateID&" "&$B56,ConsumeBlock,S$5-1988,FALSE) ->  | AK56: =VLOOKUP(StateID&" "&$B56,ConsumeBlock,AK$5-1988,FALSE) -> 
B57: Commercial Distillate Fuel | AI57: =VLOOKUP(StateID&" "&$B57,ConsumeBlock,AI$5-1988,FALSE) -> 
B58: Commercial Kerosene
B59: Commercial Hydrocarbon Gas Liquids
B60: Commercial Motor Gasoline | C60: =VLOOKUP(StateID&" "&$B60,ConsumeBlock,C$5-1988,FALSE)-VLOOKUP(StateID,CommercialEthanol,C$5-1988,FALSE) -> 
B61: Commercial Natural Gas
B62: Commercial Residual Fuel
B63: Commercial Wood
B64: Commercial Other
B65: Electric Power Coal
B66: Electric Power Distillate Fuel
B67: Electric Power Natural Gas
B68: Electric Power Petroleum Coke
B69: Electric Power Residual Fuel
B70: Electric Power Wood | P70: =VLOOKUP(StateID&" "&$B70,ConsumeBlock,P$5-1988,FALSE) ->  | Q70: =VLOOKUP(StateID&" "&$B70,ConsumeBlock,Q$5-1988,FALSE) ->  | R70: =VLOOKUP(StateID&" "&$B70,ConsumeBlock,R$5-1988,FALSE) -> 
B71: Electric Power Other
B72: Industrial Asphalt and Road Oil | AJ72: =VLOOKUP(StateID&" "&$B72,ConsumeBlock,AJ$5-1988,FALSE) -> 
B73: Industrial Aviation Gasoline Blending Components
B74: Industrial Coal | C74: =VLOOKUP(StateID&" "&$B74,ConsumeBlock,C$5-1988,FALSE) ->  | T74: =VLOOKUP(StateID&" "&$B74,ConsumeBlock,T$5-1988,FALSE) -> 
B75: Industrial Coking Coal | O75: =VLOOKUP(StateID&" "&$B75,ConsumeBlock,O$5-1988,FALSE) ->  | P75: =VLOOKUP(StateID&" "&$B75,ConsumeBlock,P$5-1988,FALSE) ->  | Q75: =VLOOKUP(StateID&" "&$B75,ConsumeBlock,Q$5-1988,FALSE) ->  | R75: =VLOOKUP(StateID&" "&$B75,ConsumeBlock,R$5-1988,FALSE) ->  | S75: =VLOOKUP(StateID&" "&$B75,ConsumeBlock,S$5-1988,FALSE) -> 
B76: Industrial Crude Oil
B77: Industrial Distillate Fuel | AI77: =VLOOKUP(StateID&" "&$B77,ConsumeBlock,AI$5-1988,FALSE) -> 
B78: Industrial Feedstocks, Naphtha less than 401 F
B79: Industrial Feedstocks, Other Oils greater than 401 F
B80: Industrial Kerosene
B81: Industrial Hydrocarbon Gas Liquids
B82: Industrial Lubricants
B83: Industrial Misc. Petro Products
B84: Industrial Motor Gasoline | C84: =VLOOKUP(StateID&" "&$B84,ConsumeBlock,C$5-1988,FALSE)-VLOOKUP(StateID,IndustrialEthanol,C$5-1988,FALSE) -> 
B85: Industrial Motor Gasoline Blending Components
B86: Industrial Natural Gas
B87: Industrial Pentanes Plus
B88: Industrial Petroleum Coke
B89: Industrial Residual Fuel
B90: Industrial Special Naphthas
B91: Industrial Still Gas | C91: =VLOOKUP(StateID&" "&$B91,ConsumeBlock,C$5-1988,FALSE) ->  | T91: =VLOOKUP(StateID&" "&$B91,ConsumeBlock,T$5-1988,FALSE) -> 
B92: Industrial Unfinished Oils | AI92: =VLOOKUP(StateID&" "&$B92,ConsumeBlock,AI$5-1988,FALSE) -> 
B93: Industrial Waxes
B94: Industrial Wood
B95: Industrial Other Coal
B96: Industrial Other
B97: Residential Coal
B98: Residential Distillate Fuel
B99: Residential Kerosene
B100: Residential Hydrocarbon Gas Liquids
B101: Residential Natural Gas
B102: Residential Wood
B103: Residential Other
B104: Transportation Aviation Gasoline
B105: Transportation Distillate Fuel
B106: Transportation Ethanol
B107: Transportation Jet Fuel, Kerosene
B108: Transportation Jet Fuel, Naphtha | P108: =VLOOKUP(StateID&" "&$B108,ConsumeBlock,P$5-1988,FALSE) ->  | Q108: =VLOOKUP(StateID&" "&$B108,ConsumeBlock,Q$5-1988,FALSE) ->  | R108: =VLOOKUP(StateID&" "&$B108,ConsumeBlock,R$5-1988,FALSE) -> 
B109: Transportation LPG | C109: =VLOOKUP(StateID&" "&$B109,ConsumeBlock,C$5-1988,FALSE) ->  | T109: =VLOOKUP(StateID&" "&$B109,ConsumeBlock,T$5-1988,FALSE) -> 
B110: Transportation Lubricants | AJ110: =VLOOKUP(StateID&" "&$B110,ConsumeBlock,AJ$5-1988,FALSE) -> 
B111: Transportation Motor Gasoline | C111: =VLOOKUP(StateID&" "&$B111,ConsumeBlock,C$5-1988,FALSE)-VLOOKUP(StateID,Ethanol,C$5-1988,FALSE) -> 
B112: Transportation Natural Gas
B113: Transportation Residual Fuel
B114: Transportation Other
B115: Bunker Fuels Distillate Fuel | C115: =VLOOKUP(StateID&" "&$B115,ConsumeBlock,C$5-1988,FALSE) -> 
B116: Bunker Fuels Residual Fuel | C116: =VLOOKUP(StateID&" "&$B116,ConsumeBlock,C$5-1988,FALSE) ->  | R116: =VLOOKUP(StateID&" "&$B116,ConsumeBlock,R$5-1988,FALSE) -> 
B117: Bunker Fuels Jet Fuel, Kerosene | C117: =VLOOKUP(StateID&" "&$B117,ConsumeBlock,C$5-1988,FALSE) ->  | D117: =VLOOKUP(StateID&" "&$B117,ConsumeBlock,D$5-1988,FALSE) ->  | R117: =VLOOKUP(StateID&" "&$B117,ConsumeBlock,R$5-1988,FALSE) -> 

Sheet Residential N2O
A1: ="2. Residential Consumption and N2O emissions in "&Constants!G2 -> 2. Residential Consumption and N2O emissions in Select a State . . .
A2: =Constants!H2 -> xx | B2: Residential | C2: =" " -> 
A3: Residential Sector N20 | D3: 1990
B5: Consumption | D5: Emission Factor | F5: Emissions | H5: GWP | J5: Emissions | L5: Emissions
A6: Fuel Type | B6: (Billion Btu) | D6: (metric tons N2O/BBtu) | F6: (metric tons N2O) | J6: (MMTCE) | L6: (MMTCO2E)
A7: Coal | B7: =VLOOKUP($A$2&$C$2&$B$2&$C$2&$A7,ConsumeBlock3,3,FALSE) ->  | C7: x | D7: =CoalNEFres -> 0 | E7: = | F7: =B7*D7 ->  | G7: x | H7: =GWPN2O -> 265 | I7: = | J7: =F7*H7*CO2_C/(10^6) ->  | K7: = | L7: =J7/CO2_C -> 
A8: Distillate Fuel | C8: x | D8: =DistillNEFres -> 0 | E8: = | F8: =B8*D8 ->  | G8: x | H8: 265 | I8: = | K8: =
A9: Kerosene | C9: x | D9: =KeroNEFres -> 0 | E9: = | G9: x | H9: 265 | I9: = | K9: =
A10: Hydrocarbon Gas Liquids | B10: =VLOOKUP($A$2&$C$2&$B$2&$C$2&$A10,ConsumeBlock3,3,FALSE) ->  | C10: x | D10: =LPGNEFres -> 0 | E10: = | G10: x | H10: 265 | I10: = | K10: =
A11: Natural Gas | C11: x | D11: =NatGasNEFres -> 0 | E11: = | G11: x | H11: 265 | I11: = | K11: =
A12: Wood | C12: x | D12: =WoodNEFres -> 0 | E12: = | G12: x | H12: 265 | I12: = | K12: =
A13: Other | B13: =VLOOKUP($A$2&$C$2&$B$2&$C$2&$A13,ConsumeBlock3,D3-1987,FALSE) -> 0 | C13: x | D13: =OtherNEFres -> 0 | E13: = | F13: 0 | G13: x | H13: 265 | I13: = | J13: 0 | K13: = | L13: 0
H14: Total | I14: = | J14: =SUM(J7:J13) ->  | K14: =
A16: Residential Sector N20 | D16: 1991
B18: Consumption | D18: Emission Factor | F18: Emissions | H18: GWP | J18: Emissions | L18: Emissions
A19: Fuel Type | B19: (Billion Btu) | D19: (metric tons N2O/BBtu) | F19: (metric tons N2O) | J19: (MMTCE) | L19: (MMTCO2E)
A20: Coal | B20: =VLOOKUP($A$2&$C$2&$B$2&$C$2&$A20,ConsumeBlock3,4,FALSE) ->  | C20: x | D20: =CoalNEFres -> 0 | E20: = | F20: =B20*D20 ->  | G20: x | H20: =GWPN2O -> 265 | I20: = | J20: =F20*H20*CO2_C/(10^6) ->  | K20: = | L20: =J20/CO2_C -> 
A21: Distillate Fuel | C21: x | D21: =DistillNEFres -> 0 | E21: = | F21: =B21*D21 ->  | G21: x | H21: 265 | I21: = | K21: =
A22: Kerosene | C22: x | D22: =KeroNEFres -> 0 | E22: = | G22: x | H22: 265 | I22: = | K22: =
A23: Hydrocarbon Gas Liquids | C23: x | D23: =LPGNEFres -> 0 | E23: = | G23: x | H23: 265 | I23: = | K23: =
A24: Natural Gas | C24: x | D24: =NatGasNEFres -> 0 | E24: = | G24: x | H24: 265 | I24: = | K24: =
A25: Wood | C25: x | D25: =WoodNEFres -> 0 | E25: = | G25: x | H25: 265 | I25: = | K25: =
A26: Other | B26: =VLOOKUP($A$2&$C$2&$B$2&$C$2&$A26,ConsumeBlock3,D16-1987,FALSE) -> 0 | C26: x | D26: =OtherNEFres -> 0 | E26: = | F26: 0 | G26: x | H26: 265 | I26: = | J26: 0 | K26: = | L26: 0
H27: Total | I27: = | J27: =SUM(J20:J26) ->  | K27: =
A29: Residential Sector N20 | D29: 1992
B31: Consumption | D31: Emission Factor | F31: Emissions | H31: GWP | J31: Emissions | L31: Emissions
A32: Fuel Type | B32: (Billion Btu) | D32: (metric tons N2O/BBtu) | F32: (metric tons N2O) | J32: (MMTCE) | L32: (MMTCO2E)
A33: Coal | B33: =VLOOKUP($A$2&$C$2&$B$2&$C$2&$A33,ConsumeBlock3,5,FALSE) ->  | C33: x | D33: =CoalNEFres -> 0 | E33: = | F33: =B33*D33 ->  | G33: x | H33: =GWPN2O -> 265 | I33: = | J33: =F33*H33*CO2_C/(10^6) ->  | K33: = | L33: =J33/CO2_C -> 
A34: Distillate Fuel | C34: x | D34: =DistillNEFres -> 0 | E34: = | F34: =B34*D34 ->  | G34: x | H34: 265 | I34: = | K34: =
A35: Kerosene | C35: x | D35: =KeroNEFres -> 0 | E35: = | G35: x | H35: 265 | I35: = | K35: =
A36: Hydrocarbon Gas Liquids | C36: x | D36: =LPGNEFres -> 0 | E36: = | G36: x | H36: 265 | I36: = | K36: =
A37: Natural Gas | C37: x | D37: =NatGasNEFres -> 0 | E37: = | G37: x | H37: 265 | I37: = | K37: =
A38: Wood | C38: x | D38: =WoodNEFres -> 0 | E38: = | G38: x | H38: 265 | I38: = | K38: =
A39: Other | B39: =VLOOKUP($A$2&$C$2&$B$2&$C$2&$A39,ConsumeBlock3,D29-1987,FALSE) -> 0 | C39: x | D39: =OtherNEFres -> 0 | E39: = | F39: 0 | G39: x | H39: 265 | I39: = | J39: 0 | K39: = | L39: 0
H40: Total | I40: = | J40: =SUM(J33:J39) ->  | K40: =
A42: Residential Sector N20 | D42: 1993
B44: Consumption | D44: Emission Factor | F44: Emissions | H44: GWP | J44: Emissions | L44: Emissions
A45: Fuel Type | B45: (Billion Btu) | D45: (metric tons N2O/BBtu) | F45: (metric tons N2O) | J45: (MMTCE) | L45: (MMTCO2E)
A46: Coal | B46: =VLOOKUP($A$2&$C$2&$B$2&$C$2&$A46,ConsumeBlock3,6,FALSE) ->  | C46: x | D46: =CoalNEFres -> 0 | E46: = | F46: =B46*D46 ->  | G46: x | H46: =GWPN2O -> 265 | I46: = | J46: =F46*H46*CO2_C/(10^6) ->  | K46: = | L46: =J46/CO2_C -> 
A47: Distillate Fuel | C47: x | D47: =DistillNEFres -> 0 | E47: = | F47: =B47*D47 ->  | G47: x | H47: 265 | I47: = | K47: =
A48: Kerosene | C48: x | D48: =KeroNEFres -> 0 | E48: = | G48: x | H48: 265 | I48: = | K48: =
A49: Hydrocarbon Gas Liquids | C49: x | D49: =LPGNEFres -> 0 | E49: = | G49: x | H49: 265 | I49: = | K49: =
A50: Natural Gas | C50: x | D50: =NatGasNEFres -> 0 | E50: = | G50: x | H50: 265 | I50: = | K50: =
A51: Wood | C51: x | D51: =WoodNEFres -> 0 | E51: = | G51: x | H51: 265 | I51: = | K51: =
A52: Other | B52: =VLOOKUP($A$2&$C$2&$B$2&$C$2&$A52,ConsumeBlock3,D42-1987,FALSE) -> 0 | C52: x | D52: =OtherNEFres -> 0 | E52: = | F52: 0 | G52: x | H52: 265 | I52: = | J52: 0 | K52: = | L52: 0
H53: Total | I53: = | J53: =SUM(J46:J52) ->  | K53: =
A55: Residential Sector N20 | D55: 1994
B57: Consumption | D57: Emission Factor | F57: Emissions | H57: GWP | J57: Emissions | L57: Emissions
A58: Fuel Type | B58: (Billion Btu) | D58: (metric tons N2O/BBtu) | F58: (metric tons N2O) | J58: (MMTCE) | L58: (MMTCO2E)
A59: Coal | B59: =VLOOKUP($A$2&$C$2&$B$2&$C$2&$A59,ConsumeBlock3,7,FALSE) ->  | C59: x | D59: =CoalNEFres -> 0 | E59: = | F59: =B59*D59 ->  | G59: x | H59: =GWPN2O -> 265 | I59: = | J59: =F59*H59*CO2_C/(10^6) ->  | K59: = | L59: =J59/CO2_C -> 
A60: Distillate Fuel | C60: x | D60: =DistillNEFres -> 0 | E60: = | F60: =B60*D60 ->  | G60: x | H60: 265 | I60: = | K60: =
A61: Kerosene | C61: x | D61: =KeroNEFres -> 0 | E61: = | G61: x | H61: 265 | I61: = | K61: =
A62: Hydrocarbon Gas Liquids | C62: x | D62: =LPGNEFres -> 0 | E62: = | G62: x | H62: 265 | I62: = | K62: =
A63: Natural Gas | C63: x | D63: =NatGasNEFres -> 0 | E63: = | G63: x | H63: 265 | I63: = | K63: =
A64: Wood | C64: x | D64: =WoodNEFres -> 0 | E64: = | G64: x | H64: 265 | I64: = | K64: =
A65: Other | B65: =VLOOKUP($A$2&$C$2&$B$2&$C$2&$A65,ConsumeBlock3,D55-1987,FALSE) -> 0 | C65: x | D65: =OtherNEFres -> 0 | E65: = | F65: 0 | G65: x | H65: 265 | I65: = | J65: 0 | K65: = | L65: 0
H66: Total | I66: = | J66: =SUM(J59:J65) ->  | K66: =
A68: Residential Sector N20 | D68: 1995
B70: Consumption | D70: Emission Factor | F70: Emissions | H70: GWP | J70: Emissions | L70: Emissions
A71: Fuel Type | B71: (Billion Btu) | D71: (metric tons N2O/BBtu) | F71: (metric tons N2O) | J71: (MMTCE) | L71: (MMTCO2E)
A72: Coal | B72: =VLOOKUP($A$2&$C$2&$B$2&$C$2&$A72,ConsumeBlock3,8,FALSE) ->  | C72: x | D72: =CoalNEFres -> 0 | E72: = | F72: =B72*D72 ->  | G72: x | H72: =GWPN2O -> 265 | I72: = | J72: =F72*H72*CO2_C/(10^6) ->  | K72: = | L72: =J72/CO2_C -> 
A73: Distillate Fuel | C73: x | D73: =DistillNEFres -> 0 | E73: = | F73: =B73*D73 ->  | G73: x | H73: 265 | I73: = | K73: =
A74: Kerosene | C74: x | D74: =KeroNEFres -> 0 | E74: = | G74: x | H74: 265 | I74: = | K74: =
A75: Hydrocarbon Gas Liquids | C75: x | D75: =LPGNEFres -> 0 | E75: = | G75: x | H75: 265 | I75: = | K75: =
A76: Natural Gas | C76: x | D76: =NatGasNEFres -> 0 | E76: = | G76: x | H76: 265 | I76: = | K76: =
A77: Wood | C77: x | D77: =WoodNEFres -> 0 | E77: = | G77: x | H77: 265 | I77: = | K77: =
A78: Other | B78: =VLOOKUP($A$2&$C$2&$B$2&$C$2&$A78,ConsumeBlock3,D68-1987,FALSE) -> 0 | C78: x | D78: =OtherNEFres -> 0 | E78: = | F78: 0 | G78: x | H78: 265 | I78: = | J78: 0 | K78: = | L78: 0
H79: Total | I79: = | J79: =SUM(J72:J78) ->  | K79: =
A81: Residential Sector N20 | D81: 1996
B83: Consumption | D83: Emission Factor | F83: Emissions | H83: GWP | J83: Emissions | L83: Emissions
A84: Fuel Type | B84: (Billion Btu) | D84: (metric tons N2O/BBtu) | F84: (metric tons N2O) | J84: (MMTCE) | L84: (MMTCO2E)
A85: Coal | B85: =VLOOKUP($A$2&$C$2&$B$2&$C$2&$A85,ConsumeBlock3,9,FALSE) ->  | C85: x | D85: =CoalNEFres -> 0 | E85: = | F85: =B85*D85 ->  | G85: x | H85: =GWPN2O -> 265 | I85: = | J85: =F85*H85*CO2_C/(10^6) ->  | K85: = | L85: =J85/CO2_C -> 
A86: Distillate Fuel | C86: x | D86: =DistillNEFres -> 0 | E86: = | F86: =B86*D86 ->  | G86: x | H86: 265 | I86: = | K86: =
A87: Kerosene | C87: x | D87: =KeroNEFres -> 0 | E87: = | G87: x | H87: 265 | I87: = | K87: =
A88: Hydrocarbon Gas Liquids | C88: x | D88: =LPGNEFres -> 0 | E88: = | G88: x | H88: 265 | I88: = | K88: =
A89: Natural Gas | C89: x | D89: =NatGasNEFres -> 0 | E89: = | G89: x | H89: 265 | I89: = | K89: =
A90: Wood | C90: x | D90: =WoodNEFres -> 0 | E90: = | G90: x | H90: 265 | I90: = | K90: =
A91: Other | B91: =VLOOKUP($A$2&$C$2&$B$2&$C$2&$A91,ConsumeBlock3,D81-1987,FALSE) -> 0 | C91: x | D91: =OtherNEFres -> 0 | E91: = | F91: 0 | G91: x | H91: 265 | I91: = | J91: 0 | K91: = | L91: 0
H92: Total | I92: = | J92: =SUM(J85:J91) ->  | K92: =
A94: Residential Sector N20 | D94: 1997
B96: Consumption | D96: Emission Factor | F96: Emissions | H96: GWP | J96: Emissions | L96: Emissions
A97: Fuel Type | B97: (Billion Btu) | D97: (metric tons N2O/BBtu) | F97: (metric tons N2O) | J97: (MMTCE) | L97: (MMTCO2E)
A98: Coal | B98: =VLOOKUP($A$2&$C$2&$B$2&$C$2&$A98,ConsumeBlock3,10,FALSE) ->  | C98: x | D98: =CoalNEFres -> 0 | E98: = | F98: =B98*D98 ->  | G98: x | H98: =GWPN2O -> 265 | I98: = | J98: =F98*H98*CO2_C/(10^6) ->  | K98: = | L98: =J98/CO2_C -> 
A99: Distillate Fuel | C99: x | D99: =DistillNEFres -> 0 | E99: = | F99: =B99*D99 ->  | G99: x | H99: 265 | I99: = | K99: =
A100: Kerosene | C100: x | D100: =KeroNEFres -> 0 | E100: = | G100: x | H100: 265 | I100: = | K100: =
A101: Hydrocarbon Gas Liquids | C101: x | D101: =LPGNEFres -> 0 | E101: = | G101: x | H101: 265 | I101: = | K101: =
A102: Natural Gas | C102: x | D102: =NatGasNEFres -> 0 | E102: = | G102: x | H102: 265 | I102: = | K102: =
A103: Wood | C103: x | D103: =WoodNEFres -> 0 | E103: = | G103: x | H103: 265 | I103: = | K103: =
A104: Other | B104: =VLOOKUP($A$2&$C$2&$B$2&$C$2&$A104,ConsumeBlock3,D94-1987,FALSE) -> 0 | C104: x | D104: =OtherNEFres -> 0 | E104: = | F104: 0 | G104: x | H104: 265 | I104: = | J104: 0 | K104: = | L104: 0
H105: Total | I105: = | J105: =SUM(J98:J104) ->  | K105: =
A107: Residential Sector N20 | D107: 1998
B109: Consumption | D109: Emission Factor | F109: Emissions | H109: GWP | J109: Emissions | L109: Emissions
A110: Fuel Type | B110: (Billion Btu) | D110: (metric tons N2O/BBtu) | F110: (metric tons N2O) | J110: (MMTCE) | L110: (MMTCO2E)
A111: Coal | B111: =VLOOKUP($A$2&$C$2&$B$2&$C$2&$A111,ConsumeBlock3,11,FALSE) ->  | C111: x | D111: =CoalNEFres -> 0 | E111: = | F111: =B111*D111 ->  | G111: x | H111: =GWPN2O -> 265 | I111: = | J111: =F111*H111*CO2_C/(10^6) ->  | K111: = | L111: =J111/CO2_C -> 
A112: Distillate Fuel | C112: x | D112: =DistillNEFres -> 0 | E112: = | F112: =B112*D112 ->  | G112: x | H112: 265 | I112: = | K112: =
A113: Kerosene | C113: x | D113: =KeroNEFres -> 0 | E113: = | G113: x | H113: 265 | I113: = | K113: =
A114: Hydrocarbon Gas Liquids | C114: x | D114: =LPGNEFres -> 0 | E114: = | G114: x | H114: 265 | I114: = | K114: =
A115: Natural Gas | C115: x | D115: =NatGasNEFres -> 0 | E115: = | G115: x | H115: 265 | I115: = | K115: =
A116: Wood | C116: x | D116: =WoodNEFres -> 0 | E116: = | G116: x | H116: 265 | I116: = | K116: =
A117: Other | B117: =VLOOKUP($A$2&$C$2&$B$2&$C$2&$A117,ConsumeBlock3,D107-1987,FALSE) -> 0 | C117: x | D117: =OtherNEFres -> 0 | E117: = | F117: 0 | G117: x | H117: 265 | I117: = | J117: 0 | K117: = | L117: 0
H118: Total | I118: = | J118: =SUM(J111:J117) ->  | K118: =
A120: Residential Sector N20 | D120: 1999
B122: Consumption | D122: Emission Factor | F122: Emissions | H122: GWP | J122: Emissions | L122: Emissions
A123: Fuel Type | B123: (Billion Btu) | D123: (metric tons N2O/BBtu) | F123: (metric tons N2O) | J123: (MMTCE) | L123: (MMTCO2E)
A124: Coal | B124: =VLOOKUP($A$2&$C$2&$B$2&$C$2&$A124,ConsumeBlock3,12,FALSE) ->  | C124: x | D124: =CoalNEFres -> 0 | E124: = | F124: =B124*D124 ->  | G124: x | H124: =GWPN2O -> 265 | I124: = | J124: =F124*H124*CO2_C/(10^6) ->  | K124: = | L124: =J124/CO2_C -> 
A125: Distillate Fuel | C125: x | D125: =DistillNEFres -> 0 | E125: = | F125: =B125*D125 ->  | G125: x | H125: 265 | I125: = | K125: =
A126: Kerosene | C126: x | D126: =KeroNEFres -> 0 | E126: = | G126: x | H126: 265 | I126: = | K126: =
A127: Hydrocarbon Gas Liquids | C127: x | D127: =LPGNEFres -> 0 | E127: = | G127: x | H127: 265 | I127: = | K127: =
A128: Natural Gas | C128: x | D128: =NatGasNEFres -> 0 | E128: = | G128: x | H128: 265 | I128: = | K128: =
A129: Wood | C129: x | D129: =WoodNEFres -> 0 | E129: = | G129: x | H129: 265 | I129: = | K129: =
A130: Other | B130: =VLOOKUP($A$2&$C$2&$B$2&$C$2&$A130,ConsumeBlock3,D120-1987,FALSE) -> 0 | C130: x | D130: =OtherNEFres -> 0 | E130: = | F130: 0 | G130: x | H130: 265 | I130: = | J130: 0 | K130: = | L130: 0
H131: Total | I131: = | J131: =SUM(J124:J130) ->  | K131: =
A133: Residential Sector N20 | D133: 2000
B135: Consumption | D135: Emission Factor | F135: Emissions | H135: GWP | J135: Emissions | L135: Emissions
A136: Fuel Type | B136: (Billion Btu) | D136: (metric tons N2O/BBtu) | F136: (metric tons N2O) | J136: (MMTCE) | L136: (MMTCO2E)
A137: Coal | B137: =VLOOKUP($A$2&$C$2&$B$2&$C$2&$A137,ConsumeBlock3,13,FALSE) ->  | C137: x | D137: =CoalNEFres -> 0 | E137: = | F137: =B137*D137 ->  | G137: x | H137: =GWPN2O -> 265 | I137: = | J137: =F137*H137*CO2_C/(10^6) ->  | K137: = | L137: =J137/CO2_C -> 
A138: Distillate Fuel | C138: x | D138: =DistillNEFres -> 0 | E138: = | F138: =B138*D138 ->  | G138: x | H138: 265 | I138: = | K138: =
A139: Kerosene | C139: x | D139: =KeroNEFres -> 0 | E139: = | G139: x | H139: 265 | I139: = | K139: =
A140: Hydrocarbon Gas Liquids | C140: x | D140: =LPGNEFres -> 0 | E140: = | G140: x | H140: 265 | I140: = | K140: =
A141: Natural Gas | C141: x | D141: =NatGasNEFres -> 0 | E141: = | G141: x | H141: 265 | I141: = | K141: =
A142: Wood | C142: x | D142: =WoodNEFres -> 0 | E142: = | G142: x | H142: 265 | I142: = | K142: =
A143: Other | B143: =VLOOKUP($A$2&$C$2&$B$2&$C$2&$A143,ConsumeBlock3,D133-1987,FALSE) -> 0 | C143: x | D143: =OtherNEFres -> 0 | E143: = | F143: 0 | G143: x | H143: 265 | I143: = | J143: 0 | K143: = | L143: 0
H144: Total | I144: = | J144: =SUM(J137:J143) ->  | K144: =
A146: Residential Sector N20 | D146: 2001
B148: Consumption | D148: Emission Factor | F148: Emissions | H148: GWP | J148: Emissions | L148: Emissions
A149: Fuel Type | B149: (Billion Btu) | D149: (metric tons N2O/BBtu) | F149: (metric tons N2O) | J149: (MMTCE) | L149: (MMTCO2E)
A150: Coal | B150: =VLOOKUP($A$2&$C$2&$B$2&$C$2&$A150,ConsumeBlock3,14,FALSE) ->  | C150: x | D150: =CoalNEFres -> 0 | E150: = | F150: =B150*D150 ->  | G150: x | H150: =GWPN2O -> 265 | I150: = | J150: =F150*H150*CO2_C/(10^6) ->  | K150: = | L150: =J150/CO2_C -> 
A151: Distillate Fuel | C151: x | D151: =DistillNEFres -> 0 | E151: = | F151: =B151*D151 ->  | G151: x | H151: 265 | I151: = | K151: =
A152: Kerosene | C152: x | D152: =KeroNEFres -> 0 | E152: = | G152: x | H152: 265 | I152: = | K152: =
A153: Hydrocarbon Gas Liquids | C153: x | D153: =LPGNEFres -> 0 | E153: = | G153: x | H153: 265 | I153: = | K153: =
A154: Natural Gas | C154: x | D154: =NatGasNEFres -> 0 | E154: = | G154: x | H154: 265 | I154: = | K154: =
A155: Wood | C155: x | D155: =WoodNEFres -> 0 | E155: = | G155: x | H155: 265 | I155: = | K155: =
A156: Other | B156: =VLOOKUP($A$2&$C$2&$B$2&$C$2&$A156,ConsumeBlock3,D146-1987,FALSE) -> 0 | C156: x | D156: =OtherNEFres -> 0 | E156: = | F156: 0 | G156: x | H156: 265 | I156: = | J156: 0 | K156: = | L156: 0
H157: Total | I157: = | J157: =SUM(J150:J156) ->  | K157: =
A159: Residential Sector N20 | D159: 2002
B161: Consumption | D161: Emission Factor | F161: Emissions | H161: GWP | J161: Emissions | L161: Emissions
A162: Fuel Type | B162: (Billion Btu) | D162: (metric tons N2O/BBtu) | F162: (metric tons N2O) | J162: (MMTCE) | L162: (MMTCO2E)
A163: Coal | B163: =VLOOKUP($A$2&$C$2&$B$2&$C$2&$A163,ConsumeBlock3,15,FALSE) ->  | C163: x | D163: =CoalNEFres -> 0 | E163: = | F163: =B163*D163 ->  | G163: x | H163: =GWPN2O -> 265 | I163: = | J163: =F163*H163*CO2_C/(10^6) ->  | K163: = | L163: =J163/CO2_C -> 
A164: Distillate Fuel | C164: x | D164: =DistillNEFres -> 0 | E164: = | F164: =B164*D164 ->  | G164: x | H164: 265 | I164: = | K164: =
A165: Kerosene | C165: x | D165: =KeroNEFres -> 0 | E165: = | G165: x | H165: 265 | I165: = | K165: =
A166: Hydrocarbon Gas Liquids | C166: x | D166: =LPGNEFres -> 0 | E166: = | G166: x | H166: 265 | I166: = | K166: =
A167: Natural Gas | C167: x | D167: =NatGasNEFres -> 0 | E167: = | G167: x | H167: 265 | I167: = | K167: =
A168: Wood | C168: x | D168: =WoodNEFres -> 0 | E168: = | G168: x | H168: 265 | I168: = | K168: =
A169: Other | B169: =VLOOKUP($A$2&$C$2&$B$2&$C$2&$A169,ConsumeBlock3,D159-1987,FALSE) -> 0 | C169: x | D169: =OtherNEFres -> 0 | E169: = | F169: 0 | G169: x | H169: 265 | I169: = | J169: 0 | K169: = | L169: 0
H170: Total | I170: = | J170: =SUM(J163:J169) ->  | K170: =
A172: Residential Sector N20 | D172: 2003
B174: Consumption | D174: Emission Factor | F174: Emissions | H174: GWP | J174: Emissions | L174: Emissions
A175: Fuel Type | B175: (Billion Btu) | D175: (metric tons N2O/BBtu) | F175: (metric tons N2O) | J175: (MMTCE) | L175: (MMTCO2E)
A176: Coal | B176: =VLOOKUP($A$2&$C$2&$B$2&$C$2&$A176,ConsumeBlock3,16,FALSE) ->  | C176: x | D176: =CoalNEFres -> 0 | E176: = | F176: =B176*D176 ->  | G176: x | H176: =GWPN2O -> 265 | I176: = | J176: =F176*H176*CO2_C/(10^6) ->  | K176: = | L176: =J176/CO2_C -> 
A177: Distillate Fuel | C177: x | D177: =DistillNEFres -> 0 | E177: = | F177: =B177*D177 ->  | G177: x | H177: 265 | I177: = | K177: =
A178: Kerosene | C178: x | D178: =KeroNEFres -> 0 | E178: = | G178: x | H178: 265 | I178: = | K178: =
A179: Hydrocarbon Gas Liquids | C179: x | D179: =LPGNEFres -> 0 | E179: = | G179: x | H179: 265 | I179: = | K179: =
A180: Natural Gas | C180: x | D180: =NatGasNEFres -> 0 | E180: = | G180: x | H180: 265 | I180: = | K180: =
A181: Wood | C181: x | D181: =WoodNEFres -> 0 | E181: = | G181: x | H181: 265 | I181: = | K181: =
A182: Other | B182: =VLOOKUP($A$2&$C$2&$B$2&$C$2&$A182,ConsumeBlock3,D172-1987,FALSE) -> 0 | C182: x | D182: =OtherNEFres -> 0 | E182: = | F182: 0 | G182: x | H182: 265 | I182: = | J182: 0 | K182: = | L182: 0
H183: Total | I183: = | J183: =SUM(J176:J182) ->  | K183: =
A185: Residential Sector N20 | D185: 2004
B187: Consumption | D187: Emission Factor | F187: Emissions | H187: GWP | J187: Emissions | L187: Emissions
A188: Fuel Type | B188: (Billion Btu) | D188: (metric tons N2O/BBtu) | F188: (metric tons N2O) | J188: (MMTCE) | L188: (MMTCO2E)
A189: Coal | B189: =VLOOKUP($A$2&$C$2&$B$2&$C$2&$A189,ConsumeBlock3,17,FALSE) ->  | C189: x | D189: =CoalNEFres -> 0 | E189: = | F189: =B189*D189 ->  | G189: x | H189: =GWPN2O -> 265 | I189: = | J189: =F189*H189*CO2_C/(10^6) ->  | K189: = | L189: =J189/CO2_C -> 
A190: Distillate Fuel | C190: x | D190: =DistillNEFres -> 0 | E190: = | F190: =B190*D190 ->  | G190: x | H190: 265 | I190: = | K190: =
A191: Kerosene | C191: x | D191: =KeroNEFres -> 0 | E191: = | G191: x | H191: 265 | I191: = | K191: =
A192: Hydrocarbon Gas Liquids | C192: x | D192: =LPGNEFres -> 0 | E192: = | G192: x | H192: 265 | I192: = | K192: =
A193: Natural Gas | C193: x | D193: =NatGasNEFres -> 0 | E193: = | G193: x | H193: 265 | I193: = | K193: =
A194: Wood | C194: x | D194: =WoodNEFres -> 0 | E194: = | G194: x | H194: 265 | I194: = | K194: =
A195: Other | B195: =VLOOKUP($A$2&$C$2&$B$2&$C$2&$A195,ConsumeBlock3,D185-1987,FALSE) -> 0 | C195: x | D195: =OtherNEFres -> 0 | E195: = | F195: 0 | G195: x | H195: 265 | I195: = | J195: 0 | K195: = | L195: 0
H196: Total | I196: = | J196: =SUM(J189:J195) ->  | K196: =
A198: Residential Sector N20 | D198: =D185+1 -> 2005
B200: Consumption | D200: Emission Factor | F200: Emissions | H200: GWP | J200: Emissions | L200: Emissions
A201: Fuel Type | B201: (Billion Btu) | D201: (metric tons N2O/BBtu) | F201: (metric tons N2O) | J201: (MMTCE) | L201: (MMTCO2E)
A202: Coal | B202: =VLOOKUP($A$2&$C$2&$B$2&$C$2&$A202,ConsumeBlock3,18,FALSE) ->  | C202: x | D202: =CoalNEFres -> 0 | E202: = | F202: =B202*D202 ->  | G202: x | H202: =GWPN2O -> 265 | I202: = | J202: =F202*H202*CO2_C/(10^6) ->  | K202: = | L202: =J202/CO2_C -> 
A203: Distillate Fuel | C203: x | D203: =DistillNEFres -> 0 | E203: = | F203: =B203*D203 ->  | G203: x | H203: 265 | I203: = | K203: =
A204: Kerosene | C204: x | D204: =KeroNEFres -> 0 | E204: = | G204: x | H204: 265 | I204: = | K204: =
A205: Hydrocarbon Gas Liquids | C205: x | D205: =LPGNEFres -> 0 | E205: = | G205: x | H205: 265 | I205: = | K205: =
A206: Natural Gas | C206: x | D206: =NatGasNEFres -> 0 | E206: = | G206: x | H206: 265 | I206: = | K206: =
A207: Wood | C207: x | D207: =WoodNEFres -> 0 | E207: = | G207: x | H207: 265 | I207: = | K207: =
A208: Other | B208: =VLOOKUP($A$2&$C$2&$B$2&$C$2&$A208,ConsumeBlock3,D198-1987,FALSE) -> 0 | C208: x | D208: =OtherNEFres -> 0 | E208: = | F208: 0 | G208: x | H208: 265 | I208: = | J208: 0 | K208: = | L208: 0
H209: Total | I209: = | J209: =SUM(J202:J208) ->  | K209: =
A211: Residential Sector N20 | D211: =D198+1 -> 2006
B213: Consumption | D213: Emission Factor | F213: Emissions | H213: GWP | J213: Emissions | L213: Emissions
A214: Fuel Type | B214: (Billion Btu) | D214: (metric tons N2O/BBtu) | F214: (metric tons N2O) | J214: (MMTCE) | L214: (MMTCO2E)
A215: Coal | B215: =VLOOKUP($A$2&$C$2&$B$2&$C$2&$A215,ConsumeBlock3,19,FALSE) ->  | C215: x | D215: =CoalNEFres -> 0 | E215: = | F215: =B215*D215 ->  | G215: x | H215: =GWPN2O -> 265 | I215: = | J215: =F215*H215*CO2_C/(10^6) ->  | K215: = | L215: =J215/CO2_C -> 
A216: Distillate Fuel | C216: x | D216: =DistillNEFres -> 0 | E216: = | F216: =B216*D216 ->  | G216: x | H216: 265 | I216: = | K216: =
A217: Kerosene | C217: x | D217: =KeroNEFres -> 0 | E217: = | G217: x | H217: 265 | I217: = | K217: =
A218: Hydrocarbon Gas Liquids | C218: x | D218: =LPGNEFres -> 0 | E218: = | G218: x | H218: 265 | I218: = | K218: =
A219: Natural Gas | C219: x | D219: =NatGasNEFres -> 0 | E219: = | G219: x | H219: 265 | I219: = | K219: =
A220: Wood | C220: x | D220: =WoodNEFres -> 0 | E220: = | G220: x | H220: 265 | I220: = | K220: =
A221: Other | B221: =VLOOKUP($A$2&$C$2&$B$2&$C$2&$A221,ConsumeBlock3,D211-1987,FALSE) -> 0 | C221: x | D221: =OtherNEFres -> 0 | E221: = | F221: 0 | G221: x | H221: 265 | I221: = | J221: 0 | K221: = | L221: 0
H222: Total | I222: = | J222: =SUM(J215:J221) ->  | K222: =
A224: Residential Sector N20 | D224: =D211+1 -> 2007
B226: Consumption | D226: Emission Factor | F226: Emissions | H226: GWP | J226: Emissions | L226: Emissions
A227: Fuel Type | B227: (Billion Btu) | D227: (metric tons N2O/BBtu) | F227: (metric tons N2O) | J227: (MMTCE) | L227: (MMTCO2E)
A228: Coal | B228: =VLOOKUP($A$2&$C$2&$B$2&$C$2&$A228,ConsumeBlock3,20,FALSE) ->  | C228: x | D228: =CoalNEFres -> 0 | E228: = | F228: =B228*D228 ->  | G228: x | H228: =GWPN2O -> 265 | I228: = | J228: =F228*H228*CO2_C/(10^6) ->  | K228: = | L228: =J228/CO2_C -> 
A229: Distillate Fuel | C229: x | D229: =DistillNEFres -> 0 | E229: = | F229: =B229*D229 ->  | G229: x | H229: 265 | I229: = | K229: =
A230: Kerosene | C230: x | D230: =KeroNEFres -> 0 | E230: = | G230: x | H230: 265 | I230: = | K230: =
A231: Hydrocarbon Gas Liquids | C231: x | D231: =LPGNEFres -> 0 | E231: = | G231: x | H231: 265 | I231: = | K231: =
A232: Natural Gas | C232: x | D232: =NatGasNEFres -> 0 | E232: = | G232: x | H232: 265 | I232: = | K232: =
A233: Wood | C233: x | D233: =WoodNEFres -> 0 | E233: = | G233: x | H233: 265 | I233: = | K233: =
A234: Other | B234: =VLOOKUP($A$2&$C$2&$B$2&$C$2&$A234,ConsumeBlock3,D224-1987,FALSE) -> 0 | C234: x | D234: =OtherNEFres -> 0 | E234: = | F234: 0 | G234: x | H234: 265 | I234: = | J234: 0 | K234: = | L234: 0
H235: Total | I235: = | J235: =SUM(J228:J234) ->  | K235: =
... 198 more rows

Sheet Residential CH4
A1: ="2. Residential Consumption and CH4 emissions in "&Constants!G2 -> 2. Residential Consumption and CH4 emissions in Select a State . . .
A2: =Constants!H2 -> xx | B2: Residential | C2: =" " -> 
A3: Residential Sector CH4 | D3: 1990
B5: Consumption | D5: Emission Factor | F5: Emissions | H5: GWP | J5: Emissions | L5: Emissions
A6: Fuel Type | B6: (Billion Btu) | D6: (metric tons CH4 /BBtu) | F6: (metric tons CH4) | J6: (MMTCE) | L6: (MMTCO2E)
A7: Coal | B7: ='Residential N2O'!B7 ->  | C7: x | D7: =CoalCEFres -> 0 | E7: = | F7: =B7*D7 ->  | G7: x | H7: =GWPCH4 -> 28 | I7: = | J7: =F7*H7*CO2_C/(10^6) ->  | K7: = | L7: =J7/CO2_C -> 
A8: Distillate Fuel | B8: ='Residential N2O'!B8 ->  | C8: x | D8: =DistillCEFres -> 0 | E8: = | F8: =B8*D8 ->  | G8: x | H8: 28 | I8: = | K8: =
A9: Kerosene | B9: ='Residential N2O'!B9 ->  | C9: x | D9: =KeroCEFres -> 0 | E9: = | G9: x | H9: 28 | I9: = | K9: =
A10: Hydrocarbon Gas Liquids | B10: ='Residential N2O'!B10 ->  | C10: x | D10: =LPGCEFres -> 0 | E10: = | G10: x | H10: 28 | I10: = | K10: =
A11: Natural Gas | B11: ='Residential N2O'!B11 ->  | C11: x | D11: =NatGasCEFres -> 0 | E11: = | G11: x | H11: 28 | I11: = | K11: =
A12: Wood | B12: ='Residential N2O'!B12 ->  | C12: x | D12: =WoodCEFres -> 0 | E12: = | G12: x | H12: 28 | I12: = | K12: =
A13: Other | B13: ='Residential N2O'!B13 -> 0 | C13: x | D13: =OtherCEFres -> 0 | E13: = | F13: 0 | G13: x | H13: 28 | I13: = | J13: 0 | K13: = | L13: 0
H14: Total | I14: = | J14: =SUM(J7:J13) -> 
A16: Residential Sector CH4 | D16: =D3+1 -> 1991
B18: Consumption | D18: Emission Factor | F18: Emissions | H18: GWP | J18: Emissions | L18: Emissions
A19: Fuel Type | B19: (Billion Btu) | D19: (metric tons CH4 /BBtu) | F19: (metric tons CH4) | J19: (MMTCE) | L19: (MMTCO2E)
A20: Coal | B20: ='Residential N2O'!B20 ->  | C20: x | D20: =CoalCEFres -> 0 | E20: = | F20: =B20*D20 ->  | G20: x | H20: =GWPCH4 -> 28 | I20: = | J20: =F20*H20*CO2_C/(10^6) ->  | K20: = | L20: =J20/CO2_C -> 
A21: Distillate Fuel | B21: ='Residential N2O'!B21 ->  | C21: x | D21: =DistillCEFres -> 0 | E21: = | F21: =B21*D21 ->  | G21: x | H21: 28 | I21: = | K21: =
A22: Kerosene | B22: ='Residential N2O'!B22 ->  | C22: x | D22: =KeroCEFres -> 0 | E22: = | G22: x | H22: 28 | I22: = | K22: =
A23: Hydrocarbon Gas Liquids | B23: ='Residential N2O'!B23 ->  | C23: x | D23: =LPGCEFres -> 0 | E23: = | G23: x | H23: 28 | I23: = | K23: =
A24: Natural Gas | B24: ='Residential N2O'!B24 ->  | C24: x | D24: =NatGasCEFres -> 0 | E24: = | G24: x | H24: 28 | I24: = | K24: =
A25: Wood | B25: ='Residential N2O'!B25 ->  | C25: x | D25: =WoodCEFres -> 0 | E25: = | G25: x | H25: 28 | I25: = | K25: =
A26: Other | B26: ='Residential N2O'!B26 -> 0 | C26: x | D26: =OtherCEFres -> 0 | E26: = | F26: 0 | G26: x | H26: 28 | I26: = | J26: 0 | K26: = | L26: 0
H27: Total | I27: = | J27: =SUM(J20:J26) -> 
A29: Residential Sector CH4 | D29: =D16+1 -> 1992
B31: Consumption | D31: Emission Factor | F31: Emissions | H31: GWP | J31: Emissions | L31: Emissions
A32: Fuel Type | B32: (Billion Btu) | D32: (metric tons CH4 /BBtu) | F32: (metric tons CH4) | J32: (MMTCE) | L32: (MMTCO2E)
A33: Coal | B33: ='Residential N2O'!B33 ->  | C33: x | D33: =CoalCEFres -> 0 | E33: = | F33: =B33*D33 ->  | G33: x | H33: =GWPCH4 -> 28 | I33: = | J33: =F33*H33*CO2_C/(10^6) ->  | K33: = | L33: =J33/CO2_C -> 
A34: Distillate Fuel | B34: ='Residential N2O'!B34 ->  | C34: x | D34: =DistillCEFres -> 0 | E34: = | F34: =B34*D34 ->  | G34: x | H34: 28 | I34: = | K34: =
A35: Kerosene | B35: ='Residential N2O'!B35 ->  | C35: x | D35: =KeroCEFres -> 0 | E35: = | G35: x | H35: 28 | I35: = | K35: =
A36: Hydrocarbon Gas Liquids | B36: ='Residential N2O'!B36 ->  | C36: x | D36: =LPGCEFres -> 0 | E36: = | G36: x | H36: 28 | I36: = | K36: =
A37: Natural Gas | B37: ='Residential N2O'!B37 ->  | C37: x | D37: =NatGasCEFres -> 0 | E37: = | G37: x | H37: 28 | I37: = | K37: =
A38: Wood | B38: ='Residential N2O'!B38 ->  | C38: x | D38: =WoodCEFres -> 0 | E38: = | G38: x | H38: 28 | I38: = | K38: =
A39: Other | B39: ='Residential N2O'!B39 -> 0 | C39: x | D39: =OtherCEFres -> 0 | E39: = | F39: 0 | G39: x | H39: 28 | I39: = | J39: 0 | K39: = | L39: 0
H40: Total | I40: = | J40: =SUM(J33:J39) -> 
A42: Residential Sector CH4 | D42: =D29+1 -> 1993
B44: Consumption | D44: Emission Factor | F44: Emissions | H44: GWP | J44: Emissions | L44: Emissions
A45: Fuel Type | B45: (Billion Btu) | D45: (metric tons CH4 /BBtu) | F45: (metric tons CH4) | J45: (MMTCE) | L45: (MMTCO2E)
A46: Coal | B46: ='Residential N2O'!B46 ->  | C46: x | D46: =CoalCEFres -> 0 | E46: = | F46: =B46*D46 ->  | G46: x | H46: =GWPCH4 -> 28 | I46: = | J46: =F46*H46*CO2_C/(10^6) ->  | K46: = | L46: =J46/CO2_C -> 
A47: Distillate Fuel | B47: ='Residential N2O'!B47 ->  | C47: x | D47: =DistillCEFres -> 0 | E47: = | F47: =B47*D47 ->  | G47: x | H47: 28 | I47: = | K47: =
A48: Kerosene | B48: ='Residential N2O'!B48 ->  | C48: x | D48: =KeroCEFres -> 0 | E48: = | G48: x | H48: 28 | I48: = | K48: =
A49: Hydrocarbon Gas Liquids | B49: ='Residential N2O'!B49 ->  | C49: x | D49: =LPGCEFres -> 0 | E49: = | G49: x | H49: 28 | I49: = | K49: =
A50: Natural Gas | B50: ='Residential N2O'!B50 ->  | C50: x | D50: =NatGasCEFres -> 0 | E50: = | G50: x | H50: 28 | I50: = | K50: =
A51: Wood | B51: ='Residential N2O'!B51 ->  | C51: x | D51: =WoodCEFres -> 0 | E51: = | G51: x | H51: 28 | I51: = | K51: =
A52: Other | B52: ='Residential N2O'!B52 -> 0 | C52: x | D52: =OtherCEFres -> 0 | E52: = | F52: 0 | G52: x | H52: 28 | I52: = | J52: 0 | K52: = | L52: 0
H53: Total | I53: = | J53: =SUM(J46:J52) -> 
A55: Residential Sector CH4 | D55: =D42+1 -> 1994
B57: Consumption | D57: Emission Factor | F57: Emissions | H57: GWP | J57: Emissions | L57: Emissions
A58: Fuel Type | B58: (Billion Btu) | D58: (metric tons CH4 /BBtu) | F58: (metric tons CH4) | J58: (MMTCE) | L58: (MMTCO2E)
A59: Coal | B59: ='Residential N2O'!B59 ->  | C59: x | D59: =CoalCEFres -> 0 | E59: = | F59: =B59*D59 ->  | G59: x | H59: =GWPCH4 -> 28 | I59: = | J59: =F59*H59*CO2_C/(10^6) ->  | K59: = | L59: =J59/CO2_C -> 
A60: Distillate Fuel | B60: ='Residential N2O'!B60 ->  | C60: x | D60: =DistillCEFres -> 0 | E60: = | F60: =B60*D60 ->  | G60: x | H60: 28 | I60: = | K60: =
A61: Kerosene | B61: ='Residential N2O'!B61 ->  | C61: x | D61: =KeroCEFres -> 0 | E61: = | G61: x | H61: 28 | I61: = | K61: =
A62: Hydrocarbon Gas Liquids | B62: ='Residential N2O'!B62 ->  | C62: x | D62: =LPGCEFres -> 0 | E62: = | G62: x | H62: 28 | I62: = | K62: =
A63: Natural Gas | B63: ='Residential N2O'!B63 ->  | C63: x | D63: =NatGasCEFres -> 0 | E63: = | G63: x | H63: 28 | I63: = | K63: =
A64: Wood | B64: ='Residential N2O'!B64 ->  | C64: x | D64: =WoodCEFres -> 0 | E64: = | G64: x | H64: 28 | I64: = | K64: =
A65: Other | B65: ='Residential N2O'!B65 -> 0 | C65: x | D65: =OtherCEFres -> 0 | E65: = | F65: 0 | G65: x | H65: 28 | I65: = | J65: 0 | K65: = | L65: 0
H66: Total | I66: = | J66: =SUM(J59:J65) -> 
A68: Residential Sector CH4 | D68: =D55+1 -> 1995
B70: Consumption | D70: Emission Factor | F70: Emissions | H70: GWP | J70: Emissions | L70: Emissions
A71: Fuel Type | B71: (Billion Btu) | D71: (metric tons CH4 /BBtu) | F71: (metric tons CH4) | J71: (MMTCE) | L71: (MMTCO2E)
A72: Coal | B72: ='Residential N2O'!B72 ->  | C72: x | D72: =CoalCEFres -> 0 | E72: = | F72: =B72*D72 ->  | G72: x | H72: =GWPCH4 -> 28 | I72: = | J72: =F72*H72*CO2_C/(10^6) ->  | K72: = | L72: =J72/CO2_C -> 
A73: Distillate Fuel | B73: ='Residential N2O'!B73 ->  | C73: x | D73: =DistillCEFres -> 0 | E73: = | F73: =B73*D73 ->  | G73: x | H73: 28 | I73: = | K73: =
A74: Kerosene | B74: ='Residential N2O'!B74 ->  | C74: x | D74: =KeroCEFres -> 0 | E74: = | G74: x | H74: 28 | I74: = | K74: =
A75: Hydrocarbon Gas Liquids | B75: ='Residential N2O'!B75 ->  | C75: x | D75: =LPGCEFres -> 0 | E75: = | G75: x | H75: 28 | I75: = | K75: =
A76: Natural Gas | B76: ='Residential N2O'!B76 ->  | C76: x | D76: =NatGasCEFres -> 0 | E76: = | G76: x | H76: 28 | I76: = | K76: =
A77: Wood | B77: ='Residential N2O'!B77 ->  | C77: x | D77: =WoodCEFres -> 0 | E77: = | G77: x | H77: 28 | I77: = | K77: =
A78: Other | B78: ='Residential N2O'!B78 -> 0 | C78: x | D78: =OtherCEFres -> 0 | E78: = | F78: 0 | G78: x | H78: 28 | I78: = | J78: 0 | K78: = | L78: 0
H79: Total | I79: = | J79: =SUM(J72:J78) -> 
A81: Residential Sector CH4 | D81: =D68+1 -> 1996
B83: Consumption | D83: Emission Factor | F83: Emissions | H83: GWP | J83: Emissions | L83: Emissions
A84: Fuel Type | B84: (Billion Btu) | D84: (metric tons CH4 /BBtu) | F84: (metric tons CH4) | J84: (MMTCE) | L84: (MMTCO2E)
A85: Coal | B85: ='Residential N2O'!B85 ->  | C85: x | D85: =CoalCEFres -> 0 | E85: = | F85: =B85*D85 ->  | G85: x | H85: =GWPCH4 -> 28 | I85: = | J85: =F85*H85*CO2_C/(10^6) ->  | K85: = | L85: =J85/CO2_C -> 
A86: Distillate Fuel | B86: ='Residential N2O'!B86 ->  | C86: x | D86: =DistillCEFres -> 0 | E86: = | F86: =B86*D86 ->  | G86: x | H86: 28 | I86: = | K86: =
A87: Kerosene | B87: ='Residential N2O'!B87 ->  | C87: x | D87: =KeroCEFres -> 0 | E87: = | G87: x | H87: 28 | I87: = | K87: =
A88: Hydrocarbon Gas Liquids | B88: ='Residential N2O'!B88 ->  | C88: x | D88: =LPGCEFres -> 0 | E88: = | G88: x | H88: 28 | I88: = | K88: =
A89: Natural Gas | B89: ='Residential N2O'!B89 ->  | C89: x | D89: =NatGasCEFres -> 0 | E89: = | G89: x | H89: 28 | I89: = | K89: =
A90: Wood | B90: ='Residential N2O'!B90 ->  | C90: x | D90: =WoodCEFres -> 0 | E90: = | G90: x | H90: 28 | I90: = | K90: =
A91: Other | B91: ='Residential N2O'!B91 -> 0 | C91: x | D91: =OtherCEFres -> 0 | E91: = | F91: 0 | G91: x | H91: 28 | I91: = | J91: 0 | K91: = | L91: 0
H92: Total | I92: = | J92: =SUM(J85:J91) -> 
A94: Residential Sector CH4 | D94: =D81+1 -> 1997
B96: Consumption | D96: Emission Factor | F96: Emissions | H96: GWP | J96: Emissions | L96: Emissions
A97: Fuel Type | B97: (Billion Btu) | D97: (metric tons CH4 /BBtu) | F97: (metric tons CH4) | J97: (MMTCE) | L97: (MMTCO2E)
A98: Coal | B98: ='Residential N2O'!B98 ->  | C98: x | D98: =CoalCEFres -> 0 | E98: = | F98: =B98*D98 ->  | G98: x | H98: =GWPCH4 -> 28 | I98: = | J98: =F98*H98*CO2_C/(10^6) ->  | K98: = | L98: =J98/CO2_C -> 
A99: Distillate Fuel | B99: ='Residential N2O'!B99 ->  | C99: x | D99: =DistillCEFres -> 0 | E99: = | F99: =B99*D99 ->  | G99: x | H99: 28 | I99: = | K99: =
A100: Kerosene | B100: ='Residential N2O'!B100 ->  | C100: x | D100: =KeroCEFres -> 0 | E100: = | G100: x | H100: 28 | I100: = | K100: =
A101: Hydrocarbon Gas Liquids | B101: ='Residential N2O'!B101 ->  | C101: x | D101: =LPGCEFres -> 0 | E101: = | G101: x | H101: 28 | I101: = | K101: =
A102: Natural Gas | B102: ='Residential N2O'!B102 ->  | C102: x | D102: =NatGasCEFres -> 0 | E102: = | G102: x | H102: 28 | I102: = | K102: =
A103: Wood | B103: ='Residential N2O'!B103 ->  | C103: x | D103: =WoodCEFres -> 0 | E103: = | G103: x | H103: 28 | I103: = | K103: =
A104: Other | B104: ='Residential N2O'!B104 -> 0 | C104: x | D104: =OtherCEFres -> 0 | E104: = | F104: 0 | G104: x | H104: 28 | I104: = | J104: 0 | K104: = | L104: 0
H105: Total | I105: = | J105: =SUM(J98:J104) -> 
A107: Residential Sector CH4 | D107: =D94+1 -> 1998
B109: Consumption | D109: Emission Factor | F109: Emissions | H109: GWP | J109: Emissions | L109: Emissions
A110: Fuel Type | B110: (Billion Btu) | D110: (metric tons CH4 /BBtu) | F110: (metric tons CH4) | J110: (MMTCE) | L110: (MMTCO2E)
A111: Coal | B111: ='Residential N2O'!B111 ->  | C111: x | D111: =CoalCEFres -> 0 | E111: = | F111: =B111*D111 ->  | G111: x | H111: =GWPCH4 -> 28 | I111: = | J111: =F111*H111*CO2_C/(10^6) ->  | K111: = | L111: =J111/CO2_C -> 
A112: Distillate Fuel | B112: ='Residential N2O'!B112 ->  | C112: x | D112: =DistillCEFres -> 0 | E112: = | F112: =B112*D112 ->  | G112: x | H112: 28 | I112: = | K112: =
A113: Kerosene | B113: ='Residential N2O'!B113 ->  | C113: x | D113: =KeroCEFres -> 0 | E113: = | G113: x | H113: 28 | I113: = | K113: =
A114: Hydrocarbon Gas Liquids | B114: ='Residential N2O'!B114 ->  | C114: x | D114: =LPGCEFres -> 0 | E114: = | G114: x | H114: 28 | I114: = | K114: =
A115: Natural Gas | B115: ='Residential N2O'!B115 ->  | C115: x | D115: =NatGasCEFres -> 0 | E115: = | G115: x | H115: 28 | I115: = | K115: =
A116: Wood | B116: ='Residential N2O'!B116 ->  | C116: x | D116: =WoodCEFres -> 0 | E116: = | G116: x | H116: 28 | I116: = | K116: =
A117: Other | B117: ='Residential N2O'!B117 -> 0 | C117: x | D117: =OtherCEFres -> 0 | E117: = | F117: 0 | G117: x | H117: 28 | I117: = | J117: 0 | K117: = | L117: 0
H118: Total | I118: = | J118: =SUM(J111:J117) -> 
A120: Residential Sector CH4 | D120: =D107+1 -> 1999
B122: Consumption | D122: Emission Factor | F122: Emissions | H122: GWP | J122: Emissions | L122: Emissions
A123: Fuel Type | B123: (Billion Btu) | D123: (metric tons CH4 /BBtu) | F123: (metric tons CH4) | J123: (MMTCE) | L123: (MMTCO2E)
A124: Coal | B124: ='Residential N2O'!B124 ->  | C124: x | D124: =CoalCEFres -> 0 | E124: = | F124: =B124*D124 ->  | G124: x | H124: =GWPCH4 -> 28 | I124: = | J124: =F124*H124*CO2_C/(10^6) ->  | K124: = | L124: =J124/CO2_C -> 
A125: Distillate Fuel | B125: ='Residential N2O'!B125 ->  | C125: x | D125: =DistillCEFres -> 0 | E125: = | F125: =B125*D125 ->  | G125: x | H125: 28 | I125: = | K125: =
A126: Kerosene | B126: ='Residential N2O'!B126 ->  | C126: x | D126: =KeroCEFres -> 0 | E126: = | G126: x | H126: 28 | I126: = | K126: =
A127: Hydrocarbon Gas Liquids | B127: ='Residential N2O'!B127 ->  | C127: x | D127: =LPGCEFres -> 0 | E127: = | G127: x | H127: 28 | I127: = | K127: =
A128: Natural Gas | B128: ='Residential N2O'!B128 ->  | C128: x | D128: =NatGasCEFres -> 0 | E128: = | G128: x | H128: 28 | I128: = | K128: =
A129: Wood | B129: ='Residential N2O'!B129 ->  | C129: x | D129: =WoodCEFres -> 0 | E129: = | G129: x | H129: 28 | I129: = | K129: =
A130: Other | B130: ='Residential N2O'!B130 -> 0 | C130: x | D130: =OtherCEFres -> 0 | E130: = | F130: 0 | G130: x | H130: 28 | I130: = | J130: 0 | K130: = | L130: 0
H131: Total | I131: = | J131: =SUM(J124:J130) -> 
A133: Residential Sector CH4 | D133: =D120+1 -> 2000
B135: Consumption | D135: Emission Factor | F135: Emissions | H135: GWP | J135: Emissions | L135: Emissions
A136: Fuel Type | B136: (Billion Btu) | D136: (metric tons CH4 /BBtu) | F136: (metric tons CH4) | J136: (MMTCE) | L136: (MMTCO2E)
A137: Coal | B137: ='Residential N2O'!B137 ->  | C137: x | D137: =CoalCEFres -> 0 | E137: = | F137: =B137*D137 ->  | G137: x | H137: =GWPCH4 -> 28 | I137: = | J137: =F137*H137*CO2_C/(10^6) ->  | K137: = | L137: =J137/CO2_C -> 
A138: Distillate Fuel | B138: ='Residential N2O'!B138 ->  | C138: x | D138: =DistillCEFres -> 0 | E138: = | F138: =B138*D138 ->  | G138: x | H138: 28 | I138: = | K138: =
A139: Kerosene | B139: ='Residential N2O'!B139 ->  | C139: x | D139: =KeroCEFres -> 0 | E139: = | G139: x | H139: 28 | I139: = | K139: =
A140: Hydrocarbon Gas Liquids | B140: ='Residential N2O'!B140 ->  | C140: x | D140: =LPGCEFres -> 0 | E140: = | G140: x | H140: 28 | I140: = | K140: =
A141: Natural Gas | B141: ='Residential N2O'!B141 ->  | C141: x | D141: =NatGasCEFres -> 0 | E141: = | G141: x | H141: 28 | I141: = | K141: =
A142: Wood | B142: ='Residential N2O'!B142 ->  | C142: x | D142: =WoodCEFres -> 0 | E142: = | G142: x | H142: 28 | I142: = | K142: =
A143: Other | B143: ='Residential N2O'!B143 -> 0 | C143: x | D143: =OtherCEFres -> 0 | E143: = | F143: 0 | G143: x | H143: 28 | I143: = | J143: 0 | K143: = | L143: 0
H144: Total | I144: = | J144: =SUM(J137:J143) -> 
A146: Residential Sector CH4 | D146: =D133+1 -> 2001
B148: Consumption | D148: Emission Factor | F148: Emissions | H148: GWP | J148: Emissions | L148: Emissions
A149: Fuel Type | B149: (Billion Btu) | D149: (metric tons CH4 /BBtu) | F149: (metric tons CH4) | J149: (MMTCE) | L149: (MMTCO2E)
A150: Coal | B150: ='Residential N2O'!B150 ->  | C150: x | D150: =CoalCEFres -> 0 | E150: = | F150: =B150*D150 ->  | G150: x | H150: =GWPCH4 -> 28 | I150: = | J150: =F150*H150*CO2_C/(10^6) ->  | K150: = | L150: =J150/CO2_C -> 
A151: Distillate Fuel | B151: ='Residential N2O'!B151 ->  | C151: x | D151: =DistillCEFres -> 0 | E151: = | F151: =B151*D151 ->  | G151: x | H151: 28 | I151: = | K151: =
A152: Kerosene | B152: ='Residential N2O'!B152 ->  | C152: x | D152: =KeroCEFres -> 0 | E152: = | G152: x | H152: 28 | I152: = | K152: =
A153: Hydrocarbon Gas Liquids | B153: ='Residential N2O'!B153 ->  | C153: x | D153: =LPGCEFres -> 0 | E153: = | G153: x | H153: 28 | I153: = | K153: =
A154: Natural Gas | B154: ='Residential N2O'!B154 ->  | C154: x | D154: =NatGasCEFres -> 0 | E154: = | G154: x | H154: 28 | I154: = | K154: =
A155: Wood | B155: ='Residential N2O'!B155 ->  | C155: x | D155: =WoodCEFres -> 0 | E155: = | G155: x | H155: 28 | I155: = | K155: =
A156: Other | B156: ='Residential N2O'!B156 -> 0 | C156: x | D156: =OtherCEFres -> 0 | E156: = | F156: 0 | G156: x | H156: 28 | I156: = | J156: 0 | K156: = | L156: 0
H157: Total | I157: = | J157: =SUM(J150:J156) -> 
A159: Residential Sector CH4 | D159: =D146+1 -> 2002
B161: Consumption | D161: Emission Factor | F161: Emissions | H161: GWP | J161: Emissions | L161: Emissions
A162: Fuel Type | B162: (Billion Btu) | D162: (metric tons CH4 /BBtu) | F162: (metric tons CH4) | J162: (MMTCE) | L162: (MMTCO2E)
A163: Coal | B163: ='Residential N2O'!B163 ->  | C163: x | D163: =CoalCEFres -> 0 | E163: = | F163: =B163*D163 ->  | G163: x | H163: =GWPCH4 -> 28 | I163: = | J163: =F163*H163*CO2_C/(10^6) ->  | K163: = | L163: =J163/CO2_C -> 
A164: Distillate Fuel | B164: ='Residential N2O'!B164 ->  | C164: x | D164: =DistillCEFres -> 0 | E164: = | F164: =B164*D164 ->  | G164: x | H164: 28 | I164: = | K164: =
A165: Kerosene | B165: ='Residential N2O'!B165 ->  | C165: x | D165: =KeroCEFres -> 0 | E165: = | G165: x | H165: 28 | I165: = | K165: =
A166: Hydrocarbon Gas Liquids | B166: ='Residential N2O'!B166 ->  | C166: x | D166: =LPGCEFres -> 0 | E166: = | G166: x | H166: 28 | I166: = | K166: =
A167: Natural Gas | B167: ='Residential N2O'!B167 ->  | C167: x | D167: =NatGasCEFres -> 0 | E167: = | G167: x | H167: 28 | I167: = | K167: =
A168: Wood | B168: ='Residential N2O'!B168 ->  | C168: x | D168: =WoodCEFres -> 0 | E168: = | G168: x | H168: 28 | I168: = | K168: =
A169: Other | B169: ='Residential N2O'!B169 -> 0 | C169: x | D169: =OtherCEFres -> 0 | E169: = | F169: 0 | G169: x | H169: 28 | I169: = | J169: 0 | K169: = | L169: 0
H170: Total | I170: = | J170: =SUM(J163:J169) -> 
A172: Residential Sector CH4 | D172: =D159+1 -> 2003
B174: Consumption | D174: Emission Factor | F174: Emissions | H174: GWP | J174: Emissions | L174: Emissions
A175: Fuel Type | B175: (Billion Btu) | D175: (metric tons CH4 /BBtu) | F175: (metric tons CH4) | J175: (MMTCE) | L175: (MMTCO2E)
A176: Coal | B176: ='Residential N2O'!B176 ->  | C176: x | D176: =CoalCEFres -> 0 | E176: = | F176: =B176*D176 ->  | G176: x | H176: =GWPCH4 -> 28 | I176: = | J176: =F176*H176*CO2_C/(10^6) ->  | K176: = | L176: =J176/CO2_C -> 
A177: Distillate Fuel | B177: ='Residential N2O'!B177 ->  | C177: x | D177: =DistillCEFres -> 0 | E177: = | F177: =B177*D177 ->  | G177: x | H177: 28 | I177: = | K177: =
A178: Kerosene | B178: ='Residential N2O'!B178 ->  | C178: x | D178: =KeroCEFres -> 0 | E178: = | G178: x | H178: 28 | I178: = | K178: =
A179: Hydrocarbon Gas Liquids | B179: ='Residential N2O'!B179 ->  | C179: x | D179: =LPGCEFres -> 0 | E179: = | G179: x | H179: 28 | I179: = | K179: =
A180: Natural Gas | B180: ='Residential N2O'!B180 ->  | C180: x | D180: =NatGasCEFres -> 0 | E180: = | G180: x | H180: 28 | I180: = | K180: =
A181: Wood | B181: ='Residential N2O'!B181 ->  | C181: x | D181: =WoodCEFres -> 0 | E181: = | G181: x | H181: 28 | I181: = | K181: =
A182: Other | B182: ='Residential N2O'!B182 -> 0 | C182: x | D182: =OtherCEFres -> 0 | E182: = | F182: 0 | G182: x | H182: 28 | I182: = | J182: 0 | K182: = | L182: 0
H183: Total | I183: = | J183: =SUM(J176:J182) -> 
A185: Residential Sector CH4 | D185: =D172+1 -> 2004
B187: Consumption | D187: Emission Factor | F187: Emissions | H187: GWP | J187: Emissions | L187: Emissions
A188: Fuel Type | B188: (Billion Btu) | D188: (metric tons CH4 /BBtu) | F188: (metric tons CH4) | J188: (MMTCE) | L188: (MMTCO2E)
A189: Coal | B189: ='Residential N2O'!B189 ->  | C189: x | D189: =CoalCEFres -> 0 | E189: = | F189: =B189*D189 ->  | G189: x | H189: =GWPCH4 -> 28 | I189: = | J189: =F189*H189*CO2_C/(10^6) ->  | K189: = | L189: =J189/CO2_C -> 
A190: Distillate Fuel | B190: ='Residential N2O'!B190 ->  | C190: x | D190: =DistillCEFres -> 0 | E190: = | F190: =B190*D190 ->  | G190: x | H190: 28 | I190: = | K190: =
A191: Kerosene | B191: ='Residential N2O'!B191 ->  | C191: x | D191: =KeroCEFres -> 0 | E191: = | G191: x | H191: 28 | I191: = | K191: =
A192: Hydrocarbon Gas Liquids | B192: ='Residential N2O'!B192 ->  | C192: x | D192: =LPGCEFres -> 0 | E192: = | G192: x | H192: 28 | I192: = | K192: =
A193: Natural Gas | B193: ='Residential N2O'!B193 ->  | C193: x | D193: =NatGasCEFres -> 0 | E193: = | G193: x | H193: 28 | I193: = | K193: =
A194: Wood | B194: ='Residential N2O'!B194 ->  | C194: x | D194: =WoodCEFres -> 0 | E194: = | G194: x | H194: 28 | I194: = | K194: =
A195: Other | B195: ='Residential N2O'!B195 -> 0 | C195: x | D195: =OtherCEFres -> 0 | E195: = | F195: 0 | G195: x | H195: 28 | I195: = | J195: 0 | K195: = | L195: 0
H196: Total | I196: = | J196: =SUM(J189:J195) -> 
A198: Residential Sector CH4 | D198: =D185+1 -> 2005
B200: Consumption | D200: Emission Factor | F200: Emissions | H200: GWP | J200: Emissions | L200: Emissions
A201: Fuel Type | B201: (Billion Btu) | D201: (metric tons CH4 /BBtu) | F201: (metric tons CH4) | J201: (MMTCE) | L201: (MMTCO2E)
A202: Coal | B202: ='Residential N2O'!B202 ->  | C202: x | D202: =CoalCEFres -> 0 | E202: = | F202: =B202*D202 ->  | G202: x | H202: =GWPCH4 -> 28 | I202: = | J202: =F202*H202*CO2_C/(10^6) ->  | K202: = | L202: =J202/CO2_C -> 
A203: Distillate Fuel | B203: ='Residential N2O'!B203 ->  | C203: x | D203: =DistillCEFres -> 0 | E203: = | F203: =B203*D203 ->  | G203: x | H203: 28 | I203: = | K203: =
A204: Kerosene | B204: ='Residential N2O'!B204 ->  | C204: x | D204: =KeroCEFres -> 0 | E204: = | G204: x | H204: 28 | I204: = | K204: =
A205: Hydrocarbon Gas Liquids | B205: ='Residential N2O'!B205 ->  | C205: x | D205: =LPGCEFres -> 0 | E205: = | G205: x | H205: 28 | I205: = | K205: =
A206: Natural Gas | B206: ='Residential N2O'!B206 ->  | C206: x | D206: =NatGasCEFres -> 0 | E206: = | G206: x | H206: 28 | I206: = | K206: =
A207: Wood | B207: ='Residential N2O'!B207 ->  | C207: x | D207: =WoodCEFres -> 0 | E207: = | G207: x | H207: 28 | I207: = | K207: =
A208: Other | B208: ='Residential N2O'!B208 -> 0 | C208: x | D208: =OtherCEFres -> 0 | E208: = | F208: 0 | G208: x | H208: 28 | I208: = | J208: 0 | K208: = | L208: 0
H209: Total | I209: = | J209: =SUM(J202:J208) -> 
A211: Residential Sector CH4 | D211: =D198+1 -> 2006
B213: Consumption | D213: Emission Factor | F213: Emissions | H213: GWP | J213: Emissions | L213: Emissions
A214: Fuel Type | B214: (Billion Btu) | D214: (metric tons CH4 /BBtu) | F214: (metric tons CH4) | J214: (MMTCE) | L214: (MMTCO2E)
A215: Coal | B215: ='Residential N2O'!B215 ->  | C215: x | D215: =CoalCEFres -> 0 | E215: = | F215: =B215*D215 ->  | G215: x | H215: =GWPCH4 -> 28 | I215: = | J215: =F215*H215*CO2_C/(10^6) ->  | K215: = | L215: =J215/CO2_C -> 
A216: Distillate Fuel | B216: ='Residential N2O'!B216 ->  | C216: x | D216: =DistillCEFres -> 0 | E216: = | F216: =B216*D216 ->  | G216: x | H216: 28 | I216: = | K216: =
A217: Kerosene | B217: ='Residential N2O'!B217 ->  | C217: x | D217: =KeroCEFres -> 0 | E217: = | G217: x | H217: 28 | I217: = | K217: =
A218: Hydrocarbon Gas Liquids | B218: ='Residential N2O'!B218 ->  | C218: x | D218: =LPGCEFres -> 0 | E218: = | G218: x | H218: 28 | I218: = | K218: =
A219: Natural Gas | B219: ='Residential N2O'!B219 ->  | C219: x | D219: =NatGasCEFres -> 0 | E219: = | G219: x | H219: 28 | I219: = | K219: =
A220: Wood | B220: ='Residential N2O'!B220 ->  | C220: x | D220: =WoodCEFres -> 0 | E220: = | G220: x | H220: 28 | I220: = | K220: =
A221: Other | B221: ='Residential N2O'!B221 -> 0 | C221: x | D221: =OtherCEFres -> 0 | E221: = | F221: 0 | G221: x | H221: 28 | I221: = | J221: 0 | K221: = | L221: 0
H222: Total | I222: = | J222: =SUM(J215:J221) -> 
A224: Residential Sector CH4 | D224: =D211+1 -> 2007
B226: Consumption | D226: Emission Factor | F226: Emissions | H226: GWP | J226: Emissions | L226: Emissions
A227: Fuel Type | B227: (Billion Btu) | D227: (metric tons CH4 /BBtu) | F227: (metric tons CH4) | J227: (MMTCE) | L227: (MMTCO2E)
A228: Coal | B228: ='Residential N2O'!B228 ->  | C228: x | D228: =CoalCEFres -> 0 | E228: = | F228: =B228*D228 ->  | G228: x | H228: =GWPCH4 -> 28 | I228: = | J228: =F228*H228*CO2_C/(10^6) ->  | K228: = | L228: =J228/CO2_C -> 
A229: Distillate Fuel | B229: ='Residential N2O'!B229 ->  | C229: x | D229: =DistillCEFres -> 0 | E229: = | F229: =B229*D229 ->  | G229: x | H229: 28 | I229: = | K229: =
A230: Kerosene | B230: ='Residential N2O'!B230 ->  | C230: x | D230: =KeroCEFres -> 0 | E230: = | G230: x | H230: 28 | I230: = | K230: =
A231: Hydrocarbon Gas Liquids | B231: ='Residential N2O'!B231 ->  | C231: x | D231: =LPGCEFres -> 0 | E231: = | G231: x | H231: 28 | I231: = | K231: =
A232: Natural Gas | B232: ='Residential N2O'!B232 ->  | C232: x | D232: =NatGasCEFres -> 0 | E232: = | G232: x | H232: 28 | I232: = | K232: =
A233: Wood | B233: ='Residential N2O'!B233 ->  | C233: x | D233: =WoodCEFres -> 0 | E233: = | G233: x | H233: 28 | I233: = | K233: =
A234: Other | B234: ='Residential N2O'!B234 -> 0 | C234: x | D234: =OtherCEFres -> 0 | E234: = | F234: 0 | G234: x | H234: 28 | I234: = | J234: 0 | K234: = | L234: 0
H235: Total | I235: = | J235: =SUM(J228:J234) -> 
... 198 more rows

Sheet Commercial N2O
A1: ="3. Commercial Consumption and N2O emissions in "&Constants!G2 -> 3. Commercial Consumption and N2O emissions in Select a State . . .
A2: =Constants!H2 -> xx | B2: Commercial | C2: =" " -> 
A3: Commercial Sector N2O | D3: 1990
B5: Consumption | D5: Emission Factor | F5: Emissions | H5: GWP | J5: Emissions | L5: Emissions
A6: Fuel Type | B6: (Billion Btu) | D6: (metric tons N2O/BBtu) | F6: (metric tons N2O) | J6: (MMTCE) | L6: (MMTCO2E)
A7: Coal | B7: =VLOOKUP($A$2&$C$2&$B$2&$C$2&$A7,ConsumeBlock3,3,FALSE) ->  | C7: x | D7: =CoalNEFcom -> 0 | E7: = | F7: =B7*D7 ->  | G7: x | H7: =GWPN2O -> 265 | I7: = | J7: =F7*H7*CO2_C/(10^6) ->  | K7: = | L7: =J7/CO2_C -> 
A8: Distillate Fuel | C8: x | D8: =DistillNEFcom -> 0 | E8: = | F8: =B8*D8 ->  | G8: x | H8: =GWPN2O -> 265 | I8: = | J8: =F8*H8*CO2_C/(10^6) ->  | K8: =
A9: Kerosene | C9: x | D9: =KeroNEFcom -> 0 | E9: = | G9: x | H9: 265 | I9: = | K9: =
A10: Hydrocarbon Gas Liquids | C10: x | D10: =LPGNEFcom -> 0 | E10: = | G10: x | H10: 265 | I10: = | K10: =
A11: Motor Gasoline | C11: x | D11: =MotorGasNEFcom -> 0 | E11: = | G11: x | H11: 265 | I11: = | K11: =
A12: Residual Fuel | C12: x | D12: =ResidNEFcom -> 0 | E12: = | G12: x | H12: 265 | I12: = | K12: =
A13: Natural Gas | C13: x | D13: =NatGasNEFcom -> 0 | E13: = | G13: x | H13: 265 | I13: = | K13: =
A14: Wood | C14: x | D14: =WoodNEFcom -> 0 | E14: = | G14: x | H14: 265 | I14: = | K14: =
A15: Other | B15: =VLOOKUP($A$2&$C$2&$B$2&$C$2&$A15,ConsumeBlock3,D3-1987,FALSE) -> 0 | C15: x | D15: =OtherNEFcom -> 0 | E15: = | F15: 0 | G15: x | H15: 265 | I15: = | J15: 0 | K15: = | L15: 0
H16: Total | I16: = | J16: =SUM(J7:J15) ->  | K16: =
A18: Commercial Sector N2O | D18: =D3+1 -> 1991
B20: Consumption | D20: Emission Factor | F20: Emissions | H20: GWP | J20: Emissions | L20: Emissions
A21: Fuel Type | B21: (Billion Btu) | D21: (metric tons N2O/BBtu) | F21: (metric tons N2O) | J21: (MMTCE) | L21: (MMTCO2E)
A22: Coal | B22: =VLOOKUP($A$2&$C$2&$B$2&$C$2&$A22,ConsumeBlock3,4,FALSE) ->  | C22: x | D22: =CoalNEFcom -> 0 | E22: = | F22: =B22*D22 ->  | G22: x | H22: =GWPN2O -> 265 | I22: = | J22: =F22*H22*CO2_C/(10^6) ->  | K22: = | L22: =J22/CO2_C -> 
A23: Distillate Fuel | C23: x | D23: =DistillNEFcom -> 0 | E23: = | F23: =B23*D23 ->  | G23: x | H23: =GWPN2O -> 265 | I23: = | J23: =F23*H23*CO2_C/(10^6) ->  | K23: =
A24: Kerosene | C24: x | D24: =KeroNEFcom -> 0 | E24: = | G24: x | H24: 265 | I24: = | K24: =
A25: Hydrocarbon Gas Liquids | C25: x | D25: =LPGNEFcom -> 0 | E25: = | G25: x | H25: 265 | I25: = | K25: =
A26: Motor Gasoline | C26: x | D26: =MotorGasNEFcom -> 0 | E26: = | G26: x | H26: 265 | I26: = | K26: =
A27: Residual Fuel | C27: x | D27: =ResidNEFcom -> 0 | E27: = | G27: x | H27: 265 | I27: = | K27: =
A28: Natural Gas | C28: x | D28: =NatGasNEFcom -> 0 | E28: = | G28: x | H28: 265 | I28: = | K28: =
A29: Wood | C29: x | D29: =WoodNEFcom -> 0 | E29: = | G29: x | H29: 265 | I29: = | K29: =
A30: Other | B30: =VLOOKUP($A$2&$C$2&$B$2&$C$2&$A30,ConsumeBlock3,D18-1987,FALSE) -> 0 | C30: x | D30: =OtherNEFcom -> 0 | E30: = | F30: 0 | G30: x | H30: 265 | I30: = | J30: 0 | K30: = | L30: 0
H31: Total | I31: = | J31: =SUM(J22:J30) ->  | K31: =
A33: Commercial Sector N2O | D33: =D18+1 -> 1992
B35: Consumption | D35: Emission Factor | F35: Emissions | H35: GWP | J35: Emissions | L35: Emissions
A36: Fuel Type | B36: (Billion Btu) | D36: (metric tons N2O/BBtu) | F36: (metric tons N2O) | J36: (MMTCE) | L36: (MMTCO2E)
A37: Coal | B37: =VLOOKUP($A$2&$C$2&$B$2&$C$2&$A37,ConsumeBlock3,5,FALSE) ->  | C37: x | D37: =CoalNEFcom -> 0 | E37: = | F37: =B37*D37 ->  | G37: x | H37: =GWPN2O -> 265 | I37: = | J37: =F37*H37*CO2_C/(10^6) ->  | K37: = | L37: =J37/CO2_C -> 
A38: Distillate Fuel | C38: x | D38: =DistillNEFcom -> 0 | E38: = | F38: =B38*D38 ->  | G38: x | H38: =GWPN2O -> 265 | I38: = | J38: =F38*H38*CO2_C/(10^6) ->  | K38: =
A39: Kerosene | C39: x | D39: =KeroNEFcom -> 0 | E39: = | G39: x | H39: 265 | I39: = | K39: =
A40: Hydrocarbon Gas Liquids | C40: x | D40: =LPGNEFcom -> 0 | E40: = | G40: x | H40: 265 | I40: = | K40: =
A41: Motor Gasoline | C41: x | D41: =MotorGasNEFcom -> 0 | E41: = | G41: x | H41: 265 | I41: = | K41: =
A42: Residual Fuel | C42: x | D42: =ResidNEFcom -> 0 | E42: = | G42: x | H42: 265 | I42: = | K42: =
A43: Natural Gas | C43: x | D43: =NatGasNEFcom -> 0 | E43: = | G43: x | H43: 265 | I43: = | K43: =
A44: Wood | C44: x | D44: =WoodNEFcom -> 0 | E44: = | G44: x | H44: 265 | I44: = | K44: =
A45: Other | B45: =VLOOKUP($A$2&$C$2&$B$2&$C$2&$A45,ConsumeBlock3,D33-1987,FALSE) -> 0 | C45: x | D45: =OtherNEFcom -> 0 | E45: = | F45: 0 | G45: x | H45: 265 | I45: = | J45: 0 | K45: = | L45: 0
H46: Total | I46: = | J46: =SUM(J37:J45) ->  | K46: =
A48: Commercial Sector N2O | D48: =D33+1 -> 1993
B50: Consumption | D50: Emission Factor | F50: Emissions | H50: GWP | J50: Emissions | L50: Emissions
A51: Fuel Type | B51: (Billion Btu) | D51: (metric tons N2O/BBtu) | F51: (metric tons N2O) | J51: (MMTCE) | L51: (MMTCO2E)
A52: Coal | B52: =VLOOKUP($A$2&$C$2&$B$2&$C$2&$A52,ConsumeBlock3,6,FALSE) ->  | C52: x | D52: =CoalNEFcom -> 0 | E52: = | F52: =B52*D52 ->  | G52: x | H52: =GWPN2O -> 265 | I52: = | J52: =F52*H52*CO2_C/(10^6) ->  | K52: = | L52: =J52/CO2_C -> 
A53: Distillate Fuel | C53: x | D53: =DistillNEFcom -> 0 | E53: = | F53: =B53*D53 ->  | G53: x | H53: =GWPN2O -> 265 | I53: = | J53: =F53*H53*CO2_C/(10^6) ->  | K53: =
A54: Kerosene | C54: x | D54: =KeroNEFcom -> 0 | E54: = | G54: x | H54: 265 | I54: = | K54: =
A55: Hydrocarbon Gas Liquids | C55: x | D55: =LPGNEFcom -> 0 | E55: = | G55: x | H55: 265 | I55: = | K55: =
A56: Motor Gasoline | C56: x | D56: =MotorGasNEFcom -> 0 | E56: = | G56: x | H56: 265 | I56: = | K56: =
A57: Residual Fuel | C57: x | D57: =ResidNEFcom -> 0 | E57: = | G57: x | H57: 265 | I57: = | K57: =
A58: Natural Gas | C58: x | D58: =NatGasNEFcom -> 0 | E58: = | G58: x | H58: 265 | I58: = | K58: =
A59: Wood | C59: x | D59: =WoodNEFcom -> 0 | E59: = | G59: x | H59: 265 | I59: = | K59: =
A60: Other | B60: =VLOOKUP($A$2&$C$2&$B$2&$C$2&$A60,ConsumeBlock3,D48-1987,FALSE) -> 0 | C60: x | D60: =OtherNEFcom -> 0 | E60: = | F60: 0 | G60: x | H60: 265 | I60: = | J60: 0 | K60: = | L60: 0
H61: Total | I61: = | J61: =SUM(J52:J60) ->  | K61: =
A63: Commercial Sector N2O | D63: =D48+1 -> 1994
B65: Consumption | D65: Emission Factor | F65: Emissions | H65: GWP | J65: Emissions | L65: Emissions
A66: Fuel Type | B66: (Billion Btu) | D66: (metric tons N2O/BBtu) | F66: (metric tons N2O) | J66: (MMTCE) | L66: (MMTCO2E)
A67: Coal | B67: =VLOOKUP($A$2&$C$2&$B$2&$C$2&$A67,ConsumeBlock3,7,FALSE) ->  | C67: x | D67: =CoalNEFcom -> 0 | E67: = | F67: =B67*D67 ->  | G67: x | H67: =GWPN2O -> 265 | I67: = | J67: =F67*H67*CO2_C/(10^6) ->  | K67: = | L67: =J67/CO2_C -> 
A68: Distillate Fuel | C68: x | D68: =DistillNEFcom -> 0 | E68: = | F68: =B68*D68 ->  | G68: x | H68: =GWPN2O -> 265 | I68: = | J68: =F68*H68*CO2_C/(10^6) ->  | K68: =
A69: Kerosene | C69: x | D69: =KeroNEFcom -> 0 | E69: = | G69: x | H69: 265 | I69: = | K69: =
A70: Hydrocarbon Gas Liquids | C70: x | D70: =LPGNEFcom -> 0 | E70: = | G70: x | H70: 265 | I70: = | K70: =
A71: Motor Gasoline | C71: x | D71: =MotorGasNEFcom -> 0 | E71: = | G71: x | H71: 265 | I71: = | K71: =
A72: Residual Fuel | C72: x | D72: =ResidNEFcom -> 0 | E72: = | G72: x | H72: 265 | I72: = | K72: =
A73: Natural Gas | C73: x | D73: =NatGasNEFcom -> 0 | E73: = | G73: x | H73: 265 | I73: = | K73: =
A74: Wood | C74: x | D74: =WoodNEFcom -> 0 | E74: = | G74: x | H74: 265 | I74: = | K74: =
A75: Other | B75: =VLOOKUP($A$2&$C$2&$B$2&$C$2&$A75,ConsumeBlock3,D63-1987,FALSE) -> 0 | C75: x | D75: =OtherNEFcom -> 0 | E75: = | F75: 0 | G75: x | H75: 265 | I75: = | J75: 0 | K75: = | L75: 0
H76: Total | I76: = | J76: =SUM(J67:J75) ->  | K76: =
A78: Commercial Sector N2O | D78: =D63+1 -> 1995
B80: Consumption | D80: Emission Factor | F80: Emissions | H80: GWP | J80: Emissions | L80: Emissions
A81: Fuel Type | B81: (Billion Btu) | D81: (metric tons N2O/BBtu) | F81: (metric tons N2O) | J81: (MMTCE) | L81: (MMTCO2E)
A82: Coal | B82: =VLOOKUP($A$2&$C$2&$B$2&$C$2&$A82,ConsumeBlock3,8,FALSE) ->  | C82: x | D82: =CoalNEFcom -> 0 | E82: = | F82: =B82*D82 ->  | G82: x | H82: =GWPN2O -> 265 | I82: = | J82: =F82*H82*CO2_C/(10^6) ->  | K82: = | L82: =J82/CO2_C -> 
A83: Distillate Fuel | C83: x | D83: =DistillNEFcom -> 0 | E83: = | F83: =B83*D83 ->  | G83: x | H83: =GWPN2O -> 265 | I83: = | J83: =F83*H83*CO2_C/(10^6) ->  | K83: =
A84: Kerosene | C84: x | D84: =KeroNEFcom -> 0 | E84: = | G84: x | H84: 265 | I84: = | K84: =
A85: Hydrocarbon Gas Liquids | C85: x | D85: =LPGNEFcom -> 0 | E85: = | G85: x | H85: 265 | I85: = | K85: =
A86: Motor Gasoline | C86: x | D86: =MotorGasNEFcom -> 0 | E86: = | G86: x | H86: 265 | I86: = | K86: =
A87: Residual Fuel | C87: x | D87: =ResidNEFcom -> 0 | E87: = | G87: x | H87: 265 | I87: = | K87: =
A88: Natural Gas | C88: x | D88: =NatGasNEFcom -> 0 | E88: = | G88: x | H88: 265 | I88: = | K88: =
A89: Wood | C89: x | D89: =WoodNEFcom -> 0 | E89: = | G89: x | H89: 265 | I89: = | K89: =
A90: Other | B90: =VLOOKUP($A$2&$C$2&$B$2&$C$2&$A90,ConsumeBlock3,D78-1987,FALSE) -> 0 | C90: x | D90: =OtherNEFcom -> 0 | E90: = | F90: 0 | G90: x | H90: 265 | I90: = | J90: 0 | K90: = | L90: 0
H91: Total | I91: = | J91: =SUM(J82:J90) ->  | K91: =
A93: Commercial Sector N2O | D93: =D78+1 -> 1996
B95: Consumption | D95: Emission Factor | F95: Emissions | H95: GWP | J95: Emissions | L95: Emissions
A96: Fuel Type | B96: (Billion Btu) | D96: (metric tons N2O/BBtu) | F96: (metric tons N2O) | J96: (MMTCE) | L96: (MMTCO2E)
A97: Coal | B97: =VLOOKUP($A$2&$C$2&$B$2&$C$2&$A97,ConsumeBlock3,9,FALSE) ->  | C97: x | D97: =CoalNEFcom -> 0 | E97: = | F97: =B97*D97 ->  | G97: x | H97: =GWPN2O -> 265 | I97: = | J97: =F97*H97*CO2_C/(10^6) ->  | K97: = | L97: =J97/CO2_C -> 
A98: Distillate Fuel | C98: x | D98: =DistillNEFcom -> 0 | E98: = | F98: =B98*D98 ->  | G98: x | H98: =GWPN2O -> 265 | I98: = | J98: =F98*H98*CO2_C/(10^6) ->  | K98: =
A99: Kerosene | C99: x | D99: =KeroNEFcom -> 0 | E99: = | G99: x | H99: 265 | I99: = | K99: =
A100: Hydrocarbon Gas Liquids | C100: x | D100: =LPGNEFcom -> 0 | E100: = | G100: x | H100: 265 | I100: = | K100: =
A101: Motor Gasoline | C101: x | D101: =MotorGasNEFcom -> 0 | E101: = | G101: x | H101: 265 | I101: = | K101: =
A102: Residual Fuel | C102: x | D102: =ResidNEFcom -> 0 | E102: = | G102: x | H102: 265 | I102: = | K102: =
A103: Natural Gas | C103: x | D103: =NatGasNEFcom -> 0 | E103: = | G103: x | H103: 265 | I103: = | K103: =
A104: Wood | C104: x | D104: =WoodNEFcom -> 0 | E104: = | G104: x | H104: 265 | I104: = | K104: =
A105: Other | B105: =VLOOKUP($A$2&$C$2&$B$2&$C$2&$A105,ConsumeBlock3,D93-1987,FALSE) -> 0 | C105: x | D105: =OtherNEFcom -> 0 | E105: = | F105: 0 | G105: x | H105: 265 | I105: = | J105: 0 | K105: = | L105: 0
H106: Total | I106: = | J106: =SUM(J97:J105) ->  | K106: =
A108: Commercial Sector N2O | D108: =D93+1 -> 1997
B110: Consumption | D110: Emission Factor | F110: Emissions | H110: GWP | J110: Emissions | L110: Emissions
A111: Fuel Type | B111: (Billion Btu) | D111: (metric tons N2O/BBtu) | F111: (metric tons N2O) | J111: (MMTCE) | L111: (MMTCO2E)
A112: Coal | B112: =VLOOKUP($A$2&$C$2&$B$2&$C$2&$A112,ConsumeBlock3,10,FALSE) ->  | C112: x | D112: =CoalNEFcom -> 0 | E112: = | F112: =B112*D112 ->  | G112: x | H112: =GWPN2O -> 265 | I112: = | J112: =F112*H112*CO2_C/(10^6) ->  | K112: = | L112: =J112/CO2_C -> 
A113: Distillate Fuel | C113: x | D113: =DistillNEFcom -> 0 | E113: = | F113: =B113*D113 ->  | G113: x | H113: =GWPN2O -> 265 | I113: = | J113: =F113*H113*CO2_C/(10^6) ->  | K113: =
A114: Kerosene | C114: x | D114: =KeroNEFcom -> 0 | E114: = | G114: x | H114: 265 | I114: = | K114: =
A115: Hydrocarbon Gas Liquids | C115: x | D115: =LPGNEFcom -> 0 | E115: = | G115: x | H115: 265 | I115: = | K115: =
A116: Motor Gasoline | C116: x | D116: =MotorGasNEFcom -> 0 | E116: = | G116: x | H116: 265 | I116: = | K116: =
A117: Residual Fuel | C117: x | D117: =ResidNEFcom -> 0 | E117: = | G117: x | H117: 265 | I117: = | K117: =
A118: Natural Gas | C118: x | D118: =NatGasNEFcom -> 0 | E118: = | G118: x | H118: 265 | I118: = | K118: =
A119: Wood | C119: x | D119: =WoodNEFcom -> 0 | E119: = | G119: x | H119: 265 | I119: = | K119: =
A120: Other | B120: =VLOOKUP($A$2&$C$2&$B$2&$C$2&$A120,ConsumeBlock3,D108-1987,FALSE) -> 0 | C120: x | D120: =OtherNEFcom -> 0 | E120: = | F120: 0 | G120: x | H120: 265 | I120: = | J120: 0 | K120: = | L120: 0
H121: Total | I121: = | J121: =SUM(J112:J120) ->  | K121: =
A123: Commercial Sector N2O | D123: =D108+1 -> 1998
B125: Consumption | D125: Emission Factor | F125: Emissions | H125: GWP | J125: Emissions | L125: Emissions
A126: Fuel Type | B126: (Billion Btu) | D126: (metric tons N2O/BBtu) | F126: (metric tons N2O) | J126: (MMTCE) | L126: (MMTCO2E)
A127: Coal | B127: =VLOOKUP($A$2&$C$2&$B$2&$C$2&$A127,ConsumeBlock3,11,FALSE) ->  | C127: x | D127: =CoalNEFcom -> 0 | E127: = | F127: =B127*D127 ->  | G127: x | H127: =GWPN2O -> 265 | I127: = | J127: =F127*H127*CO2_C/(10^6) ->  | K127: = | L127: =J127/CO2_C -> 
A128: Distillate Fuel | C128: x | D128: =DistillNEFcom -> 0 | E128: = | F128: =B128*D128 ->  | G128: x | H128: =GWPN2O -> 265 | I128: = | J128: =F128*H128*CO2_C/(10^6) ->  | K128: =
A129: Kerosene | C129: x | D129: =KeroNEFcom -> 0 | E129: = | G129: x | H129: 265 | I129: = | K129: =
A130: Hydrocarbon Gas Liquids | C130: x | D130: =LPGNEFcom -> 0 | E130: = | G130: x | H130: 265 | I130: = | K130: =
A131: Motor Gasoline | C131: x | D131: =MotorGasNEFcom -> 0 | E131: = | G131: x | H131: 265 | I131: = | K131: =
A132: Residual Fuel | C132: x | D132: =ResidNEFcom -> 0 | E132: = | G132: x | H132: 265 | I132: = | K132: =
A133: Natural Gas | C133: x | D133: =NatGasNEFcom -> 0 | E133: = | G133: x | H133: 265 | I133: = | K133: =
A134: Wood | C134: x | D134: =WoodNEFcom -> 0 | E134: = | G134: x | H134: 265 | I134: = | K134: =
A135: Other | B135: =VLOOKUP($A$2&$C$2&$B$2&$C$2&$A135,ConsumeBlock3,D123-1987,FALSE) -> 0 | C135: x | D135: =OtherNEFcom -> 0 | E135: = | F135: 0 | G135: x | H135: 265 | I135: = | J135: 0 | K135: = | L135: 0
H136: Total | I136: = | J136: =SUM(J127:J135) ->  | K136: =
A138: Commercial Sector N2O | D138: =D123+1 -> 1999
B140: Consumption | D140: Emission Factor | F140: Emissions | H140: GWP | J140: Emissions | L140: Emissions
A141: Fuel Type | B141: (Billion Btu) | D141: (metric tons N2O/BBtu) | F141: (metric tons N2O) | J141: (MMTCE) | L141: (MMTCO2E)
A142: Coal | B142: =VLOOKUP($A$2&$C$2&$B$2&$C$2&$A142,ConsumeBlock3,12,FALSE) ->  | C142: x | D142: =CoalNEFcom -> 0 | E142: = | F142: =B142*D142 ->  | G142: x | H142: =GWPN2O -> 265 | I142: = | J142: =F142*H142*CO2_C/(10^6) ->  | K142: = | L142: =J142/CO2_C -> 
A143: Distillate Fuel | C143: x | D143: =DistillNEFcom -> 0 | E143: = | F143: =B143*D143 ->  | G143: x | H143: =GWPN2O -> 265 | I143: = | J143: =F143*H143*CO2_C/(10^6) ->  | K143: =
A144: Kerosene | C144: x | D144: =KeroNEFcom -> 0 | E144: = | G144: x | H144: 265 | I144: = | K144: =
A145: Hydrocarbon Gas Liquids | C145: x | D145: =LPGNEFcom -> 0 | E145: = | G145: x | H145: 265 | I145: = | K145: =
A146: Motor Gasoline | C146: x | D146: =MotorGasNEFcom -> 0 | E146: = | G146: x | H146: 265 | I146: = | K146: =
A147: Residual Fuel | C147: x | D147: =ResidNEFcom -> 0 | E147: = | G147: x | H147: 265 | I147: = | K147: =
A148: Natural Gas | C148: x | D148: =NatGasNEFcom -> 0 | E148: = | G148: x | H148: 265 | I148: = | K148: =
A149: Wood | C149: x | D149: =WoodNEFcom -> 0 | E149: = | G149: x | H149: 265 | I149: = | K149: =
A150: Other | B150: =VLOOKUP($A$2&$C$2&$B$2&$C$2&$A150,ConsumeBlock3,D138-1987,FALSE) -> 0 | C150: x | D150: =OtherNEFcom -> 0 | E150: = | F150: 0 | G150: x | H150: 265 | I150: = | J150: 0 | K150: = | L150: 0
H151: Total | I151: = | J151: =SUM(J142:J150) ->  | K151: =
A153: Commercial Sector N2O | D153: =D138+1 -> 2000
B155: Consumption | D155: Emission Factor | F155: Emissions | H155: GWP | J155: Emissions | L155: Emissions
A156: Fuel Type | B156: (Billion Btu) | D156: (metric tons N2O/BBtu) | F156: (metric tons N2O) | J156: (MMTCE) | L156: (MMTCO2E)
A157: Coal | B157: =VLOOKUP($A$2&$C$2&$B$2&$C$2&$A157,ConsumeBlock3,13,FALSE) ->  | C157: x | D157: =CoalNEFcom -> 0 | E157: = | F157: =B157*D157 ->  | G157: x | H157: =GWPN2O -> 265 | I157: = | J157: =F157*H157*CO2_C/(10^6) ->  | K157: = | L157: =J157/CO2_C -> 
A158: Distillate Fuel | C158: x | D158: =DistillNEFcom -> 0 | E158: = | F158: =B158*D158 ->  | G158: x | H158: =GWPN2O -> 265 | I158: = | J158: =F158*H158*CO2_C/(10^6) ->  | K158: =
A159: Kerosene | C159: x | D159: =KeroNEFcom -> 0 | E159: = | G159: x | H159: 265 | I159: = | K159: =
A160: Hydrocarbon Gas Liquids | C160: x | D160: =LPGNEFcom -> 0 | E160: = | G160: x | H160: 265 | I160: = | K160: =
A161: Motor Gasoline | C161: x | D161: =MotorGasNEFcom -> 0 | E161: = | G161: x | H161: 265 | I161: = | K161: =
A162: Residual Fuel | C162: x | D162: =ResidNEFcom -> 0 | E162: = | G162: x | H162: 265 | I162: = | K162: =
A163: Natural Gas | C163: x | D163: =NatGasNEFcom -> 0 | E163: = | G163: x | H163: 265 | I163: = | K163: =
A164: Wood | C164: x | D164: =WoodNEFcom -> 0 | E164: = | G164: x | H164: 265 | I164: = | K164: =
A165: Other | B165: =VLOOKUP($A$2&$C$2&$B$2&$C$2&$A165,ConsumeBlock3,D153-1987,FALSE) -> 0 | C165: x | D165: =OtherNEFcom -> 0 | E165: = | F165: 0 | G165: x | H165: 265 | I165: = | J165: 0 | K165: = | L165: 0
H166: Total | I166: = | J166: =SUM(J157:J165) ->  | K166: =
A168: Commercial Sector N2O | D168: =D153+1 -> 2001
B170: Consumption | D170: Emission Factor | F170: Emissions | H170: GWP | J170: Emissions | L170: Emissions
A171: Fuel Type | B171: (Billion Btu) | D171: (metric tons N2O/BBtu) | F171: (metric tons N2O) | J171: (MMTCE) | L171: (MMTCO2E)
A172: Coal | B172: =VLOOKUP($A$2&$C$2&$B$2&$C$2&$A172,ConsumeBlock3,14,FALSE) ->  | C172: x | D172: =CoalNEFcom -> 0 | E172: = | F172: =B172*D172 ->  | G172: x | H172: =GWPN2O -> 265 | I172: = | J172: =F172*H172*CO2_C/(10^6) ->  | K172: = | L172: =J172/CO2_C -> 
A173: Distillate Fuel | C173: x | D173: =DistillNEFcom -> 0 | E173: = | F173: =B173*D173 ->  | G173: x | H173: =GWPN2O -> 265 | I173: = | J173: =F173*H173*CO2_C/(10^6) ->  | K173: =
A174: Kerosene | C174: x | D174: =KeroNEFcom -> 0 | E174: = | G174: x | H174: 265 | I174: = | K174: =
A175: Hydrocarbon Gas Liquids | C175: x | D175: =LPGNEFcom -> 0 | E175: = | G175: x | H175: 265 | I175: = | K175: =
A176: Motor Gasoline | C176: x | D176: =MotorGasNEFcom -> 0 | E176: = | G176: x | H176: 265 | I176: = | K176: =
A177: Residual Fuel | C177: x | D177: =ResidNEFcom -> 0 | E177: = | G177: x | H177: 265 | I177: = | K177: =
A178: Natural Gas | C178: x | D178: =NatGasNEFcom -> 0 | E178: = | G178: x | H178: 265 | I178: = | K178: =
A179: Wood | C179: x | D179: =WoodNEFcom -> 0 | E179: = | G179: x | H179: 265 | I179: = | K179: =
A180: Other | B180: =VLOOKUP($A$2&$C$2&$B$2&$C$2&$A180,ConsumeBlock3,D168-1987,FALSE) -> 0 | C180: x | D180: =OtherNEFcom -> 0 | E180: = | F180: 0 | G180: x | H180: 265 | I180: = | J180: 0 | K180: = | L180: 0
H181: Total | I181: = | J181: =SUM(J172:J180) ->  | K181: =
A183: Commercial Sector N2O | D183: =D168+1 -> 2002
B185: Consumption | D185: Emission Factor | F185: Emissions | H185: GWP | J185: Emissions | L185: Emissions
A186: Fuel Type | B186: (Billion Btu) | D186: (metric tons N2O/BBtu) | F186: (metric tons N2O) | J186: (MMTCE) | L186: (MMTCO2E)
A187: Coal | B187: =VLOOKUP($A$2&$C$2&$B$2&$C$2&$A187,ConsumeBlock3,15,FALSE) ->  | C187: x | D187: =CoalNEFcom -> 0 | E187: = | F187: =B187*D187 ->  | G187: x | H187: =GWPN2O -> 265 | I187: = | J187: =F187*H187*CO2_C/(10^6) ->  | K187: = | L187: =J187/CO2_C -> 
A188: Distillate Fuel | C188: x | D188: =DistillNEFcom -> 0 | E188: = | F188: =B188*D188 ->  | G188: x | H188: =GWPN2O -> 265 | I188: = | J188: =F188*H188*CO2_C/(10^6) ->  | K188: =
A189: Kerosene | C189: x | D189: =KeroNEFcom -> 0 | E189: = | G189: x | H189: 265 | I189: = | K189: =
A190: Hydrocarbon Gas Liquids | C190: x | D190: =LPGNEFcom -> 0 | E190: = | G190: x | H190: 265 | I190: = | K190: =
A191: Motor Gasoline | C191: x | D191: =MotorGasNEFcom -> 0 | E191: = | G191: x | H191: 265 | I191: = | K191: =
A192: Residual Fuel | C192: x | D192: =ResidNEFcom -> 0 | E192: = | G192: x | H192: 265 | I192: = | K192: =
A193: Natural Gas | C193: x | D193: =NatGasNEFcom -> 0 | E193: = | G193: x | H193: 265 | I193: = | K193: =
A194: Wood | C194: x | D194: =WoodNEFcom -> 0 | E194: = | G194: x | H194: 265 | I194: = | K194: =
A195: Other | B195: =VLOOKUP($A$2&$C$2&$B$2&$C$2&$A195,ConsumeBlock3,D183-1987,FALSE) -> 0 | C195: x | D195: =OtherNEFcom -> 0 | E195: = | F195: 0 | G195: x | H195: 265 | I195: = | J195: 0 | K195: = | L195: 0
H196: Total | I196: = | J196: =SUM(J187:J195) ->  | K196: =
A198: Commercial Sector N2O | D198: =D183+1 -> 2003
B200: Consumption | D200: Emission Factor | F200: Emissions | H200: GWP | J200: Emissions | L200: Emissions
A201: Fuel Type | B201: (Billion Btu) | D201: (metric tons N2O/BBtu) | F201: (metric tons N2O) | J201: (MMTCE) | L201: (MMTCO2E)
A202: Coal | B202: =VLOOKUP($A$2&$C$2&$B$2&$C$2&$A202,ConsumeBlock3,16,FALSE) ->  | C202: x | D202: =CoalNEFcom -> 0 | E202: = | F202: =B202*D202 ->  | G202: x | H202: =GWPN2O -> 265 | I202: = | J202: =F202*H202*CO2_C/(10^6) ->  | K202: = | L202: =J202/CO2_C -> 
A203: Distillate Fuel | C203: x | D203: =DistillNEFcom -> 0 | E203: = | F203: =B203*D203 ->  | G203: x | H203: =GWPN2O -> 265 | I203: = | J203: =F203*H203*CO2_C/(10^6) ->  | K203: =
A204: Kerosene | C204: x | D204: =KeroNEFcom -> 0 | E204: = | G204: x | H204: 265 | I204: = | K204: =
A205: Hydrocarbon Gas Liquids | C205: x | D205: =LPGNEFcom -> 0 | E205: = | G205: x | H205: 265 | I205: = | K205: =
A206: Motor Gasoline | C206: x | D206: =MotorGasNEFcom -> 0 | E206: = | G206: x | H206: 265 | I206: = | K206: =
A207: Residual Fuel | C207: x | D207: =ResidNEFcom -> 0 | E207: = | G207: x | H207: 265 | I207: = | K207: =
A208: Natural Gas | C208: x | D208: =NatGasNEFcom -> 0 | E208: = | G208: x | H208: 265 | I208: = | K208: =
A209: Wood | C209: x | D209: =WoodNEFcom -> 0 | E209: = | G209: x | H209: 265 | I209: = | K209: =
A210: Other | B210: =VLOOKUP($A$2&$C$2&$B$2&$C$2&$A210,ConsumeBlock3,D198-1987,FALSE) -> 0 | C210: x | D210: =OtherNEFcom -> 0 | E210: = | F210: 0 | G210: x | H210: 265 | I210: = | J210: 0 | K210: = | L210: 0
H211: Total | I211: = | J211: =SUM(J202:J210) ->  | K211: =
A213: Commercial Sector N2O | D213: =D198+1 -> 2004
B215: Consumption | D215: Emission Factor | F215: Emissions | H215: GWP | J215: Emissions | L215: Emissions
A216: Fuel Type | B216: (Billion Btu) | D216: (metric tons N2O/BBtu) | F216: (metric tons N2O) | J216: (MMTCE) | L216: (MMTCO2E)
A217: Coal | B217: =VLOOKUP($A$2&$C$2&$B$2&$C$2&$A217,ConsumeBlock3,17,FALSE) ->  | C217: x | D217: =CoalNEFcom -> 0 | E217: = | F217: =B217*D217 ->  | G217: x | H217: =GWPN2O -> 265 | I217: = | J217: =F217*H217*CO2_C/(10^6) ->  | K217: = | L217: =J217/CO2_C -> 
A218: Distillate Fuel | C218: x | D218: =DistillNEFcom -> 0 | E218: = | F218: =B218*D218 ->  | G218: x | H218: =GWPN2O -> 265 | I218: = | J218: =F218*H218*CO2_C/(10^6) ->  | K218: =
A219: Kerosene | C219: x | D219: =KeroNEFcom -> 0 | E219: = | G219: x | H219: 265 | I219: = | K219: =
A220: Hydrocarbon Gas Liquids | C220: x | D220: =LPGNEFcom -> 0 | E220: = | G220: x | H220: 265 | I220: = | K220: =
A221: Motor Gasoline | C221: x | D221: =MotorGasNEFcom -> 0 | E221: = | G221: x | H221: 265 | I221: = | K221: =
A222: Residual Fuel | C222: x | D222: =ResidNEFcom -> 0 | E222: = | G222: x | H222: 265 | I222: = | K222: =
A223: Natural Gas | C223: x | D223: =NatGasNEFcom -> 0 | E223: = | G223: x | H223: 265 | I223: = | K223: =
A224: Wood | C224: x | D224: =WoodNEFcom -> 0 | E224: = | G224: x | H224: 265 | I224: = | K224: =
A225: Other | B225: =VLOOKUP($A$2&$C$2&$B$2&$C$2&$A225,ConsumeBlock3,D213-1987,FALSE) -> 0 | C225: x | D225: =OtherNEFcom -> 0 | E225: = | F225: 0 | G225: x | H225: 265 | I225: = | J225: 0 | K225: = | L225: 0
H226: Total | I226: = | J226: =SUM(J217:J225) ->  | K226: =
A228: Commercial Sector N2O | D228: =D213+1 -> 2005
B230: Consumption | D230: Emission Factor | F230: Emissions | H230: GWP | J230: Emissions | L230: Emissions
A231: Fuel Type | B231: (Billion Btu) | D231: (metric tons N2O/BBtu) | F231: (metric tons N2O) | J231: (MMTCE) | L231: (MMTCO2E)
... 270 more rows

Sheet Commercial CH4
A1: ="3. Commercial Consumption and CH4 emissions in "&Constants!G2 -> 3. Commercial Consumption and CH4 emissions in Select a State . . .
A2: =Constants!H2 -> xx | B2: Commercial | C2: =" " -> 
A3: Commercial Sector CH4 | D3: 1990
B5: Consumption | D5: Emission Factor | F5: Emissions | H5: GWP | J5: Emissions | L5: Emissions
A6: Fuel Type | B6: (Billion Btu) | D6: (metric tons CH4 /BBtu) | F6: (metric tons CH4) | J6: (MMTCE) | L6: (MMTCO2E)
A7: Coal | B7: ='Commercial N2O'!B7 ->  | C7: x | D7: =CoalCEFcom -> 0 | E7: = | F7: =B7*D7 ->  | G7: x | H7: =GWPCH4 -> 28 | I7: = | J7: =F7*H7*CO2_C/(10^6) ->  | K7: = | L7: =J7/CO2_C -> 
A8: Distillate Fuel | B8: ='Commercial N2O'!B8 ->  | C8: x | D8: =DistillCEFcom -> 0 | E8: = | F8: =B8*D8 ->  | G8: x | H8: =GWPCH4 -> 28 | I8: = | J8: =F8*H8*CO2_C/(10^6) ->  | K8: =
A9: Kerosene | B9: ='Commercial N2O'!B9 ->  | C9: x | D9: =KeroCEFcom -> 0 | E9: = | G9: x | H9: 28 | I9: = | K9: =
A10: Hydrocarbon Gas Liquids | B10: ='Commercial N2O'!B10 ->  | C10: x | D10: =LPGCEFcom -> 0 | E10: = | G10: x | H10: 28 | I10: = | K10: =
A11: Motor Gasoline | B11: ='Commercial N2O'!B11 ->  | C11: x | D11: =MotorGasCEFcom -> 0 | E11: = | G11: x | H11: 28 | I11: = | K11: =
A12: Residual Fuel | B12: ='Commercial N2O'!B12 ->  | C12: x | D12: =ResidCEFcom -> 0 | E12: = | G12: x | H12: 28 | I12: = | K12: =
A13: Natural Gas | B13: ='Commercial N2O'!B13 ->  | C13: x | D13: =NatGasCEFcom -> 0 | E13: = | G13: x | H13: 28 | I13: = | K13: =
A14: Wood | B14: ='Commercial N2O'!B14 ->  | C14: x | D14: =WoodCEFcom -> 0 | E14: = | G14: x | H14: 28 | I14: = | K14: =
A15: Other | B15: ='Commercial N2O'!B15 -> 0 | C15: x | D15: =OtherCEFcom -> 0 | E15: = | F15: 0 | G15: x | H15: 28 | I15: = | J15: 0 | K15: = | L15: 0
H16: Total | I16: = | J16: =SUM(J7:J15) ->  | K16: =
A18: Commercial Sector CH4 | D18: =D3+1 -> 1991
B20: Consumption | D20: Emission Factor | F20: Emissions | H20: GWP | J20: Emissions | L20: Emissions
A21: Fuel Type | B21: (Billion Btu) | D21: (metric tons CH4 /BBtu) | F21: (metric tons CH4) | J21: (MMTCE) | L21: (MMTCO2E)
A22: Coal | B22: ='Commercial N2O'!B22 ->  | C22: x | D22: =CoalCEFcom -> 0 | E22: = | F22: =B22*D22 ->  | G22: x | H22: =GWPCH4 -> 28 | I22: = | J22: =F22*H22*CO2_C/(10^6) ->  | K22: = | L22: =J22/CO2_C -> 
A23: Distillate Fuel | B23: ='Commercial N2O'!B23 ->  | C23: x | D23: =DistillCEFcom -> 0 | E23: = | F23: =B23*D23 ->  | G23: x | H23: =GWPCH4 -> 28 | I23: = | J23: =F23*H23*CO2_C/(10^6) ->  | K23: =
A24: Kerosene | B24: ='Commercial N2O'!B24 ->  | C24: x | D24: =KeroCEFcom -> 0 | E24: = | G24: x | H24: 28 | I24: = | K24: =
A25: Hydrocarbon Gas Liquids | B25: ='Commercial N2O'!B25 ->  | C25: x | D25: =LPGCEFcom -> 0 | E25: = | G25: x | H25: 28 | I25: = | K25: =
A26: Motor Gasoline | B26: ='Commercial N2O'!B26 ->  | C26: x | D26: =MotorGasCEFcom -> 0 | E26: = | G26: x | H26: 28 | I26: = | K26: =
A27: Residual Fuel | B27: ='Commercial N2O'!B27 ->  | C27: x | D27: =ResidCEFcom -> 0 | E27: = | G27: x | H27: 28 | I27: = | K27: =
A28: Natural Gas | B28: ='Commercial N2O'!B28 ->  | C28: x | D28: =NatGasCEFcom -> 0 | E28: = | G28: x | H28: 28 | I28: = | K28: =
A29: Wood | B29: ='Commercial N2O'!B29 ->  | C29: x | D29: =WoodCEFcom -> 0 | E29: = | G29: x | H29: 28 | I29: = | K29: =
A30: Other | B30: ='Commercial N2O'!B30 -> 0 | C30: x | D30: =OtherCEFcom -> 0 | E30: = | F30: 0 | G30: x | H30: 28 | I30: = | J30: 0 | K30: = | L30: 0
H31: Total | I31: = | J31: =SUM(J22:J30) ->  | K31: =
A33: Commercial Sector CH4 | D33: =D18+1 -> 1992
B35: Consumption | D35: Emission Factor | F35: Emissions | H35: GWP | J35: Emissions | L35: Emissions
A36: Fuel Type | B36: (Billion Btu) | D36: (metric tons CH4 /BBtu) | F36: (metric tons CH4) | J36: (MMTCE) | L36: (MMTCO2E)
A37: Coal | B37: ='Commercial N2O'!B37 ->  | C37: x | D37: =CoalCEFcom -> 0 | E37: = | F37: =B37*D37 ->  | G37: x | H37: =GWPCH4 -> 28 | I37: = | J37: =F37*H37*CO2_C/(10^6) ->  | K37: = | L37: =J37/CO2_C -> 
A38: Distillate Fuel | B38: ='Commercial N2O'!B38 ->  | C38: x | D38: =DistillCEFcom -> 0 | E38: = | F38: =B38*D38 ->  | G38: x | H38: =GWPCH4 -> 28 | I38: = | J38: =F38*H38*CO2_C/(10^6) ->  | K38: =
A39: Kerosene | B39: ='Commercial N2O'!B39 ->  | C39: x | D39: =KeroCEFcom -> 0 | E39: = | G39: x | H39: 28 | I39: = | K39: =
A40: Hydrocarbon Gas Liquids | B40: ='Commercial N2O'!B40 ->  | C40: x | D40: =LPGCEFcom -> 0 | E40: = | G40: x | H40: 28 | I40: = | K40: =
A41: Motor Gasoline | B41: ='Commercial N2O'!B41 ->  | C41: x | D41: =MotorGasCEFcom -> 0 | E41: = | G41: x | H41: 28 | I41: = | K41: =
A42: Residual Fuel | B42: ='Commercial N2O'!B42 ->  | C42: x | D42: =ResidCEFcom -> 0 | E42: = | G42: x | H42: 28 | I42: = | K42: =
A43: Natural Gas | B43: ='Commercial N2O'!B43 ->  | C43: x | D43: =NatGasCEFcom -> 0 | E43: = | G43: x | H43: 28 | I43: = | K43: =
A44: Wood | B44: ='Commercial N2O'!B44 ->  | C44: x | D44: =WoodCEFcom -> 0 | E44: = | G44: x | H44: 28 | I44: = | K44: =
A45: Other | B45: ='Commercial N2O'!B45 -> 0 | C45: x | D45: =OtherCEFcom -> 0 | E45: = | F45: 0 | G45: x | H45: 28 | I45: = | J45: 0 | K45: = | L45: 0
H46: Total | I46: = | J46: =SUM(J37:J45) ->  | K46: =
A48: Commercial Sector CH4 | D48: =D33+1 -> 1993
B50: Consumption | D50: Emission Factor | F50: Emissions | H50: GWP | J50: Emissions | L50: Emissions
A51: Fuel Type | B51: (Billion Btu) | D51: (metric tons CH4 /BBtu) | F51: (metric tons CH4) | J51: (MMTCE) | L51: (MMTCO2E)
A52: Coal | B52: ='Commercial N2O'!B52 ->  | C52: x | D52: =CoalCEFcom -> 0 | E52: = | F52: =B52*D52 ->  | G52: x | H52: =GWPCH4 -> 28 | I52: = | J52: =F52*H52*CO2_C/(10^6) ->  | K52: = | L52: =J52/CO2_C -> 
A53: Distillate Fuel | B53: ='Commercial N2O'!B53 ->  | C53: x | D53: =DistillCEFcom -> 0 | E53: = | F53: =B53*D53 ->  | G53: x | H53: =GWPCH4 -> 28 | I53: = | J53: =F53*H53*CO2_C/(10^6) ->  | K53: =
A54: Kerosene | B54: ='Commercial N2O'!B54 ->  | C54: x | D54: =KeroCEFcom -> 0 | E54: = | G54: x | H54: 28 | I54: = | K54: =
A55: Hydrocarbon Gas Liquids | B55: ='Commercial N2O'!B55 ->  | C55: x | D55: =LPGCEFcom -> 0 | E55: = | G55: x | H55: 28 | I55: = | K55: =
A56: Motor Gasoline | B56: ='Commercial N2O'!B56 ->  | C56: x | D56: =MotorGasCEFcom -> 0 | E56: = | G56: x | H56: 28 | I56: = | K56: =
A57: Residual Fuel | B57: ='Commercial N2O'!B57 ->  | C57: x | D57: =ResidCEFcom -> 0 | E57: = | G57: x | H57: 28 | I57: = | K57: =
A58: Natural Gas | B58: ='Commercial N2O'!B58 ->  | C58: x | D58: =NatGasCEFcom -> 0 | E58: = | G58: x | H58: 28 | I58: = | K58: =
A59: Wood | B59: ='Commercial N2O'!B59 ->  | C59: x | D59: =WoodCEFcom -> 0 | E59: = | G59: x | H59: 28 | I59: = | K59: =
A60: Other | B60: ='Commercial N2O'!B60 -> 0 | C60: x | D60: =OtherCEFcom -> 0 | E60: = | F60: 0 | G60: x | H60: 28 | I60: = | J60: 0 | K60: = | L60: 0
H61: Total | I61: = | J61: =SUM(J52:J60) ->  | K61: =
A63: Commercial Sector CH4 | D63: =D48+1 -> 1994
B65: Consumption | D65: Emission Factor | F65: Emissions | H65: GWP | J65: Emissions | L65: Emissions
A66: Fuel Type | B66: (Billion Btu) | D66: (metric tons CH4 /BBtu) | F66: (metric tons CH4) | J66: (MMTCE) | L66: (MMTCO2E)
A67: Coal | B67: ='Commercial N2O'!B67 ->  | C67: x | D67: =CoalCEFcom -> 0 | E67: = | F67: =B67*D67 ->  | G67: x | H67: =GWPCH4 -> 28 | I67: = | J67: =F67*H67*CO2_C/(10^6) ->  | K67: = | L67: =J67/CO2_C -> 
A68: Distillate Fuel | B68: ='Commercial N2O'!B68 ->  | C68: x | D68: =DistillCEFcom -> 0 | E68: = | F68: =B68*D68 ->  | G68: x | H68: =GWPCH4 -> 28 | I68: = | J68: =F68*H68*CO2_C/(10^6) ->  | K68: =
A69: Kerosene | B69: ='Commercial N2O'!B69 ->  | C69: x | D69: =KeroCEFcom -> 0 | E69: = | G69: x | H69: 28 | I69: = | K69: =
A70: Hydrocarbon Gas Liquids | B70: ='Commercial N2O'!B70 ->  | C70: x | D70: =LPGCEFcom -> 0 | E70: = | G70: x | H70: 28 | I70: = | K70: =
A71: Motor Gasoline | B71: ='Commercial N2O'!B71 ->  | C71: x | D71: =MotorGasCEFcom -> 0 | E71: = | G71: x | H71: 28 | I71: = | K71: =
A72: Residual Fuel | B72: ='Commercial N2O'!B72 ->  | C72: x | D72: =ResidCEFcom -> 0 | E72: = | G72: x | H72: 28 | I72: = | K72: =
A73: Natural Gas | B73: ='Commercial N2O'!B73 ->  | C73: x | D73: =NatGasCEFcom -> 0 | E73: = | G73: x | H73: 28 | I73: = | K73: =
A74: Wood | B74: ='Commercial N2O'!B74 ->  | C74: x | D74: =WoodCEFcom -> 0 | E74: = | G74: x | H74: 28 | I74: = | K74: =
A75: Other | B75: ='Commercial N2O'!B75 -> 0 | C75: x | D75: =OtherCEFcom -> 0 | E75: = | F75: 0 | G75: x | H75: 28 | I75: = | J75: 0 | K75: = | L75: 0
H76: Total | I76: = | J76: =SUM(J67:J75) ->  | K76: =
A78: Commercial Sector CH4 | D78: =D63+1 -> 1995
B80: Consumption | D80: Emission Factor | F80: Emissions | H80: GWP | J80: Emissions | L80: Emissions
A81: Fuel Type | B81: (Billion Btu) | D81: (metric tons CH4 /BBtu) | F81: (metric tons CH4) | J81: (MMTCE) | L81: (MMTCO2E)
A82: Coal | B82: ='Commercial N2O'!B82 ->  | C82: x | D82: =CoalCEFcom -> 0 | E82: = | F82: =B82*D82 ->  | G82: x | H82: =GWPCH4 -> 28 | I82: = | J82: =F82*H82*CO2_C/(10^6) ->  | K82: = | L82: =J82/CO2_C -> 
A83: Distillate Fuel | B83: ='Commercial N2O'!B83 ->  | C83: x | D83: =DistillCEFcom -> 0 | E83: = | F83: =B83*D83 ->  | G83: x | H83: =GWPCH4 -> 28 | I83: = | J83: =F83*H83*CO2_C/(10^6) ->  | K83: =
A84: Kerosene | B84: ='Commercial N2O'!B84 ->  | C84: x | D84: =KeroCEFcom -> 0 | E84: = | G84: x | H84: 28 | I84: = | K84: =
A85: Hydrocarbon Gas Liquids | B85: ='Commercial N2O'!B85 ->  | C85: x | D85: =LPGCEFcom -> 0 | E85: = | G85: x | H85: 28 | I85: = | K85: =
A86: Motor Gasoline | B86: ='Commercial N2O'!B86 ->  | C86: x | D86: =MotorGasCEFcom -> 0 | E86: = | G86: x | H86: 28 | I86: = | K86: =
A87: Residual Fuel | B87: ='Commercial N2O'!B87 ->  | C87: x | D87: =ResidCEFcom -> 0 | E87: = | G87: x | H87: 28 | I87: = | K87: =
A88: Natural Gas | B88: ='Commercial N2O'!B88 ->  | C88: x | D88: =NatGasCEFcom -> 0 | E88: = | G88: x | H88: 28 | I88: = | K88: =
A89: Wood | B89: ='Commercial N2O'!B89 ->  | C89: x | D89: =WoodCEFcom -> 0 | E89: = | G89: x | H89: 28 | I89: = | K89: =
A90: Other | B90: ='Commercial N2O'!B90 -> 0 | C90: x | D90: =OtherCEFcom -> 0 | E90: = | F90: 0 | G90: x | H90: 28 | I90: = | J90: 0 | K90: = | L90: 0
H91: Total | I91: = | J91: =SUM(J82:J90) ->  | K91: =
A93: Commercial Sector CH4 | D93: =D78+1 -> 1996
B95: Consumption | D95: Emission Factor | F95: Emissions | H95: GWP | J95: Emissions | L95: Emissions
A96: Fuel Type | B96: (Billion Btu) | D96: (metric tons CH4 /BBtu) | F96: (metric tons CH4) | J96: (MMTCE) | L96: (MMTCO2E)
A97: Coal | B97: ='Commercial N2O'!B97 ->  | C97: x | D97: =CoalCEFcom -> 0 | E97: = | F97: =B97*D97 ->  | G97: x | H97: =GWPCH4 -> 28 | I97: = | J97: =F97*H97*CO2_C/(10^6) ->  | K97: = | L97: =J97/CO2_C -> 
A98: Distillate Fuel | B98: ='Commercial N2O'!B98 ->  | C98: x | D98: =DistillCEFcom -> 0 | E98: = | F98: =B98*D98 ->  | G98: x | H98: =GWPCH4 -> 28 | I98: = | J98: =F98*H98*CO2_C/(10^6) ->  | K98: =
A99: Kerosene | B99: ='Commercial N2O'!B99 ->  | C99: x | D99: =KeroCEFcom -> 0 | E99: = | G99: x | H99: 28 | I99: = | K99: =
A100: Hydrocarbon Gas Liquids | B100: ='Commercial N2O'!B100 ->  | C100: x | D100: =LPGCEFcom -> 0 | E100: = | G100: x | H100: 28 | I100: = | K100: =
A101: Motor Gasoline | B101: ='Commercial N2O'!B101 ->  | C101: x | D101: =MotorGasCEFcom -> 0 | E101: = | G101: x | H101: 28 | I101: = | K101: =
A102: Residual Fuel | B102: ='Commercial N2O'!B102 ->  | C102: x | D102: =ResidCEFcom -> 0 | E102: = | G102: x | H102: 28 | I102: = | K102: =
A103: Natural Gas | B103: ='Commercial N2O'!B103 ->  | C103: x | D103: =NatGasCEFcom -> 0 | E103: = | G103: x | H103: 28 | I103: = | K103: =
A104: Wood | B104: ='Commercial N2O'!B104 ->  | C104: x | D104: =WoodCEFcom -> 0 | E104: = | G104: x | H104: 28 | I104: = | K104: =
A105: Other | B105: ='Commercial N2O'!B105 -> 0 | C105: x | D105: =OtherCEFcom -> 0 | E105: = | F105: 0 | G105: x | H105: 28 | I105: = | J105: 0 | K105: = | L105: 0
H106: Total | I106: = | J106: =SUM(J97:J105) ->  | K106: =
A108: Commercial Sector CH4 | D108: =D93+1 -> 1997
B110: Consumption | D110: Emission Factor | F110: Emissions | H110: GWP | J110: Emissions | L110: Emissions
A111: Fuel Type | B111: (Billion Btu) | D111: (metric tons CH4 /BBtu) | F111: (metric tons CH4) | J111: (MMTCE) | L111: (MMTCO2E)
A112: Coal | B112: ='Commercial N2O'!B112 ->  | C112: x | D112: =CoalCEFcom -> 0 | E112: = | F112: =B112*D112 ->  | G112: x | H112: =GWPCH4 -> 28 | I112: = | J112: =F112*H112*CO2_C/(10^6) ->  | K112: = | L112: =J112/CO2_C -> 
A113: Distillate Fuel | B113: ='Commercial N2O'!B113 ->  | C113: x | D113: =DistillCEFcom -> 0 | E113: = | F113: =B113*D113 ->  | G113: x | H113: =GWPCH4 -> 28 | I113: = | J113: =F113*H113*CO2_C/(10^6) ->  | K113: =
A114: Kerosene | B114: ='Commercial N2O'!B114 ->  | C114: x | D114: =KeroCEFcom -> 0 | E114: = | G114: x | H114: 28 | I114: = | K114: =
A115: Hydrocarbon Gas Liquids | B115: ='Commercial N2O'!B115 ->  | C115: x | D115: =LPGCEFcom -> 0 | E115: = | G115: x | H115: 28 | I115: = | K115: =
A116: Motor Gasoline | B116: ='Commercial N2O'!B116 ->  | C116: x | D116: =MotorGasCEFcom -> 0 | E116: = | G116: x | H116: 28 | I116: = | K116: =
A117: Residual Fuel | B117: ='Commercial N2O'!B117 ->  | C117: x | D117: =ResidCEFcom -> 0 | E117: = | G117: x | H117: 28 | I117: = | K117: =
A118: Natural Gas | B118: ='Commercial N2O'!B118 ->  | C118: x | D118: =NatGasCEFcom -> 0 | E118: = | G118: x | H118: 28 | I118: = | K118: =
A119: Wood | B119: ='Commercial N2O'!B119 ->  | C119: x | D119: =WoodCEFcom -> 0 | E119: = | G119: x | H119: 28 | I119: = | K119: =
A120: Other | B120: ='Commercial N2O'!B120 -> 0 | C120: x | D120: =OtherCEFcom -> 0 | E120: = | F120: 0 | G120: x | H120: 28 | I120: = | J120: 0 | K120: = | L120: 0
H121: Total | I121: = | J121: =SUM(J112:J120) ->  | K121: =
A123: Commercial Sector CH4 | D123: =D108+1 -> 1998
B125: Consumption | D125: Emission Factor | F125: Emissions | H125: GWP | J125: Emissions | L125: Emissions
A126: Fuel Type | B126: (Billion Btu) | D126: (metric tons CH4 /BBtu) | F126: (metric tons CH4) | J126: (MMTCE) | L126: (MMTCO2E)
A127: Coal | B127: ='Commercial N2O'!B127 ->  | C127: x | D127: =CoalCEFcom -> 0 | E127: = | F127: =B127*D127 ->  | G127: x | H127: =GWPCH4 -> 28 | I127: = | J127: =F127*H127*CO2_C/(10^6) ->  | K127: = | L127: =J127/CO2_C -> 
A128: Distillate Fuel | B128: ='Commercial N2O'!B128 ->  | C128: x | D128: =DistillCEFcom -> 0 | E128: = | F128: =B128*D128 ->  | G128: x | H128: =GWPCH4 -> 28 | I128: = | J128: =F128*H128*CO2_C/(10^6) ->  | K128: =
A129: Kerosene | B129: ='Commercial N2O'!B129 ->  | C129: x | D129: =KeroCEFcom -> 0 | E129: = | G129: x | H129: 28 | I129: = | K129: =
A130: Hydrocarbon Gas Liquids | B130: ='Commercial N2O'!B130 ->  | C130: x | D130: =LPGCEFcom -> 0 | E130: = | G130: x | H130: 28 | I130: = | K130: =
A131: Motor Gasoline | B131: ='Commercial N2O'!B131 ->  | C131: x | D131: =MotorGasCEFcom -> 0 | E131: = | G131: x | H131: 28 | I131: = | K131: =
A132: Residual Fuel | B132: ='Commercial N2O'!B132 ->  | C132: x | D132: =ResidCEFcom -> 0 | E132: = | G132: x | H132: 28 | I132: = | K132: =
A133: Natural Gas | B133: ='Commercial N2O'!B133 ->  | C133: x | D133: =NatGasCEFcom -> 0 | E133: = | G133: x | H133: 28 | I133: = | K133: =
A134: Wood | B134: ='Commercial N2O'!B134 ->  | C134: x | D134: =WoodCEFcom -> 0 | E134: = | G134: x | H134: 28 | I134: = | K134: =
A135: Other | B135: ='Commercial N2O'!B135 -> 0 | C135: x | D135: =OtherCEFcom -> 0 | E135: = | F135: 0 | G135: x | H135: 28 | I135: = | J135: 0 | K135: = | L135: 0
H136: Total | I136: = | J136: =SUM(J127:J135) ->  | K136: =
A138: Commercial Sector CH4 | D138: =D123+1 -> 1999
B140: Consumption | D140: Emission Factor | F140: Emissions | H140: GWP | J140: Emissions | L140: Emissions
A141: Fuel Type | B141: (Billion Btu) | D141: (metric tons CH4 /BBtu) | F141: (metric tons CH4) | J141: (MMTCE) | L141: (MMTCO2E)
A142: Coal | B142: ='Commercial N2O'!B142 ->  | C142: x | D142: =CoalCEFcom -> 0 | E142: = | F142: =B142*D142 ->  | G142: x | H142: =GWPCH4 -> 28 | I142: = | J142: =F142*H142*CO2_C/(10^6) ->  | K142: = | L142: =J142/CO2_C -> 
A143: Distillate Fuel | B143: ='Commercial N2O'!B143 ->  | C143: x | D143: =DistillCEFcom -> 0 | E143: = | F143: =B143*D143 ->  | G143: x | H143: =GWPCH4 -> 28 | I143: = | J143: =F143*H143*CO2_C/(10^6) ->  | K143: =
A144: Kerosene | B144: ='Commercial N2O'!B144 ->  | C144: x | D144: =KeroCEFcom -> 0 | E144: = | G144: x | H144: 28 | I144: = | K144: =
A145: Hydrocarbon Gas Liquids | B145: ='Commercial N2O'!B145 ->  | C145: x | D145: =LPGCEFcom -> 0 | E145: = | G145: x | H145: 28 | I145: = | K145: =
A146: Motor Gasoline | B146: ='Commercial N2O'!B146 ->  | C146: x | D146: =MotorGasCEFcom -> 0 | E146: = | G146: x | H146: 28 | I146: = | K146: =
A147: Residual Fuel | B147: ='Commercial N2O'!B147 ->  | C147: x | D147: =ResidCEFcom -> 0 | E147: = | G147: x | H147: 28 | I147: = | K147: =
A148: Natural Gas | B148: ='Commercial N2O'!B148 ->  | C148: x | D148: =NatGasCEFcom -> 0 | E148: = | G148: x | H148: 28 | I148: = | K148: =
A149: Wood | B149: ='Commercial N2O'!B149 ->  | C149: x | D149: =WoodCEFcom -> 0 | E149: = | G149: x | H149: 28 | I149: = | K149: =
A150: Other | B150: ='Commercial N2O'!B150 -> 0 | C150: x | D150: =OtherCEFcom -> 0 | E150: = | F150: 0 | G150: x | H150: 28 | I150: = | J150: 0 | K150: = | L150: 0
H151: Total | I151: = | J151: =SUM(J142:J150) ->  | K151: =
A153: Commercial Sector CH4 | D153: =D138+1 -> 2000
B155: Consumption | D155: Emission Factor | F155: Emissions | H155: GWP | J155: Emissions | L155: Emissions
A156: Fuel Type | B156: (Billion Btu) | D156: (metric tons CH4 /BBtu) | F156: (metric tons CH4) | J156: (MMTCE) | L156: (MMTCO2E)
A157: Coal | B157: ='Commercial N2O'!B157 ->  | C157: x | D157: =CoalCEFcom -> 0 | E157: = | F157: =B157*D157 ->  | G157: x | H157: =GWPCH4 -> 28 | I157: = | J157: =F157*H157*CO2_C/(10^6) ->  | K157: = | L157: =J157/CO2_C -> 
A158: Distillate Fuel | B158: ='Commercial N2O'!B158 ->  | C158: x | D158: =DistillCEFcom -> 0 | E158: = | F158: =B158*D158 ->  | G158: x | H158: =GWPCH4 -> 28 | I158: = | J158: =F158*H158*CO2_C/(10^6) ->  | K158: =
A159: Kerosene | B159: ='Commercial N2O'!B159 ->  | C159: x | D159: =KeroCEFcom -> 0 | E159: = | G159: x | H159: 28 | I159: = | K159: =
A160: Hydrocarbon Gas Liquids | B160: ='Commercial N2O'!B160 ->  | C160: x | D160: =LPGCEFcom -> 0 | E160: = | G160: x | H160: 28 | I160: = | K160: =
A161: Motor Gasoline | B161: ='Commercial N2O'!B161 ->  | C161: x | D161: =MotorGasCEFcom -> 0 | E161: = | G161: x | H161: 28 | I161: = | K161: =
A162: Residual Fuel | B162: ='Commercial N2O'!B162 ->  | C162: x | D162: =ResidCEFcom -> 0 | E162: = | G162: x | H162: 28 | I162: = | K162: =
A163: Natural Gas | B163: ='Commercial N2O'!B163 ->  | C163: x | D163: =NatGasCEFcom -> 0 | E163: = | G163: x | H163: 28 | I163: = | K163: =
A164: Wood | B164: ='Commercial N2O'!B164 ->  | C164: x | D164: =WoodCEFcom -> 0 | E164: = | G164: x | H164: 28 | I164: = | K164: =
A165: Other | B165: ='Commercial N2O'!B165 -> 0 | C165: x | D165: =OtherCEFcom -> 0 | E165: = | F165: 0 | G165: x | H165: 28 | I165: = | J165: 0 | K165: = | L165: 0
H166: Total | I166: = | J166: =SUM(J157:J165) ->  | K166: =
A168: Commercial Sector CH4 | D168: =D153+1 -> 2001
B170: Consumption | D170: Emission Factor | F170: Emissions | H170: GWP | J170: Emissions | L170: Emissions
A171: Fuel Type | B171: (Billion Btu) | D171: (metric tons CH4 /BBtu) | F171: (metric tons CH4) | J171: (MMTCE) | L171: (MMTCO2E)
A172: Coal | B172: ='Commercial N2O'!B172 ->  | C172: x | D172: =CoalCEFcom -> 0 | E172: = | F172: =B172*D172 ->  | G172: x | H172: =GWPCH4 -> 28 | I172: = | J172: =F172*H172*CO2_C/(10^6) ->  | K172: = | L172: =J172/CO2_C -> 
A173: Distillate Fuel | B173: ='Commercial N2O'!B173 ->  | C173: x | D173: =DistillCEFcom -> 0 | E173: = | F173: =B173*D173 ->  | G173: x | H173: =GWPCH4 -> 28 | I173: = | J173: =F173*H173*CO2_C/(10^6) ->  | K173: =
A174: Kerosene | B174: ='Commercial N2O'!B174 ->  | C174: x | D174: =KeroCEFcom -> 0 | E174: = | G174: x | H174: 28 | I174: = | K174: =
A175: Hydrocarbon Gas Liquids | B175: ='Commercial N2O'!B175 ->  | C175: x | D175: =LPGCEFcom -> 0 | E175: = | G175: x | H175: 28 | I175: = | K175: =
A176: Motor Gasoline | B176: ='Commercial N2O'!B176 ->  | C176: x | D176: =MotorGasCEFcom -> 0 | E176: = | G176: x | H176: 28 | I176: = | K176: =
A177: Residual Fuel | B177: ='Commercial N2O'!B177 ->  | C177: x | D177: =ResidCEFcom -> 0 | E177: = | G177: x | H177: 28 | I177: = | K177: =
A178: Natural Gas | B178: ='Commercial N2O'!B178 ->  | C178: x | D178: =NatGasCEFcom -> 0 | E178: = | G178: x | H178: 28 | I178: = | K178: =
A179: Wood | B179: ='Commercial N2O'!B179 ->  | C179: x | D179: =WoodCEFcom -> 0 | E179: = | G179: x | H179: 28 | I179: = | K179: =
A180: Other | B180: ='Commercial N2O'!B180 -> 0 | C180: x | D180: =OtherCEFcom -> 0 | E180: = | F180: 0 | G180: x | H180: 28 | I180: = | J180: 0 | K180: = | L180: 0
H181: Total | I181: = | J181: =SUM(J172:J180) ->  | K181: =
A183: Commercial Sector CH4 | D183: =D168+1 -> 2002
B185: Consumption | D185: Emission Factor | F185: Emissions | H185: GWP | J185: Emissions | L185: Emissions
A186: Fuel Type | B186: (Billion Btu) | D186: (metric tons CH4 /BBtu) | F186: (metric tons CH4) | J186: (MMTCE) | L186: (MMTCO2E)
A187: Coal | B187: ='Commercial N2O'!B187 ->  | C187: x | D187: =CoalCEFcom -> 0 | E187: = | F187: =B187*D187 ->  | G187: x | H187: =GWPCH4 -> 28 | I187: = | J187: =F187*H187*CO2_C/(10^6) ->  | K187: = | L187: =J187/CO2_C -> 
A188: Distillate Fuel | B188: ='Commercial N2O'!B188 ->  | C188: x | D188: =DistillCEFcom -> 0 | E188: = | F188: =B188*D188 ->  | G188: x | H188: =GWPCH4 -> 28 | I188: = | J188: =F188*H188*CO2_C/(10^6) ->  | K188: =
A189: Kerosene | B189: ='Commercial N2O'!B189 ->  | C189: x | D189: =KeroCEFcom -> 0 | E189: = | G189: x | H189: 28 | I189: = | K189: =
A190: Hydrocarbon Gas Liquids | B190: ='Commercial N2O'!B190 ->  | C190: x | D190: =LPGCEFcom -> 0 | E190: = | G190: x | H190: 28 | I190: = | K190: =
A191: Motor Gasoline | B191: ='Commercial N2O'!B191 ->  | C191: x | D191: =MotorGasCEFcom -> 0 | E191: = | G191: x | H191: 28 | I191: = | K191: =
A192: Residual Fuel | B192: ='Commercial N2O'!B192 ->  | C192: x | D192: =ResidCEFcom -> 0 | E192: = | G192: x | H192: 28 | I192: = | K192: =
A193: Natural Gas | B193: ='Commercial N2O'!B193 ->  | C193: x | D193: =NatGasCEFcom -> 0 | E193: = | G193: x | H193: 28 | I193: = | K193: =
A194: Wood | B194: ='Commercial N2O'!B194 ->  | C194: x | D194: =WoodCEFcom -> 0 | E194: = | G194: x | H194: 28 | I194: = | K194: =
A195: Other | B195: ='Commercial N2O'!B195 -> 0 | C195: x | D195: =OtherCEFcom -> 0 | E195: = | F195: 0 | G195: x | H195: 28 | I195: = | J195: 0 | K195: = | L195: 0
H196: Total | I196: = | J196: =SUM(J187:J195) ->  | K196: =
A198: Commercial Sector CH4 | D198: =D183+1 -> 2003
B200: Consumption | D200: Emission Factor | F200: Emissions | H200: GWP | J200: Emissions | L200: Emissions
A201: Fuel Type | B201: (Billion Btu) | D201: (metric tons CH4 /BBtu) | F201: (metric tons CH4) | J201: (MMTCE) | L201: (MMTCO2E)
A202: Coal | B202: ='Commercial N2O'!B202 ->  | C202: x | D202: =CoalCEFcom -> 0 | E202: = | F202: =B202*D202 ->  | G202: x | H202: =GWPCH4 -> 28 | I202: = | J202: =F202*H202*CO2_C/(10^6) ->  | K202: = | L202: =J202/CO2_C -> 
A203: Distillate Fuel | B203: ='Commercial N2O'!B203 ->  | C203: x | D203: =DistillCEFcom -> 0 | E203: = | F203: =B203*D203 ->  | G203: x | H203: =GWPCH4 -> 28 | I203: = | J203: =F203*H203*CO2_C/(10^6) ->  | K203: =
A204: Kerosene | B204: ='Commercial N2O'!B204 ->  | C204: x | D204: =KeroCEFcom -> 0 | E204: = | G204: x | H204: 28 | I204: = | K204: =
A205: Hydrocarbon Gas Liquids | B205: ='Commercial N2O'!B205 ->  | C205: x | D205: =LPGCEFcom -> 0 | E205: = | G205: x | H205: 28 | I205: = | K205: =
A206: Motor Gasoline | B206: ='Commercial N2O'!B206 ->  | C206: x | D206: =MotorGasCEFcom -> 0 | E206: = | G206: x | H206: 28 | I206: = | K206: =
A207: Residual Fuel | B207: ='Commercial N2O'!B207 ->  | C207: x | D207: =ResidCEFcom -> 0 | E207: = | G207: x | H207: 28 | I207: = | K207: =
A208: Natural Gas | B208: ='Commercial N2O'!B208 ->  | C208: x | D208: =NatGasCEFcom -> 0 | E208: = | G208: x | H208: 28 | I208: = | K208: =
A209: Wood | B209: ='Commercial N2O'!B209 ->  | C209: x | D209: =WoodCEFcom -> 0 | E209: = | G209: x | H209: 28 | I209: = | K209: =
A210: Other | B210: ='Commercial N2O'!B210 -> 0 | C210: x | D210: =OtherCEFcom -> 0 | E210: = | F210: 0 | G210: x | H210: 28 | I210: = | J210: 0 | K210: = | L210: 0
H211: Total | I211: = | J211: =SUM(J202:J210) ->  | K211: =
A213: Commercial Sector CH4 | D213: =D198+1 -> 2004
B215: Consumption | D215: Emission Factor | F215: Emissions | H215: GWP | J215: Emissions | L215: Emissions
A216: Fuel Type | B216: (Billion Btu) | D216: (metric tons CH4 /BBtu) | F216: (metric tons CH4) | J216: (MMTCE) | L216: (MMTCO2E)
A217: Coal | B217: ='Commercial N2O'!B217 ->  | C217: x | D217: =CoalCEFcom -> 0 | E217: = | F217: =B217*D217 ->  | G217: x | H217: =GWPCH4 -> 28 | I217: = | J217: =F217*H217*CO2_C/(10^6) ->  | K217: = | L217: =J217/CO2_C -> 
A218: Distillate Fuel | B218: ='Commercial N2O'!B218 ->  | C218: x | D218: =DistillCEFcom -> 0 | E218: = | F218: =B218*D218 ->  | G218: x | H218: =GWPCH4 -> 28 | I218: = | J218: =F218*H218*CO2_C/(10^6) ->  | K218: =
A219: Kerosene | B219: ='Commercial N2O'!B219 ->  | C219: x | D219: =KeroCEFcom -> 0 | E219: = | G219: x | H219: 28 | I219: = | K219: =
A220: Hydrocarbon Gas Liquids | B220: ='Commercial N2O'!B220 ->  | C220: x | D220: =LPGCEFcom -> 0 | E220: = | G220: x | H220: 28 | I220: = | K220: =
A221: Motor Gasoline | B221: ='Commercial N2O'!B221 ->  | C221: x | D221: =MotorGasCEFcom -> 0 | E221: = | G221: x | H221: 28 | I221: = | K221: =
A222: Residual Fuel | B222: ='Commercial N2O'!B222 ->  | C222: x | D222: =ResidCEFcom -> 0 | E222: = | G222: x | H222: 28 | I222: = | K222: =
A223: Natural Gas | B223: ='Commercial N2O'!B223 ->  | C223: x | D223: =NatGasCEFcom -> 0 | E223: = | G223: x | H223: 28 | I223: = | K223: =
A224: Wood | B224: ='Commercial N2O'!B224 ->  | C224: x | D224: =WoodCEFcom -> 0 | E224: = | G224: x | H224: 28 | I224: = | K224: =
A225: Other | B225: ='Commercial N2O'!B225 -> 0 | C225: x | D225: =OtherCEFcom -> 0 | E225: = | F225: 0 | G225: x | H225: 28 | I225: = | J225: 0 | K225: = | L225: 0
H226: Total | I226: = | J226: =SUM(J217:J225) ->  | K226: =
A228: Commercial Sector CH4 | D228: =D213+1 -> 2005
B230: Consumption | D230: Emission Factor | F230: Emissions | H230: GWP | J230: Emissions | L230: Emissions
A231: Fuel Type | B231: (Billion Btu) | D231: (metric tons CH4 /BBtu) | F231: (metric tons CH4) | J231: (MMTCE) | L231: (MMTCO2E)
... 270 more rows

Sheet Electric Power N2O
A1: ="4. Electric Power Sector Consumption and N2O emissions in "&Constants!G2 -> 4. Electric Power Sector Consumption and N2O emissions in Select a State . . .
A2: =Constants!H2 -> xx | B2: Electric Power | C2: =" " -> 
A3: Electric Power Sector N2O | D3: 1990
B5: Consumption | D5: Emission Factor | F5: Emissions | H5: GWP | J5: Emissions | L5: Emissions
A6: Fuel Type | B6: (Billion Btu) | D6: (metric tons N2O/BBtu) | F6: (metric tons N2O) | J6: (MMTCE) | L6: (MMTCO2E)
A7: Coal | B7: =VLOOKUP($A$2&$C$2&$B$2&$C$2&$A7,ConsumeBlock3,3,FALSE) ->  | C7: x | D7: =CoalNEFutil -> 0 | E7: = | F7: =B7*D7 ->  | G7: x | H7: =GWPN2O -> 265 | I7: = | J7: =F7*H7*CO2_C/(10^6) ->  | K7: = | L7: =J7/CO2_C -> 
A8: Distillate Fuel | C8: x | D8: =DistillNEFutil -> 0 | E8: = | F8: =B8*D8 ->  | G8: x | H8: 265 | I8: = | J8: =F8*H8*CO2_C/(10^6) ->  | K8: =
A9: Petroleum Coke | C9: x | D9: =PetCokeNEFutil -> 0 | E9: = | G9: x | H9: 265 | I9: = | K9: =
A10: Residual Fuel | C10: x | D10: =ResidNEFutil -> 0 | E10: = | G10: x | H10: 265 | I10: = | K10: =
A11: Natural Gas | C11: x | D11: =NatGasNEFutil -> 0 | E11: = | G11: x | H11: 265 | I11: = | K11: =
A12: Wood | C12: x | D12: =WoodNEFutil -> 0 | E12: = | G12: x | H12: 265 | I12: = | J12: =F12*H12*CO2_C/(10^6) ->  | K12: =
A13: Other | B13: =VLOOKUP($A$2&$C$2&$B$2&$C$2&$A13,ConsumeBlock3,D3-1987,FALSE) -> 0 | C13: x | D13: =OtherNEFutil -> 0 | E13: = | F13: 0 | G13: x | H13: 265 | I13: = | J13: 0 | K13: = | L13: 0
H14: Total | I14: = | J14: =SUM(J7:J13) ->  | K14: =
A16: Electric Power Sector N2O | D16: =D3+1 -> 1991
B18: Consumption | D18: Emission Factor | F18: Emissions | H18: GWP | J18: Emissions | L18: Emissions
A19: Fuel Type | B19: (Billion Btu) | D19: (metric tons N2O/BBtu) | F19: (metric tons N2O) | J19: (MMTCE) | L19: (MMTCO2E)
A20: Coal | B20: =VLOOKUP($A$2&$C$2&$B$2&$C$2&$A20,ConsumeBlock3,4,FALSE) ->  | C20: x | D20: =CoalNEFutil -> 0 | E20: = | F20: =B20*D20 ->  | G20: x | H20: =GWPN2O -> 265 | I20: = | J20: =F20*H20*CO2_C/(10^6) ->  | K20: = | L20: =J20/CO2_C -> 
A21: Distillate Fuel | C21: x | D21: =DistillNEFutil -> 0 | E21: = | F21: =B21*D21 ->  | G21: x | H21: 265 | I21: = | K21: =
A22: Petroleum Coke | C22: x | D22: =PetCokeNEFutil -> 0 | E22: = | G22: x | H22: 265 | I22: = | K22: =
A23: Residual Fuel | C23: x | D23: =ResidNEFutil -> 0 | E23: = | G23: x | H23: 265 | I23: = | K23: =
A24: Natural Gas | C24: x | D24: =NatGasNEFutil -> 0 | E24: = | G24: x | H24: 265 | I24: = | K24: =
A25: Wood | C25: x | D25: =WoodNEFutil -> 0 | E25: = | G25: x | H25: 265 | I25: = | K25: =
A26: Other | B26: =VLOOKUP($A$2&$C$2&$B$2&$C$2&$A26,ConsumeBlock3,D16-1987,FALSE) -> 0 | C26: x | D26: =OtherNEFutil -> 0 | E26: = | F26: 0 | G26: x | H26: 265 | I26: = | J26: 0 | K26: = | L26: 0
H27: Total | I27: = | J27: =SUM(J20:J26) ->  | K27: =
A29: Electric Power Sector N2O | D29: =D16+1 -> 1992
B31: Consumption | D31: Emission Factor | F31: Emissions | H31: GWP | J31: Emissions | L31: Emissions
A32: Fuel Type | B32: (Billion Btu) | D32: (metric tons N2O/BBtu) | F32: (metric tons N2O) | J32: (MMTCE) | L32: (MMTCO2E)
A33: Coal | B33: =VLOOKUP($A$2&$C$2&$B$2&$C$2&$A33,ConsumeBlock3,5,FALSE) ->  | C33: x | D33: =CoalNEFutil -> 0 | E33: = | F33: =B33*D33 ->  | G33: x | H33: =GWPN2O -> 265 | I33: = | J33: =F33*H33*CO2_C/(10^6) ->  | K33: = | L33: =J33/CO2_C -> 
A34: Distillate Fuel | C34: x | D34: =DistillNEFutil -> 0 | E34: = | F34: =B34*D34 ->  | G34: x | H34: 265 | I34: = | K34: =
A35: Petroleum Coke | C35: x | D35: =PetCokeNEFutil -> 0 | E35: = | G35: x | H35: 265 | I35: = | K35: =
A36: Residual Fuel | C36: x | D36: =ResidNEFutil -> 0 | E36: = | G36: x | H36: 265 | I36: = | K36: =
A37: Natural Gas | C37: x | D37: =NatGasNEFutil -> 0 | E37: = | G37: x | H37: 265 | I37: = | K37: =
A38: Wood | C38: x | D38: =WoodNEFutil -> 0 | E38: = | G38: x | H38: 265 | I38: = | K38: =
A39: Other | B39: =VLOOKUP($A$2&$C$2&$B$2&$C$2&$A39,ConsumeBlock3,D29-1987,FALSE) -> 0 | C39: x | D39: =OtherNEFutil -> 0 | E39: = | F39: 0 | G39: x | H39: 265 | I39: = | J39: 0 | K39: = | L39: 0
H40: Total | I40: = | J40: =SUM(J33:J39) ->  | K40: =
A42: Electric Power Sector N2O | D42: =D29+1 -> 1993
B44: Consumption | D44: Emission Factor | F44: Emissions | H44: GWP | J44: Emissions | L44: Emissions
A45: Fuel Type | B45: (Billion Btu) | D45: (metric tons N2O/BBtu) | F45: (metric tons N2O) | J45: (MMTCE) | L45: (MMTCO2E)
A46: Coal | B46: =VLOOKUP($A$2&$C$2&$B$2&$C$2&$A46,ConsumeBlock3,6,FALSE) ->  | C46: x | D46: =CoalNEFutil -> 0 | E46: = | F46: =B46*D46 ->  | G46: x | H46: =GWPN2O -> 265 | I46: = | J46: =F46*H46*CO2_C/(10^6) ->  | K46: = | L46: =J46/CO2_C -> 
A47: Distillate Fuel | C47: x | D47: =DistillNEFutil -> 0 | E47: = | F47: =B47*D47 ->  | G47: x | H47: 265 | I47: = | K47: =
A48: Petroleum Coke | C48: x | D48: =PetCokeNEFutil -> 0 | E48: = | G48: x | H48: 265 | I48: = | K48: =
A49: Residual Fuel | C49: x | D49: =ResidNEFutil -> 0 | E49: = | G49: x | H49: 265 | I49: = | K49: =
A50: Natural Gas | C50: x | D50: =NatGasNEFutil -> 0 | E50: = | G50: x | H50: 265 | I50: = | K50: =
A51: Wood | C51: x | D51: =WoodNEFutil -> 0 | E51: = | G51: x | H51: 265 | I51: = | K51: =
A52: Other | B52: =VLOOKUP($A$2&$C$2&$B$2&$C$2&$A52,ConsumeBlock3,D42-1987,FALSE) -> 0 | C52: x | D52: =OtherNEFutil -> 0 | E52: = | F52: 0 | G52: x | H52: 265 | I52: = | J52: 0 | K52: = | L52: 0
H53: Total | I53: = | J53: =SUM(J46:J52) ->  | K53: =
A55: Electric Power Sector N2O | D55: =D42+1 -> 1994
B57: Consumption | D57: Emission Factor | F57: Emissions | H57: GWP | J57: Emissions | L57: Emissions
A58: Fuel Type | B58: (Billion Btu) | D58: (metric tons N2O/BBtu) | F58: (metric tons N2O) | J58: (MMTCE) | L58: (MMTCO2E)
A59: Coal | B59: =VLOOKUP($A$2&$C$2&$B$2&$C$2&$A59,ConsumeBlock3,7,FALSE) ->  | C59: x | D59: =CoalNEFutil -> 0 | E59: = | F59: =B59*D59 ->  | G59: x | H59: =GWPN2O -> 265 | I59: = | J59: =F59*H59*CO2_C/(10^6) ->  | K59: = | L59: =J59/CO2_C -> 
A60: Distillate Fuel | C60: x | D60: =DistillNEFutil -> 0 | E60: = | F60: =B60*D60 ->  | G60: x | H60: 265 | I60: = | K60: =
A61: Petroleum Coke | C61: x | D61: =PetCokeNEFutil -> 0 | E61: = | G61: x | H61: 265 | I61: = | K61: =
A62: Residual Fuel | C62: x | D62: =ResidNEFutil -> 0 | E62: = | G62: x | H62: 265 | I62: = | K62: =
A63: Natural Gas | C63: x | D63: =NatGasNEFutil -> 0 | E63: = | G63: x | H63: 265 | I63: = | K63: =
A64: Wood | C64: x | D64: =WoodNEFutil -> 0 | E64: = | G64: x | H64: 265 | I64: = | K64: =
A65: Other | B65: =VLOOKUP($A$2&$C$2&$B$2&$C$2&$A65,ConsumeBlock3,D55-1987,FALSE) -> 0 | C65: x | D65: =OtherNEFutil -> 0 | E65: = | F65: 0 | G65: x | H65: 265 | I65: = | J65: 0 | K65: = | L65: 0
H66: Total | I66: = | J66: =SUM(J59:J65) ->  | K66: =
A68: Electric Power Sector N2O | D68: =D55+1 -> 1995
B70: Consumption | D70: Emission Factor | F70: Emissions | H70: GWP | J70: Emissions | L70: Emissions
A71: Fuel Type | B71: (Billion Btu) | D71: (metric tons N2O/BBtu) | F71: (metric tons N2O) | J71: (MMTCE) | L71: (MMTCO2E)
A72: Coal | B72: =VLOOKUP($A$2&$C$2&$B$2&$C$2&$A72,ConsumeBlock3,8,FALSE) ->  | C72: x | D72: =CoalNEFutil -> 0 | E72: = | F72: =B72*D72 ->  | G72: x | H72: =GWPN2O -> 265 | I72: = | J72: =F72*H72*CO2_C/(10^6) ->  | K72: = | L72: =J72/CO2_C -> 
A73: Distillate Fuel | C73: x | D73: =DistillNEFutil -> 0 | E73: = | F73: =B73*D73 ->  | G73: x | H73: 265 | I73: = | K73: =
A74: Petroleum Coke | C74: x | D74: =PetCokeNEFutil -> 0 | E74: = | G74: x | H74: 265 | I74: = | K74: =
A75: Residual Fuel | C75: x | D75: =ResidNEFutil -> 0 | E75: = | G75: x | H75: 265 | I75: = | K75: =
A76: Natural Gas | C76: x | D76: =NatGasNEFutil -> 0 | E76: = | G76: x | H76: 265 | I76: = | K76: =
A77: Wood | C77: x | D77: =WoodNEFutil -> 0 | E77: = | G77: x | H77: 265 | I77: = | K77: =
A78: Other | B78: =VLOOKUP($A$2&$C$2&$B$2&$C$2&$A78,ConsumeBlock3,D68-1987,FALSE) -> 0 | C78: x | D78: =OtherNEFutil -> 0 | E78: = | F78: 0 | G78: x | H78: 265 | I78: = | J78: 0 | K78: = | L78: 0
H79: Total | I79: = | J79: =SUM(J72:J78) ->  | K79: =
A81: Electric Power Sector N2O | D81: =D68+1 -> 1996
B83: Consumption | D83: Emission Factor | F83: Emissions | H83: GWP | J83: Emissions | L83: Emissions
A84: Fuel Type | B84: (Billion Btu) | D84: (metric tons N2O/BBtu) | F84: (metric tons N2O) | J84: (MMTCE) | L84: (MMTCO2E)
A85: Coal | B85: =VLOOKUP($A$2&$C$2&$B$2&$C$2&$A85,ConsumeBlock3,9,FALSE) ->  | C85: x | D85: =CoalNEFutil -> 0 | E85: = | F85: =B85*D85 ->  | G85: x | H85: =GWPN2O -> 265 | I85: = | J85: =F85*H85*CO2_C/(10^6) ->  | K85: = | L85: =J85/CO2_C -> 
A86: Distillate Fuel | C86: x | D86: =DistillNEFutil -> 0 | E86: = | F86: =B86*D86 ->  | G86: x | H86: 265 | I86: = | K86: =
A87: Petroleum Coke | C87: x | D87: =PetCokeNEFutil -> 0 | E87: = | G87: x | H87: 265 | I87: = | K87: =
A88: Residual Fuel | C88: x | D88: =ResidNEFutil -> 0 | E88: = | G88: x | H88: 265 | I88: = | K88: =
A89: Natural Gas | C89: x | D89: =NatGasNEFutil -> 0 | E89: = | G89: x | H89: 265 | I89: = | K89: =
A90: Wood | C90: x | D90: =WoodNEFutil -> 0 | E90: = | G90: x | H90: 265 | I90: = | K90: =
A91: Other | B91: =VLOOKUP($A$2&$C$2&$B$2&$C$2&$A91,ConsumeBlock3,D81-1987,FALSE) -> 0 | C91: x | D91: =OtherNEFutil -> 0 | E91: = | F91: 0 | G91: x | H91: 265 | I91: = | J91: 0 | K91: = | L91: 0
H92: Total | I92: = | J92: =SUM(J85:J91) ->  | K92: =
A94: Electric Power Sector N2O | D94: =D81+1 -> 1997
B96: Consumption | D96: Emission Factor | F96: Emissions | H96: GWP | J96: Emissions | L96: Emissions
A97: Fuel Type | B97: (Billion Btu) | D97: (metric tons N2O/BBtu) | F97: (metric tons N2O) | J97: (MMTCE) | L97: (MMTCO2E)
A98: Coal | B98: =VLOOKUP($A$2&$C$2&$B$2&$C$2&$A98,ConsumeBlock3,10,FALSE) ->  | C98: x | D98: =CoalNEFutil -> 0 | E98: = | F98: =B98*D98 ->  | G98: x | H98: =GWPN2O -> 265 | I98: = | J98: =F98*H98*CO2_C/(10^6) ->  | K98: = | L98: =J98/CO2_C -> 
A99: Distillate Fuel | C99: x | D99: =DistillNEFutil -> 0 | E99: = | F99: =B99*D99 ->  | G99: x | H99: 265 | I99: = | K99: =
A100: Petroleum Coke | C100: x | D100: =PetCokeNEFutil -> 0 | E100: = | G100: x | H100: 265 | I100: = | K100: =
A101: Residual Fuel | C101: x | D101: =ResidNEFutil -> 0 | E101: = | G101: x | H101: 265 | I101: = | K101: =
A102: Natural Gas | C102: x | D102: =NatGasNEFutil -> 0 | E102: = | G102: x | H102: 265 | I102: = | K102: =
A103: Wood | C103: x | D103: =WoodNEFutil -> 0 | E103: = | G103: x | H103: 265 | I103: = | K103: =
A104: Other | B104: =VLOOKUP($A$2&$C$2&$B$2&$C$2&$A104,ConsumeBlock3,D94-1987,FALSE) -> 0 | C104: x | D104: =OtherNEFutil -> 0 | E104: = | F104: 0 | G104: x | H104: 265 | I104: = | J104: 0 | K104: = | L104: 0
H105: Total | I105: = | J105: =SUM(J98:J104) ->  | K105: =
A107: Electric Power Sector N2O | D107: =D94+1 -> 1998
B109: Consumption | D109: Emission Factor | F109: Emissions | H109: GWP | J109: Emissions | L109: Emissions
A110: Fuel Type | B110: (Billion Btu) | D110: (metric tons N2O/BBtu) | F110: (metric tons N2O) | J110: (MMTCE) | L110: (MMTCO2E)
A111: Coal | B111: =VLOOKUP($A$2&$C$2&$B$2&$C$2&$A111,ConsumeBlock3,11,FALSE) ->  | C111: x | D111: =CoalNEFutil -> 0 | E111: = | F111: =B111*D111 ->  | G111: x | H111: =GWPN2O -> 265 | I111: = | J111: =F111*H111*CO2_C/(10^6) ->  | K111: = | L111: =J111/CO2_C -> 
A112: Distillate Fuel | C112: x | D112: =DistillNEFutil -> 0 | E112: = | F112: =B112*D112 ->  | G112: x | H112: 265 | I112: = | K112: =
A113: Petroleum Coke | C113: x | D113: =PetCokeNEFutil -> 0 | E113: = | G113: x | H113: 265 | I113: = | K113: =
A114: Residual Fuel | C114: x | D114: =ResidNEFutil -> 0 | E114: = | G114: x | H114: 265 | I114: = | K114: =
A115: Natural Gas | C115: x | D115: =NatGasNEFutil -> 0 | E115: = | G115: x | H115: 265 | I115: = | K115: =
A116: Wood | C116: x | D116: =WoodNEFutil -> 0 | E116: = | G116: x | H116: 265 | I116: = | K116: =
A117: Other | B117: =VLOOKUP($A$2&$C$2&$B$2&$C$2&$A117,ConsumeBlock3,D107-1987,FALSE) -> 0 | C117: x | D117: =OtherNEFutil -> 0 | E117: = | F117: 0 | G117: x | H117: 265 | I117: = | J117: 0 | K117: = | L117: 0
H118: Total | I118: = | J118: =SUM(J111:J117) ->  | K118: =
A120: Electric Power Sector N2O | D120: =D107+1 -> 1999
B122: Consumption | D122: Emission Factor | F122: Emissions | H122: GWP | J122: Emissions | L122: Emissions
A123: Fuel Type | B123: (Billion Btu) | D123: (metric tons N2O/BBtu) | F123: (metric tons N2O) | J123: (MMTCE) | L123: (MMTCO2E)
A124: Coal | B124: =VLOOKUP($A$2&$C$2&$B$2&$C$2&$A124,ConsumeBlock3,12,FALSE) ->  | C124: x | D124: =CoalNEFutil -> 0 | E124: = | F124: =B124*D124 ->  | G124: x | H124: =GWPN2O -> 265 | I124: = | J124: =F124*H124*CO2_C/(10^6) ->  | K124: = | L124: =J124/CO2_C -> 
A125: Distillate Fuel | C125: x | D125: =DistillNEFutil -> 0 | E125: = | F125: =B125*D125 ->  | G125: x | H125: 265 | I125: = | K125: =
A126: Petroleum Coke | C126: x | D126: =PetCokeNEFutil -> 0 | E126: = | G126: x | H126: 265 | I126: = | K126: =
A127: Residual Fuel | C127: x | D127: =ResidNEFutil -> 0 | E127: = | G127: x | H127: 265 | I127: = | K127: =
A128: Natural Gas | C128: x | D128: =NatGasNEFutil -> 0 | E128: = | G128: x | H128: 265 | I128: = | K128: =
A129: Wood | C129: x | D129: =WoodNEFutil -> 0 | E129: = | G129: x | H129: 265 | I129: = | K129: =
A130: Other | B130: =VLOOKUP($A$2&$C$2&$B$2&$C$2&$A130,ConsumeBlock3,D120-1987,FALSE) -> 0 | C130: x | D130: =OtherNEFutil -> 0 | E130: = | F130: 0 | G130: x | H130: 265 | I130: = | J130: 0 | K130: = | L130: 0
H131: Total | I131: = | J131: =SUM(J124:J130) ->  | K131: =
A133: Electric Power Sector N2O | D133: =D120+1 -> 2000
B135: Consumption | D135: Emission Factor | F135: Emissions | H135: GWP | J135: Emissions | L135: Emissions
A136: Fuel Type | B136: (Billion Btu) | D136: (metric tons N2O/BBtu) | F136: (metric tons N2O) | J136: (MMTCE) | L136: (MMTCO2E)
A137: Coal | B137: =VLOOKUP($A$2&$C$2&$B$2&$C$2&$A137,ConsumeBlock3,13,FALSE) ->  | C137: x | D137: =CoalNEFutil -> 0 | E137: = | F137: =B137*D137 ->  | G137: x | H137: =GWPN2O -> 265 | I137: = | J137: =F137*H137*CO2_C/(10^6) ->  | K137: = | L137: =J137/CO2_C -> 
A138: Distillate Fuel | C138: x | D138: =DistillNEFutil -> 0 | E138: = | F138: =B138*D138 ->  | G138: x | H138: 265 | I138: = | K138: =
A139: Petroleum Coke | C139: x | D139: =PetCokeNEFutil -> 0 | E139: = | G139: x | H139: 265 | I139: = | K139: =
A140: Residual Fuel | C140: x | D140: =ResidNEFutil -> 0 | E140: = | G140: x | H140: 265 | I140: = | K140: =
A141: Natural Gas | C141: x | D141: =NatGasNEFutil -> 0 | E141: = | G141: x | H141: 265 | I141: = | K141: =
A142: Wood | C142: x | D142: =WoodNEFutil -> 0 | E142: = | G142: x | H142: 265 | I142: = | K142: =
A143: Other | B143: =VLOOKUP($A$2&$C$2&$B$2&$C$2&$A143,ConsumeBlock3,D133-1987,FALSE) -> 0 | C143: x | D143: =OtherNEFutil -> 0 | E143: = | F143: 0 | G143: x | H143: 265 | I143: = | J143: 0 | K143: = | L143: 0
H144: Total | I144: = | J144: =SUM(J137:J143) ->  | K144: =
A146: Electric Power Sector N2O | D146: =D133+1 -> 2001
B148: Consumption | D148: Emission Factor | F148: Emissions | H148: GWP | J148: Emissions | L148: Emissions
A149: Fuel Type | B149: (Billion Btu) | D149: (metric tons N2O/BBtu) | F149: (metric tons N2O) | J149: (MMTCE) | L149: (MMTCO2E)
A150: Coal | B150: =VLOOKUP($A$2&$C$2&$B$2&$C$2&$A150,ConsumeBlock3,14,FALSE) ->  | C150: x | D150: =CoalNEFutil -> 0 | E150: = | F150: =B150*D150 ->  | G150: x | H150: =GWPN2O -> 265 | I150: = | J150: =F150*H150*CO2_C/(10^6) ->  | K150: = | L150: =J150/CO2_C -> 
A151: Distillate Fuel | C151: x | D151: =DistillNEFutil -> 0 | E151: = | F151: =B151*D151 ->  | G151: x | H151: 265 | I151: = | K151: =
A152: Petroleum Coke | C152: x | D152: =PetCokeNEFutil -> 0 | E152: = | G152: x | H152: 265 | I152: = | K152: =
A153: Residual Fuel | C153: x | D153: =ResidNEFutil -> 0 | E153: = | G153: x | H153: 265 | I153: = | K153: =
A154: Natural Gas | C154: x | D154: =NatGasNEFutil -> 0 | E154: = | G154: x | H154: 265 | I154: = | K154: =
A155: Wood | C155: x | D155: =WoodNEFutil -> 0 | E155: = | G155: x | H155: 265 | I155: = | K155: =
A156: Other | B156: =VLOOKUP($A$2&$C$2&$B$2&$C$2&$A156,ConsumeBlock3,D146-1987,FALSE) -> 0 | C156: x | D156: =OtherNEFutil -> 0 | E156: = | F156: 0 | G156: x | H156: 265 | I156: = | J156: 0 | K156: = | L156: 0
H157: Total | I157: = | J157: =SUM(J150:J156) ->  | K157: =
A159: Electric Power Sector N2O | D159: =D146+1 -> 2002
B161: Consumption | D161: Emission Factor | F161: Emissions | H161: GWP | J161: Emissions | L161: Emissions
A162: Fuel Type | B162: (Billion Btu) | D162: (metric tons N2O/BBtu) | F162: (metric tons N2O) | J162: (MMTCE) | L162: (MMTCO2E)
A163: Coal | B163: =VLOOKUP($A$2&$C$2&$B$2&$C$2&$A163,ConsumeBlock3,15,FALSE) ->  | C163: x | D163: =CoalNEFutil -> 0 | E163: = | F163: =B163*D163 ->  | G163: x | H163: =GWPN2O -> 265 | I163: = | J163: =F163*H163*CO2_C/(10^6) ->  | K163: = | L163: =J163/CO2_C -> 
A164: Distillate Fuel | C164: x | D164: =DistillNEFutil -> 0 | E164: = | F164: =B164*D164 ->  | G164: x | H164: 265 | I164: = | K164: =
A165: Petroleum Coke | C165: x | D165: =PetCokeNEFutil -> 0 | E165: = | G165: x | H165: 265 | I165: = | K165: =
A166: Residual Fuel | C166: x | D166: =ResidNEFutil -> 0 | E166: = | G166: x | H166: 265 | I166: = | K166: =
A167: Natural Gas | C167: x | D167: =NatGasNEFutil -> 0 | E167: = | G167: x | H167: 265 | I167: = | K167: =
A168: Wood | C168: x | D168: =WoodNEFutil -> 0 | E168: = | G168: x | H168: 265 | I168: = | K168: =
A169: Other | B169: =VLOOKUP($A$2&$C$2&$B$2&$C$2&$A169,ConsumeBlock3,D159-1987,FALSE) -> 0 | C169: x | D169: =OtherNEFutil -> 0 | E169: = | F169: 0 | G169: x | H169: 265 | I169: = | J169: 0 | K169: = | L169: 0
H170: Total | I170: = | J170: =SUM(J163:J169) ->  | K170: =
A172: Electric Power Sector N2O | D172: =D159+1 -> 2003
B174: Consumption | D174: Emission Factor | F174: Emissions | H174: GWP | J174: Emissions | L174: Emissions
A175: Fuel Type | B175: (Billion Btu) | D175: (metric tons N2O/BBtu) | F175: (metric tons N2O) | J175: (MMTCE) | L175: (MMTCO2E)
A176: Coal | B176: =VLOOKUP($A$2&$C$2&$B$2&$C$2&$A176,ConsumeBlock3,16,FALSE) ->  | C176: x | D176: =CoalNEFutil -> 0 | E176: = | F176: =B176*D176 ->  | G176: x | H176: =GWPN2O -> 265 | I176: = | J176: =F176*H176*CO2_C/(10^6) ->  | K176: = | L176: =J176/CO2_C -> 
A177: Distillate Fuel | C177: x | D177: =DistillNEFutil -> 0 | E177: = | F177: =B177*D177 ->  | G177: x | H177: 265 | I177: = | K177: =
A178: Petroleum Coke | C178: x | D178: =PetCokeNEFutil -> 0 | E178: = | G178: x | H178: 265 | I178: = | K178: =
A179: Residual Fuel | C179: x | D179: =ResidNEFutil -> 0 | E179: = | G179: x | H179: 265 | I179: = | K179: =
A180: Natural Gas | C180: x | D180: =NatGasNEFutil -> 0 | E180: = | G180: x | H180: 265 | I180: = | K180: =
A181: Wood | C181: x | D181: =WoodNEFutil -> 0 | E181: = | G181: x | H181: 265 | I181: = | K181: =
A182: Other | B182: =VLOOKUP($A$2&$C$2&$B$2&$C$2&$A182,ConsumeBlock3,D172-1987,FALSE) -> 0 | C182: x | D182: =OtherNEFutil -> 0 | E182: = | F182: 0 | G182: x | H182: 265 | I182: = | J182: 0 | K182: = | L182: 0
H183: Total | I183: = | J183: =SUM(J176:J182) ->  | K183: =
A185: Electric Power Sector N2O | D185: =D172+1 -> 2004
B187: Consumption | D187: Emission Factor | F187: Emissions | H187: GWP | J187: Emissions | L187: Emissions
A188: Fuel Type | B188: (Billion Btu) | D188: (metric tons N2O/BBtu) | F188: (metric tons N2O) | J188: (MMTCE) | L188: (MMTCO2E)
A189: Coal | B189: =VLOOKUP($A$2&$C$2&$B$2&$C$2&$A189,ConsumeBlock3,17,FALSE) ->  | C189: x | D189: =CoalNEFutil -> 0 | E189: = | F189: =B189*D189 ->  | G189: x | H189: =GWPN2O -> 265 | I189: = | J189: =F189*H189*CO2_C/(10^6) ->  | K189: = | L189: =J189/CO2_C -> 
A190: Distillate Fuel | C190: x | D190: =DistillNEFutil -> 0 | E190: = | F190: =B190*D190 ->  | G190: x | H190: 265 | I190: = | K190: =
A191: Petroleum Coke | C191: x | D191: =PetCokeNEFutil -> 0 | E191: = | G191: x | H191: 265 | I191: = | K191: =
A192: Residual Fuel | C192: x | D192: =ResidNEFutil -> 0 | E192: = | G192: x | H192: 265 | I192: = | K192: =
A193: Natural Gas | C193: x | D193: =NatGasNEFutil -> 0 | E193: = | G193: x | H193: 265 | I193: = | K193: =
A194: Wood | C194: x | D194: =WoodNEFutil -> 0 | E194: = | G194: x | H194: 265 | I194: = | K194: =
A195: Other | B195: =VLOOKUP($A$2&$C$2&$B$2&$C$2&$A195,ConsumeBlock3,D185-1987,FALSE) -> 0 | C195: x | D195: =OtherNEFutil -> 0 | E195: = | F195: 0 | G195: x | H195: 265 | I195: = | J195: 0 | K195: = | L195: 0
H196: Total | I196: = | J196: =SUM(J189:J195) ->  | K196: =
A198: Electric Power Sector N2O | D198: =D185+1 -> 2005
B200: Consumption | D200: Emission Factor | F200: Emissions | H200: GWP | J200: Emissions | L200: Emissions
A201: Fuel Type | B201: (Billion Btu) | D201: (metric tons N2O/BBtu) | F201: (metric tons N2O) | J201: (MMTCE) | L201: (MMTCO2E)
A202: Coal | B202: =VLOOKUP($A$2&$C$2&$B$2&$C$2&$A202,ConsumeBlock3,18,FALSE) ->  | C202: x | D202: =CoalNEFutil -> 0 | E202: = | F202: =B202*D202 ->  | G202: x | H202: =GWPN2O -> 265 | I202: = | J202: =F202*H202*CO2_C/(10^6) ->  | K202: = | L202: =J202/CO2_C -> 
A203: Distillate Fuel | C203: x | D203: =DistillNEFutil -> 0 | E203: = | F203: =B203*D203 ->  | G203: x | H203: 265 | I203: = | K203: =
A204: Petroleum Coke | C204: x | D204: =PetCokeNEFutil -> 0 | E204: = | G204: x | H204: 265 | I204: = | K204: =
A205: Residual Fuel | C205: x | D205: =ResidNEFutil -> 0 | E205: = | G205: x | H205: 265 | I205: = | K205: =
A206: Natural Gas | C206: x | D206: =NatGasNEFutil -> 0 | E206: = | G206: x | H206: 265 | I206: = | K206: =
A207: Wood | C207: x | D207: =WoodNEFutil -> 0 | E207: = | G207: x | H207: 265 | I207: = | K207: =
A208: Other | B208: =VLOOKUP($A$2&$C$2&$B$2&$C$2&$A208,ConsumeBlock3,D198-1987,FALSE) -> 0 | C208: x | D208: =OtherNEFutil -> 0 | E208: = | F208: 0 | G208: x | H208: 265 | I208: = | J208: 0 | K208: = | L208: 0
H209: Total | I209: = | J209: =SUM(J202:J208) ->  | K209: =
A211: Electric Power Sector N2O | D211: =D198+1 -> 2006
B213: Consumption | D213: Emission Factor | F213: Emissions | H213: GWP | J213: Emissions | L213: Emissions
A214: Fuel Type | B214: (Billion Btu) | D214: (metric tons N2O/BBtu) | F214: (metric tons N2O) | J214: (MMTCE) | L214: (MMTCO2E)
A215: Coal | B215: =VLOOKUP($A$2&$C$2&$B$2&$C$2&$A215,ConsumeBlock3,19,FALSE) ->  | C215: x | D215: =CoalNEFutil -> 0 | E215: = | F215: =B215*D215 ->  | G215: x | H215: =GWPN2O -> 265 | I215: = | J215: =F215*H215*CO2_C/(10^6) ->  | K215: = | L215: =J215/CO2_C -> 
A216: Distillate Fuel | C216: x | D216: =DistillNEFutil -> 0 | E216: = | F216: =B216*D216 ->  | G216: x | H216: 265 | I216: = | K216: =
A217: Petroleum Coke | C217: x | D217: =PetCokeNEFutil -> 0 | E217: = | G217: x | H217: 265 | I217: = | K217: =
A218: Residual Fuel | C218: x | D218: =ResidNEFutil -> 0 | E218: = | G218: x | H218: 265 | I218: = | K218: =
A219: Natural Gas | C219: x | D219: =NatGasNEFutil -> 0 | E219: = | G219: x | H219: 265 | I219: = | K219: =
A220: Wood | C220: x | D220: =WoodNEFutil -> 0 | E220: = | G220: x | H220: 265 | I220: = | K220: =
A221: Other | B221: =VLOOKUP($A$2&$C$2&$B$2&$C$2&$A221,ConsumeBlock3,D211-1987,FALSE) -> 0 | C221: x | D221: =OtherNEFutil -> 0 | E221: = | F221: 0 | G221: x | H221: 265 | I221: = | J221: 0 | K221: = | L221: 0
H222: Total | I222: = | J222: =SUM(J215:J221) ->  | K222: =
A224: Electric Power Sector N2O | D224: =D211+1 -> 2007
B226: Consumption | D226: Emission Factor | F226: Emissions | H226: GWP | J226: Emissions | L226: Emissions
A227: Fuel Type | B227: (Billion Btu) | D227: (metric tons N2O/BBtu) | F227: (metric tons N2O) | J227: (MMTCE) | L227: (MMTCO2E)
A228: Coal | B228: =VLOOKUP($A$2&$C$2&$B$2&$C$2&$A228,ConsumeBlock3,20,FALSE) ->  | C228: x | D228: =CoalNEFutil -> 0 | E228: = | F228: =B228*D228 ->  | G228: x | H228: =GWPN2O -> 265 | I228: = | J228: =F228*H228*CO2_C/(10^6) ->  | K228: = | L228: =J228/CO2_C -> 
A229: Distillate Fuel | C229: x | D229: =DistillNEFutil -> 0 | E229: = | F229: =B229*D229 ->  | G229: x | H229: 265 | I229: = | K229: =
A230: Petroleum Coke | C230: x | D230: =PetCokeNEFutil -> 0 | E230: = | G230: x | H230: 265 | I230: = | K230: =
A231: Residual Fuel | C231: x | D231: =ResidNEFutil -> 0 | E231: = | G231: x | H231: 265 | I231: = | K231: =
A232: Natural Gas | C232: x | D232: =NatGasNEFutil -> 0 | E232: = | G232: x | H232: 265 | I232: = | K232: =
A233: Wood | C233: x | D233: =WoodNEFutil -> 0 | E233: = | G233: x | H233: 265 | I233: = | K233: =
A234: Other | B234: =VLOOKUP($A$2&$C$2&$B$2&$C$2&$A234,ConsumeBlock3,D224-1987,FALSE) -> 0 | C234: x | D234: =OtherNEFutil -> 0 | E234: = | F234: 0 | G234: x | H234: 265 | I234: = | J234: 0 | K234: = | L234: 0
H235: Total | I235: = | J235: =SUM(J228:J234) ->  | K235: =
... 198 more rows

Sheet Electric Power CH4
A1: ="4. Electric Power Sector Consumption and CH4 emissions in "&Constants!G2 -> 4. Electric Power Sector Consumption and CH4 emissions in Select a State . . .
A2: =Constants!H2 -> xx | B2: Electric Utilities
A3: Electric Power Sector CH4 | D3: 1990
B5: Consumption | D5: Emission Factor | F5: Emissions | H5: GWP | J5: Emissions | L5: Emissions
A6: Fuel Type | B6: (Billion Btu) | D6: (metric tons CH4 /BBtu) | F6: (metric tons CH4) | J6: (MMTCE) | L6: (MMTCO2E)
A7: Coal | B7: ='Electric Power N2O'!B7 ->  | C7: x | D7: =CoalCEFutil -> 0 | E7: = | F7: =B7*D7 ->  | G7: x | H7: =GWPCH4 -> 28 | I7: = | J7: =F7*H7*CO2_C/(10^6) ->  | K7: = | L7: =J7/CO2_C -> 
A8: Distillate Fuel | B8: ='Electric Power N2O'!B8 ->  | C8: x | D8: =DistillCEFutil -> 0 | E8: = | F8: =B8*D8 ->  | G8: x | H8: 28 | I8: = | J8: =F8*H8*CO2_C/(10^6) ->  | K8: =
A9: Petroleum Coke | B9: ='Electric Power N2O'!B9 ->  | C9: x | D9: =PetCokeCEFutil -> 0 | E9: = | G9: x | H9: 28 | I9: = | K9: =
A10: Residual Fuel | B10: ='Electric Power N2O'!B10 ->  | C10: x | D10: =ResidCEFutil -> 0 | E10: = | G10: x | H10: 28 | I10: = | K10: =
A11: Natural Gas | B11: ='Electric Power N2O'!B11 ->  | C11: x | D11: =NatGasCEFutil -> 0 | E11: = | G11: x | H11: 28 | I11: = | K11: =
A12: Wood | B12: ='Electric Power N2O'!B12 ->  | C12: x | D12: =WoodCEFutil -> 0 | E12: = | G12: x | H12: 28 | I12: = | J12: =F12*H12*CO2_C/(10^6) ->  | K12: =
A13: Other | B13: ='Electric Power N2O'!B13 -> 0 | C13: x | D13: =OtherCEFutil -> 0 | E13: = | F13: 0 | G13: x | H13: 28 | I13: = | J13: 0 | K13: = | L13: 0
H14: Total | I14: = | J14: =SUM(J7:J13) ->  | K14: =
A16: Electric Power Sector CH4 | D16: =D3+1 -> 1991
B18: Consumption | D18: Emission Factor | F18: Emissions | H18: GWP | J18: Emissions | L18: Emissions
A19: Fuel Type | B19: (Billion Btu) | D19: (metric tons CH4 /BBtu) | F19: (metric tons CH4) | J19: (MMTCE) | L19: (MMTCO2E)
A20: Coal | B20: ='Electric Power N2O'!B20 ->  | C20: x | D20: =CoalCEFutil -> 0 | E20: = | F20: =B20*D20 ->  | G20: x | H20: =GWPCH4 -> 28 | I20: = | J20: =F20*H20*CO2_C/(10^6) ->  | K20: = | L20: =J20/CO2_C -> 
A21: Distillate Fuel | B21: ='Electric Power N2O'!B21 ->  | C21: x | D21: =DistillCEFutil -> 0 | E21: = | F21: =B21*D21 ->  | G21: x | H21: 28 | I21: = | K21: =
A22: Petroleum Coke | B22: ='Electric Power N2O'!B22 ->  | C22: x | D22: =PetCokeCEFutil -> 0 | E22: = | G22: x | H22: 28 | I22: = | K22: =
A23: Residual Fuel | B23: ='Electric Power N2O'!B23 ->  | C23: x | D23: =ResidCEFutil -> 0 | E23: = | G23: x | H23: 28 | I23: = | K23: =
A24: Natural Gas | B24: ='Electric Power N2O'!B24 ->  | C24: x | D24: =NatGasCEFutil -> 0 | E24: = | G24: x | H24: 28 | I24: = | K24: =
A25: Wood | B25: ='Electric Power N2O'!B25 ->  | C25: x | D25: =WoodCEFutil -> 0 | E25: = | G25: x | H25: 28 | I25: = | K25: =
A26: Other | B26: ='Electric Power N2O'!B26 -> 0 | C26: x | D26: =OtherCEFutil -> 0 | E26: = | F26: 0 | G26: x | H26: 28 | I26: = | J26: 0 | K26: = | L26: 0
H27: Total | I27: = | J27: =SUM(J20:J26) ->  | K27: =
A29: Electric Power Sector CH4 | D29: =D16+1 -> 1992
B31: Consumption | D31: Emission Factor | F31: Emissions | H31: GWP | J31: Emissions | L31: Emissions
A32: Fuel Type | B32: (Billion Btu) | D32: (metric tons CH4 /BBtu) | F32: (metric tons CH4) | J32: (MMTCE) | L32: (MMTCO2E)
A33: Coal | B33: ='Electric Power N2O'!B33 ->  | C33: x | D33: =CoalCEFutil -> 0 | E33: = | F33: =B33*D33 ->  | G33: x | H33: =GWPCH4 -> 28 | I33: = | J33: =F33*H33*CO2_C/(10^6) ->  | K33: = | L33: =J33/CO2_C -> 
A34: Distillate Fuel | B34: ='Electric Power N2O'!B34 ->  | C34: x | D34: =DistillCEFutil -> 0 | E34: = | F34: =B34*D34 ->  | G34: x | H34: 28 | I34: = | K34: =
A35: Petroleum Coke | B35: ='Electric Power N2O'!B35 ->  | C35: x | D35: =PetCokeCEFutil -> 0 | E35: = | G35: x | H35: 28 | I35: = | K35: =
A36: Residual Fuel | B36: ='Electric Power N2O'!B36 ->  | C36: x | D36: =ResidCEFutil -> 0 | E36: = | G36: x | H36: 28 | I36: = | K36: =
A37: Natural Gas | B37: ='Electric Power N2O'!B37 ->  | C37: x | D37: =NatGasCEFutil -> 0 | E37: = | G37: x | H37: 28 | I37: = | K37: =
A38: Wood | B38: ='Electric Power N2O'!B38 ->  | C38: x | D38: =WoodCEFutil -> 0 | E38: = | G38: x | H38: 28 | I38: = | K38: =
A39: Other | B39: ='Electric Power N2O'!B39 -> 0 | C39: x | D39: =OtherCEFutil -> 0 | E39: = | F39: 0 | G39: x | H39: 28 | I39: = | J39: 0 | K39: = | L39: 0
H40: Total | I40: = | J40: =SUM(J33:J39) ->  | K40: =
A42: Electric Power Sector CH4 | D42: =D29+1 -> 1993
B44: Consumption | D44: Emission Factor | F44: Emissions | H44: GWP | J44: Emissions | L44: Emissions
A45: Fuel Type | B45: (Billion Btu) | D45: (metric tons CH4 /BBtu) | F45: (metric tons CH4) | J45: (MMTCE) | L45: (MMTCO2E)
A46: Coal | B46: ='Electric Power N2O'!B46 ->  | C46: x | D46: =CoalCEFutil -> 0 | E46: = | F46: =B46*D46 ->  | G46: x | H46: =GWPCH4 -> 28 | I46: = | J46: =F46*H46*CO2_C/(10^6) ->  | K46: = | L46: =J46/CO2_C -> 
A47: Distillate Fuel | B47: ='Electric Power N2O'!B47 ->  | C47: x | D47: =DistillCEFutil -> 0 | E47: = | F47: =B47*D47 ->  | G47: x | H47: 28 | I47: = | K47: =
A48: Petroleum Coke | B48: ='Electric Power N2O'!B48 ->  | C48: x | D48: =PetCokeCEFutil -> 0 | E48: = | G48: x | H48: 28 | I48: = | K48: =
A49: Residual Fuel | B49: ='Electric Power N2O'!B49 ->  | C49: x | D49: =ResidCEFutil -> 0 | E49: = | G49: x | H49: 28 | I49: = | K49: =
A50: Natural Gas | B50: ='Electric Power N2O'!B50 ->  | C50: x | D50: =NatGasCEFutil -> 0 | E50: = | G50: x | H50: 28 | I50: = | K50: =
A51: Wood | B51: ='Electric Power N2O'!B51 ->  | C51: x | D51: =WoodCEFutil -> 0 | E51: = | G51: x | H51: 28 | I51: = | K51: =
A52: Other | B52: ='Electric Power N2O'!B52 -> 0 | C52: x | D52: =OtherCEFutil -> 0 | E52: = | F52: 0 | G52: x | H52: 28 | I52: = | J52: 0 | K52: = | L52: 0
H53: Total | I53: = | J53: =SUM(J46:J52) ->  | K53: =
A55: Electric Power Sector CH4 | D55: =D42+1 -> 1994
B57: Consumption | D57: Emission Factor | F57: Emissions | H57: GWP | J57: Emissions | L57: Emissions
A58: Fuel Type | B58: (Billion Btu) | D58: (metric tons CH4 /BBtu) | F58: (metric tons CH4) | J58: (MMTCE) | L58: (MMTCO2E)
A59: Coal | B59: ='Electric Power N2O'!B59 ->  | C59: x | D59: =CoalCEFutil -> 0 | E59: = | F59: =B59*D59 ->  | G59: x | H59: =GWPCH4 -> 28 | I59: = | J59: =F59*H59*CO2_C/(10^6) ->  | K59: = | L59: =J59/CO2_C -> 
A60: Distillate Fuel | B60: ='Electric Power N2O'!B60 ->  | C60: x | D60: =DistillCEFutil -> 0 | E60: = | F60: =B60*D60 ->  | G60: x | H60: 28 | I60: = | K60: =
A61: Petroleum Coke | B61: ='Electric Power N2O'!B61 ->  | C61: x | D61: =PetCokeCEFutil -> 0 | E61: = | G61: x | H61: 28 | I61: = | K61: =
A62: Residual Fuel | B62: ='Electric Power N2O'!B62 ->  | C62: x | D62: =ResidCEFutil -> 0 | E62: = | G62: x | H62: 28 | I62: = | K62: =
A63: Natural Gas | B63: ='Electric Power N2O'!B63 ->  | C63: x | D63: =NatGasCEFutil -> 0 | E63: = | G63: x | H63: 28 | I63: = | K63: =
A64: Wood | B64: ='Electric Power N2O'!B64 ->  | C64: x | D64: =WoodCEFutil -> 0 | E64: = | G64: x | H64: 28 | I64: = | K64: =
A65: Other | B65: ='Electric Power N2O'!B65 -> 0 | C65: x | D65: =OtherCEFutil -> 0 | E65: = | F65: 0 | G65: x | H65: 28 | I65: = | J65: 0 | K65: = | L65: 0
H66: Total | I66: = | J66: =SUM(J59:J65) ->  | K66: =
A68: Electric Power Sector CH4 | D68: =D55+1 -> 1995
B70: Consumption | D70: Emission Factor | F70: Emissions | H70: GWP | J70: Emissions | L70: Emissions
A71: Fuel Type | B71: (Billion Btu) | D71: (metric tons CH4 /BBtu) | F71: (metric tons CH4) | J71: (MMTCE) | L71: (MMTCO2E)
A72: Coal | B72: ='Electric Power N2O'!B72 ->  | C72: x | D72: =CoalCEFutil -> 0 | E72: = | F72: =B72*D72 ->  | G72: x | H72: =GWPCH4 -> 28 | I72: = | J72: =F72*H72*CO2_C/(10^6) ->  | K72: = | L72: =J72/CO2_C -> 
A73: Distillate Fuel | B73: ='Electric Power N2O'!B73 ->  | C73: x | D73: =DistillCEFutil -> 0 | E73: = | F73: =B73*D73 ->  | G73: x | H73: 28 | I73: = | K73: =
A74: Petroleum Coke | B74: ='Electric Power N2O'!B74 ->  | C74: x | D74: =PetCokeCEFutil -> 0 | E74: = | G74: x | H74: 28 | I74: = | K74: =
A75: Residual Fuel | B75: ='Electric Power N2O'!B75 ->  | C75: x | D75: =ResidCEFutil -> 0 | E75: = | G75: x | H75: 28 | I75: = | K75: =
A76: Natural Gas | B76: ='Electric Power N2O'!B76 ->  | C76: x | D76: =NatGasCEFutil -> 0 | E76: = | G76: x | H76: 28 | I76: = | K76: =
A77: Wood | B77: ='Electric Power N2O'!B77 ->  | C77: x | D77: =WoodCEFutil -> 0 | E77: = | G77: x | H77: 28 | I77: = | K77: =
A78: Other | B78: ='Electric Power N2O'!B78 -> 0 | C78: x | D78: =OtherCEFutil -> 0 | E78: = | F78: 0 | G78: x | H78: 28 | I78: = | J78: 0 | K78: = | L78: 0
H79: Total | I79: = | J79: =SUM(J72:J78) ->  | K79: =
A81: Electric Power Sector CH4 | D81: =D68+1 -> 1996
B83: Consumption | D83: Emission Factor | F83: Emissions | H83: GWP | J83: Emissions | L83: Emissions
A84: Fuel Type | B84: (Billion Btu) | D84: (metric tons CH4 /BBtu) | F84: (metric tons CH4) | J84: (MMTCE) | L84: (MMTCO2E)
A85: Coal | B85: ='Electric Power N2O'!B85 ->  | C85: x | D85: =CoalCEFutil -> 0 | E85: = | F85: =B85*D85 ->  | G85: x | H85: =GWPCH4 -> 28 | I85: = | J85: =F85*H85*CO2_C/(10^6) ->  | K85: = | L85: =J85/CO2_C -> 
A86: Distillate Fuel | B86: ='Electric Power N2O'!B86 ->  | C86: x | D86: =DistillCEFutil -> 0 | E86: = | F86: =B86*D86 ->  | G86: x | H86: 28 | I86: = | K86: =
A87: Petroleum Coke | B87: ='Electric Power N2O'!B87 ->  | C87: x | D87: =PetCokeCEFutil -> 0 | E87: = | G87: x | H87: 28 | I87: = | K87: =
A88: Residual Fuel | B88: ='Electric Power N2O'!B88 ->  | C88: x | D88: =ResidCEFutil -> 0 | E88: = | G88: x | H88: 28 | I88: = | K88: =
A89: Natural Gas | B89: ='Electric Power N2O'!B89 ->  | C89: x | D89: =NatGasCEFutil -> 0 | E89: = | G89: x | H89: 28 | I89: = | K89: =
A90: Wood | B90: ='Electric Power N2O'!B90 ->  | C90: x | D90: =WoodCEFutil -> 0 | E90: = | G90: x | H90: 28 | I90: = | K90: =
A91: Other | B91: ='Electric Power N2O'!B91 -> 0 | C91: x | D91: =OtherCEFutil -> 0 | E91: = | F91: 0 | G91: x | H91: 28 | I91: = | J91: 0 | K91: = | L91: 0
H92: Total | I92: = | J92: =SUM(J85:J91) ->  | K92: =
A94: Electric Power Sector CH4 | D94: =D81+1 -> 1997
B96: Consumption | D96: Emission Factor | F96: Emissions | H96: GWP | J96: Emissions | L96: Emissions
A97: Fuel Type | B97: (Billion Btu) | D97: (metric tons CH4 /BBtu) | F97: (metric tons CH4) | J97: (MMTCE) | L97: (MMTCO2E)
A98: Coal | B98: ='Electric Power N2O'!B98 ->  | C98: x | D98: =CoalCEFutil -> 0 | E98: = | F98: =B98*D98 ->  | G98: x | H98: =GWPCH4 -> 28 | I98: = | J98: =F98*H98*CO2_C/(10^6) ->  | K98: = | L98: =J98/CO2_C -> 
A99: Distillate Fuel | B99: ='Electric Power N2O'!B99 ->  | C99: x | D99: =DistillCEFutil -> 0 | E99: = | F99: =B99*D99 ->  | G99: x | H99: 28 | I99: = | K99: =
A100: Petroleum Coke | B100: ='Electric Power N2O'!B100 ->  | C100: x | D100: =PetCokeCEFutil -> 0 | E100: = | G100: x | H100: 28 | I100: = | K100: =
A101: Residual Fuel | B101: ='Electric Power N2O'!B101 ->  | C101: x | D101: =ResidCEFutil -> 0 | E101: = | G101: x | H101: 28 | I101: = | K101: =
A102: Natural Gas | B102: ='Electric Power N2O'!B102 ->  | C102: x | D102: =NatGasCEFutil -> 0 | E102: = | G102: x | H102: 28 | I102: = | K102: =
A103: Wood | B103: ='Electric Power N2O'!B103 ->  | C103: x | D103: =WoodCEFutil -> 0 | E103: = | G103: x | H103: 28 | I103: = | K103: =
A104: Other | B104: ='Electric Power N2O'!B104 -> 0 | C104: x | D104: =OtherCEFutil -> 0 | E104: = | F104: 0 | G104: x | H104: 28 | I104: = | J104: 0 | K104: = | L104: 0
H105: Total | I105: = | J105: =SUM(J98:J104) ->  | K105: =
A107: Electric Power Sector CH4 | D107: =D94+1 -> 1998
B109: Consumption | D109: Emission Factor | F109: Emissions | H109: GWP | J109: Emissions | L109: Emissions
A110: Fuel Type | B110: (Billion Btu) | D110: (metric tons CH4 /BBtu) | F110: (metric tons CH4) | J110: (MMTCE) | L110: (MMTCO2E)
A111: Coal | B111: ='Electric Power N2O'!B111 ->  | C111: x | D111: =CoalCEFutil -> 0 | E111: = | F111: =B111*D111 ->  | G111: x | H111: =GWPCH4 -> 28 | I111: = | J111: =F111*H111*CO2_C/(10^6) ->  | K111: = | L111: =J111/CO2_C -> 
A112: Distillate Fuel | B112: ='Electric Power N2O'!B112 ->  | C112: x | D112: =DistillCEFutil -> 0 | E112: = | F112: =B112*D112 ->  | G112: x | H112: 28 | I112: = | K112: =
A113: Petroleum Coke | B113: ='Electric Power N2O'!B113 ->  | C113: x | D113: =PetCokeCEFutil -> 0 | E113: = | G113: x | H113: 28 | I113: = | K113: =
A114: Residual Fuel | B114: ='Electric Power N2O'!B114 ->  | C114: x | D114: =ResidCEFutil -> 0 | E114: = | G114: x | H114: 28 | I114: = | K114: =
A115: Natural Gas | B115: ='Electric Power N2O'!B115 ->  | C115: x | D115: =NatGasCEFutil -> 0 | E115: = | G115: x | H115: 28 | I115: = | K115: =
A116: Wood | B116: ='Electric Power N2O'!B116 ->  | C116: x | D116: =WoodCEFutil -> 0 | E116: = | G116: x | H116: 28 | I116: = | K116: =
A117: Other | B117: ='Electric Power N2O'!B117 -> 0 | C117: x | D117: =OtherCEFutil -> 0 | E117: = | F117: 0 | G117: x | H117: 28 | I117: = | J117: 0 | K117: = | L117: 0
H118: Total | I118: = | J118: =SUM(J111:J117) ->  | K118: =
A120: Electric Power Sector CH4 | D120: =D107+1 -> 1999
B122: Consumption | D122: Emission Factor | F122: Emissions | H122: GWP | J122: Emissions | L122: Emissions
A123: Fuel Type | B123: (Billion Btu) | D123: (metric tons CH4 /BBtu) | F123: (metric tons CH4) | J123: (MMTCE) | L123: (MMTCO2E)
A124: Coal | B124: ='Electric Power N2O'!B124 ->  | C124: x | D124: =CoalCEFutil -> 0 | E124: = | F124: =B124*D124 ->  | G124: x | H124: =GWPCH4 -> 28 | I124: = | J124: =F124*H124*CO2_C/(10^6) ->  | K124: = | L124: =J124/CO2_C -> 
A125: Distillate Fuel | B125: ='Electric Power N2O'!B125 ->  | C125: x | D125: =DistillCEFutil -> 0 | E125: = | F125: =B125*D125 ->  | G125: x | H125: 28 | I125: = | K125: =
A126: Petroleum Coke | B126: ='Electric Power N2O'!B126 ->  | C126: x | D126: =PetCokeCEFutil -> 0 | E126: = | G126: x | H126: 28 | I126: = | K126: =
A127: Residual Fuel | B127: ='Electric Power N2O'!B127 ->  | C127: x | D127: =ResidCEFutil -> 0 | E127: = | G127: x | H127: 28 | I127: = | K127: =
A128: Natural Gas | B128: ='Electric Power N2O'!B128 ->  | C128: x | D128: =NatGasCEFutil -> 0 | E128: = | G128: x | H128: 28 | I128: = | K128: =
A129: Wood | B129: ='Electric Power N2O'!B129 ->  | C129: x | D129: =WoodCEFutil -> 0 | E129: = | G129: x | H129: 28 | I129: = | K129: =
A130: Other | B130: ='Electric Power N2O'!B130 -> 0 | C130: x | D130: =OtherCEFutil -> 0 | E130: = | F130: 0 | G130: x | H130: 28 | I130: = | J130: 0 | K130: = | L130: 0
H131: Total | I131: = | J131: =SUM(J124:J130) ->  | K131: =
A133: Electric Power Sector CH4 | D133: =D120+1 -> 2000
B135: Consumption | D135: Emission Factor | F135: Emissions | H135: GWP | J135: Emissions | L135: Emissions
A136: Fuel Type | B136: (Billion Btu) | D136: (metric tons CH4 /BBtu) | F136: (metric tons CH4) | J136: (MMTCE) | L136: (MMTCO2E)
A137: Coal | B137: ='Electric Power N2O'!B137 ->  | C137: x | D137: =CoalCEFutil -> 0 | E137: = | F137: =B137*D137 ->  | G137: x | H137: =GWPCH4 -> 28 | I137: = | J137: =F137*H137*CO2_C/(10^6) ->  | K137: = | L137: =J137/CO2_C -> 
A138: Distillate Fuel | B138: ='Electric Power N2O'!B138 ->  | C138: x | D138: =DistillCEFutil -> 0 | E138: = | F138: =B138*D138 ->  | G138: x | H138: 28 | I138: = | K138: =
A139: Petroleum Coke | B139: ='Electric Power N2O'!B139 ->  | C139: x | D139: =PetCokeCEFutil -> 0 | E139: = | G139: x | H139: 28 | I139: = | K139: =
A140: Residual Fuel | B140: ='Electric Power N2O'!B140 ->  | C140: x | D140: =ResidCEFutil -> 0 | E140: = | G140: x | H140: 28 | I140: = | K140: =
A141: Natural Gas | B141: ='Electric Power N2O'!B141 ->  | C141: x | D141: =NatGasCEFutil -> 0 | E141: = | G141: x | H141: 28 | I141: = | K141: =
A142: Wood | B142: ='Electric Power N2O'!B142 ->  | C142: x | D142: =WoodCEFutil -> 0 | E142: = | G142: x | H142: 28 | I142: = | K142: =
A143: Other | B143: ='Electric Power N2O'!B143 -> 0 | C143: x | D143: =OtherCEFutil -> 0 | E143: = | F143: 0 | G143: x | H143: 28 | I143: = | J143: 0 | K143: = | L143: 0
H144: Total | I144: = | J144: =SUM(J137:J143) ->  | K144: =
A146: Electric Power Sector CH4 | D146: =D133+1 -> 2001
B148: Consumption | D148: Emission Factor | F148: Emissions | H148: GWP | J148: Emissions | L148: Emissions
A149: Fuel Type | B149: (Billion Btu) | D149: (metric tons CH4 /BBtu) | F149: (metric tons CH4) | J149: (MMTCE) | L149: (MMTCO2E)
A150: Coal | B150: ='Electric Power N2O'!B150 ->  | C150: x | D150: =CoalCEFutil -> 0 | E150: = | F150: =B150*D150 ->  | G150: x | H150: =GWPCH4 -> 28 | I150: = | J150: =F150*H150*CO2_C/(10^6) ->  | K150: = | L150: =J150/CO2_C -> 
A151: Distillate Fuel | B151: ='Electric Power N2O'!B151 ->  | C151: x | D151: =DistillCEFutil -> 0 | E151: = | F151: =B151*D151 ->  | G151: x | H151: 28 | I151: = | K151: =
A152: Petroleum Coke | B152: ='Electric Power N2O'!B152 ->  | C152: x | D152: =PetCokeCEFutil -> 0 | E152: = | G152: x | H152: 28 | I152: = | K152: =
A153: Residual Fuel | B153: ='Electric Power N2O'!B153 ->  | C153: x | D153: =ResidCEFutil -> 0 | E153: = | G153: x | H153: 28 | I153: = | K153: =
A154: Natural Gas | B154: ='Electric Power N2O'!B154 ->  | C154: x | D154: =NatGasCEFutil -> 0 | E154: = | G154: x | H154: 28 | I154: = | K154: =
A155: Wood | B155: ='Electric Power N2O'!B155 ->  | C155: x | D155: =WoodCEFutil -> 0 | E155: = | G155: x | H155: 28 | I155: = | K155: =
A156: Other | B156: ='Electric Power N2O'!B156 -> 0 | C156: x | D156: =OtherCEFutil -> 0 | E156: = | F156: 0 | G156: x | H156: 28 | I156: = | J156: 0 | K156: = | L156: 0
H157: Total | I157: = | J157: =SUM(J150:J156) ->  | K157: =
A159: Electric Power Sector CH4 | D159: =D146+1 -> 2002
B161: Consumption | D161: Emission Factor | F161: Emissions | H161: GWP | J161: Emissions | L161: Emissions
A162: Fuel Type | B162: (Billion Btu) | D162: (metric tons CH4 /BBtu) | F162: (metric tons CH4) | J162: (MMTCE) | L162: (MMTCO2E)
A163: Coal | B163: ='Electric Power N2O'!B163 ->  | C163: x | D163: =CoalCEFutil -> 0 | E163: = | F163: =B163*D163 ->  | G163: x | H163: =GWPCH4 -> 28 | I163: = | J163: =F163*H163*CO2_C/(10^6) ->  | K163: = | L163: =J163/CO2_C -> 
A164: Distillate Fuel | B164: ='Electric Power N2O'!B164 ->  | C164: x | D164: =DistillCEFutil -> 0 | E164: = | F164: =B164*D164 ->  | G164: x | H164: 28 | I164: = | K164: =
A165: Petroleum Coke | B165: ='Electric Power N2O'!B165 ->  | C165: x | D165: =PetCokeCEFutil -> 0 | E165: = | G165: x | H165: 28 | I165: = | K165: =
A166: Residual Fuel | B166: ='Electric Power N2O'!B166 ->  | C166: x | D166: =ResidCEFutil -> 0 | E166: = | G166: x | H166: 28 | I166: = | K166: =
A167: Natural Gas | B167: ='Electric Power N2O'!B167 ->  | C167: x | D167: =NatGasCEFutil -> 0 | E167: = | G167: x | H167: 28 | I167: = | K167: =
A168: Wood | B168: ='Electric Power N2O'!B168 ->  | C168: x | D168: =WoodCEFutil -> 0 | E168: = | G168: x | H168: 28 | I168: = | K168: =
A169: Other | B169: ='Electric Power N2O'!B169 -> 0 | C169: x | D169: =OtherCEFutil -> 0 | E169: = | F169: 0 | G169: x | H169: 28 | I169: = | J169: 0 | K169: = | L169: 0
H170: Total | I170: = | J170: =SUM(J163:J169) ->  | K170: =
A172: Electric Power Sector CH4 | D172: =D159+1 -> 2003
B174: Consumption | D174: Emission Factor | F174: Emissions | H174: GWP | J174: Emissions | L174: Emissions
A175: Fuel Type | B175: (Billion Btu) | D175: (metric tons CH4 /BBtu) | F175: (metric tons CH4) | J175: (MMTCE) | L175: (MMTCO2E)
A176: Coal | B176: ='Electric Power N2O'!B176 ->  | C176: x | D176: =CoalCEFutil -> 0 | E176: = | F176: =B176*D176 ->  | G176: x | H176: =GWPCH4 -> 28 | I176: = | J176: =F176*H176*CO2_C/(10^6) ->  | K176: = | L176: =J176/CO2_C -> 
A177: Distillate Fuel | B177: ='Electric Power N2O'!B177 ->  | C177: x | D177: =DistillCEFutil -> 0 | E177: = | F177: =B177*D177 ->  | G177: x | H177: 28 | I177: = | K177: =
A178: Petroleum Coke | B178: ='Electric Power N2O'!B178 ->  | C178: x | D178: =PetCokeCEFutil -> 0 | E178: = | G178: x | H178: 28 | I178: = | K178: =
A179: Residual Fuel | B179: ='Electric Power N2O'!B179 ->  | C179: x | D179: =ResidCEFutil -> 0 | E179: = | G179: x | H179: 28 | I179: = | K179: =
A180: Natural Gas | B180: ='Electric Power N2O'!B180 ->  | C180: x | D180: =NatGasCEFutil -> 0 | E180: = | G180: x | H180: 28 | I180: = | K180: =
A181: Wood | B181: ='Electric Power N2O'!B181 ->  | C181: x | D181: =WoodCEFutil -> 0 | E181: = | G181: x | H181: 28 | I181: = | K181: =
A182: Other | B182: ='Electric Power N2O'!B182 -> 0 | C182: x | D182: =OtherCEFutil -> 0 | E182: = | F182: 0 | G182: x | H182: 28 | I182: = | J182: 0 | K182: = | L182: 0
H183: Total | I183: = | J183: =SUM(J176:J182) ->  | K183: =
A185: Electric Power Sector CH4 | D185: =D172+1 -> 2004
B187: Consumption | D187: Emission Factor | F187: Emissions | H187: GWP | J187: Emissions | L187: Emissions
A188: Fuel Type | B188: (Billion Btu) | D188: (metric tons CH4 /BBtu) | F188: (metric tons CH4) | J188: (MMTCE) | L188: (MMTCO2E)
A189: Coal | B189: ='Electric Power N2O'!B189 ->  | C189: x | D189: =CoalCEFutil -> 0 | E189: = | F189: =B189*D189 ->  | G189: x | H189: =GWPCH4 -> 28 | I189: = | J189: =F189*H189*CO2_C/(10^6) ->  | K189: = | L189: =J189/CO2_C -> 
A190: Distillate Fuel | B190: ='Electric Power N2O'!B190 ->  | C190: x | D190: =DistillCEFutil -> 0 | E190: = | F190: =B190*D190 ->  | G190: x | H190: 28 | I190: = | K190: =
A191: Petroleum Coke | B191: ='Electric Power N2O'!B191 ->  | C191: x | D191: =PetCokeCEFutil -> 0 | E191: = | G191: x | H191: 28 | I191: = | K191: =
A192: Residual Fuel | B192: ='Electric Power N2O'!B192 ->  | C192: x | D192: =ResidCEFutil -> 0 | E192: = | G192: x | H192: 28 | I192: = | K192: =
A193: Natural Gas | B193: ='Electric Power N2O'!B193 ->  | C193: x | D193: =NatGasCEFutil -> 0 | E193: = | G193: x | H193: 28 | I193: = | K193: =
A194: Wood | B194: ='Electric Power N2O'!B194 ->  | C194: x | D194: =WoodCEFutil -> 0 | E194: = | G194: x | H194: 28 | I194: = | K194: =
A195: Other | B195: ='Electric Power N2O'!B195 -> 0 | C195: x | D195: =OtherCEFutil -> 0 | E195: = | F195: 0 | G195: x | H195: 28 | I195: = | J195: 0 | K195: = | L195: 0
H196: Total | I196: = | J196: =SUM(J189:J195) ->  | K196: =
A198: Electric Power Sector CH4 | D198: =D185+1 -> 2005
B200: Consumption | D200: Emission Factor | F200: Emissions | H200: GWP | J200: Emissions | L200: Emissions
A201: Fuel Type | B201: (Billion Btu) | D201: (metric tons CH4 /BBtu) | F201: (metric tons CH4) | J201: (MMTCE) | L201: (MMTCO2E)
A202: Coal | B202: ='Electric Power N2O'!B202 ->  | C202: x | D202: =CoalCEFutil -> 0 | E202: = | F202: =B202*D202 ->  | G202: x | H202: =GWPCH4 -> 28 | I202: = | J202: =F202*H202*CO2_C/(10^6) ->  | K202: = | L202: =J202/CO2_C -> 
A203: Distillate Fuel | B203: ='Electric Power N2O'!B203 ->  | C203: x | D203: =DistillCEFutil -> 0 | E203: = | F203: =B203*D203 ->  | G203: x | H203: 28 | I203: = | K203: =
A204: Petroleum Coke | B204: ='Electric Power N2O'!B204 ->  | C204: x | D204: =PetCokeCEFutil -> 0 | E204: = | G204: x | H204: 28 | I204: = | K204: =
A205: Residual Fuel | B205: ='Electric Power N2O'!B205 ->  | C205: x | D205: =ResidCEFutil -> 0 | E205: = | G205: x | H205: 28 | I205: = | K205: =
A206: Natural Gas | B206: ='Electric Power N2O'!B206 ->  | C206: x | D206: =NatGasCEFutil -> 0 | E206: = | G206: x | H206: 28 | I206: = | K206: =
A207: Wood | B207: ='Electric Power N2O'!B207 ->  | C207: x | D207: =WoodCEFutil -> 0 | E207: = | G207: x | H207: 28 | I207: = | K207: =
A208: Other | B208: ='Electric Power N2O'!B208 -> 0 | C208: x | D208: =OtherCEFutil -> 0 | E208: = | F208: 0 | G208: x | H208: 28 | I208: = | J208: 0 | K208: = | L208: 0
H209: Total | I209: = | J209: =SUM(J202:J208) ->  | K209: =
A211: Electric Power Sector CH4 | D211: =D198+1 -> 2006
B213: Consumption | D213: Emission Factor | F213: Emissions | H213: GWP | J213: Emissions | L213: Emissions
A214: Fuel Type | B214: (Billion Btu) | D214: (metric tons CH4 /BBtu) | F214: (metric tons CH4) | J214: (MMTCE) | L214: (MMTCO2E)
A215: Coal | B215: ='Electric Power N2O'!B215 ->  | C215: x | D215: =CoalCEFutil -> 0 | E215: = | F215: =B215*D215 ->  | G215: x | H215: =GWPCH4 -> 28 | I215: = | J215: =F215*H215*CO2_C/(10^6) ->  | K215: = | L215: =J215/CO2_C -> 
A216: Distillate Fuel | B216: ='Electric Power N2O'!B216 ->  | C216: x | D216: =DistillCEFutil -> 0 | E216: = | F216: =B216*D216 ->  | G216: x | H216: 28 | I216: = | K216: =
A217: Petroleum Coke | B217: ='Electric Power N2O'!B217 ->  | C217: x | D217: =PetCokeCEFutil -> 0 | E217: = | G217: x | H217: 28 | I217: = | K217: =
A218: Residual Fuel | B218: ='Electric Power N2O'!B218 ->  | C218: x | D218: =ResidCEFutil -> 0 | E218: = | G218: x | H218: 28 | I218: = | K218: =
A219: Natural Gas | B219: ='Electric Power N2O'!B219 ->  | C219: x | D219: =NatGasCEFutil -> 0 | E219: = | G219: x | H219: 28 | I219: = | K219: =
A220: Wood | B220: ='Electric Power N2O'!B220 ->  | C220: x | D220: =WoodCEFutil -> 0 | E220: = | G220: x | H220: 28 | I220: = | K220: =
A221: Other | B221: ='Electric Power N2O'!B221 -> 0 | C221: x | D221: =OtherCEFutil -> 0 | E221: = | F221: 0 | G221: x | H221: 28 | I221: = | J221: 0 | K221: = | L221: 0
H222: Total | I222: = | J222: =SUM(J215:J221) ->  | K222: =
A224: Electric Power Sector CH4 | D224: =D211+1 -> 2007
B226: Consumption | D226: Emission Factor | F226: Emissions | H226: GWP | J226: Emissions | L226: Emissions
A227: Fuel Type | B227: (Billion Btu) | D227: (metric tons CH4 /BBtu) | F227: (metric tons CH4) | J227: (MMTCE) | L227: (MMTCO2E)
A228: Coal | B228: ='Electric Power N2O'!B228 ->  | C228: x | D228: =CoalCEFutil -> 0 | E228: = | F228: =B228*D228 ->  | G228: x | H228: =GWPCH4 -> 28 | I228: = | J228: =F228*H228*CO2_C/(10^6) ->  | K228: = | L228: =J228/CO2_C -> 
A229: Distillate Fuel | B229: ='Electric Power N2O'!B229 ->  | C229: x | D229: =DistillCEFutil -> 0 | E229: = | F229: =B229*D229 ->  | G229: x | H229: 28 | I229: = | K229: =
A230: Petroleum Coke | B230: ='Electric Power N2O'!B230 ->  | C230: x | D230: =PetCokeCEFutil -> 0 | E230: = | G230: x | H230: 28 | I230: = | K230: =
A231: Residual Fuel | B231: ='Electric Power N2O'!B231 ->  | C231: x | D231: =ResidCEFutil -> 0 | E231: = | G231: x | H231: 28 | I231: = | K231: =
A232: Natural Gas | B232: ='Electric Power N2O'!B232 ->  | C232: x | D232: =NatGasCEFutil -> 0 | E232: = | G232: x | H232: 28 | I232: = | K232: =
A233: Wood | B233: ='Electric Power N2O'!B233 ->  | C233: x | D233: =WoodCEFutil -> 0 | E233: = | G233: x | H233: 28 | I233: = | K233: =
A234: Other | B234: ='Electric Power N2O'!B234 -> 0 | C234: x | D234: =OtherCEFutil -> 0 | E234: = | F234: 0 | G234: x | H234: 28 | I234: = | J234: 0 | K234: = | L234: 0
H235: Total | I235: = | J235: =SUM(J228:J234) ->  | K235: =
... 198 more rows

Sheet Industrial N2O
B1: ="5. Industrial Consumption and N2O emissions in "&Constants!G2 -> 5. Industrial Consumption and N2O emissions in Select a State . . .
B2: =Constants!H2 -> xx | C2: Industrial | D2: =" " ->  | E2: =Constants!G2 -> Select a State . . .
B3: Industrial Sector N2O | E3: 1990
C4: Total | E4: Non-Energy
C5: Consumption | E5: Consumption | G5: Emission Factor | I5: Emissions | K5: GWP | M5: Emissions | O5: Emissions
B6: Fuel Type | C6: (Billion Btu) | E6: (Billion Btu) | G6: (metric tons N2O/BBtu) | I6: (metric tons N2O) | M6: (MMTCE) | O6: (MMTCO2E)
B7: Coking Coal | C7: =VLOOKUP($B$2&$D$2&$C$2&$D$2&$B7,ConsumeBlock3,E3-1987,FALSE) ->  | D7: - | F7: x | G7: =CokeCoalNEFind -> 0 | H7: = | I7: =(C7-E7)*G7 ->  | J7: x | K7: =GWPN2O -> 265 | L7: = | M7: =I7*K7*CO2_C/(10^6) ->  | N7: = | O7: =M7/CO2_C -> 
B8: Other Coal | C8: =IF(VLOOKUP($B$2&$D$2&$C$2&$D$2&$B8,ConsumeBlock3,$E3-1987,FALSE)-VLOOKUP($E$2,SyntheticNG,$E3-1988,FALSE)<0,0,VLOOKUP($B$2&$D$2&$C$2&$D$2&$B8,ConsumeBlock3,$E3-1987,FALSE)-VLOOKUP($E$2,SyntheticNG,$E3-1988,FALSE)) ->  | D8: - | F8: x | G8: =OtherCoalNEFind -> 0 | H8: = | I8: =(C8-E8)*G8 ->  | J8: x | K8: =GWPN2O -> 265 | L8: = | M8: =I8*K8*CO2_C/(10^6) ->  | N8: =
B9: Asphalt and Road Oil | C9: =VLOOKUP($B$2&$D$2&$C$2&$D$2&$B9,ConsumeBlock3,3,FALSE) ->  | D9: - | F9: x | G9: =AsphaltNEFind -> 0 | H9: = | J9: x | K9: 265 | L9: = | N9: =
B10: Aviation Gasoline Blending Components | D10: - | F10: x | G10: =AvGasBlendNEFind -> 0 | H10: = | J10: x | K10: 265 | L10: = | N10: =
B11: Crude Oil | D11: - | F11: x | G11: =CrudeNEFind -> 0 | H11: = | J11: x | K11: 265 | L11: = | N11: =
B12: Distillate Fuel | D12: - | F12: x | G12: =DistillNEFind -> 0 | H12: = | J12: x | K12: 265 | L12: = | N12: =
B13: Feedstocks, Naphtha less than 401 F | D13: - | F13: x | G13: =NaphNEFind -> 0 | H13: = | J13: x | K13: 265 | L13: = | N13: =
B14: Feedstocks, Other Oils greater than 401 F | D14: - | F14: x | G14: =OtherOilNEFind -> 0 | H14: = | J14: x | K14: 265 | L14: = | N14: =
B15: Kerosene | D15: - | F15: x | G15: =KeroNEFind -> 0 | H15: = | J15: x | K15: 265 | L15: = | N15: =
B16: Hydrocarbon Gas Liquids | C16: =VLOOKUP($B$2&$D$2&$C$2&$D$2&$B16,ConsumeBlock3,3,FALSE)-C22 ->  | D16: - | F16: x | G16: =LPGNEFind -> 0 | H16: = | I16: =(C16-E16)*G16 ->  | J16: x | K16: 265 | L16: = | N16: =
B17: Lubricants | C17: =VLOOKUP($B$2&$D$2&$C$2&$D$2&$B17,ConsumeBlock3,3,FALSE) ->  | D17: - | F17: x | G17: =LubeNEFind -> 0 | H17: = | J17: x | K17: 265 | L17: = | N17: =
B18: Motor Gasoline | D18: - | F18: x | G18: =MotorGasNEFind -> 0 | H18: = | J18: x | K18: 265 | L18: = | N18: =
B19: Motor Gasoline Blending Components | D19: - | F19: x | G19: =MoGasBlendNEFind -> 0 | H19: = | J19: x | K19: 265 | L19: = | N19: =
B20: Misc. Petro Products | D20: - | F20: x | G20: =MiscNEFind -> 0 | H20: = | J20: x | K20: 265 | L20: = | N20: =
B21: Petroleum Coke | D21: - | F21: x | G21: =PetCokeNEFind -> 0 | H21: = | J21: x | K21: 265 | L21: = | N21: =
B22: Pentanes Plus | D22: - | F22: x | G22: =pentanesNEFind -> 0 | H22: = | J22: x | K22: 265 | L22: = | N22: =
B23: Residual Fuel | D23: - | F23: x | G23: =ResidNEFind -> 0 | H23: = | J23: x | K23: 265 | L23: = | N23: =
B24: Still Gas | D24: - | F24: x | G24: =StillNEFind -> 0 | H24: = | J24: x | K24: 265 | L24: = | N24: =
B25: Special Naphthas | D25: - | F25: x | G25: =SpecialNEFind -> 0 | H25: = | J25: x | K25: 265 | L25: = | N25: =
B26: Unfinished Oils | D26: - | F26: x | G26: =UnfinNEFind -> 0 | H26: = | J26: x | K26: 265 | L26: = | N26: =
B27: Waxes | D27: - | F27: x | G27: =WaxesNEFind -> 0 | H27: = | J27: x | K27: 265 | L27: = | N27: =
B28: Natural Gas | D28: - | F28: x | G28: =NatGasNEFind -> 0 | H28: = | J28: x | K28: 265 | L28: = | N28: =
B29: Wood | D29: - | E29: NA | F29: x | G29: =WoodNEFind -> 0 | H29: = | I29: =C29*G29 ->  | J29: x | K29: 265 | L29: = | N29: =
B30: Other | C30: =VLOOKUP($B$2&$D$2&$C$2&$D$2&$B30,ConsumeBlock3,E3-1987,FALSE) -> 0 | D30: - | F30: x | G30: =OtherNEFind -> 0 | H30: = | I30: 0 | J30: x | K30: 265 | L30: = | M30: 0 | N30: = | O30: 0
K31: Total | L31: = | M31: =SUM(M7:M30) ->  | N31: =
B33: Industrial Sector N2O | E33: =E3+1 -> 1991
C34: Total | E34: Non-Energy
C35: Consumption | E35: Consumption | G35: Emission Factor | I35: Emissions | K35: GWP | M35: Emissions | O35: Emissions
B36: Fuel Type | C36: (Billion Btu) | E36: (Billion Btu) | G36: (metric tons N2O/BBtu) | I36: (metric tons N2O) | M36: (MMTCE) | O36: (MMTCO2E)
B37: Coking Coal | C37: =VLOOKUP($B$2&$D$2&$C$2&$D$2&$B37,ConsumeBlock3,E33-1987,FALSE) ->  | D37: - | F37: x | G37: =CokeCoalNEFind -> 0 | H37: = | I37: =(C37-E37)*G37 ->  | J37: x | K37: =GWPN2O -> 265 | L37: = | M37: =I37*K37*CO2_C/(10^6) ->  | N37: = | O37: =M37/CO2_C -> 
B38: Other Coal | C38: =IF(VLOOKUP($B$2&$D$2&$C$2&$D$2&$B38,ConsumeBlock3,$E33-1987,FALSE)-VLOOKUP($E$2,SyntheticNG,$E33-1988,FALSE)<0,0,VLOOKUP($B$2&$D$2&$C$2&$D$2&$B38,ConsumeBlock3,$E33-1987,FALSE)-VLOOKUP($E$2,SyntheticNG,$E33-1988,FALSE)) ->  | D38: - | F38: x | G38: =OtherCoalNEFind -> 0 | H38: = | I38: =(C38-E38)*G38 ->  | J38: x | K38: =GWPN2O -> 265 | L38: = | M38: =I38*K38*CO2_C/(10^6) ->  | N38: =
B39: Asphalt and Road Oil | C39: =VLOOKUP($B$2&$D$2&$C$2&$D$2&$B39,ConsumeBlock3,4,FALSE) ->  | D39: - | F39: x | G39: =AsphaltNEFind -> 0 | H39: = | J39: x | K39: 265 | L39: = | N39: =
B40: Aviation Gasoline Blending Components | D40: - | F40: x | G40: =AvGasBlendNEFind -> 0 | H40: = | J40: x | K40: 265 | L40: = | N40: =
B41: Crude Oil | D41: - | F41: x | G41: =CrudeNEFind -> 0 | H41: = | J41: x | K41: 265 | L41: = | N41: =
B42: Distillate Fuel | D42: - | F42: x | G42: =DistillNEFind -> 0 | H42: = | J42: x | K42: 265 | L42: = | N42: =
B43: Feedstocks, Naphtha less than 401 F | D43: - | F43: x | G43: =NaphNEFind -> 0 | H43: = | J43: x | K43: 265 | L43: = | N43: =
B44: Feedstocks, Other Oils greater than 401 F | D44: - | F44: x | G44: =OtherOilNEFind -> 0 | H44: = | J44: x | K44: 265 | L44: = | N44: =
B45: Kerosene | D45: - | F45: x | G45: =KeroNEFind -> 0 | H45: = | J45: x | K45: 265 | L45: = | N45: =
B46: Hydrocarbon Gas Liquids | C46: =VLOOKUP($B$2&$D$2&$C$2&$D$2&$B46,ConsumeBlock3,4,FALSE)-C52 ->  | D46: - | F46: x | G46: =LPGNEFind -> 0 | H46: = | J46: x | K46: 265 | L46: = | N46: =
B47: Lubricants | D47: - | F47: x | G47: =LubeNEFind -> 0 | H47: = | J47: x | K47: 265 | L47: = | N47: =
B48: Motor Gasoline | D48: - | F48: x | G48: =MotorGasNEFind -> 0 | H48: = | J48: x | K48: 265 | L48: = | N48: =
B49: Motor Gasoline Blending Components | D49: - | F49: x | G49: =MoGasBlendNEFind -> 0 | H49: = | J49: x | K49: 265 | L49: = | N49: =
B50: Misc. Petro Products | D50: - | F50: x | G50: =MiscNEFind -> 0 | H50: = | J50: x | K50: 265 | L50: = | N50: =
B51: Petroleum Coke | D51: - | F51: x | G51: =PetCokeNEFind -> 0 | H51: = | J51: x | K51: 265 | L51: = | N51: =
B52: Pentanes Plus | D52: - | F52: x | G52: =pentanesNEFind -> 0 | H52: = | J52: x | K52: 265 | L52: = | N52: =
B53: Residual Fuel | D53: - | F53: x | G53: =ResidNEFind -> 0 | H53: = | J53: x | K53: 265 | L53: = | N53: =
B54: Still Gas | D54: - | F54: x | G54: =StillNEFind -> 0 | H54: = | J54: x | K54: 265 | L54: = | N54: =
B55: Special Naphthas | D55: - | F55: x | G55: =SpecialNEFind -> 0 | H55: = | J55: x | K55: 265 | L55: = | N55: =
B56: Unfinished Oils | D56: - | F56: x | G56: =UnfinNEFind -> 0 | H56: = | J56: x | K56: 265 | L56: = | N56: =
B57: Waxes | D57: - | F57: x | G57: =WaxesNEFind -> 0 | H57: = | J57: x | K57: 265 | L57: = | N57: =
B58: Natural Gas | D58: - | F58: x | G58: =NatGasNEFind -> 0 | H58: = | J58: x | K58: 265 | L58: = | N58: =
B59: Wood | D59: - | E59: NA | F59: x | G59: =WoodNEFind -> 0 | H59: = | I59: =C59*G59 ->  | J59: x | K59: 265 | L59: = | N59: =
B60: Other | C60: =VLOOKUP($B$2&$D$2&$C$2&$D$2&$B60,ConsumeBlock3,E33-1987,FALSE) -> 0 | D60: - | F60: x | G60: =OtherNEFind -> 0 | H60: = | I60: 0 | J60: x | K60: 265 | L60: = | M60: 0 | N60: = | O60: 0
K61: Total | L61: = | M61: =SUM(M37:M60) ->  | N61: =
B63: Industrial Sector N2O | E63: =E33+1 -> 1992
C64: Total | E64: Non-Energy
C65: Consumption | E65: Consumption | G65: Emission Factor | I65: Emissions | K65: GWP | M65: Emissions | O65: Emissions
B66: Fuel Type | C66: (Billion Btu) | E66: (Billion Btu) | G66: (metric tons N2O/BBtu) | I66: (metric tons N2O) | M66: (MMTCE) | O66: (MMTCO2E)
B67: Coking Coal | C67: =VLOOKUP($B$2&$D$2&$C$2&$D$2&$B67,ConsumeBlock3,E63-1987,FALSE) ->  | D67: - | F67: x | G67: =CokeCoalNEFind -> 0 | H67: = | I67: =(C67-E67)*G67 ->  | J67: x | K67: =GWPN2O -> 265 | L67: = | M67: =I67*K67*CO2_C/(10^6) ->  | N67: = | O67: =M67/CO2_C -> 
B68: Other Coal | C68: =IF(VLOOKUP($B$2&$D$2&$C$2&$D$2&$B68,ConsumeBlock3,$E63-1987,FALSE)-VLOOKUP($E$2,SyntheticNG,$E63-1988,FALSE)<0,0,VLOOKUP($B$2&$D$2&$C$2&$D$2&$B68,ConsumeBlock3,$E63-1987,FALSE)-VLOOKUP($E$2,SyntheticNG,$E63-1988,FALSE)) ->  | D68: - | F68: x | G68: =OtherCoalNEFind -> 0 | H68: = | I68: =(C68-E68)*G68 ->  | J68: x | K68: =GWPN2O -> 265 | L68: = | M68: =I68*K68*CO2_C/(10^6) ->  | N68: =
B69: Asphalt and Road Oil | C69: =VLOOKUP($B$2&$D$2&$C$2&$D$2&$B69,ConsumeBlock3,5,FALSE) ->  | D69: - | F69: x | G69: =AsphaltNEFind -> 0 | H69: = | J69: x | K69: 265 | L69: = | N69: =
B70: Aviation Gasoline Blending Components | D70: - | F70: x | G70: =AvGasBlendNEFind -> 0 | H70: = | J70: x | K70: 265 | L70: = | N70: =
B71: Crude Oil | D71: - | F71: x | G71: =CrudeNEFind -> 0 | H71: = | J71: x | K71: 265 | L71: = | N71: =
B72: Distillate Fuel | D72: - | F72: x | G72: =DistillNEFind -> 0 | H72: = | J72: x | K72: 265 | L72: = | N72: =
B73: Feedstocks, Naphtha less than 401 F | D73: - | F73: x | G73: =NaphNEFind -> 0 | H73: = | J73: x | K73: 265 | L73: = | N73: =
B74: Feedstocks, Other Oils greater than 401 F | D74: - | F74: x | G74: =OtherOilNEFind -> 0 | H74: = | J74: x | K74: 265 | L74: = | N74: =
B75: Kerosene | D75: - | F75: x | G75: =KeroNEFind -> 0 | H75: = | J75: x | K75: 265 | L75: = | N75: =
B76: Hydrocarbon Gas Liquids | C76: =VLOOKUP($B$2&$D$2&$C$2&$D$2&$B76,ConsumeBlock3,5,FALSE)-C82 ->  | D76: - | F76: x | G76: =LPGNEFind -> 0 | H76: = | J76: x | K76: 265 | L76: = | N76: =
B77: Lubricants | D77: - | F77: x | G77: =LubeNEFind -> 0 | H77: = | J77: x | K77: 265 | L77: = | N77: =
B78: Motor Gasoline | D78: - | F78: x | G78: =MotorGasNEFind -> 0 | H78: = | J78: x | K78: 265 | L78: = | N78: =
B79: Motor Gasoline Blending Components | D79: - | F79: x | G79: =MoGasBlendNEFind -> 0 | H79: = | J79: x | K79: 265 | L79: = | N79: =
B80: Misc. Petro Products | D80: - | F80: x | G80: =MiscNEFind -> 0 | H80: = | J80: x | K80: 265 | L80: = | N80: =
B81: Petroleum Coke | D81: - | F81: x | G81: =PetCokeNEFind -> 0 | H81: = | J81: x | K81: 265 | L81: = | N81: =
B82: Pentanes Plus | D82: - | F82: x | G82: =pentanesNEFind -> 0 | H82: = | J82: x | K82: 265 | L82: = | N82: =
B83: Residual Fuel | D83: - | F83: x | G83: =ResidNEFind -> 0 | H83: = | J83: x | K83: 265 | L83: = | N83: =
B84: Still Gas | D84: - | F84: x | G84: =StillNEFind -> 0 | H84: = | J84: x | K84: 265 | L84: = | N84: =
B85: Special Naphthas | D85: - | F85: x | G85: =SpecialNEFind -> 0 | H85: = | J85: x | K85: 265 | L85: = | N85: =
B86: Unfinished Oils | D86: - | F86: x | G86: =UnfinNEFind -> 0 | H86: = | J86: x | K86: 265 | L86: = | N86: =
B87: Waxes | D87: - | F87: x | G87: =WaxesNEFind -> 0 | H87: = | J87: x | K87: 265 | L87: = | N87: =
B88: Natural Gas | D88: - | F88: x | G88: =NatGasNEFind -> 0 | H88: = | J88: x | K88: 265 | L88: = | N88: =
B89: Wood | D89: - | E89: NA | F89: x | G89: =WoodNEFind -> 0 | H89: = | I89: =C89*G89 ->  | J89: x | K89: 265 | L89: = | N89: =
B90: Other | C90: =VLOOKUP($B$2&$D$2&$C$2&$D$2&$B90,ConsumeBlock3,E63-1987,FALSE) -> 0 | D90: - | F90: x | G90: =OtherNEFind -> 0 | H90: = | I90: 0 | J90: x | K90: 265 | L90: = | M90: 0 | N90: = | O90: 0
K91: Total | L91: = | M91: =SUM(M67:M90) ->  | N91: =
B93: Industrial Sector N2O | E93: =E63+1 -> 1993
C94: Total | E94: Non-Energy
C95: Consumption | E95: Consumption | G95: Emission Factor | I95: Emissions | K95: GWP | M95: Emissions | O95: Emissions
B96: Fuel Type | C96: (Billion Btu) | E96: (Billion Btu) | G96: (metric tons N2O/BBtu) | I96: (metric tons N2O) | M96: (MMTCE) | O96: (MMTCO2E)
B97: Coking Coal | C97: =VLOOKUP($B$2&$D$2&$C$2&$D$2&$B97,ConsumeBlock3,E93-1987,FALSE) ->  | D97: - | F97: x | G97: =CokeCoalNEFind -> 0 | H97: = | I97: =(C97-E97)*G97 ->  | J97: x | K97: =GWPN2O -> 265 | L97: = | M97: =I97*K97*CO2_C/(10^6) ->  | N97: = | O97: =M97/CO2_C -> 
B98: Other Coal | C98: =IF(VLOOKUP($B$2&$D$2&$C$2&$D$2&$B98,ConsumeBlock3,$E93-1987,FALSE)-VLOOKUP($E$2,SyntheticNG,$E93-1988,FALSE)<0,0,VLOOKUP($B$2&$D$2&$C$2&$D$2&$B98,ConsumeBlock3,$E93-1987,FALSE)-VLOOKUP($E$2,SyntheticNG,$E93-1988,FALSE)) ->  | D98: - | F98: x | G98: =OtherCoalNEFind -> 0 | H98: = | I98: =(C98-E98)*G98 ->  | J98: x | K98: =GWPN2O -> 265 | L98: = | M98: =I98*K98*CO2_C/(10^6) ->  | N98: =
B99: Asphalt and Road Oil | C99: =VLOOKUP($B$2&$D$2&$C$2&$D$2&$B99,ConsumeBlock3,6,FALSE) ->  | D99: - | F99: x | G99: =AsphaltNEFind -> 0 | H99: = | J99: x | K99: 265 | L99: = | N99: =
B100: Aviation Gasoline Blending Components | D100: - | F100: x | G100: =AvGasBlendNEFind -> 0 | H100: = | J100: x | K100: 265 | L100: = | N100: =
B101: Crude Oil | D101: - | F101: x | G101: =CrudeNEFind -> 0 | H101: = | J101: x | K101: 265 | L101: = | N101: =
B102: Distillate Fuel | D102: - | F102: x | G102: =DistillNEFind -> 0 | H102: = | J102: x | K102: 265 | L102: = | N102: =
B103: Feedstocks, Naphtha less than 401 F | D103: - | F103: x | G103: =NaphNEFind -> 0 | H103: = | J103: x | K103: 265 | L103: = | N103: =
B104: Feedstocks, Other Oils greater than 401 F | D104: - | F104: x | G104: =OtherOilNEFind -> 0 | H104: = | J104: x | K104: 265 | L104: = | N104: =
B105: Kerosene | D105: - | F105: x | G105: =KeroNEFind -> 0 | H105: = | J105: x | K105: 265 | L105: = | N105: =
B106: Hydrocarbon Gas Liquids | C106: =VLOOKUP($B$2&$D$2&$C$2&$D$2&$B106,ConsumeBlock3,6,FALSE)-C112 ->  | D106: - | F106: x | G106: =LPGNEFind -> 0 | H106: = | J106: x | K106: 265 | L106: = | N106: =
B107: Lubricants | D107: - | F107: x | G107: =LubeNEFind -> 0 | H107: = | J107: x | K107: 265 | L107: = | N107: =
B108: Motor Gasoline | D108: - | F108: x | G108: =MotorGasNEFind -> 0 | H108: = | J108: x | K108: 265 | L108: = | N108: =
B109: Motor Gasoline Blending Components | D109: - | F109: x | G109: =MoGasBlendNEFind -> 0 | H109: = | J109: x | K109: 265 | L109: = | N109: =
B110: Misc. Petro Products | D110: - | F110: x | G110: =MiscNEFind -> 0 | H110: = | J110: x | K110: 265 | L110: = | N110: =
B111: Petroleum Coke | D111: - | F111: x | G111: =PetCokeNEFind -> 0 | H111: = | J111: x | K111: 265 | L111: = | N111: =
B112: Pentanes Plus | D112: - | F112: x | G112: =pentanesNEFind -> 0 | H112: = | J112: x | K112: 265 | L112: = | N112: =
B113: Residual Fuel | D113: - | F113: x | G113: =ResidNEFind -> 0 | H113: = | J113: x | K113: 265 | L113: = | N113: =
B114: Still Gas | D114: - | F114: x | G114: =StillNEFind -> 0 | H114: = | J114: x | K114: 265 | L114: = | N114: =
B115: Special Naphthas | D115: - | F115: x | G115: =SpecialNEFind -> 0 | H115: = | J115: x | K115: 265 | L115: = | N115: =
B116: Unfinished Oils | D116: - | F116: x | G116: =UnfinNEFind -> 0 | H116: = | J116: x | K116: 265 | L116: = | N116: =
B117: Waxes | D117: - | F117: x | G117: =WaxesNEFind -> 0 | H117: = | J117: x | K117: 265 | L117: = | N117: =
B118: Natural Gas | D118: - | F118: x | G118: =NatGasNEFind -> 0 | H118: = | J118: x | K118: 265 | L118: = | N118: =
B119: Wood | D119: - | E119: NA | F119: x | G119: =WoodNEFind -> 0 | H119: = | I119: =C119*G119 ->  | J119: x | K119: 265 | L119: = | N119: =
B120: Other | C120: =VLOOKUP($B$2&$D$2&$C$2&$D$2&$B120,ConsumeBlock3,E93-1987,FALSE) -> 0 | D120: - | F120: x | G120: =OtherNEFind -> 0 | H120: = | I120: 0 | J120: x | K120: 265 | L120: = | M120: 0 | N120: = | O120: 0
K121: Total | L121: = | M121: =SUM(M97:M120) ->  | N121: =
B123: Industrial Sector N2O | E123: =E93+1 -> 1994
C124: Total | E124: Non-Energy
C125: Consumption | E125: Consumption | G125: Emission Factor | I125: Emissions | K125: GWP | M125: Emissions | O125: Emissions
B126: Fuel Type | C126: (Billion Btu) | E126: (Billion Btu) | G126: (metric tons N2O/BBtu) | I126: (metric tons N2O) | M126: (MMTCE) | O126: (MMTCO2E)
B127: Coking Coal | C127: =VLOOKUP($B$2&$D$2&$C$2&$D$2&$B127,ConsumeBlock3,E123-1987,FALSE) ->  | D127: - | F127: x | G127: =CokeCoalNEFind -> 0 | H127: = | I127: =(C127-E127)*G127 ->  | J127: x | K127: =GWPN2O -> 265 | L127: = | M127: =I127*K127*CO2_C/(10^6) ->  | N127: = | O127: =M127/CO2_C -> 
B128: Other Coal | C128: =IF(VLOOKUP($B$2&$D$2&$C$2&$D$2&$B128,ConsumeBlock3,$E123-1987,FALSE)-VLOOKUP($E$2,SyntheticNG,$E123-1988,FALSE)<0,0,VLOOKUP($B$2&$D$2&$C$2&$D$2&$B128,ConsumeBlock3,$E123-1987,FALSE)-VLOOKUP($E$2,SyntheticNG,$E123-1988,FALSE)) ->  | D128: - | F128: x | G128: =OtherCoalNEFind -> 0 | H128: = | I128: =(C128-E128)*G128 ->  | J128: x | K128: =GWPN2O -> 265 | L128: = | M128: =I128*K128*CO2_C/(10^6) ->  | N128: =
B129: Asphalt and Road Oil | C129: =VLOOKUP($B$2&$D$2&$C$2&$D$2&$B129,ConsumeBlock3,7,FALSE) ->  | D129: - | F129: x | G129: =AsphaltNEFind -> 0 | H129: = | J129: x | K129: 265 | L129: = | N129: =
B130: Aviation Gasoline Blending Components | D130: - | F130: x | G130: =AvGasBlendNEFind -> 0 | H130: = | J130: x | K130: 265 | L130: = | N130: =
B131: Crude Oil | D131: - | F131: x | G131: =CrudeNEFind -> 0 | H131: = | J131: x | K131: 265 | L131: = | N131: =
B132: Distillate Fuel | D132: - | F132: x | G132: =DistillNEFind -> 0 | H132: = | J132: x | K132: 265 | L132: = | N132: =
B133: Feedstocks, Naphtha less than 401 F | D133: - | F133: x | G133: =NaphNEFind -> 0 | H133: = | J133: x | K133: 265 | L133: = | N133: =
B134: Feedstocks, Other Oils greater than 401 F | D134: - | F134: x | G134: =OtherOilNEFind -> 0 | H134: = | J134: x | K134: 265 | L134: = | N134: =
B135: Kerosene | D135: - | F135: x | G135: =KeroNEFind -> 0 | H135: = | J135: x | K135: 265 | L135: = | N135: =
B136: Hydrocarbon Gas Liquids | C136: =VLOOKUP($B$2&$D$2&$C$2&$D$2&$B136,ConsumeBlock3,7,FALSE)-C142 ->  | D136: - | F136: x | G136: =LPGNEFind -> 0 | H136: = | J136: x | K136: 265 | L136: = | N136: =
B137: Lubricants | D137: - | F137: x | G137: =LubeNEFind -> 0 | H137: = | J137: x | K137: 265 | L137: = | N137: =
B138: Motor Gasoline | D138: - | F138: x | G138: =MotorGasNEFind -> 0 | H138: = | J138: x | K138: 265 | L138: = | N138: =
B139: Motor Gasoline Blending Components | D139: - | F139: x | G139: =MoGasBlendNEFind -> 0 | H139: = | J139: x | K139: 265 | L139: = | N139: =
B140: Misc. Petro Products | D140: - | F140: x | G140: =MiscNEFind -> 0 | H140: = | J140: x | K140: 265 | L140: = | N140: =
B141: Petroleum Coke | D141: - | F141: x | G141: =PetCokeNEFind -> 0 | H141: = | J141: x | K141: 265 | L141: = | N141: =
B142: Pentanes Plus | D142: - | F142: x | G142: =pentanesNEFind -> 0 | H142: = | J142: x | K142: 265 | L142: = | N142: =
B143: Residual Fuel | D143: - | F143: x | G143: =ResidNEFind -> 0 | H143: = | J143: x | K143: 265 | L143: = | N143: =
B144: Still Gas | D144: - | F144: x | G144: =StillNEFind -> 0 | H144: = | J144: x | K144: 265 | L144: = | N144: =
B145: Special Naphthas | D145: - | F145: x | G145: =SpecialNEFind -> 0 | H145: = | J145: x | K145: 265 | L145: = | N145: =
B146: Unfinished Oils | D146: - | F146: x | G146: =UnfinNEFind -> 0 | H146: = | J146: x | K146: 265 | L146: = | N146: =
B147: Waxes | D147: - | F147: x | G147: =WaxesNEFind -> 0 | H147: = | J147: x | K147: 265 | L147: = | N147: =
B148: Natural Gas | D148: - | F148: x | G148: =NatGasNEFind -> 0 | H148: = | J148: x | K148: 265 | L148: = | N148: =
B149: Wood | D149: - | E149: NA | F149: x | G149: =WoodNEFind -> 0 | H149: = | I149: =C149*G149 ->  | J149: x | K149: 265 | L149: = | N149: =
B150: Other | C150: =VLOOKUP($B$2&$D$2&$C$2&$D$2&$B150,ConsumeBlock3,E123-1987,FALSE) -> 0 | D150: - | F150: x | G150: =OtherNEFind -> 0 | H150: = | I150: 0 | J150: x | K150: 265 | L150: = | M150: 0 | N150: = | O150: 0
K151: Total | L151: = | M151: =SUM(M127:M150) ->  | N151: =
B153: Industrial Sector N2O | E153: =E123+1 -> 1995
C154: Total | E154: Non-Energy
C155: Consumption | E155: Consumption | G155: Emission Factor | I155: Emissions | K155: GWP | M155: Emissions | O155: Emissions
B156: Fuel Type | C156: (Billion Btu) | E156: (Billion Btu) | G156: (metric tons N2O/BBtu) | I156: (metric tons N2O) | M156: (MMTCE) | O156: (MMTCO2E)
B157: Coking Coal | C157: =VLOOKUP($B$2&$D$2&$C$2&$D$2&$B157,ConsumeBlock3,E153-1987,FALSE) ->  | D157: - | F157: x | G157: =CokeCoalNEFind -> 0 | H157: = | I157: =(C157-E157)*G157 ->  | J157: x | K157: =GWPN2O -> 265 | L157: = | M157: =I157*K157*CO2_C/(10^6) ->  | N157: = | O157: =M157/CO2_C -> 
B158: Other Coal | C158: =IF(VLOOKUP($B$2&$D$2&$C$2&$D$2&$B158,ConsumeBlock3,$E153-1987,FALSE)-VLOOKUP($E$2,SyntheticNG,$E153-1988,FALSE)<0,0,VLOOKUP($B$2&$D$2&$C$2&$D$2&$B158,ConsumeBlock3,$E153-1987,FALSE)-VLOOKUP($E$2,SyntheticNG,$E153-1988,FALSE)) ->  | D158: - | F158: x | G158: =OtherCoalNEFind -> 0 | H158: = | I158: =(C158-E158)*G158 ->  | J158: x | K158: =GWPN2O -> 265 | L158: = | M158: =I158*K158*CO2_C/(10^6) ->  | N158: =
B159: Asphalt and Road Oil | C159: =VLOOKUP($B$2&$D$2&$C$2&$D$2&$B159,ConsumeBlock3,8,FALSE) ->  | D159: - | F159: x | G159: =AsphaltNEFind -> 0 | H159: = | J159: x | K159: 265 | L159: = | N159: =
B160: Aviation Gasoline Blending Components | D160: - | F160: x | G160: =AvGasBlendNEFind -> 0 | H160: = | J160: x | K160: 265 | L160: = | N160: =
B161: Crude Oil | D161: - | F161: x | G161: =CrudeNEFind -> 0 | H161: = | J161: x | K161: 265 | L161: = | N161: =
B162: Distillate Fuel | D162: - | F162: x | G162: =DistillNEFind -> 0 | H162: = | J162: x | K162: 265 | L162: = | N162: =
B163: Feedstocks, Naphtha less than 401 F | D163: - | F163: x | G163: =NaphNEFind -> 0 | H163: = | J163: x | K163: 265 | L163: = | N163: =
B164: Feedstocks, Other Oils greater than 401 F | D164: - | F164: x | G164: =OtherOilNEFind -> 0 | H164: = | J164: x | K164: 265 | L164: = | N164: =
B165: Kerosene | D165: - | F165: x | G165: =KeroNEFind -> 0 | H165: = | J165: x | K165: 265 | L165: = | N165: =
B166: Hydrocarbon Gas Liquids | C166: =VLOOKUP($B$2&$D$2&$C$2&$D$2&$B166,ConsumeBlock3,8,FALSE)-C172 ->  | D166: - | F166: x | G166: =LPGNEFind -> 0 | H166: = | J166: x | K166: 265 | L166: = | N166: =
B167: Lubricants | D167: - | F167: x | G167: =LubeNEFind -> 0 | H167: = | J167: x | K167: 265 | L167: = | N167: =
B168: Motor Gasoline | D168: - | F168: x | G168: =MotorGasNEFind -> 0 | H168: = | J168: x | K168: 265 | L168: = | N168: =
B169: Motor Gasoline Blending Components | D169: - | F169: x | G169: =MoGasBlendNEFind -> 0 | H169: = | J169: x | K169: 265 | L169: = | N169: =
B170: Misc. Petro Products | D170: - | F170: x | G170: =MiscNEFind -> 0 | H170: = | J170: x | K170: 265 | L170: = | N170: =
B171: Petroleum Coke | D171: - | F171: x | G171: =PetCokeNEFind -> 0 | H171: = | J171: x | K171: 265 | L171: = | N171: =
B172: Pentanes Plus | D172: - | F172: x | G172: =pentanesNEFind -> 0 | H172: = | J172: x | K172: 265 | L172: = | N172: =
B173: Residual Fuel | D173: - | F173: x | G173: =ResidNEFind -> 0 | H173: = | J173: x | K173: 265 | L173: = | N173: =
B174: Still Gas | D174: - | F174: x | G174: =StillNEFind -> 0 | H174: = | J174: x | K174: 265 | L174: = | N174: =
B175: Special Naphthas | D175: - | F175: x | G175: =SpecialNEFind -> 0 | H175: = | J175: x | K175: 265 | L175: = | N175: =
B176: Unfinished Oils | D176: - | F176: x | G176: =UnfinNEFind -> 0 | H176: = | J176: x | K176: 265 | L176: = | N176: =
B177: Waxes | D177: - | F177: x | G177: =WaxesNEFind -> 0 | H177: = | J177: x | K177: 265 | L177: = | N177: =
B178: Natural Gas | D178: - | F178: x | G178: =NatGasNEFind -> 0 | H178: = | J178: x | K178: 265 | L178: = | N178: =
B179: Wood | D179: - | E179: NA | F179: x | G179: =WoodNEFind -> 0 | H179: = | I179: =C179*G179 ->  | J179: x | K179: 265 | L179: = | N179: =
B180: Other | C180: =VLOOKUP($B$2&$D$2&$C$2&$D$2&$B180,ConsumeBlock3,E153-1987,FALSE) -> 0 | D180: - | F180: x | G180: =OtherNEFind -> 0 | H180: = | I180: 0 | J180: x | K180: 265 | L180: = | M180: 0 | N180: = | O180: 0
K181: Total | L181: = | M181: =SUM(M157:M180) ->  | N181: =
B183: Industrial Sector N2O | E183: =E153+1 -> 1996
C184: Total | E184: Non-Energy
C185: Consumption | E185: Consumption | G185: Emission Factor | I185: Emissions | K185: GWP | M185: Emissions | O185: Emissions
B186: Fuel Type | C186: (Billion Btu) | E186: (Billion Btu) | G186: (metric tons N2O/BBtu) | I186: (metric tons N2O) | M186: (MMTCE) | O186: (MMTCO2E)
B187: Coking Coal | C187: =VLOOKUP($B$2&$D$2&$C$2&$D$2&$B187,ConsumeBlock3,E183-1987,FALSE) ->  | D187: - | F187: x | G187: =CokeCoalNEFind -> 0 | H187: = | I187: =(C187-E187)*G187 ->  | J187: x | K187: =GWPN2O -> 265 | L187: = | M187: =I187*K187*CO2_C/(10^6) ->  | N187: = | O187: =M187/CO2_C -> 
B188: Other Coal | C188: =IF(VLOOKUP($B$2&$D$2&$C$2&$D$2&$B188,ConsumeBlock3,$E183-1987,FALSE)-VLOOKUP($E$2,SyntheticNG,$E183-1988,FALSE)<0,0,VLOOKUP($B$2&$D$2&$C$2&$D$2&$B188,ConsumeBlock3,$E183-1987,FALSE)-VLOOKUP($E$2,SyntheticNG,$E183-1988,FALSE)) ->  | D188: - | F188: x | G188: =OtherCoalNEFind -> 0 | H188: = | I188: =(C188-E188)*G188 ->  | J188: x | K188: =GWPN2O -> 265 | L188: = | M188: =I188*K188*CO2_C/(10^6) ->  | N188: =
B189: Asphalt and Road Oil | C189: =VLOOKUP($B$2&$D$2&$C$2&$D$2&$B189,ConsumeBlock3,9,FALSE) ->  | D189: - | F189: x | G189: =AsphaltNEFind -> 0 | H189: = | J189: x | K189: 265 | L189: = | N189: =
B190: Aviation Gasoline Blending Components | D190: - | F190: x | G190: =AvGasBlendNEFind -> 0 | H190: = | J190: x | K190: 265 | L190: = | N190: =
B191: Crude Oil | D191: - | F191: x | G191: =CrudeNEFind -> 0 | H191: = | J191: x | K191: 265 | L191: = | N191: =
B192: Distillate Fuel | D192: - | F192: x | G192: =DistillNEFind -> 0 | H192: = | J192: x | K192: 265 | L192: = | N192: =
B193: Feedstocks, Naphtha less than 401 F | D193: - | F193: x | G193: =NaphNEFind -> 0 | H193: = | J193: x | K193: 265 | L193: = | N193: =
B194: Feedstocks, Other Oils greater than 401 F | D194: - | F194: x | G194: =OtherOilNEFind -> 0 | H194: = | J194: x | K194: 265 | L194: = | N194: =
B195: Kerosene | D195: - | F195: x | G195: =KeroNEFind -> 0 | H195: = | J195: x | K195: 265 | L195: = | N195: =
B196: Hydrocarbon Gas Liquids | C196: =VLOOKUP($B$2&$D$2&$C$2&$D$2&$B196,ConsumeBlock3,9,FALSE)-C202 ->  | D196: - | F196: x | G196: =LPGNEFind -> 0 | H196: = | J196: x | K196: 265 | L196: = | N196: =
B197: Lubricants | D197: - | F197: x | G197: =LubeNEFind -> 0 | H197: = | J197: x | K197: 265 | L197: = | N197: =
B198: Motor Gasoline | D198: - | F198: x | G198: =MotorGasNEFind -> 0 | H198: = | J198: x | K198: 265 | L198: = | N198: =
B199: Motor Gasoline Blending Components | D199: - | F199: x | G199: =MoGasBlendNEFind -> 0 | H199: = | J199: x | K199: 265 | L199: = | N199: =
B200: Misc. Petro Products | D200: - | F200: x | G200: =MiscNEFind -> 0 | H200: = | J200: x | K200: 265 | L200: = | N200: =
B201: Petroleum Coke | D201: - | F201: x | G201: =PetCokeNEFind -> 0 | H201: = | J201: x | K201: 265 | L201: = | N201: =
B202: Pentanes Plus | D202: - | F202: x | G202: =pentanesNEFind -> 0 | H202: = | J202: x | K202: 265 | L202: = | N202: =
B203: Residual Fuel | D203: - | F203: x | G203: =ResidNEFind -> 0 | H203: = | J203: x | K203: 265 | L203: = | N203: =
B204: Still Gas | D204: - | F204: x | G204: =StillNEFind -> 0 | H204: = | J204: x | K204: 265 | L204: = | N204: =
B205: Special Naphthas | D205: - | F205: x | G205: =SpecialNEFind -> 0 | H205: = | J205: x | K205: 265 | L205: = | N205: =
B206: Unfinished Oils | D206: - | F206: x | G206: =UnfinNEFind -> 0 | H206: = | J206: x | K206: 265 | L206: = | N206: =
... 846 more rows

Sheet Industrial CH4
B1: ="5. Industrial Consumption and CH4 emissions in "&Constants!G2 -> 5. Industrial Consumption and CH4 emissions in Select a State . . .
B2: =Constants!H2 -> xx | C2: Industrial | D2: =" " -> 
B3: Industrial Sector CH4 | E3: 1990
C4: Total | E4: Non-Energy
C5: Consumption | E5: Consumption | G5: Emission Factor | I5: Emissions | K5: GWP | M5: Emissions | O5: Emissions
B6: Fuel Type | C6: (Billion Btu) | E6: (Billion Btu) | G6: (metric tons CH4 /BBtu) | I6: (metric tons CH4) | M6: (MMTCE) | O6: (MMTCO2E)
B7: Coking Coal | C7: ='Industrial N2O'!C7 ->  | D7: - | E7: ='Industrial N2O'!E7 -> 0 | F7: x | G7: =CokeCoalCEFind -> 0 | H7: = | I7: =(C7-E7)*G7 ->  | J7: x | K7: =GWPCH4 -> 28 | L7: = | M7: =I7*K7*CO2_C/(10^6) ->  | N7: = | O7: =M7/CO2_C -> 
B8: Other Coal | C8: ='Industrial N2O'!C8 ->  | D8: - | E8: ='Industrial N2O'!E8 -> 0 | F8: x | G8: =OtherCoalCEFind -> 0 | H8: = | I8: =(C8-E8)*G8 ->  | J8: x | K8: =GWPCH4 -> 28 | L8: = | M8: =I8*K8*CO2_C/(10^6) ->  | N8: =
B9: Asphalt and Road Oil | C9: ='Industrial N2O'!C9 ->  | D9: - | E9: ='Industrial N2O'!E9 -> 0 | F9: x | G9: =AsphaltCEFind -> 0 | H9: = | J9: x | K9: 28 | L9: = | N9: =
B10: Aviation Gasoline Blending Components | C10: ='Industrial N2O'!C10 ->  | D10: - | E10: ='Industrial N2O'!E10 -> 0 | F10: x | G10: =AvGasBlendCEFind -> 0 | H10: = | J10: x | K10: 28 | L10: = | N10: =
B11: Crude Oil | C11: ='Industrial N2O'!C11 ->  | D11: - | E11: ='Industrial N2O'!E11 -> 0 | F11: x | G11: =CrudeCEFind -> 0 | H11: = | J11: x | K11: 28 | L11: = | N11: =
B12: Distillate Fuel | C12: ='Industrial N2O'!C12 ->  | D12: - | E12: ='Industrial N2O'!E12 -> 0 | F12: x | G12: =DistillCEFind -> 0 | H12: = | J12: x | K12: 28 | L12: = | N12: =
B13: Feedstocks, Naphtha less than 401 F | C13: ='Industrial N2O'!C13 ->  | D13: - | E13: ='Industrial N2O'!E13 -> 0 | F13: x | G13: =NaphCEFind -> 0 | H13: = | J13: x | K13: 28 | L13: = | N13: =
B14: Feedstocks, Other Oils greater than 401 F | C14: ='Industrial N2O'!C14 ->  | D14: - | E14: ='Industrial N2O'!E14 -> 0 | F14: x | G14: =OtherOilCEFind -> 0 | H14: = | J14: x | K14: 28 | L14: = | N14: =
B15: Kerosene | C15: ='Industrial N2O'!C15 ->  | D15: - | E15: ='Industrial N2O'!E15 -> 0 | F15: x | G15: =KeroCEFind -> 0 | H15: = | J15: x | K15: 28 | L15: = | N15: =
B16: Hydrocarbon Gas Liquids | C16: ='Industrial N2O'!C16 ->  | D16: - | E16: ='Industrial N2O'!E16 -> 0 | F16: x | G16: =LPGCEFind -> 0 | H16: = | J16: x | K16: 28 | L16: = | N16: =
B17: Lubricants | C17: ='Industrial N2O'!C17 ->  | D17: - | E17: ='Industrial N2O'!E17 -> 0 | F17: x | G17: =LubeCEFind -> 0 | H17: = | J17: x | K17: 28 | L17: = | N17: =
B18: Motor Gasoline | C18: ='Industrial N2O'!C18 ->  | D18: - | E18: ='Industrial N2O'!E18 -> 0 | F18: x | G18: =MotorGasCEFind -> 0 | H18: = | J18: x | K18: 28 | L18: = | N18: =
B19: Motor Gasoline Blending Components | C19: ='Industrial N2O'!C19 ->  | D19: - | E19: ='Industrial N2O'!E19 -> 0 | F19: x | G19: =MoGasBlendCEFind -> 0 | H19: = | J19: x | K19: 28 | L19: = | N19: =
B20: Misc. Petro Products | C20: ='Industrial N2O'!C20 ->  | D20: - | E20: ='Industrial N2O'!E20 -> 0 | F20: x | G20: =MiscCEFind -> 0 | H20: = | J20: x | K20: 28 | L20: = | N20: =
B21: Petroleum Coke | C21: ='Industrial N2O'!C21 ->  | D21: - | E21: ='Industrial N2O'!E21 -> 0 | F21: x | G21: =PetCokeCEFind -> 0 | H21: = | J21: x | K21: 28 | L21: = | N21: =
B22: Pentanes Plus | C22: ='Industrial N2O'!C22 ->  | D22: - | E22: ='Industrial N2O'!E22 -> 0 | F22: x | G22: =pentanesCEFind -> 0 | H22: = | J22: x | K22: 28 | L22: = | N22: =
B23: Residual Fuel | C23: ='Industrial N2O'!C23 ->  | D23: - | E23: ='Industrial N2O'!E23 -> 0 | F23: x | G23: =ResidCEFind -> 0 | H23: = | J23: x | K23: 28 | L23: = | N23: =
B24: Still Gas | C24: ='Industrial N2O'!C24 ->  | D24: - | E24: ='Industrial N2O'!E24 -> 0 | F24: x | G24: =StillCEFind -> 0 | H24: = | J24: x | K24: 28 | L24: = | N24: =
B25: Special Naphthas | C25: ='Industrial N2O'!C25 ->  | D25: - | E25: ='Industrial N2O'!E25 -> 0 | F25: x | G25: =SpecialCEFind -> 0 | H25: = | J25: x | K25: 28 | L25: = | N25: =
B26: Unfinished Oils | C26: ='Industrial N2O'!C26 ->  | D26: - | E26: ='Industrial N2O'!E26 -> 0 | F26: x | G26: =UnfinCEFind -> 0 | H26: = | J26: x | K26: 28 | L26: = | N26: =
B27: Waxes | C27: ='Industrial N2O'!C27 ->  | D27: - | E27: ='Industrial N2O'!E27 -> 0 | F27: x | G27: =WaxesCEFind -> 0 | H27: = | J27: x | K27: 28 | L27: = | N27: =
B28: Natural Gas | C28: ='Industrial N2O'!C28 ->  | D28: - | E28: ='Industrial N2O'!E28 -> 0 | F28: x | G28: =NatGasCEFind -> 0 | H28: = | J28: x | K28: 28 | L28: = | N28: =
B29: Wood | C29: ='Industrial N2O'!C29 ->  | E29: ='Industrial N2O'!E29 -> NA | F29: x | G29: =WoodCEFind -> 0 | H29: = | I29: =C29*G29 ->  | J29: x | K29: 28 | L29: = | N29: =
B30: Other | C30: ='Industrial N2O'!C30 -> 0 | D30: - | E30: ='Industrial N2O'!E30 -> 0 | F30: x | G30: =OtherCEFind -> 0 | H30: = | I30: 0 | J30: x | K30: 28 | L30: = | M30: 0 | N30: = | O30: 0
K31: Total | L31: = | M31: =SUM(M7:M30) ->  | N31: =
B33: Industrial Sector CH4 | E33: =E3+1 -> 1991
C34: Total | E34: Non-Energy
C35: Consumption | E35: Consumption | G35: Emission Factor | I35: Emissions | K35: GWP | M35: Emissions | O35: Emissions
B36: Fuel Type | C36: (Billion Btu) | E36: (Billion Btu) | G36: (metric tons CH4 /BBtu) | I36: (metric tons CH4) | M36: (MMTCE) | O36: (MMTCO2E)
B37: Coking Coal | C37: ='Industrial N2O'!C37 ->  | D37: - | E37: ='Industrial N2O'!E37 -> 0 | F37: x | G37: =CokeCoalCEFind -> 0 | H37: = | I37: =(C37-E37)*G37 ->  | J37: x | K37: =GWPCH4 -> 28 | L37: = | M37: =I37*K37*CO2_C/(10^6) ->  | N37: = | O37: =M37/CO2_C -> 
B38: Other Coal | C38: ='Industrial N2O'!C38 ->  | D38: - | E38: ='Industrial N2O'!E38 -> 0 | F38: x | G38: =OtherCoalCEFind -> 0 | H38: = | I38: =(C38-E38)*G38 ->  | J38: x | K38: =GWPCH4 -> 28 | L38: = | M38: =I38*K38*CO2_C/(10^6) ->  | N38: =
B39: Asphalt and Road Oil | C39: ='Industrial N2O'!C39 ->  | D39: - | E39: ='Industrial N2O'!E39 -> 0 | F39: x | G39: =AsphaltCEFind -> 0 | H39: = | J39: x | K39: 28 | L39: = | N39: =
B40: Aviation Gasoline Blending Components | C40: ='Industrial N2O'!C40 ->  | D40: - | E40: ='Industrial N2O'!E40 -> 0 | F40: x | G40: =AvGasBlendCEFind -> 0 | H40: = | J40: x | K40: 28 | L40: = | N40: =
B41: Crude Oil | C41: ='Industrial N2O'!C41 ->  | D41: - | E41: ='Industrial N2O'!E41 -> 0 | F41: x | G41: =CrudeCEFind -> 0 | H41: = | J41: x | K41: 28 | L41: = | N41: =
B42: Distillate Fuel | C42: ='Industrial N2O'!C42 ->  | D42: - | E42: ='Industrial N2O'!E42 -> 0 | F42: x | G42: =DistillCEFind -> 0 | H42: = | J42: x | K42: 28 | L42: = | N42: =
B43: Feedstocks, Naphtha less than 401 F | C43: ='Industrial N2O'!C43 ->  | D43: - | E43: ='Industrial N2O'!E43 -> 0 | F43: x | G43: =NaphCEFind -> 0 | H43: = | J43: x | K43: 28 | L43: = | N43: =
B44: Feedstocks, Other Oils greater than 401 F | C44: ='Industrial N2O'!C44 ->  | D44: - | E44: ='Industrial N2O'!E44 -> 0 | F44: x | G44: =OtherOilCEFind -> 0 | H44: = | J44: x | K44: 28 | L44: = | N44: =
B45: Kerosene | C45: ='Industrial N2O'!C45 ->  | D45: - | E45: ='Industrial N2O'!E45 -> 0 | F45: x | G45: =KeroCEFind -> 0 | H45: = | J45: x | K45: 28 | L45: = | N45: =
B46: Hydrocarbon Gas Liquids | C46: ='Industrial N2O'!C46 ->  | D46: - | E46: ='Industrial N2O'!E46 -> 0 | F46: x | G46: =LPGCEFind -> 0 | H46: = | J46: x | K46: 28 | L46: = | N46: =
B47: Lubricants | C47: ='Industrial N2O'!C47 ->  | D47: - | E47: ='Industrial N2O'!E47 -> 0 | F47: x | G47: =LubeCEFind -> 0 | H47: = | J47: x | K47: 28 | L47: = | N47: =
B48: Motor Gasoline | C48: ='Industrial N2O'!C48 ->  | D48: - | E48: ='Industrial N2O'!E48 -> 0 | F48: x | G48: =MotorGasCEFind -> 0 | H48: = | J48: x | K48: 28 | L48: = | N48: =
B49: Motor Gasoline Blending Components | C49: ='Industrial N2O'!C49 ->  | D49: - | E49: ='Industrial N2O'!E49 -> 0 | F49: x | G49: =MoGasBlendCEFind -> 0 | H49: = | J49: x | K49: 28 | L49: = | N49: =
B50: Misc. Petro Products | C50: ='Industrial N2O'!C50 ->  | D50: - | E50: ='Industrial N2O'!E50 -> 0 | F50: x | G50: =MiscCEFind -> 0 | H50: = | J50: x | K50: 28 | L50: = | N50: =
B51: Petroleum Coke | C51: ='Industrial N2O'!C51 ->  | D51: - | E51: ='Industrial N2O'!E51 -> 0 | F51: x | G51: =PetCokeCEFind -> 0 | H51: = | J51: x | K51: 28 | L51: = | N51: =
B52: Pentanes Plus | C52: ='Industrial N2O'!C52 ->  | D52: - | E52: ='Industrial N2O'!E52 -> 0 | F52: x | G52: =pentanesCEFind -> 0 | H52: = | J52: x | K52: 28 | L52: = | N52: =
B53: Residual Fuel | C53: ='Industrial N2O'!C53 ->  | D53: - | E53: ='Industrial N2O'!E53 -> 0 | F53: x | G53: =ResidCEFind -> 0 | H53: = | J53: x | K53: 28 | L53: = | N53: =
B54: Still Gas | C54: ='Industrial N2O'!C54 ->  | D54: - | E54: ='Industrial N2O'!E54 -> 0 | F54: x | G54: =StillCEFind -> 0 | H54: = | J54: x | K54: 28 | L54: = | N54: =
B55: Special Naphthas | C55: ='Industrial N2O'!C55 ->  | D55: - | E55: ='Industrial N2O'!E55 -> 0 | F55: x | G55: =SpecialCEFind -> 0 | H55: = | J55: x | K55: 28 | L55: = | N55: =
B56: Unfinished Oils | C56: ='Industrial N2O'!C56 ->  | D56: - | E56: ='Industrial N2O'!E56 -> 0 | F56: x | G56: =UnfinCEFind -> 0 | H56: = | J56: x | K56: 28 | L56: = | N56: =
B57: Waxes | C57: ='Industrial N2O'!C57 ->  | D57: - | E57: ='Industrial N2O'!E57 -> 0 | F57: x | G57: =WaxesCEFind -> 0 | H57: = | J57: x | K57: 28 | L57: = | N57: =
B58: Natural Gas | C58: ='Industrial N2O'!C58 ->  | D58: - | E58: ='Industrial N2O'!E58 -> 0 | F58: x | G58: =NatGasCEFind -> 0 | H58: = | J58: x | K58: 28 | L58: = | N58: =
B59: Wood | C59: ='Industrial N2O'!C59 ->  | E59: ='Industrial N2O'!E59 -> NA | F59: x | G59: =WoodCEFind -> 0 | H59: = | I59: =C59*G59 ->  | J59: x | K59: 28 | L59: = | N59: =
B60: Other | C60: ='Industrial N2O'!C60 -> 0 | D60: - | E60: ='Industrial N2O'!E60 -> 0 | F60: x | G60: =OtherCEFind -> 0 | H60: = | I60: 0 | J60: x | K60: 28 | L60: = | M60: 0 | N60: = | O60: 0
K61: Total | L61: = | M61: =SUM(M37:M60) ->  | N61: =
B63: Industrial Sector CH4 | E63: =E33+1 -> 1992
C64: Total | E64: Non-Energy
C65: Consumption | E65: Consumption | G65: Emission Factor | I65: Emissions | K65: GWP | M65: Emissions | O65: Emissions
B66: Fuel Type | C66: (Billion Btu) | E66: (Billion Btu) | G66: (metric tons CH4 /BBtu) | I66: (metric tons CH4) | M66: (MMTCE) | O66: (MMTCO2E)
B67: Coking Coal | C67: ='Industrial N2O'!C67 ->  | D67: - | E67: ='Industrial N2O'!E67 -> 0 | F67: x | G67: =CokeCoalCEFind -> 0 | H67: = | I67: =(C67-E67)*G67 ->  | J67: x | K67: =GWPCH4 -> 28 | L67: = | M67: =I67*K67*CO2_C/(10^6) ->  | N67: = | O67: =M67/CO2_C -> 
B68: Other Coal | C68: ='Industrial N2O'!C68 ->  | D68: - | E68: ='Industrial N2O'!E68 -> 0 | F68: x | G68: =OtherCoalCEFind -> 0 | H68: = | I68: =(C68-E68)*G68 ->  | J68: x | K68: =GWPCH4 -> 28 | L68: = | M68: =I68*K68*CO2_C/(10^6) ->  | N68: =
B69: Asphalt and Road Oil | C69: ='Industrial N2O'!C69 ->  | D69: - | E69: ='Industrial N2O'!E69 -> 0 | F69: x | G69: =AsphaltCEFind -> 0 | H69: = | J69: x | K69: 28 | L69: = | N69: =
B70: Aviation Gasoline Blending Components | C70: ='Industrial N2O'!C70 ->  | D70: - | E70: ='Industrial N2O'!E70 -> 0 | F70: x | G70: =AvGasBlendCEFind -> 0 | H70: = | J70: x | K70: 28 | L70: = | N70: =
B71: Crude Oil | C71: ='Industrial N2O'!C71 ->  | D71: - | E71: ='Industrial N2O'!E71 -> 0 | F71: x | G71: =CrudeCEFind -> 0 | H71: = | J71: x | K71: 28 | L71: = | N71: =
B72: Distillate Fuel | C72: ='Industrial N2O'!C72 ->  | D72: - | E72: ='Industrial N2O'!E72 -> 0 | F72: x | G72: =DistillCEFind -> 0 | H72: = | J72: x | K72: 28 | L72: = | N72: =
B73: Feedstocks, Naphtha less than 401 F | C73: ='Industrial N2O'!C73 ->  | D73: - | E73: ='Industrial N2O'!E73 -> 0 | F73: x | G73: =NaphCEFind -> 0 | H73: = | J73: x | K73: 28 | L73: = | N73: =
B74: Feedstocks, Other Oils greater than 401 F | C74: ='Industrial N2O'!C74 ->  | D74: - | E74: ='Industrial N2O'!E74 -> 0 | F74: x | G74: =OtherOilCEFind -> 0 | H74: = | J74: x | K74: 28 | L74: = | N74: =
B75: Kerosene | C75: ='Industrial N2O'!C75 ->  | D75: - | E75: ='Industrial N2O'!E75 -> 0 | F75: x | G75: =KeroCEFind -> 0 | H75: = | J75: x | K75: 28 | L75: = | N75: =
B76: Hydrocarbon Gas Liquids | C76: ='Industrial N2O'!C76 ->  | D76: - | E76: ='Industrial N2O'!E76 -> 0 | F76: x | G76: =LPGCEFind -> 0 | H76: = | J76: x | K76: 28 | L76: = | N76: =
B77: Lubricants | C77: ='Industrial N2O'!C77 ->  | D77: - | E77: ='Industrial N2O'!E77 -> 0 | F77: x | G77: =LubeCEFind -> 0 | H77: = | J77: x | K77: 28 | L77: = | N77: =
B78: Motor Gasoline | C78: ='Industrial N2O'!C78 ->  | D78: - | E78: ='Industrial N2O'!E78 -> 0 | F78: x | G78: =MotorGasCEFind -> 0 | H78: = | J78: x | K78: 28 | L78: = | N78: =
B79: Motor Gasoline Blending Components | C79: ='Industrial N2O'!C79 ->  | D79: - | E79: ='Industrial N2O'!E79 -> 0 | F79: x | G79: =MoGasBlendCEFind -> 0 | H79: = | J79: x | K79: 28 | L79: = | N79: =
B80: Misc. Petro Products | C80: ='Industrial N2O'!C80 ->  | D80: - | E80: ='Industrial N2O'!E80 -> 0 | F80: x | G80: =MiscCEFind -> 0 | H80: = | J80: x | K80: 28 | L80: = | N80: =
B81: Petroleum Coke | C81: ='Industrial N2O'!C81 ->  | D81: - | E81: ='Industrial N2O'!E81 -> 0 | F81: x | G81: =PetCokeCEFind -> 0 | H81: = | J81: x | K81: 28 | L81: = | N81: =
B82: Pentanes Plus | C82: ='Industrial N2O'!C82 ->  | D82: - | E82: ='Industrial N2O'!E82 -> 0 | F82: x | G82: =pentanesCEFind -> 0 | H82: = | J82: x | K82: 28 | L82: = | N82: =
B83: Residual Fuel | C83: ='Industrial N2O'!C83 ->  | D83: - | E83: ='Industrial N2O'!E83 -> 0 | F83: x | G83: =ResidCEFind -> 0 | H83: = | J83: x | K83: 28 | L83: = | N83: =
B84: Still Gas | C84: ='Industrial N2O'!C84 ->  | D84: - | E84: ='Industrial N2O'!E84 -> 0 | F84: x | G84: =StillCEFind -> 0 | H84: = | J84: x | K84: 28 | L84: = | N84: =
B85: Special Naphthas | C85: ='Industrial N2O'!C85 ->  | D85: - | E85: ='Industrial N2O'!E85 -> 0 | F85: x | G85: =SpecialCEFind -> 0 | H85: = | J85: x | K85: 28 | L85: = | N85: =
B86: Unfinished Oils | C86: ='Industrial N2O'!C86 ->  | D86: - | E86: ='Industrial N2O'!E86 -> 0 | F86: x | G86: =UnfinCEFind -> 0 | H86: = | J86: x | K86: 28 | L86: = | N86: =
B87: Waxes | C87: ='Industrial N2O'!C87 ->  | D87: - | E87: ='Industrial N2O'!E87 -> 0 | F87: x | G87: =WaxesCEFind -> 0 | H87: = | J87: x | K87: 28 | L87: = | N87: =
B88: Natural Gas | C88: ='Industrial N2O'!C88 ->  | D88: - | E88: ='Industrial N2O'!E88 -> 0 | F88: x | G88: =NatGasCEFind -> 0 | H88: = | J88: x | K88: 28 | L88: = | N88: =
B89: Wood | C89: ='Industrial N2O'!C89 ->  | E89: ='Industrial N2O'!E89 -> NA | F89: x | G89: =WoodCEFind -> 0 | H89: = | I89: =C89*G89 ->  | J89: x | K89: 28 | L89: = | N89: =
B90: Other | C90: ='Industrial N2O'!C90 -> 0 | D90: - | E90: ='Industrial N2O'!E90 -> 0 | F90: x | G90: =OtherCEFind -> 0 | H90: = | I90: 0 | J90: x | K90: 28 | L90: = | M90: 0 | N90: = | O90: 0
K91: Total | L91: = | M91: =SUM(M67:M90) ->  | N91: =
B93: Industrial Sector CH4 | E93: =E63+1 -> 1993
C94: Total | E94: Non-Energy
C95: Consumption | E95: Consumption | G95: Emission Factor | I95: Emissions | K95: GWP | M95: Emissions | O95: Emissions
B96: Fuel Type | C96: (Billion Btu) | E96: (Billion Btu) | G96: (metric tons CH4 /BBtu) | I96: (metric tons CH4) | M96: (MMTCE) | O96: (MMTCO2E)
B97: Coking Coal | C97: ='Industrial N2O'!C97 ->  | D97: - | E97: ='Industrial N2O'!E97 -> 0 | F97: x | G97: =CokeCoalCEFind -> 0 | H97: = | I97: =(C97-E97)*G97 ->  | J97: x | K97: =GWPCH4 -> 28 | L97: = | M97: =I97*K97*CO2_C/(10^6) ->  | N97: = | O97: =M97/CO2_C -> 
B98: Other Coal | C98: ='Industrial N2O'!C98 ->  | D98: - | E98: ='Industrial N2O'!E98 -> 0 | F98: x | G98: =OtherCoalCEFind -> 0 | H98: = | I98: =(C98-E98)*G98 ->  | J98: x | K98: =GWPCH4 -> 28 | L98: = | M98: =I98*K98*CO2_C/(10^6) ->  | N98: =
B99: Asphalt and Road Oil | C99: ='Industrial N2O'!C99 ->  | D99: - | E99: ='Industrial N2O'!E99 -> 0 | F99: x | G99: =AsphaltCEFind -> 0 | H99: = | J99: x | K99: 28 | L99: = | N99: =
B100: Aviation Gasoline Blending Components | C100: ='Industrial N2O'!C100 ->  | D100: - | E100: ='Industrial N2O'!E100 -> 0 | F100: x | G100: =AvGasBlendCEFind -> 0 | H100: = | J100: x | K100: 28 | L100: = | N100: =
B101: Crude Oil | C101: ='Industrial N2O'!C101 ->  | D101: - | E101: ='Industrial N2O'!E101 -> 0 | F101: x | G101: =CrudeCEFind -> 0 | H101: = | J101: x | K101: 28 | L101: = | N101: =
B102: Distillate Fuel | C102: ='Industrial N2O'!C102 ->  | D102: - | E102: ='Industrial N2O'!E102 -> 0 | F102: x | G102: =DistillCEFind -> 0 | H102: = | J102: x | K102: 28 | L102: = | N102: =
B103: Feedstocks, Naphtha less than 401 F | C103: ='Industrial N2O'!C103 ->  | D103: - | E103: ='Industrial N2O'!E103 -> 0 | F103: x | G103: =NaphCEFind -> 0 | H103: = | J103: x | K103: 28 | L103: = | N103: =
B104: Feedstocks, Other Oils greater than 401 F | C104: ='Industrial N2O'!C104 ->  | D104: - | E104: ='Industrial N2O'!E104 -> 0 | F104: x | G104: =OtherOilCEFind -> 0 | H104: = | J104: x | K104: 28 | L104: = | N104: =
B105: Kerosene | C105: ='Industrial N2O'!C105 ->  | D105: - | E105: ='Industrial N2O'!E105 -> 0 | F105: x | G105: =KeroCEFind -> 0 | H105: = | J105: x | K105: 28 | L105: = | N105: =
B106: Hydrocarbon Gas Liquids | C106: ='Industrial N2O'!C106 ->  | D106: - | E106: ='Industrial N2O'!E106 -> 0 | F106: x | G106: =LPGCEFind -> 0 | H106: = | J106: x | K106: 28 | L106: = | N106: =
B107: Lubricants | C107: ='Industrial N2O'!C107 ->  | D107: - | E107: ='Industrial N2O'!E107 -> 0 | F107: x | G107: =LubeCEFind -> 0 | H107: = | J107: x | K107: 28 | L107: = | N107: =
B108: Motor Gasoline | C108: ='Industrial N2O'!C108 ->  | D108: - | E108: ='Industrial N2O'!E108 -> 0 | F108: x | G108: =MotorGasCEFind -> 0 | H108: = | J108: x | K108: 28 | L108: = | N108: =
B109: Motor Gasoline Blending Components | C109: ='Industrial N2O'!C109 ->  | D109: - | E109: ='Industrial N2O'!E109 -> 0 | F109: x | G109: =MoGasBlendCEFind -> 0 | H109: = | J109: x | K109: 28 | L109: = | N109: =
B110: Misc. Petro Products | C110: ='Industrial N2O'!C110 ->  | D110: - | E110: ='Industrial N2O'!E110 -> 0 | F110: x | G110: =MiscCEFind -> 0 | H110: = | J110: x | K110: 28 | L110: = | N110: =
B111: Petroleum Coke | C111: ='Industrial N2O'!C111 ->  | D111: - | E111: ='Industrial N2O'!E111 -> 0 | F111: x | G111: =PetCokeCEFind -> 0 | H111: = | J111: x | K111: 28 | L111: = | N111: =
B112: Pentanes Plus | C112: ='Industrial N2O'!C112 ->  | D112: - | E112: ='Industrial N2O'!E112 -> 0 | F112: x | G112: =pentanesCEFind -> 0 | H112: = | J112: x | K112: 28 | L112: = | N112: =
B113: Residual Fuel | C113: ='Industrial N2O'!C113 ->  | D113: - | E113: ='Industrial N2O'!E113 -> 0 | F113: x | G113: =ResidCEFind -> 0 | H113: = | J113: x | K113: 28 | L113: = | N113: =
B114: Still Gas | C114: ='Industrial N2O'!C114 ->  | D114: - | E114: ='Industrial N2O'!E114 -> 0 | F114: x | G114: =StillCEFind -> 0 | H114: = | J114: x | K114: 28 | L114: = | N114: =
B115: Special Naphthas | C115: ='Industrial N2O'!C115 ->  | D115: - | E115: ='Industrial N2O'!E115 -> 0 | F115: x | G115: =SpecialCEFind -> 0 | H115: = | J115: x | K115: 28 | L115: = | N115: =
B116: Unfinished Oils | C116: ='Industrial N2O'!C116 ->  | D116: - | E116: ='Industrial N2O'!E116 -> 0 | F116: x | G116: =UnfinCEFind -> 0 | H116: = | J116: x | K116: 28 | L116: = | N116: =
B117: Waxes | C117: ='Industrial N2O'!C117 ->  | D117: - | E117: ='Industrial N2O'!E117 -> 0 | F117: x | G117: =WaxesCEFind -> 0 | H117: = | J117: x | K117: 28 | L117: = | N117: =
B118: Natural Gas | C118: ='Industrial N2O'!C118 ->  | D118: - | E118: ='Industrial N2O'!E118 -> 0 | F118: x | G118: =NatGasCEFind -> 0 | H118: = | J118: x | K118: 28 | L118: = | N118: =
B119: Wood | C119: ='Industrial N2O'!C119 ->  | E119: ='Industrial N2O'!E119 -> NA | F119: x | G119: =WoodCEFind -> 0 | H119: = | I119: =C119*G119 ->  | J119: x | K119: 28 | L119: = | N119: =
B120: Other | C120: ='Industrial N2O'!C120 -> 0 | D120: - | E120: ='Industrial N2O'!E120 -> 0 | F120: x | G120: =OtherCEFind -> 0 | H120: = | I120: 0 | J120: x | K120: 28 | L120: = | M120: 0 | N120: = | O120: 0
K121: Total | L121: = | M121: =SUM(M97:M120) ->  | N121: =
B123: Industrial Sector CH4 | E123: =E93+1 -> 1994
C124: Total | E124: Non-Energy
C125: Consumption | E125: Consumption | G125: Emission Factor | I125: Emissions | K125: GWP | M125: Emissions | O125: Emissions
B126: Fuel Type | C126: (Billion Btu) | E126: (Billion Btu) | G126: (metric tons CH4 /BBtu) | I126: (metric tons CH4) | M126: (MMTCE) | O126: (MMTCO2E)
B127: Coking Coal | C127: ='Industrial N2O'!C127 ->  | D127: - | E127: ='Industrial N2O'!E127 -> 0 | F127: x | G127: =CokeCoalCEFind -> 0 | H127: = | I127: =(C127-E127)*G127 ->  | J127: x | K127: =GWPCH4 -> 28 | L127: = | M127: =I127*K127*CO2_C/(10^6) ->  | N127: = | O127: =M127/CO2_C -> 
B128: Other Coal | C128: ='Industrial N2O'!C128 ->  | D128: - | E128: ='Industrial N2O'!E128 -> 0 | F128: x | G128: =OtherCoalCEFind -> 0 | H128: = | I128: =(C128-E128)*G128 ->  | J128: x | K128: =GWPCH4 -> 28 | L128: = | M128: =I128*K128*CO2_C/(10^6) ->  | N128: =
B129: Asphalt and Road Oil | C129: ='Industrial N2O'!C129 ->  | D129: - | E129: ='Industrial N2O'!E129 -> 0 | F129: x | G129: =AsphaltCEFind -> 0 | H129: = | J129: x | K129: 28 | L129: = | N129: =
B130: Aviation Gasoline Blending Components | C130: ='Industrial N2O'!C130 ->  | D130: - | E130: ='Industrial N2O'!E130 -> 0 | F130: x | G130: =AvGasBlendCEFind -> 0 | H130: = | J130: x | K130: 28 | L130: = | N130: =
B131: Crude Oil | C131: ='Industrial N2O'!C131 ->  | D131: - | E131: ='Industrial N2O'!E131 -> 0 | F131: x | G131: =CrudeCEFind -> 0 | H131: = | J131: x | K131: 28 | L131: = | N131: =
B132: Distillate Fuel | C132: ='Industrial N2O'!C132 ->  | D132: - | E132: ='Industrial N2O'!E132 -> 0 | F132: x | G132: =DistillCEFind -> 0 | H132: = | J132: x | K132: 28 | L132: = | N132: =
B133: Feedstocks, Naphtha less than 401 F | C133: ='Industrial N2O'!C133 ->  | D133: - | E133: ='Industrial N2O'!E133 -> 0 | F133: x | G133: =NaphCEFind -> 0 | H133: = | J133: x | K133: 28 | L133: = | N133: =
B134: Feedstocks, Other Oils greater than 401 F | C134: ='Industrial N2O'!C134 ->  | D134: - | E134: ='Industrial N2O'!E134 -> 0 | F134: x | G134: =OtherOilCEFind -> 0 | H134: = | J134: x | K134: 28 | L134: = | N134: =
B135: Kerosene | C135: ='Industrial N2O'!C135 ->  | D135: - | E135: ='Industrial N2O'!E135 -> 0 | F135: x | G135: =KeroCEFind -> 0 | H135: = | J135: x | K135: 28 | L135: = | N135: =
B136: Hydrocarbon Gas Liquids | C136: ='Industrial N2O'!C136 ->  | D136: - | E136: ='Industrial N2O'!E136 -> 0 | F136: x | G136: =LPGCEFind -> 0 | H136: = | J136: x | K136: 28 | L136: = | N136: =
B137: Lubricants | C137: ='Industrial N2O'!C137 ->  | D137: - | E137: ='Industrial N2O'!E137 -> 0 | F137: x | G137: =LubeCEFind -> 0 | H137: = | J137: x | K137: 28 | L137: = | N137: =
B138: Motor Gasoline | C138: ='Industrial N2O'!C138 ->  | D138: - | E138: ='Industrial N2O'!E138 -> 0 | F138: x | G138: =MotorGasCEFind -> 0 | H138: = | J138: x | K138: 28 | L138: = | N138: =
B139: Motor Gasoline Blending Components | C139: ='Industrial N2O'!C139 ->  | D139: - | E139: ='Industrial N2O'!E139 -> 0 | F139: x | G139: =MoGasBlendCEFind -> 0 | H139: = | J139: x | K139: 28 | L139: = | N139: =
B140: Misc. Petro Products | C140: ='Industrial N2O'!C140 ->  | D140: - | E140: ='Industrial N2O'!E140 -> 0 | F140: x | G140: =MiscCEFind -> 0 | H140: = | J140: x | K140: 28 | L140: = | N140: =
B141: Petroleum Coke | C141: ='Industrial N2O'!C141 ->  | D141: - | E141: ='Industrial N2O'!E141 -> 0 | F141: x | G141: =PetCokeCEFind -> 0 | H141: = | J141: x | K141: 28 | L141: = | N141: =
B142: Pentanes Plus | C142: ='Industrial N2O'!C142 ->  | D142: - | E142: ='Industrial N2O'!E142 -> 0 | F142: x | G142: =pentanesCEFind -> 0 | H142: = | J142: x | K142: 28 | L142: = | N142: =
B143: Residual Fuel | C143: ='Industrial N2O'!C143 ->  | D143: - | E143: ='Industrial N2O'!E143 -> 0 | F143: x | G143: =ResidCEFind -> 0 | H143: = | J143: x | K143: 28 | L143: = | N143: =
B144: Still Gas | C144: ='Industrial N2O'!C144 ->  | D144: - | E144: ='Industrial N2O'!E144 -> 0 | F144: x | G144: =StillCEFind -> 0 | H144: = | J144: x | K144: 28 | L144: = | N144: =
B145: Special Naphthas | C145: ='Industrial N2O'!C145 ->  | D145: - | E145: ='Industrial N2O'!E145 -> 0 | F145: x | G145: =SpecialCEFind -> 0 | H145: = | J145: x | K145: 28 | L145: = | N145: =
B146: Unfinished Oils | C146: ='Industrial N2O'!C146 ->  | D146: - | E146: ='Industrial N2O'!E146 -> 0 | F146: x | G146: =UnfinCEFind -> 0 | H146: = | J146: x | K146: 28 | L146: = | N146: =
B147: Waxes | C147: ='Industrial N2O'!C147 ->  | D147: - | E147: ='Industrial N2O'!E147 -> 0 | F147: x | G147: =WaxesCEFind -> 0 | H147: = | J147: x | K147: 28 | L147: = | N147: =
B148: Natural Gas | C148: ='Industrial N2O'!C148 ->  | D148: - | E148: ='Industrial N2O'!E148 -> 0 | F148: x | G148: =NatGasCEFind -> 0 | H148: = | J148: x | K148: 28 | L148: = | N148: =
B149: Wood | C149: ='Industrial N2O'!C149 ->  | E149: ='Industrial N2O'!E149 -> NA | F149: x | G149: =WoodCEFind -> 0 | H149: = | I149: =C149*G149 ->  | J149: x | K149: 28 | L149: = | N149: =
B150: Other | C150: ='Industrial N2O'!C150 -> 0 | D150: - | E150: ='Industrial N2O'!E150 -> 0 | F150: x | G150: =OtherCEFind -> 0 | H150: = | I150: 0 | J150: x | K150: 28 | L150: = | M150: 0 | N150: = | O150: 0
K151: Total | L151: = | M151: =SUM(M127:M150) ->  | N151: =
B153: Industrial Sector CH4 | E153: =E123+1 -> 1995
C154: Total | E154: Non-Energy
C155: Consumption | E155: Consumption | G155: Emission Factor | I155: Emissions | K155: GWP | M155: Emissions | O155: Emissions
B156: Fuel Type | C156: (Billion Btu) | E156: (Billion Btu) | G156: (metric tons CH4 /BBtu) | I156: (metric tons CH4) | M156: (MMTCE) | O156: (MMTCO2E)
B157: Coking Coal | C157: ='Industrial N2O'!C157 ->  | D157: - | E157: ='Industrial N2O'!E157 -> 0 | F157: x | G157: =CokeCoalCEFind -> 0 | H157: = | I157: =(C157-E157)*G157 ->  | J157: x | K157: =GWPCH4 -> 28 | L157: = | M157: =I157*K157*CO2_C/(10^6) ->  | N157: = | O157: =M157/CO2_C -> 
B158: Other Coal | C158: ='Industrial N2O'!C158 ->  | D158: - | E158: ='Industrial N2O'!E158 -> 0 | F158: x | G158: =OtherCoalCEFind -> 0 | H158: = | I158: =(C158-E158)*G158 ->  | J158: x | K158: =GWPCH4 -> 28 | L158: = | M158: =I158*K158*CO2_C/(10^6) ->  | N158: =
B159: Asphalt and Road Oil | C159: ='Industrial N2O'!C159 ->  | D159: - | E159: ='Industrial N2O'!E159 -> 0 | F159: x | G159: =AsphaltCEFind -> 0 | H159: = | J159: x | K159: 28 | L159: = | N159: =
B160: Aviation Gasoline Blending Components | C160: ='Industrial N2O'!C160 ->  | D160: - | E160: ='Industrial N2O'!E160 -> 0 | F160: x | G160: =AvGasBlendCEFind -> 0 | H160: = | J160: x | K160: 28 | L160: = | N160: =
B161: Crude Oil | C161: ='Industrial N2O'!C161 ->  | D161: - | E161: ='Industrial N2O'!E161 -> 0 | F161: x | G161: =CrudeCEFind -> 0 | H161: = | J161: x | K161: 28 | L161: = | N161: =
B162: Distillate Fuel | C162: ='Industrial N2O'!C162 ->  | D162: - | E162: ='Industrial N2O'!E162 -> 0 | F162: x | G162: =DistillCEFind -> 0 | H162: = | J162: x | K162: 28 | L162: = | N162: =
B163: Feedstocks, Naphtha less than 401 F | C163: ='Industrial N2O'!C163 ->  | D163: - | E163: ='Industrial N2O'!E163 -> 0 | F163: x | G163: =NaphCEFind -> 0 | H163: = | J163: x | K163: 28 | L163: = | N163: =
B164: Feedstocks, Other Oils greater than 401 F | C164: ='Industrial N2O'!C164 ->  | D164: - | E164: ='Industrial N2O'!E164 -> 0 | F164: x | G164: =OtherOilCEFind -> 0 | H164: = | J164: x | K164: 28 | L164: = | N164: =
B165: Kerosene | C165: ='Industrial N2O'!C165 ->  | D165: - | E165: ='Industrial N2O'!E165 -> 0 | F165: x | G165: =KeroCEFind -> 0 | H165: = | J165: x | K165: 28 | L165: = | N165: =
B166: Hydrocarbon Gas Liquids | C166: ='Industrial N2O'!C166 ->  | D166: - | E166: ='Industrial N2O'!E166 -> 0 | F166: x | G166: =LPGCEFind -> 0 | H166: = | J166: x | K166: 28 | L166: = | N166: =
B167: Lubricants | C167: ='Industrial N2O'!C167 ->  | D167: - | E167: ='Industrial N2O'!E167 -> 0 | F167: x | G167: =LubeCEFind -> 0 | H167: = | J167: x | K167: 28 | L167: = | N167: =
B168: Motor Gasoline | C168: ='Industrial N2O'!C168 ->  | D168: - | E168: ='Industrial N2O'!E168 -> 0 | F168: x | G168: =MotorGasCEFind -> 0 | H168: = | J168: x | K168: 28 | L168: = | N168: =
B169: Motor Gasoline Blending Components | C169: ='Industrial N2O'!C169 ->  | D169: - | E169: ='Industrial N2O'!E169 -> 0 | F169: x | G169: =MoGasBlendCEFind -> 0 | H169: = | J169: x | K169: 28 | L169: = | N169: =
B170: Misc. Petro Products | C170: ='Industrial N2O'!C170 ->  | D170: - | E170: ='Industrial N2O'!E170 -> 0 | F170: x | G170: =MiscCEFind -> 0 | H170: = | J170: x | K170: 28 | L170: = | N170: =
B171: Petroleum Coke | C171: ='Industrial N2O'!C171 ->  | D171: - | E171: ='Industrial N2O'!E171 -> 0 | F171: x | G171: =PetCokeCEFind -> 0 | H171: = | J171: x | K171: 28 | L171: = | N171: =
B172: Pentanes Plus | C172: ='Industrial N2O'!C172 ->  | D172: - | E172: ='Industrial N2O'!E172 -> 0 | F172: x | G172: =pentanesCEFind -> 0 | H172: = | J172: x | K172: 28 | L172: = | N172: =
B173: Residual Fuel | C173: ='Industrial N2O'!C173 ->  | D173: - | E173: ='Industrial N2O'!E173 -> 0 | F173: x | G173: =ResidCEFind -> 0 | H173: = | J173: x | K173: 28 | L173: = | N173: =
B174: Still Gas | C174: ='Industrial N2O'!C174 ->  | D174: - | E174: ='Industrial N2O'!E174 -> 0 | F174: x | G174: =StillCEFind -> 0 | H174: = | J174: x | K174: 28 | L174: = | N174: =
B175: Special Naphthas | C175: ='Industrial N2O'!C175 ->  | D175: - | E175: ='Industrial N2O'!E175 -> 0 | F175: x | G175: =SpecialCEFind -> 0 | H175: = | J175: x | K175: 28 | L175: = | N175: =
B176: Unfinished Oils | C176: ='Industrial N2O'!C176 ->  | D176: - | E176: ='Industrial N2O'!E176 -> 0 | F176: x | G176: =UnfinCEFind -> 0 | H176: = | J176: x | K176: 28 | L176: = | N176: =
B177: Waxes | C177: ='Industrial N2O'!C177 ->  | D177: - | E177: ='Industrial N2O'!E177 -> 0 | F177: x | G177: =WaxesCEFind -> 0 | H177: = | J177: x | K177: 28 | L177: = | N177: =
B178: Natural Gas | C178: ='Industrial N2O'!C178 ->  | D178: - | E178: ='Industrial N2O'!E178 -> 0 | F178: x | G178: =NatGasCEFind -> 0 | H178: = | J178: x | K178: 28 | L178: = | N178: =
B179: Wood | C179: ='Industrial N2O'!C179 ->  | E179: ='Industrial N2O'!E179 -> NA | F179: x | G179: =WoodCEFind -> 0 | H179: = | I179: =C179*G179 ->  | J179: x | K179: 28 | L179: = | N179: =
B180: Other | C180: ='Industrial N2O'!C180 -> 0 | D180: - | E180: ='Industrial N2O'!E180 -> 0 | F180: x | G180: =OtherCEFind -> 0 | H180: = | I180: 0 | J180: x | K180: 28 | L180: = | M180: 0 | N180: = | O180: 0
K181: Total | L181: = | M181: =SUM(M157:M180) ->  | N181: =
B183: Industrial Sector CH4 | E183: =E153+1 -> 1996
C184: Total | E184: Non-Energy
C185: Consumption | E185: Consumption | G185: Emission Factor | I185: Emissions | K185: GWP | M185: Emissions | O185: Emissions
B186: Fuel Type | C186: (Billion Btu) | E186: (Billion Btu) | G186: (metric tons CH4 /BBtu) | I186: (metric tons CH4) | M186: (MMTCE) | O186: (MMTCO2E)
B187: Coking Coal | C187: ='Industrial N2O'!C187 ->  | D187: - | E187: ='Industrial N2O'!E187 -> 0 | F187: x | G187: =CokeCoalCEFind -> 0 | H187: = | I187: =(C187-E187)*G187 ->  | J187: x | K187: =GWPCH4 -> 28 | L187: = | M187: =I187*K187*CO2_C/(10^6) ->  | N187: = | O187: =M187/CO2_C -> 
B188: Other Coal | C188: ='Industrial N2O'!C188 ->  | D188: - | E188: ='Industrial N2O'!E188 -> 0 | F188: x | G188: =OtherCoalCEFind -> 0 | H188: = | I188: =(C188-E188)*G188 ->  | J188: x | K188: =GWPCH4 -> 28 | L188: = | M188: =I188*K188*CO2_C/(10^6) ->  | N188: =
B189: Asphalt and Road Oil | C189: ='Industrial N2O'!C189 ->  | D189: - | E189: ='Industrial N2O'!E189 -> 0 | F189: x | G189: =AsphaltCEFind -> 0 | H189: = | J189: x | K189: 28 | L189: = | N189: =
B190: Aviation Gasoline Blending Components | C190: ='Industrial N2O'!C190 ->  | D190: - | E190: ='Industrial N2O'!E190 -> 0 | F190: x | G190: =AvGasBlendCEFind -> 0 | H190: = | J190: x | K190: 28 | L190: = | N190: =
B191: Crude Oil | C191: ='Industrial N2O'!C191 ->  | D191: - | E191: ='Industrial N2O'!E191 -> 0 | F191: x | G191: =CrudeCEFind -> 0 | H191: = | J191: x | K191: 28 | L191: = | N191: =
B192: Distillate Fuel | C192: ='Industrial N2O'!C192 ->  | D192: - | E192: ='Industrial N2O'!E192 -> 0 | F192: x | G192: =DistillCEFind -> 0 | H192: = | J192: x | K192: 28 | L192: = | N192: =
B193: Feedstocks, Naphtha less than 401 F | C193: ='Industrial N2O'!C193 ->  | D193: - | E193: ='Industrial N2O'!E193 -> 0 | F193: x | G193: =NaphCEFind -> 0 | H193: = | J193: x | K193: 28 | L193: = | N193: =
B194: Feedstocks, Other Oils greater than 401 F | C194: ='Industrial N2O'!C194 ->  | D194: - | E194: ='Industrial N2O'!E194 -> 0 | F194: x | G194: =OtherOilCEFind -> 0 | H194: = | J194: x | K194: 28 | L194: = | N194: =
B195: Kerosene | C195: ='Industrial N2O'!C195 ->  | D195: - | E195: ='Industrial N2O'!E195 -> 0 | F195: x | G195: =KeroCEFind -> 0 | H195: = | J195: x | K195: 28 | L195: = | N195: =
B196: Hydrocarbon Gas Liquids | C196: ='Industrial N2O'!C196 ->  | D196: - | E196: ='Industrial N2O'!E196 -> 0 | F196: x | G196: =LPGCEFind -> 0 | H196: = | J196: x | K196: 28 | L196: = | N196: =
B197: Lubricants | C197: ='Industrial N2O'!C197 ->  | D197: - | E197: ='Industrial N2O'!E197 -> 0 | F197: x | G197: =LubeCEFind -> 0 | H197: = | J197: x | K197: 28 | L197: = | N197: =
B198: Motor Gasoline | C198: ='Industrial N2O'!C198 ->  | D198: - | E198: ='Industrial N2O'!E198 -> 0 | F198: x | G198: =MotorGasCEFind -> 0 | H198: = | J198: x | K198: 28 | L198: = | N198: =
B199: Motor Gasoline Blending Components | C199: ='Industrial N2O'!C199 ->  | D199: - | E199: ='Industrial N2O'!E199 -> 0 | F199: x | G199: =MoGasBlendCEFind -> 0 | H199: = | J199: x | K199: 28 | L199: = | N199: =
B200: Misc. Petro Products | C200: ='Industrial N2O'!C200 ->  | D200: - | E200: ='Industrial N2O'!E200 -> 0 | F200: x | G200: =MiscCEFind -> 0 | H200: = | J200: x | K200: 28 | L200: = | N200: =
B201: Petroleum Coke | C201: ='Industrial N2O'!C201 ->  | D201: - | E201: ='Industrial N2O'!E201 -> 0 | F201: x | G201: =PetCokeCEFind -> 0 | H201: = | J201: x | K201: 28 | L201: = | N201: =
B202: Pentanes Plus | C202: ='Industrial N2O'!C202 ->  | D202: - | E202: ='Industrial N2O'!E202 -> 0 | F202: x | G202: =pentanesCEFind -> 0 | H202: = | J202: x | K202: 28 | L202: = | N202: =
B203: Residual Fuel | C203: ='Industrial N2O'!C203 ->  | D203: - | E203: ='Industrial N2O'!E203 -> 0 | F203: x | G203: =ResidCEFind -> 0 | H203: = | J203: x | K203: 28 | L203: = | N203: =
B204: Still Gas | C204: ='Industrial N2O'!C204 ->  | D204: - | E204: ='Industrial N2O'!E204 -> 0 | F204: x | G204: =StillCEFind -> 0 | H204: = | J204: x | K204: 28 | L204: = | N204: =
B205: Special Naphthas | C205: ='Industrial N2O'!C205 ->  | D205: - | E205: ='Industrial N2O'!E205 -> 0 | F205: x | G205: =SpecialCEFind -> 0 | H205: = | J205: x | K205: 28 | L205: = | N205: =
B206: Unfinished Oils | C206: ='Industrial N2O'!C206 ->  | D206: - | E206: ='Industrial N2O'!E206 -> 0 | F206: x | G206: =UnfinCEFind -> 0 | H206: = | J206: x | K206: 28 | L206: = | N206: =
... 846 more rows

Sheet Summary N2O
A1: ="N2O Emissions Summary for "&StateName -> N2O Emissions Summary for Select a State . . .
B3: =Tracker!B13 -> Emissions were not calculated for the following sectors: Residential, Commercial, Industrial, and Electric Power.
B4: Aggregated Summary Table
B5: MMTCO2E | C5: 1990 | D5: 1991 | E5: 1992 | F5: 1993 | G5: 1994 | H5: 1995 | I5: 1996 | J5: 1997 | K5: 1998 | L5: 1999 | M5: 2000 | N5: 2001 | O5: 2002 | P5: 2003 | Q5: 2004 | R5: 2005 | S5: 2006 | T5: 2007 | U5: 2008 | V5: 2009 | W5: 2010 | X5: 2011 | Y5: 2012 | Z5: 2013 | AA5: 2014 | AB5: 2015 | AC5: 2016 | AD5: 2017 | AE5: 2018 | AF5: 2019 | AG5: 2020 | AH5: 2021 | AI5: 2022 | AJ5: 2023 | AK5: 2024 | AL5: 2025
B6: Residential | C6: =SUM(C7:C11) ->  | D6: =SUM(D7:D11) -> 
B7: Coal | C7: =C41 ->  | D7: =D41 -> 
B8: Petroleum | C8: =SUM(C42:C44) ->  | D8: =SUM(D42:D44) -> 
B9: Natural Gas | C9: =C45 ->  | D9: =D45 -> 
B10: Wood | C10: =C46 ->  | D10: =D46 -> 
B11: Other | C11: =C47 -> 0 | D11: =D47 -> 0 | E11: 0 | F11: 0 | G11: 0 | H11: 0 | I11: 0 | J11: 0 | K11: 0 | L11: 0 | M11: 0 | N11: 0 | O11: 0 | P11: 0 | Q11: 0 | R11: 0 | S11: 0 | T11: 0 | U11: 0 | V11: 0 | W11: 0 | X11: 0 | Y11: 0 | Z11: 0 | AA11: 0 | AB11: 0 | AC11: 0 | AD11: 0 | AE11: 0 | AF11: 0 | AG11: 0 | AH11: 0 | AI11: 0 | AJ11: 0 | AK11: 0 | AL11: 0
B12: Commercial | C12: =SUM(C13:C17) ->  | D12: =SUM(D13:D17) -> 
B13: Coal | C13: =C49 ->  | D13: =D49 -> 
B14: Petroleum | C14: =SUM(C50:C54) ->  | D14: =SUM(D50:D54) -> 
B15: Natural Gas | C15: =C55 ->  | D15: =D55 -> 
B16: Wood | C16: =C56 -> 
B17: Other | C17: 0 | D17: 0 | E17: 0 | F17: 0 | G17: 0 | H17: 0 | I17: 0 | J17: 0 | K17: 0 | L17: 0 | M17: 0 | N17: 0 | O17: 0 | P17: 0 | Q17: 0 | R17: 0 | S17: 0 | T17: 0 | U17: 0 | V17: 0 | W17: 0 | X17: 0 | Y17: 0 | Z17: 0 | AA17: 0 | AB17: 0 | AC17: 0 | AD17: 0 | AE17: 0 | AF17: 0 | AG17: 0 | AH17: 0 | AI17: 0 | AJ17: 0 | AK17: 0 | AL17: 0
B18: Industrial | C18: =SUM(C19:C23) ->  | D18: =SUM(D19:D23) -> 
B19: Coal | C19: =SUM(C59:C60) ->  | D19: =SUM(D59:D60) -> 
B20: Petroleum | C20: =SUM(C61:C79) ->  | D20: =SUM(D61:D79) -> 
B21: Natural Gas | C21: =C80 ->  | D21: =D80 -> 
B22: Wood | C22: =C81 -> 
B23: Other | C23: 0 | D23: 0 | E23: 0 | F23: 0 | G23: 0 | H23: 0 | I23: 0 | J23: 0 | K23: 0 | L23: 0 | M23: 0 | N23: 0 | O23: 0 | P23: 0 | Q23: 0 | R23: 0 | S23: 0 | T23: 0 | U23: 0 | V23: 0 | W23: 0 | X23: 0 | Y23: 0 | Z23: 0 | AA23: 0 | AB23: 0 | AC23: 0 | AD23: 0 | AE23: 0 | AF23: 0 | AG23: 0 | AH23: 0 | AI23: 0 | AJ23: 0 | AK23: 0 | AL23: 0
B24: Electric Power | C24: =SUM(C25:C29) ->  | D24: =SUM(D25:D29) -> 
B25: Coal | C25: =C84 ->  | D25: =D84 -> 
B26: Petroleum | C26: =SUM(C85:C87) ->  | D26: =SUM(D85:D87) -> 
B27: Natural Gas | C27: =C88 ->  | D27: =D88 -> 
B28: Wood | C28: =C89 -> 
B29: Other | C29: 0 | D29: 0 | E29: 0 | F29: 0 | G29: 0 | H29: 0 | I29: 0 | J29: 0 | K29: 0 | L29: 0 | M29: 0 | N29: 0 | O29: 0 | P29: 0 | Q29: 0 | R29: 0 | S29: 0 | T29: 0 | U29: 0 | V29: 0 | W29: 0 | X29: 0 | Y29: 0 | Z29: 0 | AA29: 0 | AB29: 0 | AC29: 0 | AD29: 0 | AE29: 0 | AF29: 0 | AG29: 0 | AH29: 0 | AI29: 0 | AJ29: 0 | AK29: 0 | AL29: 0
B30: TOTAL | C30: =SUM(C31:C35) ->  | D30: =SUM(D31:D35) -> 
B31: Coal | C31: =SUM(C25,C19,C13,C7) ->  | D31: =SUM(D25,D19,D13,D7) -> 
B32: Petroleum | C32: =SUM(C26,C20,C14,C8) -> 
B33: Natural Gas
B34: Wood
B35: Other | C35: 0 | D35: 0 | E35: 0 | F35: 0 | G35: 0 | H35: 0 | I35: 0 | J35: 0 | K35: 0 | L35: 0 | M35: 0 | N35: 0 | O35: 0 | P35: 0 | Q35: 0 | R35: 0 | S35: 0 | T35: 0 | U35: 0 | V35: 0 | W35: 0 | X35: 0 | Y35: 0 | Z35: 0 | AA35: 0 | AB35: 0 | AC35: 0 | AD35: 0 | AE35: 0 | AF35: 0 | AG35: 0 | AH35: 0 | AI35: 0 | AJ35: 0 | AK35: 0 | AL35: 0
C37: =SUM(C40,C48,C58,C83) ->  | D37: =IF(ISERROR(IF(D30=0,0,COLUMN()-2)),0,IF(D30=0,0,COLUMN()-2)) -> 0 | E37: =IF(ISERROR(IF(E30=0,0,COLUMN()-2)),0,IF(E30=0,0,COLUMN()-2)) -> 0 | F37: 0 | G37: 0 | H37: 0 | I37: 0 | J37: 0 | K37: 0 | L37: 0 | M37: 0 | N37: 0 | O37: 0 | P37: 0 | Q37: 0 | R37: 0 | S37: 0 | T37: 0 | U37: 0 | V37: 0 | W37: 0 | X37: 0 | Y37: 0 | Z37: 0 | AA37: 0 | AB37: 0 | AC37: 0 | AD37: 0 | AE37: 0 | AF37: 0 | AG37: 0 | AH37: =IF(ISERROR(IF(AH30=0,0,COLUMN()-2)),0,IF(AH30=0,0,COLUMN()-2)) -> 0 | AI37: 0 | AJ37: 0 | AK37: 0 | AL37: 0
B38: Summary Table by Fuel
B39: MMTCO2E | C39: 1990 | D39: 1991 | E39: 1992 | F39: 1993 | G39: 1994 | H39: 1995 | I39: 1996 | J39: 1997 | K39: 1998 | L39: 1999 | M39: 2000 | N39: 2001 | O39: 2002 | P39: 2003 | Q39: 2004 | R39: 2005 | S39: 2006 | T39: 2007 | U39: 2008 | V39: 2009 | W39: 2010 | X39: 2011 | Y39: 2012 | Z39: 2013 | AA39: 2014 | AB39: 2015 | AC39: 2016 | AD39: 2017 | AE39: 2018 | AF39: 2019 | AG39: 2020 | AH39: 2021 | AI39: 2022 | AJ39: 2023 | AK39: 2024 | AL39: 2025
B40: Residential | C40: =SUM(C41:C47) ->  | D40: =SUM(D41:D47) -> 
B41: Coal | C41: =C_to_CO2*'Residential N2O'!J7 ->  | D41: =C_to_CO2*'Residential N2O'!$J20 ->  | E41: =C_to_CO2*'Residential N2O'!$J33 ->  | F41: =C_to_CO2*'Residential N2O'!$J46 ->  | G41: =C_to_CO2*'Residential N2O'!$J59 ->  | H41: =C_to_CO2*'Residential N2O'!$J72 ->  | I41: =C_to_CO2*'Residential N2O'!$J85 ->  | J41: =C_to_CO2*'Residential N2O'!$J98 ->  | K41: =C_to_CO2*'Residential N2O'!$J111 ->  | L41: =C_to_CO2*'Residential N2O'!$J124 ->  | M41: =C_to_CO2*'Residential N2O'!$J137 ->  | N41: =C_to_CO2*'Residential N2O'!$J150 ->  | O41: =C_to_CO2*'Residential N2O'!$J163 ->  | P41: =C_to_CO2*'Residential N2O'!$J176 ->  | Q41: =C_to_CO2*'Residential N2O'!$J189 ->  | R41: =C_to_CO2*'Residential N2O'!$J202 ->  | S41: =C_to_CO2*'Residential N2O'!$J215 ->  | T41: =C_to_CO2*'Residential N2O'!$J228 ->  | U41: =C_to_CO2*'Residential N2O'!$J241 ->  | V41: =C_to_CO2*'Residential N2O'!$J254 ->  | W41: =C_to_CO2*'Residential N2O'!$J267 ->  | X41: =C_to_CO2*'Residential N2O'!$J280 ->  | Y41: =C_to_CO2*'Residential N2O'!$J293 ->  | Z41: =C_to_CO2*'Residential N2O'!$J306 ->  | AA41: =C_to_CO2*'Residential N2O'!$J319 ->  | AB41: =C_to_CO2*'Residential N2O'!$J332 ->  | AC41: =C_to_CO2*'Residential N2O'!$J345 ->  | AD41: =C_to_CO2*'Residential N2O'!$J358 ->  | AE41: =C_to_CO2*'Residential N2O'!$J371 ->  | AF41: =C_to_CO2*'Residential N2O'!$J384 ->  | AG41: =C_to_CO2*'Residential N2O'!$J397 ->  | AH41: =C_to_CO2*'Residential N2O'!$J410 ->  | AI41: =C_to_CO2*'Residential N2O'!$J423 ->  | AJ41: =C_to_CO2*'Residential N2O'!$J436 ->  | AK41: =C_to_CO2*'Residential N2O'!$J449 ->  | AL41: =C_to_CO2*'Residential N2O'!$J462 -> 
B42: Distillate Fuel | C42: =C_to_CO2*'Residential N2O'!J8 ->  | D42: =C_to_CO2*'Residential N2O'!$J21 ->  | E42: =C_to_CO2*'Residential N2O'!$J34 ->  | F42: =C_to_CO2*'Residential N2O'!$J47 ->  | G42: =C_to_CO2*'Residential N2O'!$J60 ->  | H42: =C_to_CO2*'Residential N2O'!$J73 ->  | I42: =C_to_CO2*'Residential N2O'!$J86 ->  | J42: =C_to_CO2*'Residential N2O'!$J99 ->  | K42: =C_to_CO2*'Residential N2O'!$J112 ->  | L42: =C_to_CO2*'Residential N2O'!$J125 ->  | M42: =C_to_CO2*'Residential N2O'!$J138 ->  | N42: =C_to_CO2*'Residential N2O'!$J151 ->  | O42: =C_to_CO2*'Residential N2O'!$J164 ->  | P42: =C_to_CO2*'Residential N2O'!$J177 ->  | Q42: =C_to_CO2*'Residential N2O'!$J190 ->  | R42: =C_to_CO2*'Residential N2O'!$J203 ->  | S42: =C_to_CO2*'Residential N2O'!$J216 ->  | T42: =C_to_CO2*'Residential N2O'!$J229 ->  | U42: =C_to_CO2*'Residential N2O'!$J242 ->  | V42: =C_to_CO2*'Residential N2O'!$J255 ->  | W42: =C_to_CO2*'Residential N2O'!$J268 ->  | X42: =C_to_CO2*'Residential N2O'!$J281 ->  | Y42: =C_to_CO2*'Residential N2O'!$J294 ->  | Z42: =C_to_CO2*'Residential N2O'!$J307 ->  | AA42: =C_to_CO2*'Residential N2O'!$J320 ->  | AB42: =C_to_CO2*'Residential N2O'!$J333 ->  | AC42: =C_to_CO2*'Residential N2O'!$J346 ->  | AD42: =C_to_CO2*'Residential N2O'!$J359 ->  | AE42: =C_to_CO2*'Residential N2O'!$J372 ->  | AF42: =C_to_CO2*'Residential N2O'!$J385 ->  | AG42: =C_to_CO2*'Residential N2O'!$J398 ->  | AH42: =C_to_CO2*'Residential N2O'!$J411 ->  | AI42: =C_to_CO2*'Residential N2O'!$J424 ->  | AJ42: =C_to_CO2*'Residential N2O'!$J437 ->  | AK42: =C_to_CO2*'Residential N2O'!$J450 ->  | AL42: =C_to_CO2*'Residential N2O'!$J463 -> 
B43: Kerosene | C43: =C_to_CO2*'Residential N2O'!J9 ->  | D43: =C_to_CO2*'Residential N2O'!$J22 ->  | E43: =C_to_CO2*'Residential N2O'!$J35 ->  | F43: =C_to_CO2*'Residential N2O'!$J48 ->  | G43: =C_to_CO2*'Residential N2O'!$J61 ->  | H43: =C_to_CO2*'Residential N2O'!$J74 ->  | I43: =C_to_CO2*'Residential N2O'!$J87 ->  | J43: =C_to_CO2*'Residential N2O'!$J100 ->  | K43: =C_to_CO2*'Residential N2O'!$J113 ->  | L43: =C_to_CO2*'Residential N2O'!$J126 ->  | M43: =C_to_CO2*'Residential N2O'!$J139 ->  | N43: =C_to_CO2*'Residential N2O'!$J152 ->  | O43: =C_to_CO2*'Residential N2O'!$J165 ->  | P43: =C_to_CO2*'Residential N2O'!$J178 ->  | Q43: =C_to_CO2*'Residential N2O'!$J191 ->  | R43: =C_to_CO2*'Residential N2O'!$J204 ->  | S43: =C_to_CO2*'Residential N2O'!$J217 ->  | T43: =C_to_CO2*'Residential N2O'!$J230 ->  | U43: =C_to_CO2*'Residential N2O'!$J243 ->  | V43: =C_to_CO2*'Residential N2O'!$J256 ->  | W43: =C_to_CO2*'Residential N2O'!$J269 ->  | X43: =C_to_CO2*'Residential N2O'!$J282 ->  | Y43: =C_to_CO2*'Residential N2O'!$J295 ->  | Z43: =C_to_CO2*'Residential N2O'!$J308 ->  | AA43: =C_to_CO2*'Residential N2O'!$J321 ->  | AB43: =C_to_CO2*'Residential N2O'!$J334 ->  | AC43: =C_to_CO2*'Residential N2O'!$J347 ->  | AD43: =C_to_CO2*'Residential N2O'!$J360 ->  | AE43: =C_to_CO2*'Residential N2O'!$J373 ->  | AF43: =C_to_CO2*'Residential N2O'!$J386 ->  | AG43: =C_to_CO2*'Residential N2O'!$J399 ->  | AH43: =C_to_CO2*'Residential N2O'!$J412 ->  | AI43: =C_to_CO2*'Residential N2O'!$J425 ->  | AJ43: =C_to_CO2*'Residential N2O'!$J438 ->  | AK43: =C_to_CO2*'Residential N2O'!$J451 ->  | AL43: =C_to_CO2*'Residential N2O'!$J464 -> 
B44: Hydrocarbon Gas Liquids | C44: =C_to_CO2*'Residential N2O'!J10 ->  | D44: =C_to_CO2*'Residential N2O'!$J23 ->  | E44: =C_to_CO2*'Residential N2O'!$J36 ->  | F44: =C_to_CO2*'Residential N2O'!$J49 ->  | G44: =C_to_CO2*'Residential N2O'!$J62 ->  | H44: =C_to_CO2*'Residential N2O'!$J75 ->  | I44: =C_to_CO2*'Residential N2O'!$J88 ->  | J44: =C_to_CO2*'Residential N2O'!$J101 ->  | K44: =C_to_CO2*'Residential N2O'!$J114 ->  | L44: =C_to_CO2*'Residential N2O'!$J127 ->  | M44: =C_to_CO2*'Residential N2O'!$J140 ->  | N44: =C_to_CO2*'Residential N2O'!$J153 ->  | O44: =C_to_CO2*'Residential N2O'!$J166 ->  | P44: =C_to_CO2*'Residential N2O'!$J179 ->  | Q44: =C_to_CO2*'Residential N2O'!$J192 ->  | R44: =C_to_CO2*'Residential N2O'!$J205 ->  | S44: =C_to_CO2*'Residential N2O'!$J218 ->  | T44: =C_to_CO2*'Residential N2O'!$J231 ->  | U44: =C_to_CO2*'Residential N2O'!$J244 ->  | V44: =C_to_CO2*'Residential N2O'!$J257 ->  | W44: =C_to_CO2*'Residential N2O'!$J270 ->  | X44: =C_to_CO2*'Residential N2O'!$J283 ->  | Y44: =C_to_CO2*'Residential N2O'!$J296 ->  | Z44: =C_to_CO2*'Residential N2O'!$J309 ->  | AA44: =C_to_CO2*'Residential N2O'!$J322 ->  | AB44: =C_to_CO2*'Residential N2O'!$J335 ->  | AC44: =C_to_CO2*'Residential N2O'!$J348 ->  | AD44: =C_to_CO2*'Residential N2O'!$J361 ->  | AE44: =C_to_CO2*'Residential N2O'!$J374 ->  | AF44: =C_to_CO2*'Residential N2O'!$J387 ->  | AG44: =C_to_CO2*'Residential N2O'!$J400 ->  | AH44: =C_to_CO2*'Residential N2O'!$J413 ->  | AI44: =C_to_CO2*'Residential N2O'!$J426 ->  | AJ44: =C_to_CO2*'Residential N2O'!$J439 ->  | AK44: =C_to_CO2*'Residential N2O'!$J452 ->  | AL44: =C_to_CO2*'Residential N2O'!$J465 -> 
B45: Natural Gas | C45: =C_to_CO2*'Residential N2O'!J11 ->  | D45: =C_to_CO2*'Residential N2O'!$J24 ->  | E45: =C_to_CO2*'Residential N2O'!$J37 ->  | F45: =C_to_CO2*'Residential N2O'!$J50 ->  | G45: =C_to_CO2*'Residential N2O'!$J63 ->  | H45: =C_to_CO2*'Residential N2O'!$J76 ->  | I45: =C_to_CO2*'Residential N2O'!$J89 ->  | J45: =C_to_CO2*'Residential N2O'!$J102 ->  | K45: =C_to_CO2*'Residential N2O'!$J115 ->  | L45: =C_to_CO2*'Residential N2O'!$J128 ->  | M45: =C_to_CO2*'Residential N2O'!$J141 ->  | N45: =C_to_CO2*'Residential N2O'!$J154 ->  | O45: =C_to_CO2*'Residential N2O'!$J167 ->  | P45: =C_to_CO2*'Residential N2O'!$J180 ->  | Q45: =C_to_CO2*'Residential N2O'!$J193 ->  | R45: =C_to_CO2*'Residential N2O'!$J206 ->  | S45: =C_to_CO2*'Residential N2O'!$J219 ->  | T45: =C_to_CO2*'Residential N2O'!$J232 ->  | U45: =C_to_CO2*'Residential N2O'!$J245 ->  | V45: =C_to_CO2*'Residential N2O'!$J258 ->  | W45: =C_to_CO2*'Residential N2O'!$J271 ->  | X45: =C_to_CO2*'Residential N2O'!$J284 ->  | Y45: =C_to_CO2*'Residential N2O'!$J297 ->  | Z45: =C_to_CO2*'Residential N2O'!$J310 ->  | AA45: =C_to_CO2*'Residential N2O'!$J323 ->  | AB45: =C_to_CO2*'Residential N2O'!$J336 ->  | AC45: =C_to_CO2*'Residential N2O'!$J349 ->  | AD45: =C_to_CO2*'Residential N2O'!$J362 ->  | AE45: =C_to_CO2*'Residential N2O'!$J375 ->  | AF45: =C_to_CO2*'Residential N2O'!$J388 ->  | AG45: =C_to_CO2*'Residential N2O'!$J401 ->  | AH45: =C_to_CO2*'Residential N2O'!$J414 ->  | AI45: =C_to_CO2*'Residential N2O'!$J427 ->  | AJ45: =C_to_CO2*'Residential N2O'!$J440 ->  | AK45: =C_to_CO2*'Residential N2O'!$J453 ->  | AL45: =C_to_CO2*'Residential N2O'!$J466 -> 
B46: Wood | C46: =C_to_CO2*'Residential N2O'!J12 ->  | D46: =C_to_CO2*'Residential N2O'!$J25 ->  | E46: =C_to_CO2*'Residential N2O'!$J38 ->  | F46: =C_to_CO2*'Residential N2O'!$J51 ->  | G46: =C_to_CO2*'Residential N2O'!$J64 ->  | H46: =C_to_CO2*'Residential N2O'!$J77 ->  | I46: =C_to_CO2*'Residential N2O'!$J90 ->  | J46: =C_to_CO2*'Residential N2O'!$J103 ->  | K46: =C_to_CO2*'Residential N2O'!$J116 ->  | L46: =C_to_CO2*'Residential N2O'!$J129 ->  | M46: =C_to_CO2*'Residential N2O'!$J142 ->  | N46: =C_to_CO2*'Residential N2O'!$J155 ->  | O46: =C_to_CO2*'Residential N2O'!$J168 ->  | P46: =C_to_CO2*'Residential N2O'!$J181 ->  | Q46: =C_to_CO2*'Residential N2O'!$J194 ->  | R46: =C_to_CO2*'Residential N2O'!$J207 ->  | S46: =C_to_CO2*'Residential N2O'!$J220 ->  | T46: =C_to_CO2*'Residential N2O'!$J233 ->  | U46: =C_to_CO2*'Residential N2O'!$J246 ->  | V46: =C_to_CO2*'Residential N2O'!$J259 ->  | W46: =C_to_CO2*'Residential N2O'!$J272 ->  | X46: =C_to_CO2*'Residential N2O'!$J285 ->  | Y46: =C_to_CO2*'Residential N2O'!$J298 ->  | Z46: =C_to_CO2*'Residential N2O'!$J311 ->  | AA46: =C_to_CO2*'Residential N2O'!$J324 ->  | AB46: =C_to_CO2*'Residential N2O'!$J337 ->  | AC46: =C_to_CO2*'Residential N2O'!$J350 ->  | AD46: =C_to_CO2*'Residential N2O'!$J363 ->  | AE46: =C_to_CO2*'Residential N2O'!$J376 ->  | AF46: =C_to_CO2*'Residential N2O'!$J389 ->  | AG46: =C_to_CO2*'Residential N2O'!$J402 ->  | AH46: =C_to_CO2*'Residential N2O'!$J415 ->  | AI46: =C_to_CO2*'Residential N2O'!$J428 ->  | AJ46: =C_to_CO2*'Residential N2O'!$J441 ->  | AK46: =C_to_CO2*'Residential N2O'!$J454 ->  | AL46: =C_to_CO2*'Residential N2O'!$J467 -> 
B47: Other | C47: =C_to_CO2*'Residential N2O'!J13 -> 0 | D47: =C_to_CO2*'Residential N2O'!$J26 -> 0 | E47: =C_to_CO2*'Residential N2O'!$J39 -> 0 | F47: =C_to_CO2*'Residential N2O'!$J52 -> 0 | G47: =C_to_CO2*'Residential N2O'!$J65 -> 0 | H47: =C_to_CO2*'Residential N2O'!$J78 -> 0 | I47: =C_to_CO2*'Residential N2O'!$J91 -> 0 | J47: =C_to_CO2*'Residential N2O'!$J104 -> 0 | K47: =C_to_CO2*'Residential N2O'!$J117 -> 0 | L47: =C_to_CO2*'Residential N2O'!$J130 -> 0 | M47: =C_to_CO2*'Residential N2O'!$J143 -> 0 | N47: =C_to_CO2*'Residential N2O'!$J156 -> 0 | O47: =C_to_CO2*'Residential N2O'!$J169 -> 0 | P47: =C_to_CO2*'Residential N2O'!$J182 -> 0 | Q47: =C_to_CO2*'Residential N2O'!$J195 -> 0 | R47: =C_to_CO2*'Residential N2O'!$J208 -> 0 | S47: =C_to_CO2*'Residential N2O'!$J221 -> 0 | T47: =C_to_CO2*'Residential N2O'!$J234 -> 0 | U47: =C_to_CO2*'Residential N2O'!$J247 -> 0 | V47: =C_to_CO2*'Residential N2O'!$J260 -> 0 | W47: =C_to_CO2*'Residential N2O'!$J273 -> 0 | X47: =C_to_CO2*'Residential N2O'!$J286 -> 0 | Y47: =C_to_CO2*'Residential N2O'!$J299 -> 0 | Z47: =C_to_CO2*'Residential N2O'!$J312 -> 0 | AA47: =C_to_CO2*'Residential N2O'!$J325 -> 0 | AB47: =C_to_CO2*'Residential N2O'!$J338 -> 0 | AC47: =C_to_CO2*'Residential N2O'!$J351 -> 0 | AD47: =C_to_CO2*'Residential N2O'!$J364 -> 0 | AE47: =C_to_CO2*'Residential N2O'!$J377 -> 0 | AF47: =C_to_CO2*'Residential N2O'!$J390 -> 0 | AG47: =C_to_CO2*'Residential N2O'!$J403 -> 0 | AH47: =C_to_CO2*'Residential N2O'!$J416 -> 0 | AI47: =C_to_CO2*'Residential N2O'!$J429 -> 0 | AJ47: =C_to_CO2*'Residential N2O'!$J442 -> 0 | AK47: =C_to_CO2*'Residential N2O'!$J455 -> 0 | AL47: =C_to_CO2*'Residential N2O'!$J468 -> 0
B48: Commercial | C48: =SUM(C49:C57) ->  | D48: =SUM(D49:D57) -> 
B49: Coal | C49: =C_to_CO2*'Commercial N2O'!J7 ->  | D49: =C_to_CO2*'Commercial N2O'!J22 ->  | E49: =C_to_CO2*'Commercial N2O'!J37 ->  | F49: =C_to_CO2*'Commercial N2O'!J52 ->  | G49: =C_to_CO2*'Commercial N2O'!J67 ->  | H49: =C_to_CO2*'Commercial N2O'!J82 ->  | I49: =C_to_CO2*'Commercial N2O'!J97 ->  | J49: =C_to_CO2*'Commercial N2O'!J112 ->  | K49: =C_to_CO2*'Commercial N2O'!J127 ->  | L49: =C_to_CO2*'Commercial N2O'!J142 ->  | M49: =C_to_CO2*'Commercial N2O'!J157 ->  | N49: =C_to_CO2*'Commercial N2O'!$J172 ->  | O49: =C_to_CO2*'Commercial N2O'!$J187 ->  | P49: =C_to_CO2*'Commercial N2O'!$J202 ->  | Q49: =C_to_CO2*'Commercial N2O'!$J217 ->  | R49: =C_to_CO2*'Commercial N2O'!$J232 ->  | S49: =C_to_CO2*'Commercial N2O'!$J247 ->  | T49: =C_to_CO2*'Commercial N2O'!$J262 ->  | U49: =C_to_CO2*'Commercial N2O'!$J277 ->  | V49: =C_to_CO2*'Commercial N2O'!$J292 ->  | W49: =C_to_CO2*'Commercial N2O'!$J307 ->  | X49: =C_to_CO2*'Commercial N2O'!$J322 ->  | Y49: =C_to_CO2*'Commercial N2O'!$J337 ->  | Z49: =C_to_CO2*'Commercial N2O'!$J352 ->  | AA49: =C_to_CO2*'Commercial N2O'!$J367 ->  | AB49: =C_to_CO2*'Commercial N2O'!$J382 ->  | AC49: =C_to_CO2*'Commercial N2O'!$J397 ->  | AD49: =C_to_CO2*'Commercial N2O'!$J412 ->  | AE49: =C_to_CO2*'Commercial N2O'!$J427 ->  | AF49: =C_to_CO2*'Commercial N2O'!$J442 ->  | AG49: =C_to_CO2*'Commercial N2O'!$J457 ->  | AH49: =C_to_CO2*'Commercial N2O'!$J472 ->  | AI49: =C_to_CO2*'Commercial N2O'!$J487 ->  | AJ49: =C_to_CO2*'Commercial N2O'!$J502 ->  | AK49: =C_to_CO2*'Commercial N2O'!$J517 ->  | AL49: =C_to_CO2*'Commercial N2O'!$J532 -> 
B50: Distillate Fuel | C50: =C_to_CO2*'Commercial N2O'!J8 ->  | D50: =C_to_CO2*'Commercial N2O'!J23 ->  | E50: =C_to_CO2*'Commercial N2O'!J38 ->  | F50: =C_to_CO2*'Commercial N2O'!J53 ->  | G50: =C_to_CO2*'Commercial N2O'!J68 ->  | H50: =C_to_CO2*'Commercial N2O'!J83 ->  | I50: =C_to_CO2*'Commercial N2O'!J98 ->  | J50: =C_to_CO2*'Commercial N2O'!J113 ->  | K50: =C_to_CO2*'Commercial N2O'!J128 ->  | L50: =C_to_CO2*'Commercial N2O'!J143 ->  | M50: =C_to_CO2*'Commercial N2O'!J158 ->  | N50: =C_to_CO2*'Commercial N2O'!$J173 ->  | O50: =C_to_CO2*'Commercial N2O'!$J188 ->  | P50: =C_to_CO2*'Commercial N2O'!$J203 ->  | Q50: =C_to_CO2*'Commercial N2O'!$J218 ->  | R50: =C_to_CO2*'Commercial N2O'!$J233 ->  | S50: =C_to_CO2*'Commercial N2O'!$J248 ->  | T50: =C_to_CO2*'Commercial N2O'!$J263 ->  | U50: =C_to_CO2*'Commercial N2O'!$J278 ->  | V50: =C_to_CO2*'Commercial N2O'!$J293 ->  | W50: =C_to_CO2*'Commercial N2O'!$J308 ->  | X50: =C_to_CO2*'Commercial N2O'!$J323 ->  | Y50: =C_to_CO2*'Commercial N2O'!$J338 ->  | Z50: =C_to_CO2*'Commercial N2O'!$J353 ->  | AA50: =C_to_CO2*'Commercial N2O'!$J368 ->  | AB50: =C_to_CO2*'Commercial N2O'!$J383 ->  | AC50: =C_to_CO2*'Commercial N2O'!$J398 ->  | AD50: =C_to_CO2*'Commercial N2O'!$J413 ->  | AE50: =C_to_CO2*'Commercial N2O'!$J428 ->  | AF50: =C_to_CO2*'Commercial N2O'!$J443 ->  | AG50: =C_to_CO2*'Commercial N2O'!$J458 ->  | AH50: =C_to_CO2*'Commercial N2O'!$J473 ->  | AI50: =C_to_CO2*'Commercial N2O'!$J488 ->  | AJ50: =C_to_CO2*'Commercial N2O'!$J503 ->  | AK50: =C_to_CO2*'Commercial N2O'!$J518 ->  | AL50: =C_to_CO2*'Commercial N2O'!$J533 -> 
B51: Kerosene | C51: =C_to_CO2*'Commercial N2O'!J9 ->  | D51: =C_to_CO2*'Commercial N2O'!J24 ->  | E51: =C_to_CO2*'Commercial N2O'!J39 ->  | F51: =C_to_CO2*'Commercial N2O'!J54 ->  | G51: =C_to_CO2*'Commercial N2O'!J69 ->  | H51: =C_to_CO2*'Commercial N2O'!J84 ->  | I51: =C_to_CO2*'Commercial N2O'!J99 ->  | J51: =C_to_CO2*'Commercial N2O'!J114 ->  | K51: =C_to_CO2*'Commercial N2O'!J129 ->  | L51: =C_to_CO2*'Commercial N2O'!J144 ->  | M51: =C_to_CO2*'Commercial N2O'!J159 ->  | N51: =C_to_CO2*'Commercial N2O'!$J174 ->  | O51: =C_to_CO2*'Commercial N2O'!$J189 ->  | P51: =C_to_CO2*'Commercial N2O'!$J204 ->  | Q51: =C_to_CO2*'Commercial N2O'!$J219 ->  | R51: =C_to_CO2*'Commercial N2O'!$J234 ->  | S51: =C_to_CO2*'Commercial N2O'!$J249 ->  | T51: =C_to_CO2*'Commercial N2O'!$J264 ->  | U51: =C_to_CO2*'Commercial N2O'!$J279 ->  | V51: =C_to_CO2*'Commercial N2O'!$J294 ->  | W51: =C_to_CO2*'Commercial N2O'!$J309 ->  | X51: =C_to_CO2*'Commercial N2O'!$J324 ->  | Y51: =C_to_CO2*'Commercial N2O'!$J339 ->  | Z51: =C_to_CO2*'Commercial N2O'!$J354 ->  | AA51: =C_to_CO2*'Commercial N2O'!$J369 ->  | AB51: =C_to_CO2*'Commercial N2O'!$J384 ->  | AC51: =C_to_CO2*'Commercial N2O'!$J399 ->  | AD51: =C_to_CO2*'Commercial N2O'!$J414 ->  | AE51: =C_to_CO2*'Commercial N2O'!$J429 ->  | AF51: =C_to_CO2*'Commercial N2O'!$J444 ->  | AG51: =C_to_CO2*'Commercial N2O'!$J459 ->  | AH51: =C_to_CO2*'Commercial N2O'!$J474 ->  | AI51: =C_to_CO2*'Commercial N2O'!$J489 ->  | AJ51: =C_to_CO2*'Commercial N2O'!$J504 ->  | AK51: =C_to_CO2*'Commercial N2O'!$J519 ->  | AL51: =C_to_CO2*'Commercial N2O'!$J534 -> 
B52: Hydrocarbon Gas Liquids | C52: =C_to_CO2*'Commercial N2O'!J10 ->  | D52: =C_to_CO2*'Commercial N2O'!J25 ->  | E52: =C_to_CO2*'Commercial N2O'!J40 ->  | F52: =C_to_CO2*'Commercial N2O'!J55 ->  | G52: =C_to_CO2*'Commercial N2O'!J70 ->  | H52: =C_to_CO2*'Commercial N2O'!J85 ->  | I52: =C_to_CO2*'Commercial N2O'!J100 ->  | J52: =C_to_CO2*'Commercial N2O'!J115 ->  | K52: =C_to_CO2*'Commercial N2O'!J130 ->  | L52: =C_to_CO2*'Commercial N2O'!J145 ->  | M52: =C_to_CO2*'Commercial N2O'!J160 ->  | N52: =C_to_CO2*'Commercial N2O'!$J175 ->  | O52: =C_to_CO2*'Commercial N2O'!$J190 ->  | P52: =C_to_CO2*'Commercial N2O'!$J205 ->  | Q52: =C_to_CO2*'Commercial N2O'!$J220 ->  | R52: =C_to_CO2*'Commercial N2O'!$J235 ->  | S52: =C_to_CO2*'Commercial N2O'!$J250 ->  | T52: =C_to_CO2*'Commercial N2O'!$J265 ->  | U52: =C_to_CO2*'Commercial N2O'!$J280 ->  | V52: =C_to_CO2*'Commercial N2O'!$J295 ->  | W52: =C_to_CO2*'Commercial N2O'!$J310 ->  | X52: =C_to_CO2*'Commercial N2O'!$J325 ->  | Y52: =C_to_CO2*'Commercial N2O'!$J340 ->  | Z52: =C_to_CO2*'Commercial N2O'!$J355 ->  | AA52: =C_to_CO2*'Commercial N2O'!$J370 ->  | AB52: =C_to_CO2*'Commercial N2O'!$J385 ->  | AC52: =C_to_CO2*'Commercial N2O'!$J400 ->  | AD52: =C_to_CO2*'Commercial N2O'!$J415 ->  | AE52: =C_to_CO2*'Commercial N2O'!$J430 ->  | AF52: =C_to_CO2*'Commercial N2O'!$J445 ->  | AG52: =C_to_CO2*'Commercial N2O'!$J460 ->  | AH52: =C_to_CO2*'Commercial N2O'!$J475 ->  | AI52: =C_to_CO2*'Commercial N2O'!$J490 ->  | AJ52: =C_to_CO2*'Commercial N2O'!$J505 ->  | AK52: =C_to_CO2*'Commercial N2O'!$J520 ->  | AL52: =C_to_CO2*'Commercial N2O'!$J535 -> 
B53: Motor Gasoline | C53: =C_to_CO2*'Commercial N2O'!J11 ->  | D53: =C_to_CO2*'Commercial N2O'!J26 ->  | E53: =C_to_CO2*'Commercial N2O'!J41 ->  | F53: =C_to_CO2*'Commercial N2O'!J56 ->  | G53: =C_to_CO2*'Commercial N2O'!J71 ->  | H53: =C_to_CO2*'Commercial N2O'!J86 ->  | I53: =C_to_CO2*'Commercial N2O'!J101 ->  | J53: =C_to_CO2*'Commercial N2O'!J116 ->  | K53: =C_to_CO2*'Commercial N2O'!J131 ->  | L53: =C_to_CO2*'Commercial N2O'!J146 ->  | M53: =C_to_CO2*'Commercial N2O'!J161 ->  | N53: =C_to_CO2*'Commercial N2O'!$J176 ->  | O53: =C_to_CO2*'Commercial N2O'!$J191 ->  | P53: =C_to_CO2*'Commercial N2O'!$J206 ->  | Q53: =C_to_CO2*'Commercial N2O'!$J221 ->  | R53: =C_to_CO2*'Commercial N2O'!$J236 ->  | S53: =C_to_CO2*'Commercial N2O'!$J251 ->  | T53: =C_to_CO2*'Commercial N2O'!$J266 ->  | U53: =C_to_CO2*'Commercial N2O'!$J281 ->  | V53: =C_to_CO2*'Commercial N2O'!$J296 ->  | W53: =C_to_CO2*'Commercial N2O'!$J311 ->  | X53: =C_to_CO2*'Commercial N2O'!$J326 ->  | Y53: =C_to_CO2*'Commercial N2O'!$J341 ->  | Z53: =C_to_CO2*'Commercial N2O'!$J356 ->  | AA53: =C_to_CO2*'Commercial N2O'!$J371 ->  | AB53: =C_to_CO2*'Commercial N2O'!$J386 ->  | AC53: =C_to_CO2*'Commercial N2O'!$J401 ->  | AD53: =C_to_CO2*'Commercial N2O'!$J416 ->  | AE53: =C_to_CO2*'Commercial N2O'!$J431 ->  | AF53: =C_to_CO2*'Commercial N2O'!$J446 ->  | AG53: =C_to_CO2*'Commercial N2O'!$J461 ->  | AH53: =C_to_CO2*'Commercial N2O'!$J476 ->  | AI53: =C_to_CO2*'Commercial N2O'!$J491 ->  | AJ53: =C_to_CO2*'Commercial N2O'!$J506 ->  | AK53: =C_to_CO2*'Commercial N2O'!$J521 ->  | AL53: =C_to_CO2*'Commercial N2O'!$J536 -> 
B54: Residual Fuel | C54: =C_to_CO2*'Commercial N2O'!J12 ->  | D54: =C_to_CO2*'Commercial N2O'!J27 ->  | E54: =C_to_CO2*'Commercial N2O'!J42 ->  | F54: =C_to_CO2*'Commercial N2O'!J57 ->  | G54: =C_to_CO2*'Commercial N2O'!J72 ->  | H54: =C_to_CO2*'Commercial N2O'!J87 ->  | I54: =C_to_CO2*'Commercial N2O'!J102 ->  | J54: =C_to_CO2*'Commercial N2O'!J117 ->  | K54: =C_to_CO2*'Commercial N2O'!J132 ->  | L54: =C_to_CO2*'Commercial N2O'!J147 ->  | M54: =C_to_CO2*'Commercial N2O'!J162 ->  | N54: =C_to_CO2*'Commercial N2O'!$J177 ->  | O54: =C_to_CO2*'Commercial N2O'!$J192 ->  | P54: =C_to_CO2*'Commercial N2O'!$J207 ->  | Q54: =C_to_CO2*'Commercial N2O'!$J222 ->  | R54: =C_to_CO2*'Commercial N2O'!$J237 ->  | S54: =C_to_CO2*'Commercial N2O'!$J252 ->  | T54: =C_to_CO2*'Commercial N2O'!$J267 ->  | U54: =C_to_CO2*'Commercial N2O'!$J282 ->  | V54: =C_to_CO2*'Commercial N2O'!$J297 ->  | W54: =C_to_CO2*'Commercial N2O'!$J312 ->  | X54: =C_to_CO2*'Commercial N2O'!$J327 ->  | Y54: =C_to_CO2*'Commercial N2O'!$J342 ->  | Z54: =C_to_CO2*'Commercial N2O'!$J357 ->  | AA54: =C_to_CO2*'Commercial N2O'!$J372 ->  | AB54: =C_to_CO2*'Commercial N2O'!$J387 ->  | AC54: =C_to_CO2*'Commercial N2O'!$J402 ->  | AD54: =C_to_CO2*'Commercial N2O'!$J417 ->  | AE54: =C_to_CO2*'Commercial N2O'!$J432 ->  | AF54: =C_to_CO2*'Commercial N2O'!$J447 ->  | AG54: =C_to_CO2*'Commercial N2O'!$J462 ->  | AH54: =C_to_CO2*'Commercial N2O'!$J477 ->  | AI54: =C_to_CO2*'Commercial N2O'!$J492 ->  | AJ54: =C_to_CO2*'Commercial N2O'!$J507 ->  | AK54: =C_to_CO2*'Commercial N2O'!$J522 ->  | AL54: =C_to_CO2*'Commercial N2O'!$J537 -> 
B55: Natural Gas | C55: =C_to_CO2*'Commercial N2O'!J13 ->  | D55: =C_to_CO2*'Commercial N2O'!J28 ->  | E55: =C_to_CO2*'Commercial N2O'!J43 ->  | F55: =C_to_CO2*'Commercial N2O'!J58 ->  | G55: =C_to_CO2*'Commercial N2O'!J73 ->  | H55: =C_to_CO2*'Commercial N2O'!J88 ->  | I55: =C_to_CO2*'Commercial N2O'!J103 ->  | J55: =C_to_CO2*'Commercial N2O'!J118 ->  | K55: =C_to_CO2*'Commercial N2O'!J133 ->  | L55: =C_to_CO2*'Commercial N2O'!J148 ->  | M55: =C_to_CO2*'Commercial N2O'!J163 ->  | N55: =C_to_CO2*'Commercial N2O'!$J178 ->  | O55: =C_to_CO2*'Commercial N2O'!$J193 ->  | P55: =C_to_CO2*'Commercial N2O'!$J208 ->  | Q55: =C_to_CO2*'Commercial N2O'!$J223 ->  | R55: =C_to_CO2*'Commercial N2O'!$J238 ->  | S55: =C_to_CO2*'Commercial N2O'!$J253 ->  | T55: =C_to_CO2*'Commercial N2O'!$J268 ->  | U55: =C_to_CO2*'Commercial N2O'!$J283 ->  | V55: =C_to_CO2*'Commercial N2O'!$J298 ->  | W55: =C_to_CO2*'Commercial N2O'!$J313 ->  | X55: =C_to_CO2*'Commercial N2O'!$J328 ->  | Y55: =C_to_CO2*'Commercial N2O'!$J343 ->  | Z55: =C_to_CO2*'Commercial N2O'!$J358 ->  | AA55: =C_to_CO2*'Commercial N2O'!$J373 ->  | AB55: =C_to_CO2*'Commercial N2O'!$J388 ->  | AC55: =C_to_CO2*'Commercial N2O'!$J403 ->  | AD55: =C_to_CO2*'Commercial N2O'!$J418 ->  | AE55: =C_to_CO2*'Commercial N2O'!$J433 ->  | AF55: =C_to_CO2*'Commercial N2O'!$J448 ->  | AG55: =C_to_CO2*'Commercial N2O'!$J463 ->  | AH55: =C_to_CO2*'Commercial N2O'!$J478 ->  | AI55: =C_to_CO2*'Commercial N2O'!$J493 ->  | AJ55: =C_to_CO2*'Commercial N2O'!$J508 ->  | AK55: =C_to_CO2*'Commercial N2O'!$J523 ->  | AL55: =C_to_CO2*'Commercial N2O'!$J538 -> 
B56: Wood | C56: =C_to_CO2*'Commercial N2O'!J14 ->  | D56: =C_to_CO2*'Commercial N2O'!J29 ->  | E56: =C_to_CO2*'Commercial N2O'!J44 ->  | F56: =C_to_CO2*'Commercial N2O'!J59 ->  | G56: =C_to_CO2*'Commercial N2O'!J74 ->  | H56: =C_to_CO2*'Commercial N2O'!J89 ->  | I56: =C_to_CO2*'Commercial N2O'!J104 ->  | J56: =C_to_CO2*'Commercial N2O'!J119 ->  | K56: =C_to_CO2*'Commercial N2O'!J134 ->  | L56: =C_to_CO2*'Commercial N2O'!J149 ->  | M56: =C_to_CO2*'Commercial N2O'!J164 ->  | N56: =C_to_CO2*'Commercial N2O'!$J179 ->  | O56: =C_to_CO2*'Commercial N2O'!$J194 ->  | P56: =C_to_CO2*'Commercial N2O'!$J209 ->  | Q56: =C_to_CO2*'Commercial N2O'!$J224 ->  | R56: =C_to_CO2*'Commercial N2O'!$J239 ->  | S56: =C_to_CO2*'Commercial N2O'!$J254 ->  | T56: =C_to_CO2*'Commercial N2O'!$J269 ->  | U56: =C_to_CO2*'Commercial N2O'!$J284 ->  | V56: =C_to_CO2*'Commercial N2O'!$J299 ->  | W56: =C_to_CO2*'Commercial N2O'!$J314 ->  | X56: =C_to_CO2*'Commercial N2O'!$J329 ->  | Y56: =C_to_CO2*'Commercial N2O'!$J344 ->  | Z56: =C_to_CO2*'Commercial N2O'!$J359 ->  | AA56: =C_to_CO2*'Commercial N2O'!$J374 ->  | AB56: =C_to_CO2*'Commercial N2O'!$J389 ->  | AC56: =C_to_CO2*'Commercial N2O'!$J404 ->  | AD56: =C_to_CO2*'Commercial N2O'!$J419 ->  | AE56: =C_to_CO2*'Commercial N2O'!$J434 ->  | AF56: =C_to_CO2*'Commercial N2O'!$J449 ->  | AG56: =C_to_CO2*'Commercial N2O'!$J464 ->  | AH56: =C_to_CO2*'Commercial N2O'!$J479 ->  | AI56: =C_to_CO2*'Commercial N2O'!$J494 ->  | AJ56: =C_to_CO2*'Commercial N2O'!$J509 ->  | AK56: =C_to_CO2*'Commercial N2O'!$J524 ->  | AL56: =C_to_CO2*'Commercial N2O'!$J539 -> 
B57: Other | C57: =C_to_CO2*'Commercial N2O'!J15 -> 0 | D57: =C_to_CO2*'Commercial N2O'!J30 -> 0 | E57: =C_to_CO2*'Commercial N2O'!J45 -> 0 | F57: =C_to_CO2*'Commercial N2O'!J60 -> 0 | G57: =C_to_CO2*'Commercial N2O'!J75 -> 0 | H57: =C_to_CO2*'Commercial N2O'!J90 -> 0 | I57: =C_to_CO2*'Commercial N2O'!J105 -> 0 | J57: =C_to_CO2*'Commercial N2O'!J120 -> 0 | K57: =C_to_CO2*'Commercial N2O'!J135 -> 0 | L57: =C_to_CO2*'Commercial N2O'!J150 -> 0 | M57: =C_to_CO2*'Commercial N2O'!J165 -> 0 | N57: =C_to_CO2*'Commercial N2O'!$J180 -> 0 | O57: =C_to_CO2*'Commercial N2O'!$J195 -> 0 | P57: =C_to_CO2*'Commercial N2O'!$J210 -> 0 | Q57: =C_to_CO2*'Commercial N2O'!$J225 -> 0 | R57: =C_to_CO2*'Commercial N2O'!$J240 -> 0 | S57: =C_to_CO2*'Commercial N2O'!$J255 -> 0 | T57: =C_to_CO2*'Commercial N2O'!$J270 -> 0 | U57: =C_to_CO2*'Commercial N2O'!$J285 -> 0 | V57: =C_to_CO2*'Commercial N2O'!$J300 -> 0 | W57: =C_to_CO2*'Commercial N2O'!$J315 -> 0 | X57: =C_to_CO2*'Commercial N2O'!$J330 -> 0 | Y57: =C_to_CO2*'Commercial N2O'!$J345 -> 0 | Z57: =C_to_CO2*'Commercial N2O'!$J360 -> 0 | AA57: =C_to_CO2*'Commercial N2O'!$J375 -> 0 | AB57: =C_to_CO2*'Commercial N2O'!$J390 -> 0 | AC57: =C_to_CO2*'Commercial N2O'!$J405 -> 0 | AD57: =C_to_CO2*'Commercial N2O'!$J420 -> 0 | AE57: =C_to_CO2*'Commercial N2O'!$J435 -> 0 | AF57: =C_to_CO2*'Commercial N2O'!$J450 -> 0 | AG57: =C_to_CO2*'Commercial N2O'!$J465 -> 0 | AH57: =C_to_CO2*'Commercial N2O'!$J480 -> 0 | AI57: =C_to_CO2*'Commercial N2O'!$J495 -> 0 | AJ57: =C_to_CO2*'Commercial N2O'!$J510 -> 0 | AK57: =C_to_CO2*'Commercial N2O'!$J525 -> 0 | AL57: =C_to_CO2*'Commercial N2O'!$J540 -> 0
B58: Industrial | C58: =SUM(C59:C82) ->  | D58: =SUM(D59:D82) -> 
B59: Coking Coal | C59: =C_to_CO2*'Industrial N2O'!M7 ->  | D59: =C_to_CO2*'Industrial N2O'!$M37 ->  | E59: =C_to_CO2*'Industrial N2O'!$M67 ->  | F59: =C_to_CO2*'Industrial N2O'!$M97 ->  | G59: =C_to_CO2*'Industrial N2O'!$M127 ->  | H59: =C_to_CO2*'Industrial N2O'!$M157 ->  | I59: =C_to_CO2*'Industrial N2O'!$M187 ->  | J59: =C_to_CO2*'Industrial N2O'!$M217 ->  | K59: =C_to_CO2*'Industrial N2O'!$M247 ->  | L59: =C_to_CO2*'Industrial N2O'!$M277 ->  | M59: =C_to_CO2*'Industrial N2O'!$M307 ->  | N59: =C_to_CO2*'Industrial N2O'!$M337 ->  | O59: =C_to_CO2*'Industrial N2O'!$M367 ->  | P59: =C_to_CO2*'Industrial N2O'!$M397 ->  | Q59: =C_to_CO2*'Industrial N2O'!$M427 ->  | R59: =C_to_CO2*'Industrial N2O'!$M457 ->  | S59: =C_to_CO2*'Industrial N2O'!$M487 ->  | T59: =C_to_CO2*'Industrial N2O'!$M517 ->  | U59: =C_to_CO2*'Industrial N2O'!$M547 ->  | V59: =C_to_CO2*'Industrial N2O'!$M577 ->  | W59: =C_to_CO2*'Industrial N2O'!$M607 ->  | X59: =C_to_CO2*'Industrial N2O'!$M637 ->  | Y59: =C_to_CO2*'Industrial N2O'!$M667 ->  | Z59: =C_to_CO2*'Industrial N2O'!$M697 ->  | AA59: =C_to_CO2*'Industrial N2O'!$M727 ->  | AB59: =C_to_CO2*'Industrial N2O'!$M757 ->  | AC59: =C_to_CO2*'Industrial N2O'!$M787 ->  | AD59: =C_to_CO2*'Industrial N2O'!$M817 ->  | AE59: =C_to_CO2*'Industrial N2O'!$M847 ->  | AF59: =C_to_CO2*'Industrial N2O'!$M877 ->  | AG59: =C_to_CO2*'Industrial N2O'!$M907 ->  | AH59: =C_to_CO2*'Industrial N2O'!$M937 ->  | AI59: =C_to_CO2*'Industrial N2O'!$M967 ->  | AJ59: =C_to_CO2*'Industrial N2O'!$M997 ->  | AK59: =C_to_CO2*'Industrial N2O'!$M1027 ->  | AL59: =C_to_CO2*'Industrial N2O'!$M1057 -> 
B60: Other Coal | C60: =C_to_CO2*'Industrial N2O'!M8 ->  | D60: =C_to_CO2*'Industrial N2O'!$M38 ->  | E60: =C_to_CO2*'Industrial N2O'!$M68 ->  | F60: =C_to_CO2*'Industrial N2O'!$M98 ->  | G60: =C_to_CO2*'Industrial N2O'!$M128 ->  | H60: =C_to_CO2*'Industrial N2O'!$M158 ->  | I60: =C_to_CO2*'Industrial N2O'!$M188 ->  | J60: =C_to_CO2*'Industrial N2O'!$M218 ->  | K60: =C_to_CO2*'Industrial N2O'!$M248 ->  | L60: =C_to_CO2*'Industrial N2O'!$M278 ->  | M60: =C_to_CO2*'Industrial N2O'!$M308 ->  | N60: =C_to_CO2*'Industrial N2O'!$M338 ->  | O60: =C_to_CO2*'Industrial N2O'!$M368 ->  | P60: =C_to_CO2*'Industrial N2O'!$M398 ->  | Q60: =C_to_CO2*'Industrial N2O'!$M428 ->  | R60: =C_to_CO2*'Industrial N2O'!$M458 ->  | S60: =C_to_CO2*'Industrial N2O'!$M488 ->  | T60: =C_to_CO2*'Industrial N2O'!$M518 ->  | U60: =C_to_CO2*'Industrial N2O'!$M548 ->  | V60: =C_to_CO2*'Industrial N2O'!$M578 ->  | W60: =C_to_CO2*'Industrial N2O'!$M608 ->  | X60: =C_to_CO2*'Industrial N2O'!$M638 ->  | Y60: =C_to_CO2*'Industrial N2O'!$M668 ->  | Z60: =C_to_CO2*'Industrial N2O'!$M698 ->  | AA60: =C_to_CO2*'Industrial N2O'!$M728 ->  | AB60: =C_to_CO2*'Industrial N2O'!$M758 ->  | AC60: =C_to_CO2*'Industrial N2O'!$M788 ->  | AD60: =C_to_CO2*'Industrial N2O'!$M818 ->  | AE60: =C_to_CO2*'Industrial N2O'!$M848 ->  | AF60: =C_to_CO2*'Industrial N2O'!$M878 ->  | AG60: =C_to_CO2*'Industrial N2O'!$M908 ->  | AH60: =C_to_CO2*'Industrial N2O'!$M938 ->  | AI60: =C_to_CO2*'Industrial N2O'!$M968 ->  | AJ60: =C_to_CO2*'Industrial N2O'!$M998 ->  | AK60: =C_to_CO2*'Industrial N2O'!$M1028 ->  | AL60: =C_to_CO2*'Industrial N2O'!$M1058 -> 
B61: Asphalt and Road Oil | C61: =C_to_CO2*'Industrial N2O'!M9 ->  | D61: =C_to_CO2*'Industrial N2O'!$M39 ->  | E61: =C_to_CO2*'Industrial N2O'!$M69 ->  | F61: =C_to_CO2*'Industrial N2O'!$M99 ->  | G61: =C_to_CO2*'Industrial N2O'!$M129 ->  | H61: =C_to_CO2*'Industrial N2O'!$M159 ->  | I61: =C_to_CO2*'Industrial N2O'!$M189 ->  | J61: =C_to_CO2*'Industrial N2O'!$M219 ->  | K61: =C_to_CO2*'Industrial N2O'!$M249 ->  | L61: =C_to_CO2*'Industrial N2O'!$M279 ->  | M61: =C_to_CO2*'Industrial N2O'!$M309 ->  | N61: =C_to_CO2*'Industrial N2O'!$M339 ->  | O61: =C_to_CO2*'Industrial N2O'!$M369 ->  | P61: =C_to_CO2*'Industrial N2O'!$M399 ->  | Q61: =C_to_CO2*'Industrial N2O'!$M429 ->  | R61: =C_to_CO2*'Industrial N2O'!$M459 ->  | S61: =C_to_CO2*'Industrial N2O'!$M489 ->  | T61: =C_to_CO2*'Industrial N2O'!$M519 ->  | U61: =C_to_CO2*'Industrial N2O'!$M549 ->  | V61: =C_to_CO2*'Industrial N2O'!$M579 ->  | W61: =C_to_CO2*'Industrial N2O'!$M609 ->  | X61: =C_to_CO2*'Industrial N2O'!$M639 ->  | Y61: =C_to_CO2*'Industrial N2O'!$M669 ->  | Z61: =C_to_CO2*'Industrial N2O'!$M699 ->  | AA61: =C_to_CO2*'Industrial N2O'!$M729 ->  | AB61: =C_to_CO2*'Industrial N2O'!$M759 ->  | AC61: =C_to_CO2*'Industrial N2O'!$M789 ->  | AD61: =C_to_CO2*'Industrial N2O'!$M819 ->  | AE61: =C_to_CO2*'Industrial N2O'!$M849 ->  | AF61: =C_to_CO2*'Industrial N2O'!$M879 ->  | AG61: =C_to_CO2*'Industrial N2O'!$M909 ->  | AH61: =C_to_CO2*'Industrial N2O'!$M939 ->  | AI61: =C_to_CO2*'Industrial N2O'!$M969 ->  | AJ61: =C_to_CO2*'Industrial N2O'!$M999 ->  | AK61: =C_to_CO2*'Industrial N2O'!$M1029 ->  | AL61: =C_to_CO2*'Industrial N2O'!$M1059 -> 
B62: Aviation Gasoline Blending Components | C62: =C_to_CO2*'Industrial N2O'!M10 ->  | D62: =C_to_CO2*'Industrial N2O'!$M40 ->  | E62: =C_to_CO2*'Industrial N2O'!$M70 ->  | F62: =C_to_CO2*'Industrial N2O'!$M100 ->  | G62: =C_to_CO2*'Industrial N2O'!$M130 ->  | H62: =C_to_CO2*'Industrial N2O'!$M160 ->  | I62: =C_to_CO2*'Industrial N2O'!$M190 ->  | J62: =C_to_CO2*'Industrial N2O'!$M220 ->  | K62: =C_to_CO2*'Industrial N2O'!$M250 ->  | L62: =C_to_CO2*'Industrial N2O'!$M280 ->  | M62: =C_to_CO2*'Industrial N2O'!$M310 ->  | N62: =C_to_CO2*'Industrial N2O'!$M340 ->  | O62: =C_to_CO2*'Industrial N2O'!$M370 ->  | P62: =C_to_CO2*'Industrial N2O'!$M400 ->  | Q62: =C_to_CO2*'Industrial N2O'!$M430 ->  | R62: =C_to_CO2*'Industrial N2O'!$M460 ->  | S62: =C_to_CO2*'Industrial N2O'!$M490 ->  | T62: =C_to_CO2*'Industrial N2O'!$M520 ->  | U62: =C_to_CO2*'Industrial N2O'!$M550 ->  | V62: =C_to_CO2*'Industrial N2O'!$M580 ->  | W62: =C_to_CO2*'Industrial N2O'!$M610 ->  | X62: =C_to_CO2*'Industrial N2O'!$M640 ->  | Y62: =C_to_CO2*'Industrial N2O'!$M670 ->  | Z62: =C_to_CO2*'Industrial N2O'!$M700 ->  | AA62: =C_to_CO2*'Industrial N2O'!$M730 ->  | AB62: =C_to_CO2*'Industrial N2O'!$M760 ->  | AC62: =C_to_CO2*'Industrial N2O'!$M790 ->  | AD62: =C_to_CO2*'Industrial N2O'!$M820 ->  | AE62: =C_to_CO2*'Industrial N2O'!$M850 ->  | AF62: =C_to_CO2*'Industrial N2O'!$M880 ->  | AG62: =C_to_CO2*'Industrial N2O'!$M910 ->  | AH62: =C_to_CO2*'Industrial N2O'!$M940 ->  | AI62: =C_to_CO2*'Industrial N2O'!$M970 ->  | AJ62: =C_to_CO2*'Industrial N2O'!$M1000 ->  | AK62: =C_to_CO2*'Industrial N2O'!$M1030 ->  | AL62: =C_to_CO2*'Industrial N2O'!$M1060 -> 
B63: Crude Oil | C63: =C_to_CO2*'Industrial N2O'!M11 ->  | D63: =C_to_CO2*'Industrial N2O'!$M41 ->  | E63: =C_to_CO2*'Industrial N2O'!$M71 ->  | F63: =C_to_CO2*'Industrial N2O'!$M101 ->  | G63: =C_to_CO2*'Industrial N2O'!$M131 ->  | H63: =C_to_CO2*'Industrial N2O'!$M161 ->  | I63: =C_to_CO2*'Industrial N2O'!$M191 ->  | J63: =C_to_CO2*'Industrial N2O'!$M221 ->  | K63: =C_to_CO2*'Industrial N2O'!$M251 ->  | L63: =C_to_CO2*'Industrial N2O'!$M281 ->  | M63: =C_to_CO2*'Industrial N2O'!$M311 ->  | N63: =C_to_CO2*'Industrial N2O'!$M341 ->  | O63: =C_to_CO2*'Industrial N2O'!$M371 ->  | P63: =C_to_CO2*'Industrial N2O'!$M401 ->  | Q63: =C_to_CO2*'Industrial N2O'!$M431 ->  | R63: =C_to_CO2*'Industrial N2O'!$M461 ->  | S63: =C_to_CO2*'Industrial N2O'!$M491 ->  | T63: =C_to_CO2*'Industrial N2O'!$M521 ->  | U63: =C_to_CO2*'Industrial N2O'!$M551 ->  | V63: =C_to_CO2*'Industrial N2O'!$M581 ->  | W63: =C_to_CO2*'Industrial N2O'!$M611 ->  | X63: =C_to_CO2*'Industrial N2O'!$M641 ->  | Y63: =C_to_CO2*'Industrial N2O'!$M671 ->  | Z63: =C_to_CO2*'Industrial N2O'!$M701 ->  | AA63: =C_to_CO2*'Industrial N2O'!$M731 ->  | AB63: =C_to_CO2*'Industrial N2O'!$M761 ->  | AC63: =C_to_CO2*'Industrial N2O'!$M791 ->  | AD63: =C_to_CO2*'Industrial N2O'!$M821 ->  | AE63: =C_to_CO2*'Industrial N2O'!$M851 ->  | AF63: =C_to_CO2*'Industrial N2O'!$M881 ->  | AG63: =C_to_CO2*'Industrial N2O'!$M911 ->  | AH63: =C_to_CO2*'Industrial N2O'!$M941 ->  | AI63: =C_to_CO2*'Industrial N2O'!$M971 ->  | AJ63: =C_to_CO2*'Industrial N2O'!$M1001 ->  | AK63: =C_to_CO2*'Industrial N2O'!$M1031 ->  | AL63: =C_to_CO2*'Industrial N2O'!$M1061 -> 
B64: Distillate Fuel | C64: =C_to_CO2*'Industrial N2O'!M12 ->  | D64: =C_to_CO2*'Industrial N2O'!$M42 ->  | E64: =C_to_CO2*'Industrial N2O'!$M72 ->  | F64: =C_to_CO2*'Industrial N2O'!$M102 ->  | G64: =C_to_CO2*'Industrial N2O'!$M132 ->  | H64: =C_to_CO2*'Industrial N2O'!$M162 ->  | I64: =C_to_CO2*'Industrial N2O'!$M192 ->  | J64: =C_to_CO2*'Industrial N2O'!$M222 ->  | K64: =C_to_CO2*'Industrial N2O'!$M252 ->  | L64: =C_to_CO2*'Industrial N2O'!$M282 ->  | M64: =C_to_CO2*'Industrial N2O'!$M312 ->  | N64: =C_to_CO2*'Industrial N2O'!$M342 ->  | O64: =C_to_CO2*'Industrial N2O'!$M372 ->  | P64: =C_to_CO2*'Industrial N2O'!$M402 ->  | Q64: =C_to_CO2*'Industrial N2O'!$M432 ->  | R64: =C_to_CO2*'Industrial N2O'!$M462 ->  | S64: =C_to_CO2*'Industrial N2O'!$M492 ->  | T64: =C_to_CO2*'Industrial N2O'!$M522 ->  | U64: =C_to_CO2*'Industrial N2O'!$M552 ->  | V64: =C_to_CO2*'Industrial N2O'!$M582 ->  | W64: =C_to_CO2*'Industrial N2O'!$M612 ->  | X64: =C_to_CO2*'Industrial N2O'!$M642 ->  | Y64: =C_to_CO2*'Industrial N2O'!$M672 ->  | Z64: =C_to_CO2*'Industrial N2O'!$M702 ->  | AA64: =C_to_CO2*'Industrial N2O'!$M732 ->  | AB64: =C_to_CO2*'Industrial N2O'!$M762 ->  | AC64: =C_to_CO2*'Industrial N2O'!$M792 ->  | AD64: =C_to_CO2*'Industrial N2O'!$M822 ->  | AE64: =C_to_CO2*'Industrial N2O'!$M852 ->  | AF64: =C_to_CO2*'Industrial N2O'!$M882 ->  | AG64: =C_to_CO2*'Industrial N2O'!$M912 ->  | AH64: =C_to_CO2*'Industrial N2O'!$M942 ->  | AI64: =C_to_CO2*'Industrial N2O'!$M972 ->  | AJ64: =C_to_CO2*'Industrial N2O'!$M1002 ->  | AK64: =C_to_CO2*'Industrial N2O'!$M1032 ->  | AL64: =C_to_CO2*'Industrial N2O'!$M1062 -> 
B65: Feedstocks, Naphtha less than 401 F | C65: =C_to_CO2*'Industrial N2O'!M13 ->  | D65: =C_to_CO2*'Industrial N2O'!$M43 ->  | E65: =C_to_CO2*'Industrial N2O'!$M73 ->  | F65: =C_to_CO2*'Industrial N2O'!$M103 ->  | G65: =C_to_CO2*'Industrial N2O'!$M133 ->  | H65: =C_to_CO2*'Industrial N2O'!$M163 ->  | I65: =C_to_CO2*'Industrial N2O'!$M193 ->  | J65: =C_to_CO2*'Industrial N2O'!$M223 ->  | K65: =C_to_CO2*'Industrial N2O'!$M253 ->  | L65: =C_to_CO2*'Industrial N2O'!$M283 ->  | M65: =C_to_CO2*'Industrial N2O'!$M313 ->  | N65: =C_to_CO2*'Industrial N2O'!$M343 ->  | O65: =C_to_CO2*'Industrial N2O'!$M373 ->  | P65: =C_to_CO2*'Industrial N2O'!$M403 ->  | Q65: =C_to_CO2*'Industrial N2O'!$M433 ->  | R65: =C_to_CO2*'Industrial N2O'!$M463 ->  | S65: =C_to_CO2*'Industrial N2O'!$M493 ->  | T65: =C_to_CO2*'Industrial N2O'!$M523 ->  | U65: =C_to_CO2*'Industrial N2O'!$M553 ->  | V65: =C_to_CO2*'Industrial N2O'!$M583 ->  | W65: =C_to_CO2*'Industrial N2O'!$M613 ->  | X65: =C_to_CO2*'Industrial N2O'!$M643 ->  | Y65: =C_to_CO2*'Industrial N2O'!$M673 ->  | Z65: =C_to_CO2*'Industrial N2O'!$M703 ->  | AA65: =C_to_CO2*'Industrial N2O'!$M733 ->  | AB65: =C_to_CO2*'Industrial N2O'!$M763 ->  | AC65: =C_to_CO2*'Industrial N2O'!$M793 ->  | AD65: =C_to_CO2*'Industrial N2O'!$M823 ->  | AE65: =C_to_CO2*'Industrial N2O'!$M853 ->  | AF65: =C_to_CO2*'Industrial N2O'!$M883 ->  | AG65: =C_to_CO2*'Industrial N2O'!$M913 ->  | AH65: =C_to_CO2*'Industrial N2O'!$M943 ->  | AI65: =C_to_CO2*'Industrial N2O'!$M973 ->  | AJ65: =C_to_CO2*'Industrial N2O'!$M1003 ->  | AK65: =C_to_CO2*'Industrial N2O'!$M1033 ->  | AL65: =C_to_CO2*'Industrial N2O'!$M1063 -> 
B66: Feedstocks, Other Oils greater than 401 F | C66: =C_to_CO2*'Industrial N2O'!M14 ->  | D66: =C_to_CO2*'Industrial N2O'!$M44 ->  | E66: =C_to_CO2*'Industrial N2O'!$M74 ->  | F66: =C_to_CO2*'Industrial N2O'!$M104 ->  | G66: =C_to_CO2*'Industrial N2O'!$M134 ->  | H66: =C_to_CO2*'Industrial N2O'!$M164 ->  | I66: =C_to_CO2*'Industrial N2O'!$M194 ->  | J66: =C_to_CO2*'Industrial N2O'!$M224 ->  | K66: =C_to_CO2*'Industrial N2O'!$M254 ->  | L66: =C_to_CO2*'Industrial N2O'!$M284 ->  | M66: =C_to_CO2*'Industrial N2O'!$M314 ->  | N66: =C_to_CO2*'Industrial N2O'!$M344 ->  | O66: =C_to_CO2*'Industrial N2O'!$M374 ->  | P66: =C_to_CO2*'Industrial N2O'!$M404 ->  | Q66: =C_to_CO2*'Industrial N2O'!$M434 ->  | R66: =C_to_CO2*'Industrial N2O'!$M464 ->  | S66: =C_to_CO2*'Industrial N2O'!$M494 ->  | T66: =C_to_CO2*'Industrial N2O'!$M524 ->  | U66: =C_to_CO2*'Industrial N2O'!$M554 ->  | V66: =C_to_CO2*'Industrial N2O'!$M584 ->  | W66: =C_to_CO2*'Industrial N2O'!$M614 ->  | X66: =C_to_CO2*'Industrial N2O'!$M644 ->  | Y66: =C_to_CO2*'Industrial N2O'!$M674 ->  | Z66: =C_to_CO2*'Industrial N2O'!$M704 ->  | AA66: =C_to_CO2*'Industrial N2O'!$M734 ->  | AB66: =C_to_CO2*'Industrial N2O'!$M764 ->  | AC66: =C_to_CO2*'Industrial N2O'!$M794 ->  | AD66: =C_to_CO2*'Industrial N2O'!$M824 ->  | AE66: =C_to_CO2*'Industrial N2O'!$M854 ->  | AF66: =C_to_CO2*'Industrial N2O'!$M884 ->  | AG66: =C_to_CO2*'Industrial N2O'!$M914 ->  | AH66: =C_to_CO2*'Industrial N2O'!$M944 ->  | AI66: =C_to_CO2*'Industrial N2O'!$M974 ->  | AJ66: =C_to_CO2*'Industrial N2O'!$M1004 ->  | AK66: =C_to_CO2*'Industrial N2O'!$M1034 ->  | AL66: =C_to_CO2*'Industrial N2O'!$M1064 -> 
B67: Kerosene | C67: =C_to_CO2*'Industrial N2O'!M15 ->  | D67: =C_to_CO2*'Industrial N2O'!$M45 ->  | E67: =C_to_CO2*'Industrial N2O'!$M75 ->  | F67: =C_to_CO2*'Industrial N2O'!$M105 ->  | G67: =C_to_CO2*'Industrial N2O'!$M135 ->  | H67: =C_to_CO2*'Industrial N2O'!$M165 ->  | I67: =C_to_CO2*'Industrial N2O'!$M195 ->  | J67: =C_to_CO2*'Industrial N2O'!$M225 ->  | K67: =C_to_CO2*'Industrial N2O'!$M255 ->  | L67: =C_to_CO2*'Industrial N2O'!$M285 ->  | M67: =C_to_CO2*'Industrial N2O'!$M315 ->  | N67: =C_to_CO2*'Industrial N2O'!$M345 ->  | O67: =C_to_CO2*'Industrial N2O'!$M375 ->  | P67: =C_to_CO2*'Industrial N2O'!$M405 ->  | Q67: =C_to_CO2*'Industrial N2O'!$M435 ->  | R67: =C_to_CO2*'Industrial N2O'!$M465 ->  | S67: =C_to_CO2*'Industrial N2O'!$M495 ->  | T67: =C_to_CO2*'Industrial N2O'!$M525 ->  | U67: =C_to_CO2*'Industrial N2O'!$M555 ->  | V67: =C_to_CO2*'Industrial N2O'!$M585 ->  | W67: =C_to_CO2*'Industrial N2O'!$M615 ->  | X67: =C_to_CO2*'Industrial N2O'!$M645 ->  | Y67: =C_to_CO2*'Industrial N2O'!$M675 ->  | Z67: =C_to_CO2*'Industrial N2O'!$M705 ->  | AA67: =C_to_CO2*'Industrial N2O'!$M735 ->  | AB67: =C_to_CO2*'Industrial N2O'!$M765 ->  | AC67: =C_to_CO2*'Industrial N2O'!$M795 ->  | AD67: =C_to_CO2*'Industrial N2O'!$M825 ->  | AE67: =C_to_CO2*'Industrial N2O'!$M855 ->  | AF67: =C_to_CO2*'Industrial N2O'!$M885 ->  | AG67: =C_to_CO2*'Industrial N2O'!$M915 ->  | AH67: =C_to_CO2*'Industrial N2O'!$M945 ->  | AI67: =C_to_CO2*'Industrial N2O'!$M975 ->  | AJ67: =C_to_CO2*'Industrial N2O'!$M1005 ->  | AK67: =C_to_CO2*'Industrial N2O'!$M1035 ->  | AL67: =C_to_CO2*'Industrial N2O'!$M1065 -> 
B68: Hydrocarbon Gas Liquids | C68: =C_to_CO2*'Industrial N2O'!M16 ->  | D68: =C_to_CO2*'Industrial N2O'!$M46 ->  | E68: =C_to_CO2*'Industrial N2O'!$M76 ->  | F68: =C_to_CO2*'Industrial N2O'!$M106 ->  | G68: =C_to_CO2*'Industrial N2O'!$M136 ->  | H68: =C_to_CO2*'Industrial N2O'!$M166 ->  | I68: =C_to_CO2*'Industrial N2O'!$M196 ->  | J68: =C_to_CO2*'Industrial N2O'!$M226 ->  | K68: =C_to_CO2*'Industrial N2O'!$M256 ->  | L68: =C_to_CO2*'Industrial N2O'!$M286 ->  | M68: =C_to_CO2*'Industrial N2O'!$M316 ->  | N68: =C_to_CO2*'Industrial N2O'!$M346 ->  | O68: =C_to_CO2*'Industrial N2O'!$M376 ->  | P68: =C_to_CO2*'Industrial N2O'!$M406 ->  | Q68: =C_to_CO2*'Industrial N2O'!$M436 ->  | R68: =C_to_CO2*'Industrial N2O'!$M466 ->  | S68: =C_to_CO2*'Industrial N2O'!$M496 ->  | T68: =C_to_CO2*'Industrial N2O'!$M526 ->  | U68: =C_to_CO2*'Industrial N2O'!$M556 ->  | V68: =C_to_CO2*'Industrial N2O'!$M586 ->  | W68: =C_to_CO2*'Industrial N2O'!$M616 ->  | X68: =C_to_CO2*'Industrial N2O'!$M646 ->  | Y68: =C_to_CO2*'Industrial N2O'!$M676 ->  | Z68: =C_to_CO2*'Industrial N2O'!$M706 ->  | AA68: =C_to_CO2*'Industrial N2O'!$M736 ->  | AB68: =C_to_CO2*'Industrial N2O'!$M766 ->  | AC68: =C_to_CO2*'Industrial N2O'!$M796 ->  | AD68: =C_to_CO2*'Industrial N2O'!$M826 ->  | AE68: =C_to_CO2*'Industrial N2O'!$M856 ->  | AF68: =C_to_CO2*'Industrial N2O'!$M886 ->  | AG68: =C_to_CO2*'Industrial N2O'!$M916 ->  | AH68: =C_to_CO2*'Industrial N2O'!$M946 ->  | AI68: =C_to_CO2*'Industrial N2O'!$M976 ->  | AJ68: =C_to_CO2*'Industrial N2O'!$M1006 ->  | AK68: =C_to_CO2*'Industrial N2O'!$M1036 ->  | AL68: =C_to_CO2*'Industrial N2O'!$M1066 -> 
B69: Lubricants | C69: =C_to_CO2*'Industrial N2O'!M17 ->  | D69: =C_to_CO2*'Industrial N2O'!$M47 ->  | E69: =C_to_CO2*'Industrial N2O'!$M77 ->  | F69: =C_to_CO2*'Industrial N2O'!$M107 ->  | G69: =C_to_CO2*'Industrial N2O'!$M137 ->  | H69: =C_to_CO2*'Industrial N2O'!$M167 ->  | I69: =C_to_CO2*'Industrial N2O'!$M197 ->  | J69: =C_to_CO2*'Industrial N2O'!$M227 ->  | K69: =C_to_CO2*'Industrial N2O'!$M257 ->  | L69: =C_to_CO2*'Industrial N2O'!$M287 ->  | M69: =C_to_CO2*'Industrial N2O'!$M317 ->  | N69: =C_to_CO2*'Industrial N2O'!$M347 ->  | O69: =C_to_CO2*'Industrial N2O'!$M377 ->  | P69: =C_to_CO2*'Industrial N2O'!$M407 ->  | Q69: =C_to_CO2*'Industrial N2O'!$M437 ->  | R69: =C_to_CO2*'Industrial N2O'!$M467 ->  | S69: =C_to_CO2*'Industrial N2O'!$M497 ->  | T69: =C_to_CO2*'Industrial N2O'!$M527 ->  | U69: =C_to_CO2*'Industrial N2O'!$M557 ->  | V69: =C_to_CO2*'Industrial N2O'!$M587 ->  | W69: =C_to_CO2*'Industrial N2O'!$M617 ->  | X69: =C_to_CO2*'Industrial N2O'!$M647 ->  | Y69: =C_to_CO2*'Industrial N2O'!$M677 ->  | Z69: =C_to_CO2*'Industrial N2O'!$M707 ->  | AA69: =C_to_CO2*'Industrial N2O'!$M737 ->  | AB69: =C_to_CO2*'Industrial N2O'!$M767 ->  | AC69: =C_to_CO2*'Industrial N2O'!$M797 ->  | AD69: =C_to_CO2*'Industrial N2O'!$M827 ->  | AE69: =C_to_CO2*'Industrial N2O'!$M857 ->  | AF69: =C_to_CO2*'Industrial N2O'!$M887 ->  | AG69: =C_to_CO2*'Industrial N2O'!$M917 ->  | AH69: =C_to_CO2*'Industrial N2O'!$M947 ->  | AI69: =C_to_CO2*'Industrial N2O'!$M977 ->  | AJ69: =C_to_CO2*'Industrial N2O'!$M1007 ->  | AK69: =C_to_CO2*'Industrial N2O'!$M1037 ->  | AL69: =C_to_CO2*'Industrial N2O'!$M1067 -> 
